Workbook

Sheet Overview

Sheet Select School
B3: =VLOOKUP(C3,SchList!$I$1:$J$500,2,FALSE) -> 9999 | C3: 1

Sheet Grade 3 Report
A2: Click here to return to the school and sheet selection interface
A3: =VALUE('Select School'!B3) -> 9999 | B3: =TYPE(A3) -> 1
A4: =TEXT(A3,"0000")&"-"&VLOOKUP(A3,SchList!$A$2:$B$504,2,FALSE) -> 9999-District
A5: Reading - Grade 3
A6: Level of Proficiency at 70% or above | B6: Total # of Students | C6: % of Students Tested | D6: ='G3-5 Matrix'!C2&" ["&'G3-5 Matrix'!C3&"]" -> Overall [31] | F6: ='G3-5 Matrix'!D2&" ["&'G3-5 Matrix'!D3&"]" -> Vocabulary [6] | H6: ='G3-5 Matrix'!E2&" ["&'G3-5 Matrix'!E3&"]" -> Reading Application [17] | J6: ='G3-5 Matrix'!F2&" ["&'G3-5 Matrix'!F3&"]" -> Literary Analysis Fiction/Nonfiction [6] | L6: ='G3-5 Matrix'!G2&" ["&'G3-5 Matrix'!G3&"]" -> Informational Text/ Research Process [2]
D7: Average Score | E7: % Proficient | F7: Average Score | G7: % Proficient | H7: Average Score | I7: % Proficient | J7: Average Score | K7: % Proficient | L7: Average Score | M7: % Proficient
A8: Total Students | B8: =IFERROR(VLOOKUP(TEXT($A$3,"0000"),Mem_All!$A$3:$O$501,7,FALSE),0) -> 26859 | C8: =IFERROR((IF(OR(B8<10,B8="",B8="NA"),"NA",((IF(VLOOKUP($A$3,'G3-RALL'!$A$6:$AM$501,3,FALSE)>=B8,"100% ("&VLOOKUP($A$3,'G3-RALL'!$A$6:$AM$501,3,FALSE)&")",(ROUND((VLOOKUP($A$3,'G3-RALL'!$A$6:$AM$501,3,FALSE)/B8*100),0))&"% ("&IF(VLOOKUP($A$3,'G3-RALL'!$A$6:$AM$501,3,FALSE)="",0,VLOOKUP($A$3,'G3-RALL'!$A$6:$AM$501,3,FALSE))&")"))))),"0% (0)") -> 95% (25537) | D8: =IFERROR((IF($C8="NA","NA",VLOOKUP($A$3,'G3-RALL'!$A$6:$AM$501,4,FALSE))),"NA") -> 17.1669225 | E8: =IFERROR((IF($C8="NA","NA",VLOOKUP($A$3,'G3-RALL'!$A$6:$AM$501,6,FALSE)&"% ("&IF(VLOOKUP($A$3,'G3-RALL'!$A$6:$AM$501,5,FALSE)="",0,VLOOKUP($A$3,'G3-RALL'!$A$6:$AM$501,5,FALSE))&")")),"NA") -> 30% (7614) | F8: =IFERROR((IF($C8="NA","NA",VLOOKUP($A$3,'G3-RALL'!$A$6:$AM$501,7,FALSE))),"NA") -> 3.969479579 | G8: =IFERROR((IF($C8="NA","NA",VLOOKUP($A$3,'G3-RALL'!$A$6:$AM$501,9,FALSE)&"% ("&IF(VLOOKUP($A$3,'G3-RALL'!$A$6:$AM$501,8,FALSE)="",0,VLOOKUP($A$3,'G3-RALL'!$A$6:$AM$501,8,FALSE))&")")),"NA") -> 45% (11374) | H8: =IFERROR((IF($C8="NA","NA",VLOOKUP($A$3,'G3-RALL'!$A$6:$AM$501,10,FALSE))),"NA") -> 9.127141011 | I8: =IFERROR((IF($C8="NA","NA",VLOOKUP($A$3,'G3-RALL'!$A$6:$AM$501,12,FALSE)&"% ("&IF(VLOOKUP($A$3,'G3-RALL'!$A$6:$AM$501,11,FALSE)="",0,VLOOKUP($A$3,'G3-RALL'!$A$6:$AM$501,11,FALSE))&")")),"NA") -> 29% (7298) | J8: =IFERROR((IF($C8="NA","NA",VLOOKUP($A$3,'G3-RALL'!$A$6:$AM$501,13,FALSE))),"NA") -> 3.276117007 | K8: =IFERROR((IF($C8="NA","NA",VLOOKUP($A$3,'G3-RALL'!$A$6:$AM$501,15,FALSE)&"% ("&IF(VLOOKUP($A$3,'G3-RALL'!$A$6:$AM$501,14,FALSE)="",0,VLOOKUP($A$3,'G3-RALL'!$A$6:$AM$501,14,FALSE))&")")),"NA") -> 28% (7093) | L8: =IFERROR((IF($C8="NA","NA",VLOOKUP($A$3,'G3-RALL'!$A$6:$AM$501,16,FALSE))),"NA") -> 0.7897521244 | M8: =IFERROR((IF($C8="NA","NA",VLOOKUP($A$3,'G3-RALL'!$A$6:$AM$501,18,FALSE)&"% ("&IF(VLOOKUP($A$3,'G3-RALL'!$A$6:$AM$501,17,FALSE)="",0,VLOOKUP($A$3,'G3-RALL'!$A$6:$AM$501,17,FALSE))&")")),"NA") -> 15% (3840)
A9: White | B9: =IFERROR(VLOOKUP(TEXT($A$3,"0000"),MEM_W!$A$3:$O$501,7,FALSE),0) -> 1886 | C9: =IFERROR((IF(OR(B9<10,B9="",B9="NA"),"NA",((IF(VLOOKUP($A$3,'G3-RW'!$A$6:$AM$500,3,FALSE)>=B9,"100% ("&VLOOKUP($A$3,'G3-RW'!$A$6:$AM$500,3,FALSE)&")",(ROUND((VLOOKUP($A$3,'G3-RW'!$A$6:$AM$500,3,FALSE)/B9*100),0))&"% ("&IF(VLOOKUP($A$3,'G3-RW'!$A$6:$AM$500,3,FALSE)="",0,VLOOKUP($A$3,'G3-RW'!$A$6:$AM$500,3,FALSE))&")"))))),"0% (0)") -> 94% (1773) | D9: =IFERROR((IF($C9="NA","NA",VLOOKUP($A$3,'G3-RW'!$A$6:$AM$501,4,FALSE))),"NA") -> 20.34478285 | E9: =IFERROR((IF($C9="NA","NA",VLOOKUP($A$3,'G3-RW'!$A$6:$AM$501,6,FALSE)&"% ("&IF(VLOOKUP($A$3,'G3-RW'!$A$6:$AM$501,5,FALSE)="",0,VLOOKUP($A$3,'G3-RW'!$A$6:$AM$501,5,FALSE))&")")),"NA") -> 50% (888) | F9: =IFERROR((IF($C9="NA","NA",VLOOKUP($A$3,'G3-RW'!$A$6:$AM$501,7,FALSE))),"NA") -> 4.599887197 | G9: =IFERROR((IF($C9="NA","NA",VLOOKUP($A$3,'G3-RW'!$A$6:$AM$501,9,FALSE)&"% ("&IF(VLOOKUP($A$3,'G3-RW'!$A$6:$AM$501,8,FALSE)="",0,VLOOKUP($A$3,'G3-RW'!$A$6:$AM$501,8,FALSE))&")")),"NA") -> 62% (1097) | H9: =IFERROR((IF($C9="NA","NA",VLOOKUP($A$3,'G3-RW'!$A$6:$AM$501,10,FALSE))),"NA") -> 10.80518895 | I9: =IFERROR((IF($C9="NA","NA",VLOOKUP($A$3,'G3-RW'!$A$6:$AM$501,12,FALSE)&"% ("&IF(VLOOKUP($A$3,'G3-RW'!$A$6:$AM$501,11,FALSE)="",0,VLOOKUP($A$3,'G3-RW'!$A$6:$AM$501,11,FALSE))&")")),"NA") -> 48% (847) | J9: =IFERROR((IF($C9="NA","NA",VLOOKUP($A$3,'G3-RW'!$A$6:$AM$501,13,FALSE))),"NA") -> 3.998364354 | K9: =IFERROR((IF($C9="NA","NA",VLOOKUP($A$3,'G3-RW'!$A$6:$AM$501,15,FALSE)&"% ("&IF(VLOOKUP($A$3,'G3-RW'!$A$6:$AM$501,14,FALSE)="",0,VLOOKUP($A$3,'G3-RW'!$A$6:$AM$501,14,FALSE))&")")),"NA") -> 45% (800) | L9: =IFERROR((IF($C9="NA","NA",VLOOKUP($A$3,'G3-RW'!$A$6:$AM$501,16,FALSE))),"NA") -> 0.9442188381 | M9: =IFERROR((IF($C9="NA","NA",VLOOKUP($A$3,'G3-RW'!$A$6:$AM$501,18,FALSE)&"% ("&IF(VLOOKUP($A$3,'G3-RW'!$A$6:$AM$501,17,FALSE)="",0,VLOOKUP($A$3,'G3-RW'!$A$6:$AM$501,17,FALSE))&")")),"NA") -> 21% (371)
A10: Black | B10: =IFERROR(VLOOKUP(TEXT($A$3,"0000"),MEM_B!$A$3:$O$501,7,FALSE),0) -> 6096 | C10: =IFERROR((IF(OR(B10<10,B10="",B10="NA"),"NA",((IF(VLOOKUP($A$3,'G3-RB'!$A$6:$R$500,3,FALSE)>=B10,"100% ("&VLOOKUP($A$3,'G3-RB'!$A$6:$R$500,3,FALSE)&")",(ROUND((VLOOKUP($A$3,'G3-RB'!$A$6:$R$500,3,FALSE)/B10*100),0))&"% ("&IF(VLOOKUP($A$3,'G3-RB'!$A$6:$R$500,3,FALSE)="",0,VLOOKUP($A$3,'G3-RB'!$A$6:$R$500,3,FALSE))&")"))))),"0% (0)") -> 94% (5748) | D10: =IFERROR((IF($C10="NA","NA",VLOOKUP($A$3,'G3-RB'!$A$6:$AM$501,4,FALSE))),"NA") -> 15.21593598 | E10: =IFERROR((IF($C10="NA","NA",VLOOKUP($A$3,'G3-RB'!$A$6:$AM$501,6,FALSE)&"% ("&IF(VLOOKUP($A$3,'G3-RB'!$A$6:$AM$501,5,FALSE)="",0,VLOOKUP($A$3,'G3-RB'!$A$6:$AM$501,5,FALSE))&")")),"NA") -> 18% (1010) | F10: =IFERROR((IF($C10="NA","NA",VLOOKUP($A$3,'G3-RB'!$A$6:$AM$501,7,FALSE))),"NA") -> 3.5861865 | G10: =IFERROR((IF($C10="NA","NA",VLOOKUP($A$3,'G3-RB'!$A$6:$AM$501,9,FALSE)&"% ("&IF(VLOOKUP($A$3,'G3-RB'!$A$6:$AM$501,8,FALSE)="",0,VLOOKUP($A$3,'G3-RB'!$A$6:$AM$501,8,FALSE))&")")),"NA") -> 33% (1925) | H10: =IFERROR((IF($C10="NA","NA",VLOOKUP($A$3,'G3-RB'!$A$6:$AM$501,10,FALSE))),"NA") -> 8.14361517 | I10: =IFERROR((IF($C10="NA","NA",VLOOKUP($A$3,'G3-RB'!$A$6:$AM$501,12,FALSE)&"% ("&IF(VLOOKUP($A$3,'G3-RB'!$A$6:$AM$501,11,FALSE)="",0,VLOOKUP($A$3,'G3-RB'!$A$6:$AM$501,11,FALSE))&")")),"NA") -> 18% (1054) | J10: =IFERROR((IF($C10="NA","NA",VLOOKUP($A$3,'G3-RB'!$A$6:$AM$501,13,FALSE))),"NA") -> 2.818232429 | K10: =IFERROR((IF($C10="NA","NA",VLOOKUP($A$3,'G3-RB'!$A$6:$AM$501,15,FALSE)&"% ("&IF(VLOOKUP($A$3,'G3-RB'!$A$6:$AM$501,14,FALSE)="",0,VLOOKUP($A$3,'G3-RB'!$A$6:$AM$501,14,FALSE))&")")),"NA") -> 18% (1012) | L10: =IFERROR((IF($C10="NA","NA",VLOOKUP($A$3,'G3-RB'!$A$6:$AM$501,16,FALSE))),"NA") -> 0.6796450939 | M10: =IFERROR((IF($C10="NA","NA",VLOOKUP($A$3,'G3-RB'!$A$6:$AM$501,18,FALSE)&"% ("&IF(VLOOKUP($A$3,'G3-RB'!$A$6:$AM$501,17,FALSE)="",0,VLOOKUP($A$3,'G3-RB'!$A$6:$AM$501,17,FALSE))&")")),"NA") -> 11% (659)
A11: Hispanic | B11: =IFERROR(VLOOKUP(TEXT($A$3,"0000"),MEM_H!$A$3:$O$501,7,FALSE),0) -> 18204 | C11: =IFERROR((IF(OR(B11<10,B11="",B11="NA"),"NA",((IF(VLOOKUP($A$3,'G3-RH'!$A$6:$AM$500,3,FALSE)>=B11,"100% ("&VLOOKUP($A$3,'G3-RH'!$A$6:$AM$500,3,FALSE)&")",(ROUND((VLOOKUP($A$3,'G3-RH'!$A$6:$AM$500,3,FALSE)/B11*100),0))&"% ("&IF(VLOOKUP($A$3,'G3-RH'!$A$6:$AM$500,3,FALSE)="",0,VLOOKUP($A$3,'G3-RH'!$A$6:$AM$500,3,FALSE))&")"))))),"0% (0)") -> 95% (17374) | D11: =IFERROR((IF($C11="NA","NA",VLOOKUP($A$3,'G3-RH'!$A$6:$AM$501,4,FALSE))),"NA") -> 17.4144181 | E11: =IFERROR((IF($C11="NA","NA",VLOOKUP($A$3,'G3-RH'!$A$6:$AM$501,6,FALSE)&"% ("&IF(VLOOKUP($A$3,'G3-RH'!$A$6:$AM$501,5,FALSE)="",0,VLOOKUP($A$3,'G3-RH'!$A$6:$AM$501,5,FALSE))&")")),"NA") -> 31% (5443) | F11: =IFERROR((IF($C11="NA","NA",VLOOKUP($A$3,'G3-RH'!$A$6:$AM$501,7,FALSE))),"NA") -> 4.011954645 | G11: =IFERROR((IF($C11="NA","NA",VLOOKUP($A$3,'G3-RH'!$A$6:$AM$501,9,FALSE)&"% ("&IF(VLOOKUP($A$3,'G3-RH'!$A$6:$AM$501,8,FALSE)="",0,VLOOKUP($A$3,'G3-RH'!$A$6:$AM$501,8,FALSE))&")")),"NA") -> 46% (7974) | H11: =IFERROR((IF($C11="NA","NA",VLOOKUP($A$3,'G3-RH'!$A$6:$AM$501,10,FALSE))),"NA") -> 9.249211465 | I11: =IFERROR((IF($C11="NA","NA",VLOOKUP($A$3,'G3-RH'!$A$6:$AM$501,12,FALSE)&"% ("&IF(VLOOKUP($A$3,'G3-RH'!$A$6:$AM$501,11,FALSE)="",0,VLOOKUP($A$3,'G3-RH'!$A$6:$AM$501,11,FALSE))&")")),"NA") -> 30% (5148) | J11: =IFERROR((IF($C11="NA","NA",VLOOKUP($A$3,'G3-RH'!$A$6:$AM$501,13,FALSE))),"NA") -> 3.339231035 | K11: =IFERROR((IF($C11="NA","NA",VLOOKUP($A$3,'G3-RH'!$A$6:$AM$501,15,FALSE)&"% ("&IF(VLOOKUP($A$3,'G3-RH'!$A$6:$AM$501,14,FALSE)="",0,VLOOKUP($A$3,'G3-RH'!$A$6:$AM$501,14,FALSE))&")")),"NA") -> 29% (5039) | L11: =IFERROR((IF($C11="NA","NA",VLOOKUP($A$3,'G3-RH'!$A$6:$AM$501,16,FALSE))),"NA") -> 0.8093242777 | M11: =IFERROR((IF($C11="NA","NA",VLOOKUP($A$3,'G3-RH'!$A$6:$AM$501,18,FALSE)&"% ("&IF(VLOOKUP($A$3,'G3-RH'!$A$6:$AM$501,17,FALSE)="",0,VLOOKUP($A$3,'G3-RH'!$A$6:$AM$501,17,FALSE))&")")),"NA") -> 16% (2705)
A12: Asian | B12: =IFERROR(VLOOKUP(TEXT($A$3,"0000"),MEM_A!$A$3:$O$501,7,FALSE),0) -> 310 | C12: =IFERROR((IF(OR(B12<10,B12="",B12="NA"),"NA",((IF(VLOOKUP($A$3,'G3-RA'!$A$6:$AM$500,3,FALSE)>=B12,"100% ("&VLOOKUP($A$3,'G3-RA'!$A$6:$AM$500,3,FALSE)&")",(ROUND((VLOOKUP($A$3,'G3-RA'!$A$6:$AM$500,3,FALSE)/B12*100),0))&"% ("&IF(VLOOKUP($A$3,'G3-RA'!$A$6:$AM$500,3,FALSE)="",0,VLOOKUP($A$3,'G3-RA'!$A$6:$AM$500,3,FALSE))&")"))))),"0% (0)") -> 92% (286) | D12: =IFERROR((IF($C12="NA","NA",VLOOKUP($A$3,'G3-RA'!$A$6:$AM$501,4,FALSE))),"NA") -> 20.58881119 | E12: =IFERROR((IF($C12="NA","NA",VLOOKUP($A$3,'G3-RA'!$A$6:$AM$501,6,FALSE)&"% ("&IF(VLOOKUP($A$3,'G3-RA'!$A$6:$AM$501,5,FALSE)="",0,VLOOKUP($A$3,'G3-RA'!$A$6:$AM$501,5,FALSE))&")")),"NA") -> 55% (156) | F12: =IFERROR((IF($C12="NA","NA",VLOOKUP($A$3,'G3-RA'!$A$6:$AM$501,7,FALSE))),"NA") -> 4.754195804 | G12: =IFERROR((IF($C12="NA","NA",VLOOKUP($A$3,'G3-RA'!$A$6:$AM$501,9,FALSE)&"% ("&IF(VLOOKUP($A$3,'G3-RA'!$A$6:$AM$501,8,FALSE)="",0,VLOOKUP($A$3,'G3-RA'!$A$6:$AM$501,8,FALSE))&")")),"NA") -> 69% (197) | H12: =IFERROR((IF($C12="NA","NA",VLOOKUP($A$3,'G3-RA'!$A$6:$AM$501,10,FALSE))),"NA") -> 10.87377622 | I12: =IFERROR((IF($C12="NA","NA",VLOOKUP($A$3,'G3-RA'!$A$6:$AM$501,12,FALSE)&"% ("&IF(VLOOKUP($A$3,'G3-RA'!$A$6:$AM$501,11,FALSE)="",0,VLOOKUP($A$3,'G3-RA'!$A$6:$AM$501,11,FALSE))&")")),"NA") -> 47% (135) | J12: =IFERROR((IF($C12="NA","NA",VLOOKUP($A$3,'G3-RA'!$A$6:$AM$501,13,FALSE))),"NA") -> 4.025874126 | K12: =IFERROR((IF($C12="NA","NA",VLOOKUP($A$3,'G3-RA'!$A$6:$AM$501,15,FALSE)&"% ("&IF(VLOOKUP($A$3,'G3-RA'!$A$6:$AM$501,14,FALSE)="",0,VLOOKUP($A$3,'G3-RA'!$A$6:$AM$501,14,FALSE))&")")),"NA") -> 50% (142) | L12: =IFERROR((IF($C12="NA","NA",VLOOKUP($A$3,'G3-RA'!$A$6:$AM$501,16,FALSE))),"NA") -> 0.9479020979 | M12: =IFERROR((IF($C12="NA","NA",VLOOKUP($A$3,'G3-RA'!$A$6:$AM$501,18,FALSE)&"% ("&IF(VLOOKUP($A$3,'G3-RA'!$A$6:$AM$501,17,FALSE)="",0,VLOOKUP($A$3,'G3-RA'!$A$6:$AM$501,17,FALSE))&")")),"NA") -> 19% (53)
A13: Am. Indian | B13: =IFERROR(VLOOKUP(TEXT($A$3,"0000"),MEM_I!$A$3:$O$501,7,FALSE),0) -> 11 | C13: =IFERROR((IF(OR(B13<10,B13="",B13="NA"),"NA",((IF(VLOOKUP($A$3,'G3-RI'!$A$6:$AM$500,3,FALSE)>=B13,"100% ("&VLOOKUP($A$3,'G3-RI'!$A$6:$AM$500,3,FALSE)&")",(ROUND((VLOOKUP($A$3,'G3-RI'!$A$6:$AM$500,3,FALSE)/B13*100),0))&"% ("&IF(VLOOKUP($A$3,'G3-RI'!$A$6:$AM$500,3,FALSE)="",0,VLOOKUP($A$3,'G3-RI'!$A$6:$AM$500,3,FALSE))&")"))))),"0% (0)") -> 55% (6) | D13: =IFERROR((IF($C13="NA","NA",VLOOKUP($A$3,'G3-RI'!$A$6:$AM$501,4,FALSE))),"NA") -> 23 | E13: =IFERROR((IF($C13="NA","NA",VLOOKUP($A$3,'G3-RI'!$A$6:$AM$501,6,FALSE)&"% ("&IF(VLOOKUP($A$3,'G3-RI'!$A$6:$AM$501,5,FALSE)="",0,VLOOKUP($A$3,'G3-RI'!$A$6:$AM$501,5,FALSE))&")")),"NA") -> 83% (5) | F13: =IFERROR((IF($C13="NA","NA",VLOOKUP($A$3,'G3-RI'!$A$6:$AM$501,7,FALSE))),"NA") -> 5.333333333 | G13: =IFERROR((IF($C13="NA","NA",VLOOKUP($A$3,'G3-RI'!$A$6:$AM$501,9,FALSE)&"% ("&IF(VLOOKUP($A$3,'G3-RI'!$A$6:$AM$501,8,FALSE)="",0,VLOOKUP($A$3,'G3-RI'!$A$6:$AM$501,8,FALSE))&")")),"NA") -> 100% (6) | H13: =IFERROR((IF($C13="NA","NA",VLOOKUP($A$3,'G3-RI'!$A$6:$AM$501,10,FALSE))),"NA") -> 11.83333333 | I13: =IFERROR((IF($C13="NA","NA",VLOOKUP($A$3,'G3-RI'!$A$6:$AM$501,12,FALSE)&"% ("&IF(VLOOKUP($A$3,'G3-RI'!$A$6:$AM$501,11,FALSE)="",0,VLOOKUP($A$3,'G3-RI'!$A$6:$AM$501,11,FALSE))&")")),"NA") -> 67% (4) | J13: =IFERROR((IF($C13="NA","NA",VLOOKUP($A$3,'G3-RI'!$A$6:$AM$501,13,FALSE))),"NA") -> 4.5 | K13: =IFERROR((IF($C13="NA","NA",VLOOKUP($A$3,'G3-RI'!$A$6:$AM$501,15,FALSE)&"% ("&IF(VLOOKUP($A$3,'G3-RI'!$A$6:$AM$501,14,FALSE)="",0,VLOOKUP($A$3,'G3-RI'!$A$6:$AM$501,14,FALSE))&")")),"NA") -> 50% (3) | L13: =IFERROR((IF($C13="NA","NA",VLOOKUP($A$3,'G3-RI'!$A$6:$AM$501,16,FALSE))),"NA") -> 1.333333333 | M13: =IFERROR((IF($C13="NA","NA",VLOOKUP($A$3,'G3-RI'!$A$6:$AM$501,18,FALSE)&"% ("&IF(VLOOKUP($A$3,'G3-RI'!$A$6:$AM$501,17,FALSE)="",0,VLOOKUP($A$3,'G3-RI'!$A$6:$AM$501,17,FALSE))&")")),"NA") -> 50% (3)
A14: ED | B14: =IFERROR(VLOOKUP(TEXT($A$3,"0000"),MEM_ED!$A$3:$O$501,7,FALSE),0) -> 20954 | C14: =IFERROR((IF(OR(B14<10,B14="",B14="NA"),"NA",((IF(VLOOKUP($A$3,'G3-RED'!$A$6:$AM$500,3,FALSE)>=B14,"100% ("&VLOOKUP($A$3,'G3-RED'!$A$6:$AM$500,3,FALSE)&")",(ROUND((VLOOKUP($A$3,'G3-RED'!$A$6:$AM$500,3,FALSE)/B14*100),0))&"% ("&IF(VLOOKUP($A$3,'G3-RED'!$A$6:$AM$500,3,FALSE)="",0,VLOOKUP($A$3,'G3-RED'!$A$6:$AM$500,3,FALSE))&")"))))),"0% (0)") -> 96% (20187) | D14: =IFERROR((IF($C14="NA","NA",VLOOKUP($A$3,'G3-RED'!$A$6:$AM$501,4,FALSE))),"NA") -> 16.31588151 | E14: =IFERROR((IF($C14="NA","NA",VLOOKUP($A$3,'G3-RED'!$A$6:$AM$501,6,FALSE)&"% ("&IF(VLOOKUP($A$3,'G3-RED'!$A$6:$AM$501,5,FALSE)="",0,VLOOKUP($A$3,'G3-RED'!$A$6:$AM$501,5,FALSE))&")")),"NA") -> 24% (4878) | F14: =IFERROR((IF($C14="NA","NA",VLOOKUP($A$3,'G3-RED'!$A$6:$AM$501,7,FALSE))),"NA") -> 3.791989894 | G14: =IFERROR((IF($C14="NA","NA",VLOOKUP($A$3,'G3-RED'!$A$6:$AM$501,9,FALSE)&"% ("&IF(VLOOKUP($A$3,'G3-RED'!$A$6:$AM$501,8,FALSE)="",0,VLOOKUP($A$3,'G3-RED'!$A$6:$AM$501,8,FALSE))&")")),"NA") -> 40% (7978) | H14: =IFERROR((IF($C14="NA","NA",VLOOKUP($A$3,'G3-RED'!$A$6:$AM$501,10,FALSE))),"NA") -> 8.688418289 | I14: =IFERROR((IF($C14="NA","NA",VLOOKUP($A$3,'G3-RED'!$A$6:$AM$501,12,FALSE)&"% ("&IF(VLOOKUP($A$3,'G3-RED'!$A$6:$AM$501,11,FALSE)="",0,VLOOKUP($A$3,'G3-RED'!$A$6:$AM$501,11,FALSE))&")")),"NA") -> 24% (4753) | J14: =IFERROR((IF($C14="NA","NA",VLOOKUP($A$3,'G3-RED'!$A$6:$AM$501,13,FALSE))),"NA") -> 3.079749344 | K14: =IFERROR((IF($C14="NA","NA",VLOOKUP($A$3,'G3-RED'!$A$6:$AM$501,15,FALSE)&"% ("&IF(VLOOKUP($A$3,'G3-RED'!$A$6:$AM$501,14,FALSE)="",0,VLOOKUP($A$3,'G3-RED'!$A$6:$AM$501,14,FALSE))&")")),"NA") -> 23% (4639) | L14: =IFERROR((IF($C14="NA","NA",VLOOKUP($A$3,'G3-RED'!$A$6:$AM$501,16,FALSE))),"NA") -> 0.7508198345 | M14: =IFERROR((IF($C14="NA","NA",VLOOKUP($A$3,'G3-RED'!$A$6:$AM$501,18,FALSE)&"% ("&IF(VLOOKUP($A$3,'G3-RED'!$A$6:$AM$501,17,FALSE)="",0,VLOOKUP($A$3,'G3-RED'!$A$6:$AM$501,17,FALSE))&")")),"NA") -> 13% (2725)
A15: ELL | B15: =IFERROR(VLOOKUP(TEXT($A$3,"0000"),MEM_ELL!$A$3:$O$501,7,FALSE),0) -> 11250 | C15: =IFERROR((IF(OR(B15<10,B15="",B15="NA"),"NA",((IF(VLOOKUP($A$3,'G3-RELL'!$A$6:$AM$500,3,FALSE)>=B15,"100% ("&VLOOKUP($A$3,'G3-RELL'!$A$6:$AM$500,3,FALSE)&")",(ROUND((VLOOKUP($A$3,'G3-RELL'!$A$6:$AM$500,3,FALSE)/B15*100),0))&"% ("&IF(VLOOKUP($A$3,'G3-RELL'!$A$6:$AM$500,3,FALSE)="",0,VLOOKUP($A$3,'G3-RELL'!$A$6:$AM$500,3,FALSE))&")"))))),"0% (0)") -> 96% (10747) | D15: =IFERROR((IF($C15="NA","NA",VLOOKUP($A$3,'G3-RELL'!$A$6:$AM$501,4,FALSE))),"NA") -> 15.57960361 | E15: =IFERROR((IF($C15="NA","NA",VLOOKUP($A$3,'G3-RELL'!$A$6:$AM$501,6,FALSE)&"% ("&IF(VLOOKUP($A$3,'G3-RELL'!$A$6:$AM$501,5,FALSE)="",0,VLOOKUP($A$3,'G3-RELL'!$A$6:$AM$501,5,FALSE))&")")),"NA") -> 20% (2186) | F15: =IFERROR((IF($C15="NA","NA",VLOOKUP($A$3,'G3-RELL'!$A$6:$AM$501,7,FALSE))),"NA") -> 3.600725784 | G15: =IFERROR((IF($C15="NA","NA",VLOOKUP($A$3,'G3-RELL'!$A$6:$AM$501,9,FALSE)&"% ("&IF(VLOOKUP($A$3,'G3-RELL'!$A$6:$AM$501,8,FALSE)="",0,VLOOKUP($A$3,'G3-RELL'!$A$6:$AM$501,8,FALSE))&")")),"NA") -> 35% (3766) | H15: =IFERROR((IF($C15="NA","NA",VLOOKUP($A$3,'G3-RELL'!$A$6:$AM$501,10,FALSE))),"NA") -> 8.326137527 | I15: =IFERROR((IF($C15="NA","NA",VLOOKUP($A$3,'G3-RELL'!$A$6:$AM$501,12,FALSE)&"% ("&IF(VLOOKUP($A$3,'G3-RELL'!$A$6:$AM$501,11,FALSE)="",0,VLOOKUP($A$3,'G3-RELL'!$A$6:$AM$501,11,FALSE))&")")),"NA") -> 20% (2133) | J15: =IFERROR((IF($C15="NA","NA",VLOOKUP($A$3,'G3-RELL'!$A$6:$AM$501,13,FALSE))),"NA") -> 2.930026984 | K15: =IFERROR((IF($C15="NA","NA",VLOOKUP($A$3,'G3-RELL'!$A$6:$AM$501,15,FALSE)&"% ("&IF(VLOOKUP($A$3,'G3-RELL'!$A$6:$AM$501,14,FALSE)="",0,VLOOKUP($A$3,'G3-RELL'!$A$6:$AM$501,14,FALSE))&")")),"NA") -> 20% (2103) | L15: =IFERROR((IF($C15="NA","NA",VLOOKUP($A$3,'G3-RELL'!$A$6:$AM$501,16,FALSE))),"NA") -> 0.7227133153 | M15: =IFERROR((IF($C15="NA","NA",VLOOKUP($A$3,'G3-RELL'!$A$6:$AM$501,18,FALSE)&"% ("&IF(VLOOKUP($A$3,'G3-RELL'!$A$6:$AM$501,17,FALSE)="",0,VLOOKUP($A$3,'G3-RELL'!$A$6:$AM$501,17,FALSE))&")")),"NA") -> 12% (1330)
A16: SWD | B16: =IFERROR(VLOOKUP(TEXT($A$3,"0000"),MEM_SWD!$A$3:$O$501,7,FALSE),0) -> 2015 | C16: =IFERROR((IF(OR(B16<10,B16="",B16="NA"),"NA",((IF(VLOOKUP($A$3,'G3-RSWD'!$A$6:$AM$500,3,FALSE)>=B16,"100% ("&VLOOKUP($A$3,'G3-RSWD'!$A$6:$AM$500,3,FALSE)&")",(ROUND((VLOOKUP($A$3,'G3-RSWD'!$A$6:$AM$500,3,FALSE)/B16*100),0))&"% ("&IF(VLOOKUP($A$3,'G3-RSWD'!$A$6:$AM$500,3,FALSE)="",0,VLOOKUP($A$3,'G3-RSWD'!$A$6:$AM$500,3,FALSE))&")"))))),"0% (0)") -> 96% (1927) | D16: =IFERROR((IF($C16="NA","NA",VLOOKUP($A$3,'G3-RSWD'!$A$6:$AM$501,4,FALSE))),"NA") -> 12.28339388 | E16: =IFERROR((IF($C16="NA","NA",VLOOKUP($A$3,'G3-RSWD'!$A$6:$AM$501,6,FALSE)&"% ("&IF(VLOOKUP($A$3,'G3-RSWD'!$A$6:$AM$501,5,FALSE)="",0,VLOOKUP($A$3,'G3-RSWD'!$A$6:$AM$501,5,FALSE))&")")),"NA") -> 8% (147) | F16: =IFERROR((IF($C16="NA","NA",VLOOKUP($A$3,'G3-RSWD'!$A$6:$AM$501,7,FALSE))),"NA") -> 2.857861962 | G16: =IFERROR((IF($C16="NA","NA",VLOOKUP($A$3,'G3-RSWD'!$A$6:$AM$501,9,FALSE)&"% ("&IF(VLOOKUP($A$3,'G3-RSWD'!$A$6:$AM$501,8,FALSE)="",0,VLOOKUP($A$3,'G3-RSWD'!$A$6:$AM$501,8,FALSE))&")")),"NA") -> 18% (351) | H16: =IFERROR((IF($C16="NA","NA",VLOOKUP($A$3,'G3-RSWD'!$A$6:$AM$501,10,FALSE))),"NA") -> 6.60991178 | I16: =IFERROR((IF($C16="NA","NA",VLOOKUP($A$3,'G3-RSWD'!$A$6:$AM$501,12,FALSE)&"% ("&IF(VLOOKUP($A$3,'G3-RSWD'!$A$6:$AM$501,11,FALSE)="",0,VLOOKUP($A$3,'G3-RSWD'!$A$6:$AM$501,11,FALSE))&")")),"NA") -> 8% (151) | J16: =IFERROR((IF($C16="NA","NA",VLOOKUP($A$3,'G3-RSWD'!$A$6:$AM$501,13,FALSE))),"NA") -> 2.231447846 | K16: =IFERROR((IF($C16="NA","NA",VLOOKUP($A$3,'G3-RSWD'!$A$6:$AM$501,15,FALSE)&"% ("&IF(VLOOKUP($A$3,'G3-RSWD'!$A$6:$AM$501,14,FALSE)="",0,VLOOKUP($A$3,'G3-RSWD'!$A$6:$AM$501,14,FALSE))&")")),"NA") -> 8% (160) | L16: =IFERROR((IF($C16="NA","NA",VLOOKUP($A$3,'G3-RSWD'!$A$6:$AM$501,16,FALSE))),"NA") -> 0.5929942916 | M16: =IFERROR((IF($C16="NA","NA",VLOOKUP($A$3,'G3-RSWD'!$A$6:$AM$501,18,FALSE)&"% ("&IF(VLOOKUP($A$3,'G3-RSWD'!$A$6:$AM$501,17,FALSE)="",0,VLOOKUP($A$3,'G3-RSWD'!$A$6:$AM$501,17,FALSE))&")")),"NA") -> 8% (153)
A17: Math - Grade 3
A18: Level of Proficiency at 70% or above | B18: Total # of Students | C18: % of Students Tested | D18: ='G3-5 Matrix'!C10&" ["&'G3-5 Matrix'!C11&"]" -> Overall [34] | F18: ='G3-5 Matrix'!D10&" ["&'G3-5 Matrix'!D11&"]" -> Number: Operations, Problems, & Statistics [15] | H18: ='G3-5 Matrix'!E10&" ["&'G3-5 Matrix'!E11&"]" -> Number: Fractions [3] | J18: ='G3-5 Matrix'!F10&" ["&'G3-5 Matrix'!F11&"]" -> Geometry and Measurement [16]
D19: Average Score | E19: % Proficient | F19: Average Score | G19: % Proficient | H19: Average Score | I19: % Proficient | J19: Average Score | K19: % Proficient
A20: All students | B20: =IFERROR(VLOOKUP(TEXT($A$3,"0000"),Mem_All!$A$3:$O$501,7,FALSE),0) -> 26859 | C20: =IFERROR((IF(OR(B20<10,B20="",B20="NA"),"NA",((IF(VLOOKUP($A$3,'G3-MALL'!$A$6:$AG$500,3,FALSE)>=B20,"100% ("&VLOOKUP($A$3,'G3-MALL'!$A$6:$AG$500,3,FALSE)&")",(ROUND((VLOOKUP($A$3,'G3-MALL'!$A$6:$AG$500,3,FALSE)/B20*100),0))&"% ("&IF(VLOOKUP($A$3,'G3-MALL'!$A$6:$AG$500,3,FALSE)="",0,VLOOKUP($A$3,'G3-MALL'!$A$6:$AG$500,3,FALSE))&")"))))),"0% (0)") -> 95% (25511) | D20: =IFERROR((IF($C20="NA","NA",VLOOKUP($A$3,'G3-MALL'!$A$6:$AM$500,4,FALSE))),"NA") -> 13.35347889 | E20: =IF($C20="NA","NA",VLOOKUP($A$3,'G3-MALL'!$A$6:$AM$500,6,FALSE)&"% ("&IF(VLOOKUP($A$3,'G3-MALL'!$A$6:$AM$500,5,FALSE)="",0,VLOOKUP($A$3,'G3-MALL'!$A$6:$AM$500,5,FALSE))&")") -> 2% (441) | F20: =IFERROR((IF($C20="NA","NA",VLOOKUP($A$3,'G3-MALL'!$A$6:$AM$500,7,FALSE))),"NA") -> 5.638700953 | G20: =IFERROR((IF($C20="NA","NA",ROUND(VLOOKUP($A$3,'G3-MALL'!$A$6:$AM$500,9,FALSE),0)&"% ("&IF(VLOOKUP($A$3,'G3-MALL'!$A$6:$AM$500,8,FALSE)="",0,VLOOKUP($A$3,'G3-MALL'!$A$6:$AM$500,8,FALSE))&")")),"NA") -> 3% (780) | H20: =IFERROR((IF($C20="NA","NA",VLOOKUP($A$3,'G3-MALL'!$A$6:$AM$500,10,FALSE))),"NA") -> 0.9400925091 | I20: =IFERROR((IF($C20="NA","NA",ROUND(VLOOKUP($A$3,'G3-MALL'!$A$6:$AM$500,12,FALSE),0)&"% ("&IF(VLOOKUP($A$3,'G3-MALL'!$A$6:$AM$500,11,FALSE)="",0,VLOOKUP($A$3,'G3-MALL'!$A$6:$AM$500,11,FALSE))&")")),"NA") -> 3% (792) | J20: =IFERROR((IF($C20="NA","NA",VLOOKUP($A$3,'G3-MALL'!$A$6:$AM$500,13,FALSE))),"NA") -> 6.777629258 | K20: =IFERROR((IF($C20="NA","NA",ROUND(VLOOKUP($A$3,'G3-MALL'!$A$6:$AM$500,15,FALSE),0)&"% ("&IF(VLOOKUP($A$3,'G3-MALL'!$A$6:$AM$500,14,FALSE)="",0,VLOOKUP($A$3,'G3-MALL'!$A$6:$AM$500,14,FALSE))&")")),"NA") -> 2% (520)
A21: White | B21: =IFERROR(VLOOKUP(TEXT($A$3,"0000"),MEM_W!$A$3:$O$501,7,FALSE),0) -> 1886 | C21: =IFERROR((IF(OR(B21<10,B21="",B21="NA"),"NA",((IF(VLOOKUP($A$3,'G3-MW'!$A$6:$AG$500,3,FALSE)>=B21,"100% ("&VLOOKUP($A$3,'G3-MW'!$A$6:$AG$500,3,FALSE)&")",(ROUND((VLOOKUP($A$3,'G3-MW'!$A$6:$AG$500,3,FALSE)/B21*100),0))&"% ("&IF(VLOOKUP($A$3,'G3-MW'!$A$6:$AG$500,3,FALSE)="",0,VLOOKUP($A$3,'G3-MW'!$A$6:$AG$500,3,FALSE))&")"))))),"0% (0)") -> 94% (1781) | D21: =IFERROR((IF($C21="NA","NA",VLOOKUP($A$3,'G3-MW'!$A$6:$AM$500,4,FALSE))),"NA") -> 15.61145424 | E21: =IFERROR((IF($C21="NA","NA",ROUND(VLOOKUP($A$3,'G3-MW'!$A$6:$AM$500,6,FALSE),0)&"% ("&IF(VLOOKUP($A$3,'G3-MW'!$A$6:$AM$500,5,FALSE)="",0,VLOOKUP($A$3,'G3-MW'!$A$6:$AM$500,5,FALSE))&")")),"NA") -> 6% (103) | F21: =IFERROR((IF($C21="NA","NA",VLOOKUP($A$3,'G3-MW'!$A$6:$AM$500,7,FALSE))),"NA") -> 6.838910724 | G21: =IFERROR((IF($C21="NA","NA",ROUND(VLOOKUP($A$3,'G3-MW'!$A$6:$AM$500,9,FALSE),0)&"% ("&IF(VLOOKUP($A$3,'G3-MW'!$A$6:$AM$500,8,FALSE)="",0,VLOOKUP($A$3,'G3-MW'!$A$6:$AM$500,8,FALSE))&")")),"NA") -> 9% (161) | H21: =IFERROR((IF($C21="NA","NA",VLOOKUP($A$3,'G3-MW'!$A$6:$AM$500,10,FALSE))),"NA") -> 1.184896126 | I21: =IFERROR((IF($C21="NA","NA",ROUND(VLOOKUP($A$3,'G3-MW'!$A$6:$AM$500,12,FALSE),0)&"% ("&IF(VLOOKUP($A$3,'G3-MW'!$A$6:$AM$500,11,FALSE)="",0,VLOOKUP($A$3,'G3-MW'!$A$6:$AM$500,11,FALSE))&")")),"NA") -> 6% (112) | J21: =IFERROR((IF($C21="NA","NA",VLOOKUP($A$3,'G3-MW'!$A$6:$AM$500,13,FALSE))),"NA") -> 7.59651881 | K21: =IFERROR((IF($C21="NA","NA",ROUND(VLOOKUP($A$3,'G3-MW'!$A$6:$AM$500,15,FALSE),0)&"% ("&IF(VLOOKUP($A$3,'G3-MW'!$A$6:$AM$500,14,FALSE)="",0,VLOOKUP($A$3,'G3-MW'!$A$6:$AM$500,14,FALSE))&")")),"NA") -> 5% (81)
A22: Black | B22: =IFERROR(VLOOKUP(TEXT($A$3,"0000"),MEM_B!$A$3:$O$501,7,FALSE),0) -> 6096 | C22: =IFERROR((IF(OR(B22<10,B22="",B22="NA"),"NA",((IF(VLOOKUP($A$3,'G3-MB'!$A$6:$AG$500,3,FALSE)>=B22,"100% ("&VLOOKUP($A$3,'G3-MB'!$A$6:$AG$500,3,FALSE)&")",(ROUND((VLOOKUP($A$3,'G3-MB'!$A$6:$AG$500,3,FALSE)/B22*100),0))&"% ("&IF(VLOOKUP($A$3,'G3-MB'!$A$6:$AG$500,3,FALSE)="",0,VLOOKUP($A$3,'G3-MB'!$A$6:$AG$500,3,FALSE))&")"))))),"0% (0)") -> 94% (5706) | D22: =IFERROR((IF($C22="NA","NA",VLOOKUP($A$3,'G3-MB'!$A$6:$AM$500,4,FALSE))),"NA") -> 12.11049772 | E22: =IFERROR((IF($C22="NA","NA",ROUND(VLOOKUP($A$3,'G3-MB'!$A$6:$AM$500,6,FALSE),0)&"% ("&IF(VLOOKUP($A$3,'G3-MB'!$A$6:$AM$500,5,FALSE)="",0,VLOOKUP($A$3,'G3-MB'!$A$6:$AM$500,5,FALSE))&")")),"NA") -> 1% (37) | F22: =IFERROR((IF($C22="NA","NA",VLOOKUP($A$3,'G3-MB'!$A$6:$AM$500,7,FALSE))),"NA") -> 4.979267438 | G22: =IFERROR((IF($C22="NA","NA",ROUND(VLOOKUP($A$3,'G3-MB'!$A$6:$AM$500,9,FALSE),0)&"% ("&IF(VLOOKUP($A$3,'G3-MB'!$A$6:$AM$500,8,FALSE)="",0,VLOOKUP($A$3,'G3-MB'!$A$6:$AM$500,8,FALSE))&")")),"NA") -> 1% (69) | H22: =IFERROR((IF($C22="NA","NA",VLOOKUP($A$3,'G3-MB'!$A$6:$AM$500,10,FALSE))),"NA") -> 0.817402734 | I22: =IFERROR((IF($C22="NA","NA",ROUND(VLOOKUP($A$3,'G3-MB'!$A$6:$AM$500,12,FALSE),0)&"% ("&IF(VLOOKUP($A$3,'G3-MB'!$A$6:$AM$500,11,FALSE)="",0,VLOOKUP($A$3,'G3-MB'!$A$6:$AM$500,11,FALSE))&")")),"NA") -> 2% (112) | J22: =IFERROR((IF($C22="NA","NA",VLOOKUP($A$3,'G3-MB'!$A$6:$AM$500,13,FALSE))),"NA") -> 6.314020329 | K22: =IFERROR((IF($C22="NA","NA",ROUND(VLOOKUP($A$3,'G3-MB'!$A$6:$AM$500,15,FALSE),0)&"% ("&IF(VLOOKUP($A$3,'G3-MB'!$A$6:$AM$500,14,FALSE)="",0,VLOOKUP($A$3,'G3-MB'!$A$6:$AM$500,14,FALSE))&")")),"NA") -> 1% (71)
A23: Hispanic | B23: =IFERROR(VLOOKUP(TEXT($A$3,"0000"),MEM_H!$A$3:$O$501,7,FALSE),0) -> 18204 | C23: =IFERROR((IF(OR(B23<10,B23="",B23="NA"),"NA",((IF(VLOOKUP($A$3,'G3-MH'!$A$6:$AG$500,3,FALSE)>=B23,"100% ("&VLOOKUP($A$3,'G3-MH'!$A$6:$AG$500,3,FALSE)&")",(ROUND((VLOOKUP($A$3,'G3-MH'!$A$6:$AG$500,3,FALSE)/B23*100),0))&"% ("&IF(VLOOKUP($A$3,'G3-MH'!$A$6:$AG$500,3,FALSE)="",0,VLOOKUP($A$3,'G3-MH'!$A$6:$AG$500,3,FALSE))&")"))))),"0% (0)") -> 95% (17374) | D23: =IFERROR((IF($C23="NA","NA",VLOOKUP($A$3,'G3-MH'!$A$6:$AM$500,4,FALSE))),"NA") -> 13.47435824 | E23: =IFERROR((IF($C23="NA","NA",ROUND(VLOOKUP($A$3,'G3-MH'!$A$6:$AM$500,6,FALSE),0)&"% ("&IF(VLOOKUP($A$3,'G3-MH'!$A$6:$AM$500,5,FALSE)="",0,VLOOKUP($A$3,'G3-MH'!$A$6:$AM$500,5,FALSE))&")")),"NA") -> 2% (269) | F23: =IFERROR((IF($C23="NA","NA",VLOOKUP($A$3,'G3-MH'!$A$6:$AM$500,7,FALSE))),"NA") -> 5.704144123 | G23: =IFERROR((IF($C23="NA","NA",ROUND(VLOOKUP($A$3,'G3-MH'!$A$6:$AM$500,9,FALSE),0)&"% ("&IF(VLOOKUP($A$3,'G3-MH'!$A$6:$AM$500,8,FALSE)="",0,VLOOKUP($A$3,'G3-MH'!$A$6:$AM$500,8,FALSE))&")")),"NA") -> 3% (505) | H23: =IFERROR((IF($C23="NA","NA",VLOOKUP($A$3,'G3-MH'!$A$6:$AM$500,10,FALSE))),"NA") -> 0.9482157246 | I23: =IFERROR((IF($C23="NA","NA",ROUND(VLOOKUP($A$3,'G3-MH'!$A$6:$AM$500,12,FALSE),0)&"% ("&IF(VLOOKUP($A$3,'G3-MH'!$A$6:$AM$500,11,FALSE)="",0,VLOOKUP($A$3,'G3-MH'!$A$6:$AM$500,11,FALSE))&")")),"NA") -> 3% (536) | J23: =IFERROR((IF($C23="NA","NA",VLOOKUP($A$3,'G3-MH'!$A$6:$AM$500,13,FALSE))),"NA") -> 6.826758375 | K23: =IFERROR((IF($C23="NA","NA",ROUND(VLOOKUP($A$3,'G3-MH'!$A$6:$AM$500,15,FALSE),0)&"% ("&IF(VLOOKUP($A$3,'G3-MH'!$A$6:$AM$500,14,FALSE)="",0,VLOOKUP($A$3,'G3-MH'!$A$6:$AM$500,14,FALSE))&")")),"NA") -> 2% (338)
A24: Asian | B24: =IFERROR(VLOOKUP(TEXT($A$3,"0000"),MEM_A!$A$3:$O$501,7,FALSE),0) -> 310 | C24: =IFERROR((IF(OR(B24<10,B24="",B24="NA"),"NA",((IF(VLOOKUP($A$3,'G3-MA'!$A$6:$AG$500,3,FALSE)>=B24,"100% ("&VLOOKUP($A$3,'G3-MA'!$A$6:$AG$500,3,FALSE)&")",(ROUND((VLOOKUP($A$3,'G3-MA'!$A$6:$AG$500,3,FALSE)/B24*100),0))&"% ("&IF(VLOOKUP($A$3,'G3-MA'!$A$6:$AG$500,3,FALSE)="",0,VLOOKUP($A$3,'G3-MA'!$A$6:$AG$500,3,FALSE))&")"))))),"0% (0)") -> 93% (288) | D24: =IFERROR((IF($C24="NA","NA",VLOOKUP($A$3,'G3-MA'!$A$6:$AM$500,4,FALSE))),"NA") -> 16.37847222 | E24: =IFERROR((IF($C24="NA","NA",ROUND(VLOOKUP($A$3,'G3-MA'!$A$6:$AM$500,6,FALSE),0)&"% ("&IF(VLOOKUP($A$3,'G3-MA'!$A$6:$AM$500,5,FALSE)="",0,VLOOKUP($A$3,'G3-MA'!$A$6:$AM$500,5,FALSE))&")")),"NA") -> 10% (28) | F24: =IFERROR((IF($C24="NA","NA",VLOOKUP($A$3,'G3-MA'!$A$6:$AM$500,7,FALSE))),"NA") -> 7.235416667 | G24: =IFERROR((IF($C24="NA","NA",ROUND(VLOOKUP($A$3,'G3-MA'!$A$6:$AM$500,9,FALSE),0)&"% ("&IF(VLOOKUP($A$3,'G3-MA'!$A$6:$AM$500,8,FALSE)="",0,VLOOKUP($A$3,'G3-MA'!$A$6:$AM$500,8,FALSE))&")")),"NA") -> 12% (35) | H24: =IFERROR((IF($C24="NA","NA",VLOOKUP($A$3,'G3-MA'!$A$6:$AM$500,10,FALSE))),"NA") -> 1.225694444 | I24: =IFERROR((IF($C24="NA","NA",ROUND(VLOOKUP($A$3,'G3-MA'!$A$6:$AM$500,12,FALSE),0)&"% ("&IF(VLOOKUP($A$3,'G3-MA'!$A$6:$AM$500,11,FALSE)="",0,VLOOKUP($A$3,'G3-MA'!$A$6:$AM$500,11,FALSE))&")")),"NA") -> 7% (20) | J24: =IFERROR((IF($C24="NA","NA",VLOOKUP($A$3,'G3-MA'!$A$6:$AM$500,13,FALSE))),"NA") -> 7.923263889 | K24: =IFERROR((IF($C24="NA","NA",ROUND(VLOOKUP($A$3,'G3-MA'!$A$6:$AM$500,15,FALSE),0)&"% ("&IF(VLOOKUP($A$3,'G3-MA'!$A$6:$AM$500,14,FALSE)="",0,VLOOKUP($A$3,'G3-MA'!$A$6:$AM$500,14,FALSE))&")")),"NA") -> 8% (23)
A25: Am. Indian | B25: =IFERROR(VLOOKUP(TEXT($A$3,"0000"),MEM_I!$A$3:$O$501,7,FALSE),0) -> 11 | C25: =IFERROR((IF(OR(B25<10,B25="",B25="NA"),"NA",((IF(VLOOKUP($A$3,'G3-MI'!$A$6:$AG$500,3,FALSE)>=B25,"100% ("&VLOOKUP($A$3,'G3-MI'!$A$6:$AG$500,3,FALSE)&")",(ROUND((VLOOKUP($A$3,'G3-MI'!$A$6:$AG$500,3,FALSE)/B25*100),0))&"% ("&IF(VLOOKUP($A$3,'G3-MI'!$A$6:$AG$500,3,FALSE)="",0,VLOOKUP($A$3,'G3-MI'!$A$6:$AG$500,3,FALSE))&")"))))),"0% (0)") -> 55% (6) | D25: =IFERROR((IF($C25="NA","NA",VLOOKUP($A$3,'G3-MI'!$A$6:$AM$500,4,FALSE))),"NA") -> 18.83333333 | E25: =IFERROR((IF($C25="NA","NA",ROUND(VLOOKUP($A$3,'G3-MI'!$A$6:$AM$500,6,FALSE),0)&"% ("&IF(VLOOKUP($A$3,'G3-MI'!$A$6:$AM$500,5,FALSE)="",0,VLOOKUP($A$3,'G3-MI'!$A$6:$AM$500,5,FALSE))&")")),"NA") -> 17% (1) | F25: =IFERROR((IF($C25="NA","NA",VLOOKUP($A$3,'G3-MI'!$A$6:$AM$500,7,FALSE))),"NA") -> 7.666666667 | G25: =IFERROR((IF($C25="NA","NA",ROUND(VLOOKUP($A$3,'G3-MI'!$A$6:$AM$500,9,FALSE),0)&"% ("&IF(VLOOKUP($A$3,'G3-MI'!$A$6:$AM$500,8,FALSE)="",0,VLOOKUP($A$3,'G3-MI'!$A$6:$AM$500,8,FALSE))&")")),"NA") -> 17% (1) | H25: =IFERROR((IF($C25="NA","NA",VLOOKUP($A$3,'G3-MI'!$A$6:$AM$500,10,FALSE))),"NA") -> 1.5 | I25: =IFERROR((IF($C25="NA","NA",ROUND(VLOOKUP($A$3,'G3-MI'!$A$6:$AM$500,12,FALSE),0)&"% ("&IF(VLOOKUP($A$3,'G3-MI'!$A$6:$AM$500,11,FALSE)="",0,VLOOKUP($A$3,'G3-MI'!$A$6:$AM$500,11,FALSE))&")")),"NA") -> 33% (2) | J25: =IFERROR((IF($C25="NA","NA",VLOOKUP($A$3,'G3-MI'!$A$6:$AM$500,13,FALSE))),"NA") -> 9.666666667 | K25: =IFERROR((IF($C25="NA","NA",ROUND(VLOOKUP($A$3,'G3-MI'!$A$6:$AM$500,15,FALSE),0)&"% ("&IF(VLOOKUP($A$3,'G3-MI'!$A$6:$AM$500,14,FALSE)="",0,VLOOKUP($A$3,'G3-MI'!$A$6:$AM$500,14,FALSE))&")")),"NA") -> 0% (0)
A26: ED | B26: =IFERROR(VLOOKUP(TEXT($A$3,"0000"),MEM_ED!$A$3:$O$501,7,FALSE),0) -> 20954 | C26: =IFERROR((IF(OR(B26<10,B26="",B26="NA"),"NA",((IF(VLOOKUP($A$3,'G3-MED'!$A$6:$AG$500,3,FALSE)>=B26,"100% ("&VLOOKUP($A$3,'G3-MED'!$A$6:$AG$500,3,FALSE)&")",(ROUND((VLOOKUP($A$3,'G3-MED'!$A$6:$AG$500,3,FALSE)/B26*100),0))&"% ("&IF(VLOOKUP($A$3,'G3-MED'!$A$6:$AG$500,3,FALSE)="",0,VLOOKUP($A$3,'G3-MED'!$A$6:$AG$500,3,FALSE))&")"))))),"0% (0)") -> 96% (20153) | D26: =IFERROR((IF($C26="NA","NA",VLOOKUP($A$3,'G3-MED'!$A$6:$AM$500,4,FALSE))),"NA") -> 12.81277725 | E26: =IFERROR((IF($C26="NA","NA",ROUND(VLOOKUP($A$3,'G3-MED'!$A$6:$AM$500,6,FALSE),0)&"% ("&IF(VLOOKUP($A$3,'G3-MED'!$A$6:$AM$500,5,FALSE)="",0,VLOOKUP($A$3,'G3-MED'!$A$6:$AM$500,5,FALSE))&")")),"NA") -> 1% (184) | F26: =IFERROR((IF($C26="NA","NA",VLOOKUP($A$3,'G3-MED'!$A$6:$AM$500,7,FALSE))),"NA") -> 5.370168213 | G26: =IFERROR((IF($C26="NA","NA",ROUND(VLOOKUP($A$3,'G3-MED'!$A$6:$AM$500,9,FALSE),0)&"% ("&IF(VLOOKUP($A$3,'G3-MED'!$A$6:$AM$500,8,FALSE)="",0,VLOOKUP($A$3,'G3-MED'!$A$6:$AM$500,8,FALSE))&")")),"NA") -> 2% (378) | H26: =IFERROR((IF($C26="NA","NA",VLOOKUP($A$3,'G3-MED'!$A$6:$AM$500,10,FALSE))),"NA") -> 0.8802709274 | I26: =IFERROR((IF($C26="NA","NA",ROUND(VLOOKUP($A$3,'G3-MED'!$A$6:$AM$500,12,FALSE),0)&"% ("&IF(VLOOKUP($A$3,'G3-MED'!$A$6:$AM$500,11,FALSE)="",0,VLOOKUP($A$3,'G3-MED'!$A$6:$AM$500,11,FALSE))&")")),"NA") -> 2% (486) | J26: =IFERROR((IF($C26="NA","NA",VLOOKUP($A$3,'G3-MED'!$A$6:$AM$500,13,FALSE))),"NA") -> 6.565275641 | K26: =IFERROR((IF($C26="NA","NA",ROUND(VLOOKUP($A$3,'G3-MED'!$A$6:$AM$500,15,FALSE),0)&"% ("&IF(VLOOKUP($A$3,'G3-MED'!$A$6:$AM$500,14,FALSE)="",0,VLOOKUP($A$3,'G3-MED'!$A$6:$AM$500,14,FALSE))&")")),"NA") -> 1% (297)
A27: ELL | B27: =IFERROR(VLOOKUP(TEXT($A$3,"0000"),MEM_ELL!$A$3:$O$501,7,FALSE),0) -> 11250 | C27: =IFERROR((IF(OR(B27<10,B27="",B27="NA"),"NA",((IF(VLOOKUP($A$3,'G3-MELL'!$A$6:$AG$500,3,FALSE)>=B27,"100% ("&VLOOKUP($A$3,'G3-MELL'!$A$6:$AG$500,3,FALSE)&")",(ROUND((VLOOKUP($A$3,'G3-MELL'!$A$6:$AG$500,3,FALSE)/B27*100),0))&"% ("&IF(VLOOKUP($A$3,'G3-MELL'!$A$6:$AG$500,3,FALSE)="",0,VLOOKUP($A$3,'G3-MELL'!$A$6:$AG$500,3,FALSE))&")"))))),"0% (0)") -> 96% (10756) | D27: =IFERROR((IF($C27="NA","NA",VLOOKUP($A$3,'G3-MELL'!$A$6:$AM$500,4,FALSE))),"NA") -> 12.57883972 | E27: =IFERROR((IF($C27="NA","NA",ROUND(VLOOKUP($A$3,'G3-MELL'!$A$6:$AM$500,6,FALSE),0)&"% ("&IF(VLOOKUP($A$3,'G3-MELL'!$A$6:$AM$500,5,FALSE)="",0,VLOOKUP($A$3,'G3-MELL'!$A$6:$AM$500,5,FALSE))&")")),"NA") -> 1% (74) | F27: =IFERROR((IF($C27="NA","NA",VLOOKUP($A$3,'G3-MELL'!$A$6:$AM$500,7,FALSE))),"NA") -> 5.26701376 | G27: =IFERROR((IF($C27="NA","NA",ROUND(VLOOKUP($A$3,'G3-MELL'!$A$6:$AM$500,9,FALSE),0)&"% ("&IF(VLOOKUP($A$3,'G3-MELL'!$A$6:$AM$500,8,FALSE)="",0,VLOOKUP($A$3,'G3-MELL'!$A$6:$AM$500,8,FALSE))&")")),"NA") -> 2% (174) | H27: =IFERROR((IF($C27="NA","NA",VLOOKUP($A$3,'G3-MELL'!$A$6:$AM$500,10,FALSE))),"NA") -> 0.8464113053 | I27: =IFERROR((IF($C27="NA","NA",ROUND(VLOOKUP($A$3,'G3-MELL'!$A$6:$AM$500,12,FALSE),0)&"% ("&IF(VLOOKUP($A$3,'G3-MELL'!$A$6:$AM$500,11,FALSE)="",0,VLOOKUP($A$3,'G3-MELL'!$A$6:$AM$500,11,FALSE))&")")),"NA") -> 2% (241) | J27: =IFERROR((IF($C27="NA","NA",VLOOKUP($A$3,'G3-MELL'!$A$6:$AM$500,13,FALSE))),"NA") -> 6.465414652 | K27: =IFERROR((IF($C27="NA","NA",ROUND(VLOOKUP($A$3,'G3-MELL'!$A$6:$AM$500,15,FALSE),0)&"% ("&IF(VLOOKUP($A$3,'G3-MELL'!$A$6:$AM$500,14,FALSE)="",0,VLOOKUP($A$3,'G3-MELL'!$A$6:$AM$500,14,FALSE))&")")),"NA") -> 1% (125)
A28: SWD | B28: =IFERROR(VLOOKUP(TEXT($A$3,"0000"),MEM_SWD!$A$3:$O$501,7,FALSE),0) -> 2015 | C28: =IFERROR((IF(OR(B28<10,B28="",B28="NA"),"NA",((IF(VLOOKUP($A$3,'G3-MSWD'!$A$6:$AG$500,3,FALSE)>=B28,"100% ("&VLOOKUP($A$3,'G3-MSWD'!$A$6:$AG$500,3,FALSE)&")",(ROUND((VLOOKUP($A$3,'G3-MSWD'!$A$6:$AG$500,3,FALSE)/B28*100),0))&"% ("&IF(VLOOKUP($A$3,'G3-MSWD'!$A$6:$AG$500,3,FALSE)="",0,VLOOKUP($A$3,'G3-MSWD'!$A$6:$AG$500,3,FALSE))&")"))))),"0% (0)") -> 95% (1909) | D28: =IFERROR((IF($C28="NA","NA",VLOOKUP($A$3,'G3-MSWD'!$A$6:$AM$500,4,FALSE))),"NA") -> 11.5939759 | E28: =IFERROR((IF($C28="NA","NA",ROUND(VLOOKUP($A$3,'G3-MSWD'!$A$6:$AM$500,6,FALSE),0)&"% ("&IF(VLOOKUP($A$3,'G3-MSWD'!$A$6:$AM$500,5,FALSE)="",0,VLOOKUP($A$3,'G3-MSWD'!$A$6:$AM$500,5,FALSE))&")")),"NA") -> 1% (16) | F28: =IFERROR((IF($C28="NA","NA",VLOOKUP($A$3,'G3-MSWD'!$A$6:$AM$500,7,FALSE))),"NA") -> 4.851964379 | G28: =IFERROR((IF($C28="NA","NA",ROUND(VLOOKUP($A$3,'G3-MSWD'!$A$6:$AM$500,9,FALSE),0)&"% ("&IF(VLOOKUP($A$3,'G3-MSWD'!$A$6:$AM$500,8,FALSE)="",0,VLOOKUP($A$3,'G3-MSWD'!$A$6:$AM$500,8,FALSE))&")")),"NA") -> 1% (20) | H28: =IFERROR((IF($C28="NA","NA",VLOOKUP($A$3,'G3-MSWD'!$A$6:$AM$500,10,FALSE))),"NA") -> 0.7673651126 | I28: =IFERROR((IF($C28="NA","NA",ROUND(VLOOKUP($A$3,'G3-MSWD'!$A$6:$AM$500,12,FALSE),0)&"% ("&IF(VLOOKUP($A$3,'G3-MSWD'!$A$6:$AM$500,11,FALSE)="",0,VLOOKUP($A$3,'G3-MSWD'!$A$6:$AM$500,11,FALSE))&")")),"NA") -> 2% (35) | J28: =IFERROR((IF($C28="NA","NA",VLOOKUP($A$3,'G3-MSWD'!$A$6:$AM$500,13,FALSE))),"NA") -> 5.980199057 | K28: =IFERROR((IF($C28="NA","NA",ROUND(VLOOKUP($A$3,'G3-MSWD'!$A$6:$AM$500,15,FALSE),0)&"% ("&IF(VLOOKUP($A$3,'G3-MSWD'!$A$6:$AM$500,14,FALSE)="",0,VLOOKUP($A$3,'G3-MSWD'!$A$6:$AM$500,14,FALSE))&")")),"NA") -> 1% (18)

Sheet Grade 4 Report
A2: Click here to return to the school and sheet selection interface
A3: =VALUE('Select School'!B3) -> 9999
A4: =TEXT(A3,"0000")&"-"&VLOOKUP(A3,SchList!$A$2:$B$504,2,FALSE) -> 9999-District
A5: Reading - Grade 4
A6: Level of Proficiency at 70% or above | B6: Total # of Students | C6: % of Students Tested | D6: ='G3-5 Matrix'!C2&" ["&'G3-5 Matrix'!C5&"]" -> Overall [43] | F6: ='G3-5 Matrix'!D2&" ["&'G3-5 Matrix'!D5&"]" -> Vocabulary [7] | H6: ='G3-5 Matrix'!E2&" ["&'G3-5 Matrix'!E5&"]" -> Reading Application [25] | J6: ='G3-5 Matrix'!F2&" ["&'G3-5 Matrix'!F5&"]" -> Literary Analysis Fiction/Nonfiction [6] | L6: ='G3-5 Matrix'!G2&" ["&'G3-5 Matrix'!G5&"]" -> Informational Text/ Research Process [5]
D7: Average Score | E7: % Proficient | F7: Average Score | G7: % Proficient | H7: Average Score | I7: % Proficient | J7: Average Score | K7: % Proficient | L7: Average Score | M7: % Proficient
A8: All students | B8: =IFERROR(VLOOKUP(TEXT($A$3,"0000"),Mem_All!$A$3:$O$501,8,FALSE),0) -> 24928 | C8: =IFERROR((IF(OR(B8<10,B8="",B8="NA"),"NA",((IF(VLOOKUP($A$3,'G4-RALL'!$A$6:$AM$500,3,FALSE)>=B8,"100% ("&VLOOKUP($A$3,'G4-RALL'!$A$6:$AM$500,3,FALSE)&")",(ROUND((VLOOKUP($A$3,'G4-RALL'!$A$6:$AM$500,3,FALSE)/B8*100),0))&"% ("&IF(VLOOKUP($A$3,'G4-RALL'!$A$6:$AM$500,3,FALSE)="",0,VLOOKUP($A$3,'G4-RALL'!$A$6:$AM$500,3,FALSE))&")"))))),"NA") -> 94% (23551) | D8: =IFERROR((IF($C8="NA","NA",VLOOKUP($A$3,'G4-RALL'!$A$6:$AM$500,4,FALSE))),"NA") -> 25.95435863 | E8: =IFERROR((IF($C8="NA","NA",ROUND(VLOOKUP($A$3,'G4-RALL'!$A$6:$AM$500,6,FALSE),0)&"% ("&IF(VLOOKUP($A$3,'G4-RALL'!$A$6:$AM$500,5,FALSE)="",0,VLOOKUP($A$3,'G4-RALL'!$A$6:$AM$500,5,FALSE))&")")),"NA") -> 40% (9406) | F8: =IFERROR((IF($C8="NA","NA",VLOOKUP($A$3,'G4-RALL'!$A$6:$AM$500,7,FALSE))),"NA") -> 4.591936648 | G8: =IFERROR((IF($C8="NA","NA",ROUND(VLOOKUP($A$3,'G4-RALL'!$A$6:$AM$500,9,FALSE),0)&"% ("&IF(VLOOKUP($A$3,'G4-RALL'!$A$6:$AM$500,8,FALSE)="",0,VLOOKUP($A$3,'G4-RALL'!$A$6:$AM$500,8,FALSE))&")")),"NA") -> 56% (13257) | H8: =IFERROR((IF($C8="NA","NA",VLOOKUP($A$3,'G4-RALL'!$A$6:$AM$500,10,FALSE))),"NA") -> 14.43984544 | I8: =IFERROR((IF($C8="NA","NA",ROUND(VLOOKUP($A$3,'G4-RALL'!$A$6:$AM$500,12,FALSE),0)&"% ("&IF(VLOOKUP($A$3,'G4-RALL'!$A$6:$AM$500,11,FALSE)="",0,VLOOKUP($A$3,'G4-RALL'!$A$6:$AM$500,11,FALSE))&")")),"NA") -> 31% (7335) | J8: =IFERROR((IF($C8="NA","NA",VLOOKUP($A$3,'G4-RALL'!$A$6:$AM$500,13,FALSE))),"NA") -> 3.537692667 | K8: =IFERROR((IF($C8="NA","NA",ROUND(VLOOKUP($A$3,'G4-RALL'!$A$6:$AM$500,15,FALSE),0)&"% ("&IF(VLOOKUP($A$3,'G4-RALL'!$A$6:$AM$500,14,FALSE)="",0,VLOOKUP($A$3,'G4-RALL'!$A$6:$AM$500,14,FALSE))&")")),"NA") -> 33% (7676) | L8: =IFERROR((IF($C8="NA","NA",VLOOKUP($A$3,'G4-RALL'!$A$6:$AM$500,16,FALSE))),"NA") -> 3.383750159 | M8: =IFERROR((IF($C8="NA","NA",ROUND(VLOOKUP($A$3,'G4-RALL'!$A$6:$AM$500,18,FALSE),0)&"% ("&IF(VLOOKUP($A$3,'G4-RALL'!$A$6:$AM$500,17,FALSE)="",0,VLOOKUP($A$3,'G4-RALL'!$A$6:$AM$500,17,FALSE))&")")),"NA") -> 53% (12596)
A9: FCAT Level 1 | B9: =IFERROR(VLOOKUP(TEXT($A$3,"0000"),MEM_RL1!$A$3:$O$501,5,FALSE),0) -> 3710 | C9: =IFERROR((IF(OR(B9<10,B9="",B9="NA"),"NA",((IF(VLOOKUP($A$3,'G4-RL1'!$A$6:$AM$500,3,FALSE)>=B9,"100% ("&VLOOKUP($A$3,'G4-RL1'!$A$6:$AM$500,3,FALSE)&")",(ROUND((VLOOKUP($A$3,'G4-RL1'!$A$6:$AM$500,3,FALSE)/B9*100),0))&"% ("&IF(VLOOKUP($A$3,'G4-RL1'!$A$6:$AM$500,3,FALSE)="",0,VLOOKUP($A$3,'G4-RL1'!$A$6:$AM$500,3,FALSE))&")"))))),"NA") -> 94% (3474) | D9: =IFERROR((IF($C9="NA","NA",VLOOKUP($A$3,'G4-RL1'!$A$6:$AM$500,4,FALSE))),"NA") -> 15.54415659 | E9: =IFERROR((IF($C9="NA","NA",ROUND(VLOOKUP($A$3,'G4-RL1'!$A$6:$AM$500,6,FALSE),0)&"% ("&IF(VLOOKUP($A$3,'G4-RL1'!$A$6:$AM$500,5,FALSE)="",0,VLOOKUP($A$3,'G4-RL1'!$A$6:$AM$500,5,FALSE))&")")),"NA") -> 1% (35) | F9: =IFERROR((IF($C9="NA","NA",VLOOKUP($A$3,'G4-RL1'!$A$6:$AM$500,7,FALSE))),"NA") -> 2.71919977 | G9: =IFERROR((IF($C9="NA","NA",ROUND(VLOOKUP($A$3,'G4-RL1'!$A$6:$AM$500,9,FALSE),0)&"% ("&IF(VLOOKUP($A$3,'G4-RL1'!$A$6:$AM$500,8,FALSE)="",0,VLOOKUP($A$3,'G4-RL1'!$A$6:$AM$500,8,FALSE))&")")),"NA") -> 12% (425) | H9: =IFERROR((IF($C9="NA","NA",VLOOKUP($A$3,'G4-RL1'!$A$6:$AM$500,10,FALSE))),"NA") -> 8.872913069 | I9: =IFERROR((IF($C9="NA","NA",ROUND(VLOOKUP($A$3,'G4-RL1'!$A$6:$AM$500,12,FALSE),0)&"% ("&IF(VLOOKUP($A$3,'G4-RL1'!$A$6:$AM$500,11,FALSE)="",0,VLOOKUP($A$3,'G4-RL1'!$A$6:$AM$500,11,FALSE))&")")),"NA") -> 1% (32) | J9: =IFERROR((IF($C9="NA","NA",VLOOKUP($A$3,'G4-RL1'!$A$6:$AM$500,13,FALSE))),"NA") -> 1.982239493 | K9: =IFERROR((IF($C9="NA","NA",ROUND(VLOOKUP($A$3,'G4-RL1'!$A$6:$AM$500,15,FALSE),0)&"% ("&IF(VLOOKUP($A$3,'G4-RL1'!$A$6:$AM$500,14,FALSE)="",0,VLOOKUP($A$3,'G4-RL1'!$A$6:$AM$500,14,FALSE))&")")),"NA") -> 3% (87) | L9: =IFERROR((IF($C9="NA","NA",VLOOKUP($A$3,'G4-RL1'!$A$6:$AM$500,16,FALSE))),"NA") -> 1.979360967 | M9: =IFERROR((IF($C9="NA","NA",ROUND(VLOOKUP($A$3,'G4-RL1'!$A$6:$AM$500,18,FALSE),0)&"% ("&IF(VLOOKUP($A$3,'G4-RL1'!$A$6:$AM$500,17,FALSE)="",0,VLOOKUP($A$3,'G4-RL1'!$A$6:$AM$500,17,FALSE))&")")),"NA") -> 12% (410)
A10: FCAT Level 2 | B10: =IFERROR(VLOOKUP(TEXT($A$3,"0000"),MEM_RL2!$A$3:$O$501,5,FALSE),0) -> 6593 | C10: =IFERROR((IF(OR(B10<10,B10="",B10="NA"),"NA",((IF(VLOOKUP($A$3,'G4-RL2'!$A$6:$AM$500,3,FALSE)>=B10,"100% ("&VLOOKUP($A$3,'G4-RL2'!$A$6:$AM$500,3,FALSE)&")",(ROUND((VLOOKUP($A$3,'G4-RL2'!$A$6:$AM$500,3,FALSE)/B10*100),0))&"% ("&IF(VLOOKUP($A$3,'G4-RL2'!$A$6:$AM$500,3,FALSE)="",0,VLOOKUP($A$3,'G4-RL2'!$A$6:$AM$500,3,FALSE))&")"))))),"NA") -> 92% (6090) | D10: =IFERROR((IF($C10="NA","NA",VLOOKUP($A$3,'G4-RL2'!$A$6:$AM$500,4,FALSE))),"NA") -> 21.72441708 | E10: =IFERROR((IF($C10="NA","NA",ROUND(VLOOKUP($A$3,'G4-RL2'!$A$6:$AM$500,6,FALSE),0)&"% ("&IF(VLOOKUP($A$3,'G4-RL2'!$A$6:$AM$500,5,FALSE)="",0,VLOOKUP($A$3,'G4-RL2'!$A$6:$AM$500,5,FALSE))&")")),"NA") -> 9% (544) | F10: =IFERROR((IF($C10="NA","NA",VLOOKUP($A$3,'G4-RL2'!$A$6:$AM$500,7,FALSE))),"NA") -> 3.932315271 | G10: =IFERROR((IF($C10="NA","NA",ROUND(VLOOKUP($A$3,'G4-RL2'!$A$6:$AM$500,9,FALSE),0)&"% ("&IF(VLOOKUP($A$3,'G4-RL2'!$A$6:$AM$500,8,FALSE)="",0,VLOOKUP($A$3,'G4-RL2'!$A$6:$AM$500,8,FALSE))&")")),"NA") -> 36% (2222) | H10: =IFERROR((IF($C10="NA","NA",VLOOKUP($A$3,'G4-RL2'!$A$6:$AM$500,10,FALSE))),"NA") -> 12.07082102 | I10: =IFERROR((IF($C10="NA","NA",ROUND(VLOOKUP($A$3,'G4-RL2'!$A$6:$AM$500,12,FALSE),0)&"% ("&IF(VLOOKUP($A$3,'G4-RL2'!$A$6:$AM$500,11,FALSE)="",0,VLOOKUP($A$3,'G4-RL2'!$A$6:$AM$500,11,FALSE))&")")),"NA") -> 6% (383) | J10: =IFERROR((IF($C10="NA","NA",VLOOKUP($A$3,'G4-RL2'!$A$6:$AM$500,13,FALSE))),"NA") -> 2.784417077 | K10: =IFERROR((IF($C10="NA","NA",ROUND(VLOOKUP($A$3,'G4-RL2'!$A$6:$AM$500,15,FALSE),0)&"% ("&IF(VLOOKUP($A$3,'G4-RL2'!$A$6:$AM$500,14,FALSE)="",0,VLOOKUP($A$3,'G4-RL2'!$A$6:$AM$500,14,FALSE))&")")),"NA") -> 11% (641) | L10: =IFERROR((IF($C10="NA","NA",VLOOKUP($A$3,'G4-RL2'!$A$6:$AM$500,16,FALSE))),"NA") -> 2.94771757 | M10: =IFERROR((IF($C10="NA","NA",ROUND(VLOOKUP($A$3,'G4-RL2'!$A$6:$AM$500,18,FALSE),0)&"% ("&IF(VLOOKUP($A$3,'G4-RL2'!$A$6:$AM$500,17,FALSE)="",0,VLOOKUP($A$3,'G4-RL2'!$A$6:$AM$500,17,FALSE))&")")),"NA") -> 35% (2153)
A11: FCAT Level 3 | B11: =IFERROR(VLOOKUP(TEXT($A$3,"0000"),MEM_RL3!$A$3:$O$501,5,FALSE),0) -> 5832 | C11: =IFERROR((IF(OR(B11<10,B11="",B11="NA"),"NA",((IF(VLOOKUP($A$3,'G4-RL3'!$A$6:$AM$500,3,FALSE)>=B11,"100% ("&VLOOKUP($A$3,'G4-RL3'!$A$6:$AM$500,3,FALSE)&")",(ROUND((VLOOKUP($A$3,'G4-RL3'!$A$6:$AM$500,3,FALSE)/B11*100),0))&"% ("&IF(VLOOKUP($A$3,'G4-RL3'!$A$6:$AM$500,3,FALSE)="",0,VLOOKUP($A$3,'G4-RL3'!$A$6:$AM$500,3,FALSE))&")"))))),"NA") -> 96% (5570) | D11: =IFERROR((IF($C11="NA","NA",VLOOKUP($A$3,'G4-RL3'!$A$6:$AM$500,4,FALSE))),"NA") -> 27.67705566 | E11: =IFERROR((IF($C11="NA","NA",ROUND(VLOOKUP($A$3,'G4-RL3'!$A$6:$AM$500,6,FALSE),0)&"% ("&IF(VLOOKUP($A$3,'G4-RL3'!$A$6:$AM$500,5,FALSE)="",0,VLOOKUP($A$3,'G4-RL3'!$A$6:$AM$500,5,FALSE))&")")),"NA") -> 41% (2308) | F11: =IFERROR((IF($C11="NA","NA",VLOOKUP($A$3,'G4-RL3'!$A$6:$AM$500,7,FALSE))),"NA") -> 4.913482944 | G11: =IFERROR((IF($C11="NA","NA",ROUND(VLOOKUP($A$3,'G4-RL3'!$A$6:$AM$500,9,FALSE),0)&"% ("&IF(VLOOKUP($A$3,'G4-RL3'!$A$6:$AM$500,8,FALSE)="",0,VLOOKUP($A$3,'G4-RL3'!$A$6:$AM$500,8,FALSE))&")")),"NA") -> 65% (3635) | H11: =IFERROR((IF($C11="NA","NA",VLOOKUP($A$3,'G4-RL3'!$A$6:$AM$500,10,FALSE))),"NA") -> 15.28059246 | I11: =IFERROR((IF($C11="NA","NA",ROUND(VLOOKUP($A$3,'G4-RL3'!$A$6:$AM$500,12,FALSE),0)&"% ("&IF(VLOOKUP($A$3,'G4-RL3'!$A$6:$AM$500,11,FALSE)="",0,VLOOKUP($A$3,'G4-RL3'!$A$6:$AM$500,11,FALSE))&")")),"NA") -> 28% (1538) | J11: =IFERROR((IF($C11="NA","NA",VLOOKUP($A$3,'G4-RL3'!$A$6:$AM$500,13,FALSE))),"NA") -> 3.782549372 | K11: =IFERROR((IF($C11="NA","NA",ROUND(VLOOKUP($A$3,'G4-RL3'!$A$6:$AM$500,15,FALSE),0)&"% ("&IF(VLOOKUP($A$3,'G4-RL3'!$A$6:$AM$500,14,FALSE)="",0,VLOOKUP($A$3,'G4-RL3'!$A$6:$AM$500,14,FALSE))&")")),"NA") -> 32% (1797) | L11: =IFERROR((IF($C11="NA","NA",VLOOKUP($A$3,'G4-RL3'!$A$6:$AM$500,16,FALSE))),"NA") -> 3.701795332 | M11: =IFERROR((IF($C11="NA","NA",ROUND(VLOOKUP($A$3,'G4-RL3'!$A$6:$AM$500,18,FALSE),0)&"% ("&IF(VLOOKUP($A$3,'G4-RL3'!$A$6:$AM$500,17,FALSE)="",0,VLOOKUP($A$3,'G4-RL3'!$A$6:$AM$500,17,FALSE))&")")),"NA") -> 62% (3480)
A12: FCAT Level 4 | B12: =IFERROR(VLOOKUP(TEXT($A$3,"0000"),MEM_RL4!$A$3:$O$501,5,FALSE),0) -> 5360 | C12: =IFERROR((IF(OR(B12<10,B12="",B12="NA"),"NA",((IF(VLOOKUP($A$3,'G4-RL4'!$A$6:$AM$500,3,FALSE)>=B12,"100% ("&VLOOKUP($A$3,'G4-RL4'!$A$6:$AM$500,3,FALSE)&")",(ROUND((VLOOKUP($A$3,'G4-RL4'!$A$6:$AM$500,3,FALSE)/B12*100),0))&"% ("&IF(VLOOKUP($A$3,'G4-RL4'!$A$6:$AM$500,3,FALSE)="",0,VLOOKUP($A$3,'G4-RL4'!$A$6:$AM$500,3,FALSE))&")"))))),"NA") -> 95% (5099) | D12: =IFERROR((IF($C12="NA","NA",VLOOKUP($A$3,'G4-RL4'!$A$6:$AM$500,4,FALSE))),"NA") -> 32.60770739 | E12: =IFERROR((IF($C12="NA","NA",ROUND(VLOOKUP($A$3,'G4-RL4'!$A$6:$AM$500,6,FALSE),0)&"% ("&IF(VLOOKUP($A$3,'G4-RL4'!$A$6:$AM$500,5,FALSE)="",0,VLOOKUP($A$3,'G4-RL4'!$A$6:$AM$500,5,FALSE))&")")),"NA") -> 80% (4072) | F12: =IFERROR((IF($C12="NA","NA",VLOOKUP($A$3,'G4-RL4'!$A$6:$AM$500,7,FALSE))),"NA") -> 5.730241224 | G12: =IFERROR((IF($C12="NA","NA",ROUND(VLOOKUP($A$3,'G4-RL4'!$A$6:$AM$500,9,FALSE),0)&"% ("&IF(VLOOKUP($A$3,'G4-RL4'!$A$6:$AM$500,8,FALSE)="",0,VLOOKUP($A$3,'G4-RL4'!$A$6:$AM$500,8,FALSE))&")")),"NA") -> 87% (4417) | H12: =IFERROR((IF($C12="NA","NA",VLOOKUP($A$3,'G4-RL4'!$A$6:$AM$500,10,FALSE))),"NA") -> 18.0781918 | I12: =IFERROR((IF($C12="NA","NA",ROUND(VLOOKUP($A$3,'G4-RL4'!$A$6:$AM$500,12,FALSE),0)&"% ("&IF(VLOOKUP($A$3,'G4-RL4'!$A$6:$AM$500,11,FALSE)="",0,VLOOKUP($A$3,'G4-RL4'!$A$6:$AM$500,11,FALSE))&")")),"NA") -> 62% (3178) | J12: =IFERROR((IF($C12="NA","NA",VLOOKUP($A$3,'G4-RL4'!$A$6:$AM$500,13,FALSE))),"NA") -> 4.621867033 | K12: =IFERROR((IF($C12="NA","NA",ROUND(VLOOKUP($A$3,'G4-RL4'!$A$6:$AM$500,15,FALSE),0)&"% ("&IF(VLOOKUP($A$3,'G4-RL4'!$A$6:$AM$500,14,FALSE)="",0,VLOOKUP($A$3,'G4-RL4'!$A$6:$AM$500,14,FALSE))&")")),"NA") -> 60% (3039) | L12: =IFERROR((IF($C12="NA","NA",VLOOKUP($A$3,'G4-RL4'!$A$6:$AM$500,16,FALSE))),"NA") -> 4.180996274 | M12: =IFERROR((IF($C12="NA","NA",ROUND(VLOOKUP($A$3,'G4-RL4'!$A$6:$AM$500,18,FALSE),0)&"% ("&IF(VLOOKUP($A$3,'G4-RL4'!$A$6:$AM$500,17,FALSE)="",0,VLOOKUP($A$3,'G4-RL4'!$A$6:$AM$500,17,FALSE))&")")),"NA") -> 80% (4104)
A13: FCAT Level 5 | B13: =IFERROR(VLOOKUP(TEXT($A$3,"0000"),MEM_RL5!$A$3:$N$501,4,FALSE),0) -> 2420 | C13: =IFERROR((IF(OR(B13<10,B13="",B13="NA"),"NA",((IF(VLOOKUP($A$3,'G4-RL5'!$A$6:$AM$500,3,FALSE)>=B13,"100% ("&VLOOKUP($A$3,'G4-RL5'!$A$6:$AM$500,3,FALSE)&")",(ROUND((VLOOKUP($A$3,'G4-RL5'!$A$6:$AM$500,3,FALSE)/B13*100),0))&"% ("&IF(VLOOKUP($A$3,'G4-RL5'!$A$6:$AM$500,3,FALSE)="",0,VLOOKUP($A$3,'G4-RL5'!$A$6:$AM$500,3,FALSE))&")"))))),"NA") -> 96% (2323) | D13: =IFERROR((IF($C13="NA","NA",VLOOKUP($A$3,'G4-RL5'!$A$6:$AM$500,4,FALSE))),"NA") -> 36.28962548 | E13: =IFERROR((IF($C13="NA","NA",ROUND(VLOOKUP($A$3,'G4-RL5'!$A$6:$AM$500,6,FALSE),0)&"% ("&IF(VLOOKUP($A$3,'G4-RL5'!$A$6:$AM$500,5,FALSE)="",0,VLOOKUP($A$3,'G4-RL5'!$A$6:$AM$500,5,FALSE))&")")),"NA") -> 96% (2219) | F13: =IFERROR((IF($C13="NA","NA",VLOOKUP($A$3,'G4-RL5'!$A$6:$AM$500,7,FALSE))),"NA") -> 6.335686612 | G13: =IFERROR((IF($C13="NA","NA",ROUND(VLOOKUP($A$3,'G4-RL5'!$A$6:$AM$500,9,FALSE),0)&"% ("&IF(VLOOKUP($A$3,'G4-RL5'!$A$6:$AM$500,8,FALSE)="",0,VLOOKUP($A$3,'G4-RL5'!$A$6:$AM$500,8,FALSE))&")")),"NA") -> 96% (2223) | H13: =IFERROR((IF($C13="NA","NA",VLOOKUP($A$3,'G4-RL5'!$A$6:$AM$500,10,FALSE))),"NA") -> 20.28286698 | I13: =IFERROR((IF($C13="NA","NA",ROUND(VLOOKUP($A$3,'G4-RL5'!$A$6:$AM$500,12,FALSE),0)&"% ("&IF(VLOOKUP($A$3,'G4-RL5'!$A$6:$AM$500,11,FALSE)="",0,VLOOKUP($A$3,'G4-RL5'!$A$6:$AM$500,11,FALSE))&")")),"NA") -> 87% (2026) | J13: =IFERROR((IF($C13="NA","NA",VLOOKUP($A$3,'G4-RL5'!$A$6:$AM$500,13,FALSE))),"NA") -> 5.211752045 | K13: =IFERROR((IF($C13="NA","NA",ROUND(VLOOKUP($A$3,'G4-RL5'!$A$6:$AM$500,15,FALSE),0)&"% ("&IF(VLOOKUP($A$3,'G4-RL5'!$A$6:$AM$500,14,FALSE)="",0,VLOOKUP($A$3,'G4-RL5'!$A$6:$AM$500,14,FALSE))&")")),"NA") -> 82% (1901) | L13: =IFERROR((IF($C13="NA","NA",VLOOKUP($A$3,'G4-RL5'!$A$6:$AM$500,16,FALSE))),"NA") -> 4.469737409 | M13: =IFERROR((IF($C13="NA","NA",ROUND(VLOOKUP($A$3,'G4-RL5'!$A$6:$AM$500,18,FALSE),0)&"% ("&IF(VLOOKUP($A$3,'G4-RL5'!$A$6:$AM$500,17,FALSE)="",0,VLOOKUP($A$3,'G4-RL5'!$A$6:$AM$500,17,FALSE))&")")),"NA") -> 91% (2114)
A14: White | B14: =IFERROR(VLOOKUP(TEXT($A$3,"0000"),MEM_W!$A$3:$O$501,8,FALSE),0) -> 1978 | C14: =IFERROR((IF(OR(B14<10,B14="",B14="NA"),"NA",((IF(VLOOKUP($A$3,'G4-RW'!$A$6:$AM$500,3,FALSE)>=B14,"100% ("&VLOOKUP($A$3,'G4-RW'!$A$6:$AM$500,3,FALSE)&")",(ROUND((VLOOKUP($A$3,'G4-RW'!$A$6:$AM$500,3,FALSE)/B14*100),0))&"% ("&IF(VLOOKUP($A$3,'G4-RW'!$A$6:$AM$500,3,FALSE)="",0,VLOOKUP($A$3,'G4-RW'!$A$6:$AM$500,3,FALSE))&")"))))),"NA") -> 93% (1849) | D14: =IFERROR((IF($C14="NA","NA",VLOOKUP($A$3,'G4-RW'!$A$6:$AM$500,4,FALSE))),"NA") -> 30.20789616 | E14: =IFERROR((IF($C14="NA","NA",ROUND(VLOOKUP($A$3,'G4-RW'!$A$6:$AM$500,6,FALSE),0)&"% ("&IF(VLOOKUP($A$3,'G4-RW'!$A$6:$AM$500,5,FALSE)="",0,VLOOKUP($A$3,'G4-RW'!$A$6:$AM$500,5,FALSE))&")")),"NA") -> 63% (1168) | F14: =IFERROR((IF($C14="NA","NA",VLOOKUP($A$3,'G4-RW'!$A$6:$AM$500,7,FALSE))),"NA") -> 5.401135749 | G14: =IFERROR((IF($C14="NA","NA",ROUND(VLOOKUP($A$3,'G4-RW'!$A$6:$AM$500,9,FALSE),0)&"% ("&IF(VLOOKUP($A$3,'G4-RW'!$A$6:$AM$500,8,FALSE)="",0,VLOOKUP($A$3,'G4-RW'!$A$6:$AM$500,8,FALSE))&")")),"NA") -> 77% (1417) | H14: =IFERROR((IF($C14="NA","NA",VLOOKUP($A$3,'G4-RW'!$A$6:$AM$500,10,FALSE))),"NA") -> 16.66057328 | I14: =IFERROR((IF($C14="NA","NA",ROUND(VLOOKUP($A$3,'G4-RW'!$A$6:$AM$500,12,FALSE),0)&"% ("&IF(VLOOKUP($A$3,'G4-RW'!$A$6:$AM$500,11,FALSE)="",0,VLOOKUP($A$3,'G4-RW'!$A$6:$AM$500,11,FALSE))&")")),"NA") -> 50% (923) | J14: =IFERROR((IF($C14="NA","NA",VLOOKUP($A$3,'G4-RW'!$A$6:$AM$500,13,FALSE))),"NA") -> 4.284856679 | K14: =IFERROR((IF($C14="NA","NA",ROUND(VLOOKUP($A$3,'G4-RW'!$A$6:$AM$500,15,FALSE),0)&"% ("&IF(VLOOKUP($A$3,'G4-RW'!$A$6:$AM$500,14,FALSE)="",0,VLOOKUP($A$3,'G4-RW'!$A$6:$AM$500,14,FALSE))&")")),"NA") -> 52% (961) | L14: =IFERROR((IF($C14="NA","NA",VLOOKUP($A$3,'G4-RW'!$A$6:$AM$500,16,FALSE))),"NA") -> 3.861276366 | M14: =IFERROR((IF($C14="NA","NA",ROUND(VLOOKUP($A$3,'G4-RW'!$A$6:$AM$500,18,FALSE),0)&"% ("&IF(VLOOKUP($A$3,'G4-RW'!$A$6:$AM$500,17,FALSE)="",0,VLOOKUP($A$3,'G4-RW'!$A$6:$AM$500,17,FALSE))&")")),"NA") -> 69% (1277)
A15: Black | B15: =IFERROR(VLOOKUP(TEXT($A$3,"0000"),MEM_B!$A$3:$O$501,8,FALSE),0) -> 5166 | C15: =IFERROR((IF(OR(B15<10,B15="",B15="NA"),"NA",((IF(VLOOKUP($A$3,'G4-RB'!$A$6:$AM$500,3,FALSE)>=B15,"100% ("&VLOOKUP($A$3,'G4-RB'!$A$6:$AM$500,3,FALSE)&")",(ROUND((VLOOKUP($A$3,'G4-RB'!$A$6:$AM$500,3,FALSE)/B15*100),0))&"% ("&IF(VLOOKUP($A$3,'G4-RB'!$A$6:$AM$500,3,FALSE)="",0,VLOOKUP($A$3,'G4-RB'!$A$6:$AM$500,3,FALSE))&")"))))),"NA") -> 94% (4836) | D15: =IFERROR((IF($C15="NA","NA",VLOOKUP($A$3,'G4-RB'!$A$6:$AM$500,4,FALSE))),"NA") -> 23.57969396 | E15: =IFERROR((IF($C15="NA","NA",ROUND(VLOOKUP($A$3,'G4-RB'!$A$6:$AM$500,6,FALSE),0)&"% ("&IF(VLOOKUP($A$3,'G4-RB'!$A$6:$AM$500,5,FALSE)="",0,VLOOKUP($A$3,'G4-RB'!$A$6:$AM$500,5,FALSE))&")")),"NA") -> 27% (1293) | F15: =IFERROR((IF($C15="NA","NA",VLOOKUP($A$3,'G4-RB'!$A$6:$AM$500,7,FALSE))),"NA") -> 4.317018197 | G15: =IFERROR((IF($C15="NA","NA",ROUND(VLOOKUP($A$3,'G4-RB'!$A$6:$AM$500,9,FALSE),0)&"% ("&IF(VLOOKUP($A$3,'G4-RB'!$A$6:$AM$500,8,FALSE)="",0,VLOOKUP($A$3,'G4-RB'!$A$6:$AM$500,8,FALSE))&")")),"NA") -> 49% (2377) | H15: =IFERROR((IF($C15="NA","NA",VLOOKUP($A$3,'G4-RB'!$A$6:$AM$500,10,FALSE))),"NA") -> 13.05328784 | I15: =IFERROR((IF($C15="NA","NA",ROUND(VLOOKUP($A$3,'G4-RB'!$A$6:$AM$500,12,FALSE),0)&"% ("&IF(VLOOKUP($A$3,'G4-RB'!$A$6:$AM$500,11,FALSE)="",0,VLOOKUP($A$3,'G4-RB'!$A$6:$AM$500,11,FALSE))&")")),"NA") -> 20% (949) | J15: =IFERROR((IF($C15="NA","NA",VLOOKUP($A$3,'G4-RB'!$A$6:$AM$500,13,FALSE))),"NA") -> 3.114019851 | K15: =IFERROR((IF($C15="NA","NA",ROUND(VLOOKUP($A$3,'G4-RB'!$A$6:$AM$500,15,FALSE),0)&"% ("&IF(VLOOKUP($A$3,'G4-RB'!$A$6:$AM$500,14,FALSE)="",0,VLOOKUP($A$3,'G4-RB'!$A$6:$AM$500,14,FALSE))&")")),"NA") -> 22% (1051) | L15: =IFERROR((IF($C15="NA","NA",VLOOKUP($A$3,'G4-RB'!$A$6:$AM$500,16,FALSE))),"NA") -> 3.09480976 | M15: =IFERROR((IF($C15="NA","NA",ROUND(VLOOKUP($A$3,'G4-RB'!$A$6:$AM$500,18,FALSE),0)&"% ("&IF(VLOOKUP($A$3,'G4-RB'!$A$6:$AM$500,17,FALSE)="",0,VLOOKUP($A$3,'G4-RB'!$A$6:$AM$500,17,FALSE))&")")),"NA") -> 43% (2091)
A16: Hispanic | B16: =IFERROR(VLOOKUP(TEXT($A$3,"0000"),MEM_H!$A$3:$O$501,8,FALSE),0) -> 17215 | C16: =IFERROR((IF(OR(B16<10,B16="",B16="NA"),"NA",((IF(VLOOKUP($A$3,'G4-RH'!$A$6:$AM$500,3,FALSE)>=B16,"100% ("&VLOOKUP($A$3,'G4-RH'!$A$6:$AM$500,3,FALSE)&")",(ROUND((VLOOKUP($A$3,'G4-RH'!$A$6:$AM$500,3,FALSE)/B16*100),0))&"% ("&IF(VLOOKUP($A$3,'G4-RH'!$A$6:$AM$500,3,FALSE)="",0,VLOOKUP($A$3,'G4-RH'!$A$6:$AM$500,3,FALSE))&")"))))),"NA") -> 95% (16335) | D16: =IFERROR((IF($C16="NA","NA",VLOOKUP($A$3,'G4-RH'!$A$6:$AM$500,4,FALSE))),"NA") -> 26.09446587 | E16: =IFERROR((IF($C16="NA","NA",ROUND(VLOOKUP($A$3,'G4-RH'!$A$6:$AM$500,6,FALSE),0)&"% ("&IF(VLOOKUP($A$3,'G4-RH'!$A$6:$AM$500,5,FALSE)="",0,VLOOKUP($A$3,'G4-RH'!$A$6:$AM$500,5,FALSE))&")")),"NA") -> 41% (6662) | F16: =IFERROR((IF($C16="NA","NA",VLOOKUP($A$3,'G4-RH'!$A$6:$AM$500,7,FALSE))),"NA") -> 4.562130395 | G16: =IFERROR((IF($C16="NA","NA",ROUND(VLOOKUP($A$3,'G4-RH'!$A$6:$AM$500,9,FALSE),0)&"% ("&IF(VLOOKUP($A$3,'G4-RH'!$A$6:$AM$500,8,FALSE)="",0,VLOOKUP($A$3,'G4-RH'!$A$6:$AM$500,8,FALSE))&")")),"NA") -> 56% (9084) | H16: =IFERROR((IF($C16="NA","NA",VLOOKUP($A$3,'G4-RH'!$A$6:$AM$500,10,FALSE))),"NA") -> 14.55818182 | I16: =IFERROR((IF($C16="NA","NA",ROUND(VLOOKUP($A$3,'G4-RH'!$A$6:$AM$500,12,FALSE),0)&"% ("&IF(VLOOKUP($A$3,'G4-RH'!$A$6:$AM$500,11,FALSE)="",0,VLOOKUP($A$3,'G4-RH'!$A$6:$AM$500,11,FALSE))&")")),"NA") -> 32% (5235) | J16: =IFERROR((IF($C16="NA","NA",VLOOKUP($A$3,'G4-RH'!$A$6:$AM$500,13,FALSE))),"NA") -> 3.574992348 | K16: =IFERROR((IF($C16="NA","NA",ROUND(VLOOKUP($A$3,'G4-RH'!$A$6:$AM$500,15,FALSE),0)&"% ("&IF(VLOOKUP($A$3,'G4-RH'!$A$6:$AM$500,14,FALSE)="",0,VLOOKUP($A$3,'G4-RH'!$A$6:$AM$500,14,FALSE))&")")),"NA") -> 33% (5432) | L16: =IFERROR((IF($C16="NA","NA",VLOOKUP($A$3,'G4-RH'!$A$6:$AM$500,16,FALSE))),"NA") -> 3.408680747 | M16: =IFERROR((IF($C16="NA","NA",ROUND(VLOOKUP($A$3,'G4-RH'!$A$6:$AM$500,18,FALSE),0)&"% ("&IF(VLOOKUP($A$3,'G4-RH'!$A$6:$AM$500,17,FALSE)="",0,VLOOKUP($A$3,'G4-RH'!$A$6:$AM$500,17,FALSE))&")")),"NA") -> 54% (8884)
A17: Asian | B17: =IFERROR(VLOOKUP(TEXT($A$3,"0000"),MEM_A!$A$3:$O$501,8,FALSE),0) -> 281 | C17: =IFERROR((IF(OR(B17<10,B17="",B17="NA"),"NA",((IF(VLOOKUP($A$3,'G4-RA'!$A$6:$AM$500,3,FALSE)>=B17,"100% ("&VLOOKUP($A$3,'G4-RA'!$A$6:$AM$500,3,FALSE)&")",(ROUND((VLOOKUP($A$3,'G4-RA'!$A$6:$AM$500,3,FALSE)/B17*100),0))&"% ("&IF(VLOOKUP($A$3,'G4-RA'!$A$6:$AM$500,3,FALSE)="",0,VLOOKUP($A$3,'G4-RA'!$A$6:$AM$500,3,FALSE))&")"))))),"NA") -> 90% (254) | D17: =IFERROR((IF($C17="NA","NA",VLOOKUP($A$3,'G4-RA'!$A$6:$AM$500,4,FALSE))),"NA") -> 30.48818898 | E17: =IFERROR((IF($C17="NA","NA",ROUND(VLOOKUP($A$3,'G4-RA'!$A$6:$AM$500,6,FALSE),0)&"% ("&IF(VLOOKUP($A$3,'G4-RA'!$A$6:$AM$500,5,FALSE)="",0,VLOOKUP($A$3,'G4-RA'!$A$6:$AM$500,5,FALSE))&")")),"NA") -> 63% (159) | F17: =IFERROR((IF($C17="NA","NA",VLOOKUP($A$3,'G4-RA'!$A$6:$AM$500,7,FALSE))),"NA") -> 5.503543307 | G17: =IFERROR((IF($C17="NA","NA",ROUND(VLOOKUP($A$3,'G4-RA'!$A$6:$AM$500,9,FALSE),0)&"% ("&IF(VLOOKUP($A$3,'G4-RA'!$A$6:$AM$500,8,FALSE)="",0,VLOOKUP($A$3,'G4-RA'!$A$6:$AM$500,8,FALSE))&")")),"NA") -> 79% (200) | H17: =IFERROR((IF($C17="NA","NA",VLOOKUP($A$3,'G4-RA'!$A$6:$AM$500,10,FALSE))),"NA") -> 16.96456693 | I17: =IFERROR((IF($C17="NA","NA",ROUND(VLOOKUP($A$3,'G4-RA'!$A$6:$AM$500,12,FALSE),0)&"% ("&IF(VLOOKUP($A$3,'G4-RA'!$A$6:$AM$500,11,FALSE)="",0,VLOOKUP($A$3,'G4-RA'!$A$6:$AM$500,11,FALSE))&")")),"NA") -> 52% (133) | J17: =IFERROR((IF($C17="NA","NA",VLOOKUP($A$3,'G4-RA'!$A$6:$AM$500,13,FALSE))),"NA") -> 4.142913386 | K17: =IFERROR((IF($C17="NA","NA",ROUND(VLOOKUP($A$3,'G4-RA'!$A$6:$AM$500,15,FALSE),0)&"% ("&IF(VLOOKUP($A$3,'G4-RA'!$A$6:$AM$500,14,FALSE)="",0,VLOOKUP($A$3,'G4-RA'!$A$6:$AM$500,14,FALSE))&")")),"NA") -> 51% (130) | L17: =IFERROR((IF($C17="NA","NA",VLOOKUP($A$3,'G4-RA'!$A$6:$AM$500,16,FALSE))),"NA") -> 3.898818898 | M17: =IFERROR((IF($C17="NA","NA",ROUND(VLOOKUP($A$3,'G4-RA'!$A$6:$AM$500,18,FALSE),0)&"% ("&IF(VLOOKUP($A$3,'G4-RA'!$A$6:$AM$500,17,FALSE)="",0,VLOOKUP($A$3,'G4-RA'!$A$6:$AM$500,17,FALSE))&")")),"NA") -> 71% (180)
A18: Am. Indian | B18: =IFERROR(VLOOKUP(TEXT($A$3,"0000"),MEM_I!$A$3:$O$501,8,FALSE),0) -> 11 | C18: =IFERROR((IF(OR(B18<10,B18="",B18="NA"),"NA",((IF(VLOOKUP($A$3,'G4-RI'!$A$6:$AM$500,3,FALSE)>=B18,"100% ("&VLOOKUP($A$3,'G4-RI'!$A$6:$AM$500,3,FALSE)&")",(ROUND((VLOOKUP($A$3,'G4-RI'!$A$6:$AM$500,3,FALSE)/B18*100),0))&"% ("&IF(VLOOKUP($A$3,'G4-RI'!$A$6:$AM$500,3,FALSE)="",0,VLOOKUP($A$3,'G4-RI'!$A$6:$AM$500,3,FALSE))&")"))))),"NA") -> 100% (11) | D18: =IFERROR((IF($C18="NA","NA",VLOOKUP($A$3,'G4-RI'!$A$6:$AM$500,4,FALSE))),"NA") -> 27.45454545 | E18: =IFERROR((IF($C18="NA","NA",ROUND(VLOOKUP($A$3,'G4-RI'!$A$6:$AM$500,6,FALSE),0)&"% ("&IF(VLOOKUP($A$3,'G4-RI'!$A$6:$AM$500,5,FALSE)="",0,VLOOKUP($A$3,'G4-RI'!$A$6:$AM$500,5,FALSE))&")")),"NA") -> 55% (6) | F18: =IFERROR((IF($C18="NA","NA",VLOOKUP($A$3,'G4-RI'!$A$6:$AM$500,7,FALSE))),"NA") -> 5.272727273 | G18: =IFERROR((IF($C18="NA","NA",ROUND(VLOOKUP($A$3,'G4-RI'!$A$6:$AM$500,9,FALSE),0)&"% ("&IF(VLOOKUP($A$3,'G4-RI'!$A$6:$AM$500,8,FALSE)="",0,VLOOKUP($A$3,'G4-RI'!$A$6:$AM$500,8,FALSE))&")")),"NA") -> 73% (8) | H18: =IFERROR((IF($C18="NA","NA",VLOOKUP($A$3,'G4-RI'!$A$6:$AM$500,10,FALSE))),"NA") -> 14.63636364 | I18: =IFERROR((IF($C18="NA","NA",ROUND(VLOOKUP($A$3,'G4-RI'!$A$6:$AM$500,12,FALSE),0)&"% ("&IF(VLOOKUP($A$3,'G4-RI'!$A$6:$AM$500,11,FALSE)="",0,VLOOKUP($A$3,'G4-RI'!$A$6:$AM$500,11,FALSE))&")")),"NA") -> 36% (4) | J18: =IFERROR((IF($C18="NA","NA",VLOOKUP($A$3,'G4-RI'!$A$6:$AM$500,13,FALSE))),"NA") -> 4.181818182 | K18: =IFERROR((IF($C18="NA","NA",ROUND(VLOOKUP($A$3,'G4-RI'!$A$6:$AM$500,15,FALSE),0)&"% ("&IF(VLOOKUP($A$3,'G4-RI'!$A$6:$AM$500,14,FALSE)="",0,VLOOKUP($A$3,'G4-RI'!$A$6:$AM$500,14,FALSE))&")")),"NA") -> 45% (5) | L18: =IFERROR((IF($C18="NA","NA",VLOOKUP($A$3,'G4-RI'!$A$6:$AM$500,16,FALSE))),"NA") -> 3.363636364 | M18: =IFERROR((IF($C18="NA","NA",ROUND(VLOOKUP($A$3,'G4-RI'!$A$6:$AM$500,18,FALSE),0)&"% ("&IF(VLOOKUP($A$3,'G4-RI'!$A$6:$AM$500,17,FALSE)="",0,VLOOKUP($A$3,'G4-RI'!$A$6:$AM$500,17,FALSE))&")")),"NA") -> 45% (5)
A19: ED | B19: =IFERROR(VLOOKUP(TEXT($A$3,"0000"),MEM_ED!$A$3:$O$501,8,FALSE),0) -> 19032 | C19: =IFERROR((IF(OR(B19<10,B19="",B19="NA"),"NA",((IF(VLOOKUP($A$3,'G4-RED'!$A$6:$AM$500,3,FALSE)>=B19,"100% ("&VLOOKUP($A$3,'G4-RED'!$A$6:$AM$500,3,FALSE)&")",(ROUND((VLOOKUP($A$3,'G4-RED'!$A$6:$AM$500,3,FALSE)/B19*100),0))&"% ("&IF(VLOOKUP($A$3,'G4-RED'!$A$6:$AM$500,3,FALSE)="",0,VLOOKUP($A$3,'G4-RED'!$A$6:$AM$500,3,FALSE))&")"))))),"NA") -> 96% (18305) | D19: =IFERROR((IF($C19="NA","NA",VLOOKUP($A$3,'G4-RED'!$A$6:$AM$500,4,FALSE))),"NA") -> 24.79130839 | E19: =IFERROR((IF($C19="NA","NA",ROUND(VLOOKUP($A$3,'G4-RED'!$A$6:$AM$500,6,FALSE),0)&"% ("&IF(VLOOKUP($A$3,'G4-RED'!$A$6:$AM$500,5,FALSE)="",0,VLOOKUP($A$3,'G4-RED'!$A$6:$AM$500,5,FALSE))&")")),"NA") -> 34% (6134) | F19: =IFERROR((IF($C19="NA","NA",VLOOKUP($A$3,'G4-RED'!$A$6:$AM$500,7,FALSE))),"NA") -> 4.38327233 | G19: =IFERROR((IF($C19="NA","NA",ROUND(VLOOKUP($A$3,'G4-RED'!$A$6:$AM$500,9,FALSE),0)&"% ("&IF(VLOOKUP($A$3,'G4-RED'!$A$6:$AM$500,8,FALSE)="",0,VLOOKUP($A$3,'G4-RED'!$A$6:$AM$500,8,FALSE))&")")),"NA") -> 51% (9349) | H19: =IFERROR((IF($C19="NA","NA",VLOOKUP($A$3,'G4-RED'!$A$6:$AM$500,10,FALSE))),"NA") -> 13.80968588 | I19: =IFERROR((IF($C19="NA","NA",ROUND(VLOOKUP($A$3,'G4-RED'!$A$6:$AM$500,12,FALSE),0)&"% ("&IF(VLOOKUP($A$3,'G4-RED'!$A$6:$AM$500,11,FALSE)="",0,VLOOKUP($A$3,'G4-RED'!$A$6:$AM$500,11,FALSE))&")")),"NA") -> 26% (4741) | J19: =IFERROR((IF($C19="NA","NA",VLOOKUP($A$3,'G4-RED'!$A$6:$AM$500,13,FALSE))),"NA") -> 3.34754985 | K19: =IFERROR((IF($C19="NA","NA",ROUND(VLOOKUP($A$3,'G4-RED'!$A$6:$AM$500,15,FALSE),0)&"% ("&IF(VLOOKUP($A$3,'G4-RED'!$A$6:$AM$500,14,FALSE)="",0,VLOOKUP($A$3,'G4-RED'!$A$6:$AM$500,14,FALSE))&")")),"NA") -> 27% (5028) | L19: =IFERROR((IF($C19="NA","NA",VLOOKUP($A$3,'G4-RED'!$A$6:$AM$500,16,FALSE))),"NA") -> 3.251177274 | M19: =IFERROR((IF($C19="NA","NA",ROUND(VLOOKUP($A$3,'G4-RED'!$A$6:$AM$500,18,FALSE),0)&"% ("&IF(VLOOKUP($A$3,'G4-RED'!$A$6:$AM$500,17,FALSE)="",0,VLOOKUP($A$3,'G4-RED'!$A$6:$AM$500,17,FALSE))&")")),"NA") -> 49% (8927)
A20: ELL | B20: =IFERROR(VLOOKUP(TEXT($A$3,"0000"),MEM_ELL!$A$3:$O$501,8,FALSE),0) -> 9844 | C20: =IFERROR((IF(OR(B20<10,B20="",B20="NA"),"NA",((IF(VLOOKUP($A$3,'G4-RELL'!$A$6:$AM$500,3,FALSE)>=B20,"100% ("&VLOOKUP($A$3,'G4-RELL'!$A$6:$AM$500,3,FALSE)&")",(ROUND((VLOOKUP($A$3,'G4-RELL'!$A$6:$AM$500,3,FALSE)/B20*100),0))&"% ("&IF(VLOOKUP($A$3,'G4-RELL'!$A$6:$AM$500,3,FALSE)="",0,VLOOKUP($A$3,'G4-RELL'!$A$6:$AM$500,3,FALSE))&")"))))),"NA") -> 95% (9326) | D20: =IFERROR((IF($C20="NA","NA",VLOOKUP($A$3,'G4-RELL'!$A$6:$AM$500,4,FALSE))),"NA") -> 22.9885267 | E20: =IFERROR((IF($C20="NA","NA",ROUND(VLOOKUP($A$3,'G4-RELL'!$A$6:$AM$500,6,FALSE),0)&"% ("&IF(VLOOKUP($A$3,'G4-RELL'!$A$6:$AM$500,5,FALSE)="",0,VLOOKUP($A$3,'G4-RELL'!$A$6:$AM$500,5,FALSE))&")")),"NA") -> 25% (2309) | F20: =IFERROR((IF($C20="NA","NA",VLOOKUP($A$3,'G4-RELL'!$A$6:$AM$500,7,FALSE))),"NA") -> 3.969118593 | G20: =IFERROR((IF($C20="NA","NA",ROUND(VLOOKUP($A$3,'G4-RELL'!$A$6:$AM$500,9,FALSE),0)&"% ("&IF(VLOOKUP($A$3,'G4-RELL'!$A$6:$AM$500,8,FALSE)="",0,VLOOKUP($A$3,'G4-RELL'!$A$6:$AM$500,8,FALSE))&")")),"NA") -> 41% (3835) | H20: =IFERROR((IF($C20="NA","NA",VLOOKUP($A$3,'G4-RELL'!$A$6:$AM$500,10,FALSE))),"NA") -> 12.91518336 | I20: =IFERROR((IF($C20="NA","NA",ROUND(VLOOKUP($A$3,'G4-RELL'!$A$6:$AM$500,12,FALSE),0)&"% ("&IF(VLOOKUP($A$3,'G4-RELL'!$A$6:$AM$500,11,FALSE)="",0,VLOOKUP($A$3,'G4-RELL'!$A$6:$AM$500,11,FALSE))&")")),"NA") -> 19% (1769) | J20: =IFERROR((IF($C20="NA","NA",VLOOKUP($A$3,'G4-RELL'!$A$6:$AM$500,13,FALSE))),"NA") -> 3.073343341 | K20: =IFERROR((IF($C20="NA","NA",ROUND(VLOOKUP($A$3,'G4-RELL'!$A$6:$AM$500,15,FALSE),0)&"% ("&IF(VLOOKUP($A$3,'G4-RELL'!$A$6:$AM$500,14,FALSE)="",0,VLOOKUP($A$3,'G4-RELL'!$A$6:$AM$500,14,FALSE))&")")),"NA") -> 21% (1992) | L20: =IFERROR((IF($C20="NA","NA",VLOOKUP($A$3,'G4-RELL'!$A$6:$AM$500,16,FALSE))),"NA") -> 3.030881407 | M20: =IFERROR((IF($C20="NA","NA",ROUND(VLOOKUP($A$3,'G4-RELL'!$A$6:$AM$500,18,FALSE),0)&"% ("&IF(VLOOKUP($A$3,'G4-RELL'!$A$6:$AM$500,17,FALSE)="",0,VLOOKUP($A$3,'G4-RELL'!$A$6:$AM$500,17,FALSE))&")")),"NA") -> 42% (3944)
A21: SWD | B21: =IFERROR(VLOOKUP(TEXT($A$3,"0000"),MEM_SWD!$A$3:$O$501,8,FALSE),0) -> 2122 | C21: =IFERROR((IF(OR(B21<10,B21="",B21="NA"),"NA",((IF(VLOOKUP($A$3,'G4-RSWD'!$A$6:$AM$500,3,FALSE)>=B21,"100% ("&VLOOKUP($A$3,'G4-RSWD'!$A$6:$AM$500,3,FALSE)&")",(ROUND((VLOOKUP($A$3,'G4-RSWD'!$A$6:$AM$500,3,FALSE)/B21*100),0))&"% ("&IF(VLOOKUP($A$3,'G4-RSWD'!$A$6:$AM$500,3,FALSE)="",0,VLOOKUP($A$3,'G4-RSWD'!$A$6:$AM$500,3,FALSE))&")"))))),"NA") -> 92% (1952) | D21: =IFERROR((IF($C21="NA","NA",VLOOKUP($A$3,'G4-RSWD'!$A$6:$AM$500,4,FALSE))),"NA") -> 18.41864754 | E21: =IFERROR((IF($C21="NA","NA",ROUND(VLOOKUP($A$3,'G4-RSWD'!$A$6:$AM$500,6,FALSE),0)&"% ("&IF(VLOOKUP($A$3,'G4-RSWD'!$A$6:$AM$500,5,FALSE)="",0,VLOOKUP($A$3,'G4-RSWD'!$A$6:$AM$500,5,FALSE))&")")),"NA") -> 11% (216) | F21: =IFERROR((IF($C21="NA","NA",VLOOKUP($A$3,'G4-RSWD'!$A$6:$AM$500,7,FALSE))),"NA") -> 3.211065574 | G21: =IFERROR((IF($C21="NA","NA",ROUND(VLOOKUP($A$3,'G4-RSWD'!$A$6:$AM$500,9,FALSE),0)&"% ("&IF(VLOOKUP($A$3,'G4-RSWD'!$A$6:$AM$500,8,FALSE)="",0,VLOOKUP($A$3,'G4-RSWD'!$A$6:$AM$500,8,FALSE))&")")),"NA") -> 25% (480) | H21: =IFERROR((IF($C21="NA","NA",VLOOKUP($A$3,'G4-RSWD'!$A$6:$AM$500,10,FALSE))),"NA") -> 10.30829918 | I21: =IFERROR((IF($C21="NA","NA",ROUND(VLOOKUP($A$3,'G4-RSWD'!$A$6:$AM$500,12,FALSE),0)&"% ("&IF(VLOOKUP($A$3,'G4-RSWD'!$A$6:$AM$500,11,FALSE)="",0,VLOOKUP($A$3,'G4-RSWD'!$A$6:$AM$500,11,FALSE))&")")),"NA") -> 8% (157) | J21: =IFERROR((IF($C21="NA","NA",VLOOKUP($A$3,'G4-RSWD'!$A$6:$AM$500,13,FALSE))),"NA") -> 2.50414959 | K21: =IFERROR((IF($C21="NA","NA",ROUND(VLOOKUP($A$3,'G4-RSWD'!$A$6:$AM$500,15,FALSE),0)&"% ("&IF(VLOOKUP($A$3,'G4-RSWD'!$A$6:$AM$500,14,FALSE)="",0,VLOOKUP($A$3,'G4-RSWD'!$A$6:$AM$500,14,FALSE))&")")),"NA") -> 12% (234) | L21: =IFERROR((IF($C21="NA","NA",VLOOKUP($A$3,'G4-RSWD'!$A$6:$AM$500,16,FALSE))),"NA") -> 2.401895492 | M21: =IFERROR((IF($C21="NA","NA",ROUND(VLOOKUP($A$3,'G4-RSWD'!$A$6:$AM$500,18,FALSE),0)&"% ("&IF(VLOOKUP($A$3,'G4-RSWD'!$A$6:$AM$500,17,FALSE)="",0,VLOOKUP($A$3,'G4-RSWD'!$A$6:$AM$500,17,FALSE))&")")),"NA") -> 25% (484)
A22: Math - Grade 4
A23: Level of Proficiency at 70% or above | B23: Total # of Students | C23: % of Students Tested | D23: ='G3-5 Matrix'!C13&" ["&'G3-5 Matrix'!C14&"]" -> Overall [34] | F23: ='G3-5 Matrix'!D13&" ["&'G3-5 Matrix'!D14&"]" -> Number: Operations & Problems [16] | H23: ='G3-5 Matrix'!E13&" ["&'G3-5 Matrix'!E14&"]" -> Number: Base Ten and Fractions [8] | J23: ='G3-5 Matrix'!F13&" ["&'G3-5 Matrix'!F14&"]" -> Geometry and Measurement [10]
D24: Average Score | E24: % Proficient | F24: Average Score | G24: % Proficient | H24: Average Score | I24: % Proficient | J24: Average Score | K24: % Proficient
A25: All students | B25: =IFERROR(VLOOKUP(TEXT($A$3,"0000"),Mem_All!$A$3:$O$501,8,FALSE),0) -> 24928 | C25: =IFERROR((IF(OR(B25<10,B25="",B25="NA"),"NA",((IF(VLOOKUP($A$3,'G4-MALL'!$A$6:$AM$500,3,FALSE)>=B25,"100% ("&VLOOKUP($A$3,'G4-MALL'!$A$6:$AM$500,3,FALSE)&")",(ROUND((VLOOKUP($A$3,'G4-MALL'!$A$6:$AM$500,3,FALSE)/B25*100),0))&"% ("&IF(VLOOKUP($A$3,'G4-MALL'!$A$6:$AM$500,3,FALSE)="",0,VLOOKUP($A$3,'G4-MALL'!$A$6:$AM$500,3,FALSE))&")"))))),"NA") -> 94% (23494) | D25: =IFERROR((IF($C25="NA","NA",VLOOKUP($A$3,'G4-MALL'!$A$6:$AM$500,4,FALSE))),"NA") -> 13.88030561 | E25: =IFERROR((IF($C25="NA","NA",ROUND(VLOOKUP($A$3,'G4-MALL'!$A$6:$AM$500,6,FALSE),0)&"% ("&IF(VLOOKUP($A$3,'G4-MALL'!$A$6:$AM$500,5,FALSE)="",0,VLOOKUP($A$3,'G4-MALL'!$A$6:$AM$500,5,FALSE))&")")),"NA") -> 4% (867) | F25: =IFERROR((IF($C25="NA","NA",VLOOKUP($A$3,'G4-MALL'!$A$6:$AM$500,7,FALSE))),"NA") -> 7.569839108 | G25: =IFERROR((IF($C25="NA","NA",ROUND(VLOOKUP($A$3,'G4-MALL'!$A$6:$AM$500,9,FALSE),0)&"% ("&IF(VLOOKUP($A$3,'G4-MALL'!$A$6:$AM$500,8,FALSE)="",0,VLOOKUP($A$3,'G4-MALL'!$A$6:$AM$500,8,FALSE))&")")),"NA") -> 11% (2607) | H25: =IFERROR((IF($C25="NA","NA",VLOOKUP($A$3,'G4-MALL'!$A$6:$AM$500,10,FALSE))),"NA") -> 2.568753724 | I25: =IFERROR((IF($C25="NA","NA",ROUND(VLOOKUP($A$3,'G4-MALL'!$A$6:$AM$500,12,FALSE),0)&"% ("&IF(VLOOKUP($A$3,'G4-MALL'!$A$6:$AM$500,11,FALSE)="",0,VLOOKUP($A$3,'G4-MALL'!$A$6:$AM$500,11,FALSE))&")")),"NA") -> 5% (1109) | J25: =IFERROR((IF($C25="NA","NA",VLOOKUP($A$3,'G4-MALL'!$A$6:$AM$500,13,FALSE))),"NA") -> 3.743662212 | K25: =IFERROR((IF($C25="NA","NA",ROUND(VLOOKUP($A$3,'G4-MALL'!$A$6:$AM$500,15,FALSE),0)&"% ("&IF(VLOOKUP($A$3,'G4-MALL'!$A$6:$AM$500,14,FALSE)="",0,VLOOKUP($A$3,'G4-MALL'!$A$6:$AM$500,14,FALSE))&")")),"NA") -> 6% (1407)
A26: FCAT Level 1 | B26: =IFERROR(VLOOKUP(TEXT($A$3,"0000"),MEM_ML1!$A$3:$O$501,5,FALSE),0) -> 2923 | C26: =IFERROR((IF(OR(B26<10,B26="",B26="NA"),"NA",((IF(VLOOKUP($A$3,'G4-ML1'!$A$6:$AM$500,3,FALSE)>=B26,"100% ("&VLOOKUP($A$3,'G4-ML1'!$A$6:$AM$500,3,FALSE)&")",(ROUND((VLOOKUP($A$3,'G4-ML1'!$A$6:$AM$500,3,FALSE)/B26*100),0))&"% ("&IF(VLOOKUP($A$3,'G4-ML1'!$A$6:$AM$500,3,FALSE)="",0,VLOOKUP($A$3,'G4-ML1'!$A$6:$AM$500,3,FALSE))&")"))))),"NA") -> 94% (2736) | D26: =IFERROR((IF($C26="NA","NA",VLOOKUP($A$3,'G4-ML1'!$A$6:$AM$500,4,FALSE))),"NA") -> 9.333004386 | E26: =IFERROR((IF($C26="NA","NA",ROUND(VLOOKUP($A$3,'G4-ML1'!$A$6:$AM$500,6,FALSE),0)&"% ("&IF(VLOOKUP($A$3,'G4-ML1'!$A$6:$AM$500,5,FALSE)="",0,VLOOKUP($A$3,'G4-ML1'!$A$6:$AM$500,5,FALSE))&")")),"NA") -> 0% (2) | F26: =IFERROR((IF($C26="NA","NA",VLOOKUP($A$3,'G4-ML1'!$A$6:$AM$500,7,FALSE))),"NA") -> 4.608516082 | G26: =IFERROR((IF($C26="NA","NA",ROUND(VLOOKUP($A$3,'G4-ML1'!$A$6:$AM$500,9,FALSE),0)&"% ("&IF(VLOOKUP($A$3,'G4-ML1'!$A$6:$AM$500,8,FALSE)="",0,VLOOKUP($A$3,'G4-ML1'!$A$6:$AM$500,8,FALSE))&")")),"NA") -> 0% (5) | H26: =IFERROR((IF($C26="NA","NA",VLOOKUP($A$3,'G4-ML1'!$A$6:$AM$500,10,FALSE))),"NA") -> 1.910855263 | I26: =IFERROR((IF($C26="NA","NA",ROUND(VLOOKUP($A$3,'G4-ML1'!$A$6:$AM$500,12,FALSE),0)&"% ("&IF(VLOOKUP($A$3,'G4-ML1'!$A$6:$AM$500,11,FALSE)="",0,VLOOKUP($A$3,'G4-ML1'!$A$6:$AM$500,11,FALSE))&")")),"NA") -> 0% (3) | J26: =IFERROR((IF($C26="NA","NA",VLOOKUP($A$3,'G4-ML1'!$A$6:$AM$500,13,FALSE))),"NA") -> 2.818969298 | K26: =IFERROR((IF($C26="NA","NA",ROUND(VLOOKUP($A$3,'G4-ML1'!$A$6:$AM$500,15,FALSE),0)&"% ("&IF(VLOOKUP($A$3,'G4-ML1'!$A$6:$AM$500,14,FALSE)="",0,VLOOKUP($A$3,'G4-ML1'!$A$6:$AM$500,14,FALSE))&")")),"NA") -> 1% (20)
A27: FCAT Level 2 | B27: =IFERROR(VLOOKUP(TEXT($A$3,"0000"),MEM_ML2!$A$3:$O$501,5,FALSE),0) -> 4956 | C27: =IFERROR((IF(OR(B27<10,B27="",B27="NA"),"NA",((IF(VLOOKUP($A$3,'G4-ML2'!$A$6:$AM$500,3,FALSE)>=B27,"100% ("&VLOOKUP($A$3,'G4-ML2'!$A$6:$AM$500,3,FALSE)&")",(ROUND((VLOOKUP($A$3,'G4-ML2'!$A$6:$AM$500,3,FALSE)/B27*100),0))&"% ("&IF(VLOOKUP($A$3,'G4-ML2'!$A$6:$AM$500,3,FALSE)="",0,VLOOKUP($A$3,'G4-ML2'!$A$6:$AM$500,3,FALSE))&")"))))),"NA") -> 95% (4688) | D27: =IFERROR((IF($C27="NA","NA",VLOOKUP($A$3,'G4-ML2'!$A$6:$AM$500,4,FALSE))),"NA") -> 10.96100683 | E27: =IFERROR((IF($C27="NA","NA",ROUND(VLOOKUP($A$3,'G4-ML2'!$A$6:$AM$500,6,FALSE),0)&"% ("&IF(VLOOKUP($A$3,'G4-ML2'!$A$6:$AM$500,5,FALSE)="",0,VLOOKUP($A$3,'G4-ML2'!$A$6:$AM$500,5,FALSE))&")")),"NA") -> 0% (6) | F27: =IFERROR((IF($C27="NA","NA",VLOOKUP($A$3,'G4-ML2'!$A$6:$AM$500,7,FALSE))),"NA") -> 5.782892491 | G27: =IFERROR((IF($C27="NA","NA",ROUND(VLOOKUP($A$3,'G4-ML2'!$A$6:$AM$500,9,FALSE),0)&"% ("&IF(VLOOKUP($A$3,'G4-ML2'!$A$6:$AM$500,8,FALSE)="",0,VLOOKUP($A$3,'G4-ML2'!$A$6:$AM$500,8,FALSE))&")")),"NA") -> 1% (33) | H27: =IFERROR((IF($C27="NA","NA",VLOOKUP($A$3,'G4-ML2'!$A$6:$AM$500,10,FALSE))),"NA") -> 2.000789249 | I27: =IFERROR((IF($C27="NA","NA",ROUND(VLOOKUP($A$3,'G4-ML2'!$A$6:$AM$500,12,FALSE),0)&"% ("&IF(VLOOKUP($A$3,'G4-ML2'!$A$6:$AM$500,11,FALSE)="",0,VLOOKUP($A$3,'G4-ML2'!$A$6:$AM$500,11,FALSE))&")")),"NA") -> 0% (20) | J27: =IFERROR((IF($C27="NA","NA",VLOOKUP($A$3,'G4-ML2'!$A$6:$AM$500,13,FALSE))),"NA") -> 3.182615188 | K27: =IFERROR((IF($C27="NA","NA",ROUND(VLOOKUP($A$3,'G4-ML2'!$A$6:$AM$500,15,FALSE),0)&"% ("&IF(VLOOKUP($A$3,'G4-ML2'!$A$6:$AM$500,14,FALSE)="",0,VLOOKUP($A$3,'G4-ML2'!$A$6:$AM$500,14,FALSE))&")")),"NA") -> 2% (78)
A28: FCAT Level 3 | B28: =IFERROR(VLOOKUP(TEXT($A$3,"0000"),MEM_ML3!$A$3:$O$501,5,FALSE),0) -> 7884 | C28: =IFERROR((IF(OR(B28<10,B28="",B28="NA"),"NA",((IF(VLOOKUP($A$3,'G4-ML3'!$A$6:$AM$500,3,FALSE)>=B28,"100% ("&VLOOKUP($A$3,'G4-ML3'!$A$6:$AM$500,3,FALSE)&")",(ROUND((VLOOKUP($A$3,'G4-ML3'!$A$6:$AM$500,3,FALSE)/B28*100),0))&"% ("&IF(VLOOKUP($A$3,'G4-ML3'!$A$6:$AM$500,3,FALSE)="",0,VLOOKUP($A$3,'G4-ML3'!$A$6:$AM$500,3,FALSE))&")"))))),"NA") -> 95% (7476) | D28: =IFERROR((IF($C28="NA","NA",VLOOKUP($A$3,'G4-ML3'!$A$6:$AM$500,4,FALSE))),"NA") -> 13.53374799 | E28: =IFERROR((IF($C28="NA","NA",ROUND(VLOOKUP($A$3,'G4-ML3'!$A$6:$AM$500,6,FALSE),0)&"% ("&IF(VLOOKUP($A$3,'G4-ML3'!$A$6:$AM$500,5,FALSE)="",0,VLOOKUP($A$3,'G4-ML3'!$A$6:$AM$500,5,FALSE))&")")),"NA") -> 0% (28) | F28: =IFERROR((IF($C28="NA","NA",VLOOKUP($A$3,'G4-ML3'!$A$6:$AM$500,7,FALSE))),"NA") -> 7.515222044 | G28: =IFERROR((IF($C28="NA","NA",ROUND(VLOOKUP($A$3,'G4-ML3'!$A$6:$AM$500,9,FALSE),0)&"% ("&IF(VLOOKUP($A$3,'G4-ML3'!$A$6:$AM$500,8,FALSE)="",0,VLOOKUP($A$3,'G4-ML3'!$A$6:$AM$500,8,FALSE))&")")),"NA") -> 5% (382) | H28: =IFERROR((IF($C28="NA","NA",VLOOKUP($A$3,'G4-ML3'!$A$6:$AM$500,10,FALSE))),"NA") -> 2.344917068 | I28: =IFERROR((IF($C28="NA","NA",ROUND(VLOOKUP($A$3,'G4-ML3'!$A$6:$AM$500,12,FALSE),0)&"% ("&IF(VLOOKUP($A$3,'G4-ML3'!$A$6:$AM$500,11,FALSE)="",0,VLOOKUP($A$3,'G4-ML3'!$A$6:$AM$500,11,FALSE))&")")),"NA") -> 1% (111) | J28: =IFERROR((IF($C28="NA","NA",VLOOKUP($A$3,'G4-ML3'!$A$6:$AM$500,13,FALSE))),"NA") -> 3.675615302 | K28: =IFERROR((IF($C28="NA","NA",ROUND(VLOOKUP($A$3,'G4-ML3'!$A$6:$AM$500,15,FALSE),0)&"% ("&IF(VLOOKUP($A$3,'G4-ML3'!$A$6:$AM$500,14,FALSE)="",0,VLOOKUP($A$3,'G4-ML3'!$A$6:$AM$500,14,FALSE))&")")),"NA") -> 4% (271)
A29: FCAT Level 4 | B29: =IFERROR(VLOOKUP(TEXT($A$3,"0000"),MEM_ML4!$A$3:$O$501,5,FALSE),0) -> 5060 | C29: =IFERROR((IF(OR(B29<10,B29="",B29="NA"),"NA",((IF(VLOOKUP($A$3,'G4-ML4'!$A$6:$AM$500,3,FALSE)>=B29,"100% ("&VLOOKUP($A$3,'G4-ML4'!$A$6:$AM$500,3,FALSE)&")",(ROUND((VLOOKUP($A$3,'G4-ML4'!$A$6:$AM$500,3,FALSE)/B29*100),0))&"% ("&IF(VLOOKUP($A$3,'G4-ML4'!$A$6:$AM$500,3,FALSE)="",0,VLOOKUP($A$3,'G4-ML4'!$A$6:$AM$500,3,FALSE))&")"))))),"NA") -> 95% (4824) | D29: =IFERROR((IF($C29="NA","NA",VLOOKUP($A$3,'G4-ML4'!$A$6:$AM$500,4,FALSE))),"NA") -> 16.75559701 | E29: =IFERROR((IF($C29="NA","NA",ROUND(VLOOKUP($A$3,'G4-ML4'!$A$6:$AM$500,6,FALSE),0)&"% ("&IF(VLOOKUP($A$3,'G4-ML4'!$A$6:$AM$500,5,FALSE)="",0,VLOOKUP($A$3,'G4-ML4'!$A$6:$AM$500,5,FALSE))&")")),"NA") -> 4% (203) | F29: =IFERROR((IF($C29="NA","NA",VLOOKUP($A$3,'G4-ML4'!$A$6:$AM$500,7,FALSE))),"NA") -> 9.405182421 | G29: =IFERROR((IF($C29="NA","NA",ROUND(VLOOKUP($A$3,'G4-ML4'!$A$6:$AM$500,9,FALSE),0)&"% ("&IF(VLOOKUP($A$3,'G4-ML4'!$A$6:$AM$500,8,FALSE)="",0,VLOOKUP($A$3,'G4-ML4'!$A$6:$AM$500,8,FALSE))&")")),"NA") -> 19% (937) | H29: =IFERROR((IF($C29="NA","NA",VLOOKUP($A$3,'G4-ML4'!$A$6:$AM$500,10,FALSE))),"NA") -> 3.078461857 | I29: =IFERROR((IF($C29="NA","NA",ROUND(VLOOKUP($A$3,'G4-ML4'!$A$6:$AM$500,12,FALSE),0)&"% ("&IF(VLOOKUP($A$3,'G4-ML4'!$A$6:$AM$500,11,FALSE)="",0,VLOOKUP($A$3,'G4-ML4'!$A$6:$AM$500,11,FALSE))&")")),"NA") -> 7% (329) | J29: =IFERROR((IF($C29="NA","NA",VLOOKUP($A$3,'G4-ML4'!$A$6:$AM$500,13,FALSE))),"NA") -> 4.277964345 | K29: =IFERROR((IF($C29="NA","NA",ROUND(VLOOKUP($A$3,'G4-ML4'!$A$6:$AM$500,15,FALSE),0)&"% ("&IF(VLOOKUP($A$3,'G4-ML4'!$A$6:$AM$500,14,FALSE)="",0,VLOOKUP($A$3,'G4-ML4'!$A$6:$AM$500,14,FALSE))&")")),"NA") -> 9% (428)
A30: FCAT Level 5 | B30: =IFERROR(VLOOKUP(TEXT($A$3,"0000"),MEM_ML5!$A$3:$M$501,5,FALSE),0) -> 2906 | C30: =IFERROR((IF(OR(B30<10,B30="",B30="NA"),"NA",((IF(VLOOKUP($A$3,'G4-ML5'!$A$6:$AM$500,3,FALSE)>=B30,"100% ("&VLOOKUP($A$3,'G4-ML5'!$A$6:$AM$500,3,FALSE)&")",(ROUND((VLOOKUP($A$3,'G4-ML5'!$A$6:$AM$500,3,FALSE)/B30*100),0))&"% ("&IF(VLOOKUP($A$3,'G4-ML5'!$A$6:$AM$500,3,FALSE)="",0,VLOOKUP($A$3,'G4-ML5'!$A$6:$AM$500,3,FALSE))&")"))))),"NA") -> 96% (2776) | D30: =IFERROR((IF($C30="NA","NA",VLOOKUP($A$3,'G4-ML5'!$A$6:$AM$500,4,FALSE))),"NA") -> 20.06206772 | E30: =IFERROR((IF($C30="NA","NA",ROUND(VLOOKUP($A$3,'G4-ML5'!$A$6:$AM$500,6,FALSE),0)&"% ("&IF(VLOOKUP($A$3,'G4-ML5'!$A$6:$AM$500,5,FALSE)="",0,VLOOKUP($A$3,'G4-ML5'!$A$6:$AM$500,5,FALSE))&")")),"NA") -> 22% (613) | F30: =IFERROR((IF($C30="NA","NA",VLOOKUP($A$3,'G4-ML5'!$A$6:$AM$500,7,FALSE))),"NA") -> 10.9045389 | G30: =IFERROR((IF($C30="NA","NA",ROUND(VLOOKUP($A$3,'G4-ML5'!$A$6:$AM$500,9,FALSE),0)&"% ("&IF(VLOOKUP($A$3,'G4-ML5'!$A$6:$AM$500,8,FALSE)="",0,VLOOKUP($A$3,'G4-ML5'!$A$6:$AM$500,8,FALSE))&")")),"NA") -> 43% (1190) | H30: =IFERROR((IF($C30="NA","NA",VLOOKUP($A$3,'G4-ML5'!$A$6:$AM$500,10,FALSE))),"NA") -> 4.114553314 | I30: =IFERROR((IF($C30="NA","NA",ROUND(VLOOKUP($A$3,'G4-ML5'!$A$6:$AM$500,12,FALSE),0)&"% ("&IF(VLOOKUP($A$3,'G4-ML5'!$A$6:$AM$500,11,FALSE)="",0,VLOOKUP($A$3,'G4-ML5'!$A$6:$AM$500,11,FALSE))&")")),"NA") -> 23% (633) | J30: =IFERROR((IF($C30="NA","NA",VLOOKUP($A$3,'G4-ML5'!$A$6:$AM$500,13,FALSE))),"NA") -> 5.049891931 | K30: =IFERROR((IF($C30="NA","NA",ROUND(VLOOKUP($A$3,'G4-ML5'!$A$6:$AM$500,15,FALSE),0)&"% ("&IF(VLOOKUP($A$3,'G4-ML5'!$A$6:$AM$500,14,FALSE)="",0,VLOOKUP($A$3,'G4-ML5'!$A$6:$AM$500,14,FALSE))&")")),"NA") -> 21% (573)
A31: White | B31: =IFERROR(VLOOKUP(TEXT($A$3,"0000"),MEM_W!$A$3:$O$501,8,FALSE),0) -> 1978 | C31: =IFERROR((IF(OR(B31<10,B31="",B31="NA"),"NA",((IF(VLOOKUP($A$3,'G4-MW'!$A$6:$AM$500,3,FALSE)>=B31,"100% ("&VLOOKUP($A$3,'G4-MW'!$A$6:$AM$500,3,FALSE)&")",(ROUND((VLOOKUP($A$3,'G4-MW'!$A$6:$AM$500,3,FALSE)/B31*100),0))&"% ("&IF(VLOOKUP($A$3,'G4-MW'!$A$6:$AM$500,3,FALSE)="",0,VLOOKUP($A$3,'G4-MW'!$A$6:$AM$500,3,FALSE))&")"))))),"NA") -> 93% (1849) | D31: =IFERROR((IF($C31="NA","NA",VLOOKUP($A$3,'G4-MW'!$A$6:$AM$500,4,FALSE))),"NA") -> 16.43228772 | E31: =IFERROR((IF($C31="NA","NA",ROUND(VLOOKUP($A$3,'G4-MW'!$A$6:$AM$500,6,FALSE),0)&"% ("&IF(VLOOKUP($A$3,'G4-MW'!$A$6:$AM$500,5,FALSE)="",0,VLOOKUP($A$3,'G4-MW'!$A$6:$AM$500,5,FALSE))&")")),"NA") -> 11% (198) | F31: =IFERROR((IF($C31="NA","NA",VLOOKUP($A$3,'G4-MW'!$A$6:$AM$500,7,FALSE))),"NA") -> 8.998215251 | G31: =IFERROR((IF($C31="NA","NA",ROUND(VLOOKUP($A$3,'G4-MW'!$A$6:$AM$500,9,FALSE),0)&"% ("&IF(VLOOKUP($A$3,'G4-MW'!$A$6:$AM$500,8,FALSE)="",0,VLOOKUP($A$3,'G4-MW'!$A$6:$AM$500,8,FALSE))&")")),"NA") -> 22% (412) | H31: =IFERROR((IF($C31="NA","NA",VLOOKUP($A$3,'G4-MW'!$A$6:$AM$500,10,FALSE))),"NA") -> 3.085451595 | I31: =IFERROR((IF($C31="NA","NA",ROUND(VLOOKUP($A$3,'G4-MW'!$A$6:$AM$500,12,FALSE),0)&"% ("&IF(VLOOKUP($A$3,'G4-MW'!$A$6:$AM$500,11,FALSE)="",0,VLOOKUP($A$3,'G4-MW'!$A$6:$AM$500,11,FALSE))&")")),"NA") -> 11% (210) | J31: =IFERROR((IF($C31="NA","NA",VLOOKUP($A$3,'G4-MW'!$A$6:$AM$500,13,FALSE))),"NA") -> 4.360951866 | K31: =IFERROR((IF($C31="NA","NA",ROUND(VLOOKUP($A$3,'G4-MW'!$A$6:$AM$500,15,FALSE),0)&"% ("&IF(VLOOKUP($A$3,'G4-MW'!$A$6:$AM$500,14,FALSE)="",0,VLOOKUP($A$3,'G4-MW'!$A$6:$AM$500,14,FALSE))&")")),"NA") -> 12% (224)
A32: Black | B32: =IFERROR(VLOOKUP(TEXT($A$3,"0000"),MEM_B!$A$3:$O$501,8,FALSE),0) -> 5166 | C32: =IFERROR((IF(OR(B32<10,B32="",B32="NA"),"NA",((IF(VLOOKUP($A$3,'G4-MB'!$A$6:$AM$500,3,FALSE)>=B32,"100% ("&VLOOKUP($A$3,'G4-MB'!$A$6:$AM$500,3,FALSE)&")",(ROUND((VLOOKUP($A$3,'G4-MB'!$A$6:$AM$500,3,FALSE)/B32*100),0))&"% ("&IF(VLOOKUP($A$3,'G4-MB'!$A$6:$AM$500,3,FALSE)="",0,VLOOKUP($A$3,'G4-MB'!$A$6:$AM$500,3,FALSE))&")"))))),"NA") -> 93% (4817) | D32: =IFERROR((IF($C32="NA","NA",VLOOKUP($A$3,'G4-MB'!$A$6:$AM$500,4,FALSE))),"NA") -> 12.58700436 | E32: =IFERROR((IF($C32="NA","NA",ROUND(VLOOKUP($A$3,'G4-MB'!$A$6:$AM$500,6,FALSE),0)&"% ("&IF(VLOOKUP($A$3,'G4-MB'!$A$6:$AM$500,5,FALSE)="",0,VLOOKUP($A$3,'G4-MB'!$A$6:$AM$500,5,FALSE))&")")),"NA") -> 2% (75) | F32: =IFERROR((IF($C32="NA","NA",VLOOKUP($A$3,'G4-MB'!$A$6:$AM$500,7,FALSE))),"NA") -> 6.821984638 | G32: =IFERROR((IF($C32="NA","NA",ROUND(VLOOKUP($A$3,'G4-MB'!$A$6:$AM$500,9,FALSE),0)&"% ("&IF(VLOOKUP($A$3,'G4-MB'!$A$6:$AM$500,8,FALSE)="",0,VLOOKUP($A$3,'G4-MB'!$A$6:$AM$500,8,FALSE))&")")),"NA") -> 6% (313) | H32: =IFERROR((IF($C32="NA","NA",VLOOKUP($A$3,'G4-MB'!$A$6:$AM$500,10,FALSE))),"NA") -> 2.475939381 | I32: =IFERROR((IF($C32="NA","NA",ROUND(VLOOKUP($A$3,'G4-MB'!$A$6:$AM$500,12,FALSE),0)&"% ("&IF(VLOOKUP($A$3,'G4-MB'!$A$6:$AM$500,11,FALSE)="",0,VLOOKUP($A$3,'G4-MB'!$A$6:$AM$500,11,FALSE))&")")),"NA") -> 3% (160) | J32: =IFERROR((IF($C32="NA","NA",VLOOKUP($A$3,'G4-MB'!$A$6:$AM$500,13,FALSE))),"NA") -> 3.287606394 | K32: =IFERROR((IF($C32="NA","NA",ROUND(VLOOKUP($A$3,'G4-MB'!$A$6:$AM$500,15,FALSE),0)&"% ("&IF(VLOOKUP($A$3,'G4-MB'!$A$6:$AM$500,14,FALSE)="",0,VLOOKUP($A$3,'G4-MB'!$A$6:$AM$500,14,FALSE))&")")),"NA") -> 3% (126)
A33: Hispanic | B33: =IFERROR(VLOOKUP(TEXT($A$3,"0000"),MEM_H!$A$3:$O$501,8,FALSE),0) -> 17215 | C33: =IFERROR((IF(OR(B33<10,B33="",B33="NA"),"NA",((IF(VLOOKUP($A$3,'G4-MH'!$A$6:$AM$500,3,FALSE)>=B33,"100% ("&VLOOKUP($A$3,'G4-MH'!$A$6:$AM$500,3,FALSE)&")",(ROUND((VLOOKUP($A$3,'G4-MH'!$A$6:$AM$500,3,FALSE)/B33*100),0))&"% ("&IF(VLOOKUP($A$3,'G4-MH'!$A$6:$AM$500,3,FALSE)="",0,VLOOKUP($A$3,'G4-MH'!$A$6:$AM$500,3,FALSE))&")"))))),"NA") -> 95% (16297) | D33: =IFERROR((IF($C33="NA","NA",VLOOKUP($A$3,'G4-MH'!$A$6:$AM$500,4,FALSE))),"NA") -> 13.90392097 | E33: =IFERROR((IF($C33="NA","NA",ROUND(VLOOKUP($A$3,'G4-MH'!$A$6:$AM$500,6,FALSE),0)&"% ("&IF(VLOOKUP($A$3,'G4-MH'!$A$6:$AM$500,5,FALSE)="",0,VLOOKUP($A$3,'G4-MH'!$A$6:$AM$500,5,FALSE))&")")),"NA") -> 3% (535) | F33: =IFERROR((IF($C33="NA","NA",VLOOKUP($A$3,'G4-MH'!$A$6:$AM$500,7,FALSE))),"NA") -> 7.590212923 | G33: =IFERROR((IF($C33="NA","NA",ROUND(VLOOKUP($A$3,'G4-MH'!$A$6:$AM$500,9,FALSE),0)&"% ("&IF(VLOOKUP($A$3,'G4-MH'!$A$6:$AM$500,8,FALSE)="",0,VLOOKUP($A$3,'G4-MH'!$A$6:$AM$500,8,FALSE))&")")),"NA") -> 11% (1756) | H33: =IFERROR((IF($C33="NA","NA",VLOOKUP($A$3,'G4-MH'!$A$6:$AM$500,10,FALSE))),"NA") -> 2.519506658 | I33: =IFERROR((IF($C33="NA","NA",ROUND(VLOOKUP($A$3,'G4-MH'!$A$6:$AM$500,12,FALSE),0)&"% ("&IF(VLOOKUP($A$3,'G4-MH'!$A$6:$AM$500,11,FALSE)="",0,VLOOKUP($A$3,'G4-MH'!$A$6:$AM$500,11,FALSE))&")")),"NA") -> 4% (668) | J33: =IFERROR((IF($C33="NA","NA",VLOOKUP($A$3,'G4-MH'!$A$6:$AM$500,13,FALSE))),"NA") -> 3.804632754 | K33: =IFERROR((IF($C33="NA","NA",ROUND(VLOOKUP($A$3,'G4-MH'!$A$6:$AM$500,15,FALSE),0)&"% ("&IF(VLOOKUP($A$3,'G4-MH'!$A$6:$AM$500,14,FALSE)="",0,VLOOKUP($A$3,'G4-MH'!$A$6:$AM$500,14,FALSE))&")")),"NA") -> 6% (998)
A34: Asian | B34: =IFERROR(VLOOKUP(TEXT($A$3,"0000"),MEM_A!$A$3:$O$501,8,FALSE),0) -> 281 | C34: =IFERROR((IF(OR(B34<10,B34="",B34="NA"),"NA",((IF(VLOOKUP($A$3,'G4-MA'!$A$6:$AM$500,3,FALSE)>=B34,"100% ("&VLOOKUP($A$3,'G4-MA'!$A$6:$AM$500,3,FALSE)&")",(ROUND((VLOOKUP($A$3,'G4-MA'!$A$6:$AM$500,3,FALSE)/B34*100),0))&"% ("&IF(VLOOKUP($A$3,'G4-MA'!$A$6:$AM$500,3,FALSE)="",0,VLOOKUP($A$3,'G4-MA'!$A$6:$AM$500,3,FALSE))&")"))))),"NA") -> 91% (255) | D34: =IFERROR((IF($C34="NA","NA",VLOOKUP($A$3,'G4-MA'!$A$6:$AM$500,4,FALSE))),"NA") -> 17.81921569 | E34: =IFERROR((IF($C34="NA","NA",ROUND(VLOOKUP($A$3,'G4-MA'!$A$6:$AM$500,6,FALSE),0)&"% ("&IF(VLOOKUP($A$3,'G4-MA'!$A$6:$AM$500,5,FALSE)="",0,VLOOKUP($A$3,'G4-MA'!$A$6:$AM$500,5,FALSE))&")")),"NA") -> 16% (41) | F34: =IFERROR((IF($C34="NA","NA",VLOOKUP($A$3,'G4-MA'!$A$6:$AM$500,7,FALSE))),"NA") -> 9.711764706 | G34: =IFERROR((IF($C34="NA","NA",ROUND(VLOOKUP($A$3,'G4-MA'!$A$6:$AM$500,9,FALSE),0)&"% ("&IF(VLOOKUP($A$3,'G4-MA'!$A$6:$AM$500,8,FALSE)="",0,VLOOKUP($A$3,'G4-MA'!$A$6:$AM$500,8,FALSE))&")")),"NA") -> 33% (85) | H34: =IFERROR((IF($C34="NA","NA",VLOOKUP($A$3,'G4-MA'!$A$6:$AM$500,10,FALSE))),"NA") -> 3.635686275 | I34: =IFERROR((IF($C34="NA","NA",ROUND(VLOOKUP($A$3,'G4-MA'!$A$6:$AM$500,12,FALSE),0)&"% ("&IF(VLOOKUP($A$3,'G4-MA'!$A$6:$AM$500,11,FALSE)="",0,VLOOKUP($A$3,'G4-MA'!$A$6:$AM$500,11,FALSE))&")")),"NA") -> 19% (49) | J34: =IFERROR((IF($C34="NA","NA",VLOOKUP($A$3,'G4-MA'!$A$6:$AM$500,13,FALSE))),"NA") -> 4.471372549 | K34: =IFERROR((IF($C34="NA","NA",ROUND(VLOOKUP($A$3,'G4-MA'!$A$6:$AM$500,15,FALSE),0)&"% ("&IF(VLOOKUP($A$3,'G4-MA'!$A$6:$AM$500,14,FALSE)="",0,VLOOKUP($A$3,'G4-MA'!$A$6:$AM$500,14,FALSE))&")")),"NA") -> 16% (41)
A35: Am. Indian | B35: =IFERROR(VLOOKUP(TEXT($A$3,"0000"),MEM_I!$A$3:$O$501,8,FALSE),0) -> 11 | C35: =IFERROR((IF(OR(B35<10,B35="",B35="NA"),"NA",((IF(VLOOKUP($A$3,'G4-MI'!$A$6:$AM$500,3,FALSE)>=B35,"100% ("&VLOOKUP($A$3,'G4-MI'!$A$6:$AM$500,3,FALSE)&")",(ROUND((VLOOKUP($A$3,'G4-MI'!$A$6:$AM$500,3,FALSE)/B35*100),0))&"% ("&IF(VLOOKUP($A$3,'G4-MI'!$A$6:$AM$500,3,FALSE)="",0,VLOOKUP($A$3,'G4-MI'!$A$6:$AM$500,3,FALSE))&")"))))),"NA") -> 100% (11) | D35: =IFERROR((IF($C35="NA","NA",VLOOKUP($A$3,'G4-MI'!$A$6:$AM$500,4,FALSE))),"NA") -> 13.54545455 | E35: =IFERROR((IF($C35="NA","NA",ROUND(VLOOKUP($A$3,'G4-MI'!$A$6:$AM$500,6,FALSE),0)&"% ("&IF(VLOOKUP($A$3,'G4-MI'!$A$6:$AM$500,5,FALSE)="",0,VLOOKUP($A$3,'G4-MI'!$A$6:$AM$500,5,FALSE))&")")),"NA") -> 0% (0) | F35: =IFERROR((IF($C35="NA","NA",VLOOKUP($A$3,'G4-MI'!$A$6:$AM$500,7,FALSE))),"NA") -> 8 | G35: =IFERROR((IF($C35="NA","NA",ROUND(VLOOKUP($A$3,'G4-MI'!$A$6:$AM$500,9,FALSE),0)&"% ("&IF(VLOOKUP($A$3,'G4-MI'!$A$6:$AM$500,8,FALSE)="",0,VLOOKUP($A$3,'G4-MI'!$A$6:$AM$500,8,FALSE))&")")),"NA") -> 18% (2) | H35: =IFERROR((IF($C35="NA","NA",VLOOKUP($A$3,'G4-MI'!$A$6:$AM$500,10,FALSE))),"NA") -> 2.454545455 | I35: =IFERROR((IF($C35="NA","NA",ROUND(VLOOKUP($A$3,'G4-MI'!$A$6:$AM$500,12,FALSE),0)&"% ("&IF(VLOOKUP($A$3,'G4-MI'!$A$6:$AM$500,11,FALSE)="",0,VLOOKUP($A$3,'G4-MI'!$A$6:$AM$500,11,FALSE))&")")),"NA") -> 0% (0) | J35: =IFERROR((IF($C35="NA","NA",VLOOKUP($A$3,'G4-MI'!$A$6:$AM$500,13,FALSE))),"NA") -> 3.090909091 | K35: =IFERROR((IF($C35="NA","NA",ROUND(VLOOKUP($A$3,'G4-MI'!$A$6:$AM$500,15,FALSE),0)&"% ("&IF(VLOOKUP($A$3,'G4-MI'!$A$6:$AM$500,14,FALSE)="",0,VLOOKUP($A$3,'G4-MI'!$A$6:$AM$500,14,FALSE))&")")),"NA") -> 0% (0)
A36: ED | B36: =IFERROR(VLOOKUP(TEXT($A$3,"0000"),MEM_ED!$A$3:$O$501,8,FALSE),0) -> 19032 | C36: =IFERROR((IF(OR(B36<10,B36="",B36="NA"),"NA",((IF(VLOOKUP($A$3,'G4-MED'!$A$6:$AM$500,3,FALSE)>=B36,"100% ("&VLOOKUP($A$3,'G4-MED'!$A$6:$AM$500,3,FALSE)&")",(ROUND((VLOOKUP($A$3,'G4-MED'!$A$6:$AM$500,3,FALSE)/B36*100),0))&"% ("&IF(VLOOKUP($A$3,'G4-MED'!$A$6:$AM$500,3,FALSE)="",0,VLOOKUP($A$3,'G4-MED'!$A$6:$AM$500,3,FALSE))&")"))))),"NA") -> 96% (18266) | D36: =IFERROR((IF($C36="NA","NA",VLOOKUP($A$3,'G4-MED'!$A$6:$AM$500,4,FALSE))),"NA") -> 13.25144531 | E36: =IFERROR((IF($C36="NA","NA",ROUND(VLOOKUP($A$3,'G4-MED'!$A$6:$AM$500,6,FALSE),0)&"% ("&IF(VLOOKUP($A$3,'G4-MED'!$A$6:$AM$500,5,FALSE)="",0,VLOOKUP($A$3,'G4-MED'!$A$6:$AM$500,5,FALSE))&")")),"NA") -> 2% (432) | F36: =IFERROR((IF($C36="NA","NA",VLOOKUP($A$3,'G4-MED'!$A$6:$AM$500,7,FALSE))),"NA") -> 7.210100734 | G36: =IFERROR((IF($C36="NA","NA",ROUND(VLOOKUP($A$3,'G4-MED'!$A$6:$AM$500,9,FALSE),0)&"% ("&IF(VLOOKUP($A$3,'G4-MED'!$A$6:$AM$500,8,FALSE)="",0,VLOOKUP($A$3,'G4-MED'!$A$6:$AM$500,8,FALSE))&")")),"NA") -> 8% (1512) | H36: =IFERROR((IF($C36="NA","NA",VLOOKUP($A$3,'G4-MED'!$A$6:$AM$500,10,FALSE))),"NA") -> 2.455655316 | I36: =IFERROR((IF($C36="NA","NA",ROUND(VLOOKUP($A$3,'G4-MED'!$A$6:$AM$500,12,FALSE),0)&"% ("&IF(VLOOKUP($A$3,'G4-MED'!$A$6:$AM$500,11,FALSE)="",0,VLOOKUP($A$3,'G4-MED'!$A$6:$AM$500,11,FALSE))&")")),"NA") -> 3% (610) | J36: =IFERROR((IF($C36="NA","NA",VLOOKUP($A$3,'G4-MED'!$A$6:$AM$500,13,FALSE))),"NA") -> 3.593129311 | K36: =IFERROR((IF($C36="NA","NA",ROUND(VLOOKUP($A$3,'G4-MED'!$A$6:$AM$500,15,FALSE),0)&"% ("&IF(VLOOKUP($A$3,'G4-MED'!$A$6:$AM$500,14,FALSE)="",0,VLOOKUP($A$3,'G4-MED'!$A$6:$AM$500,14,FALSE))&")")),"NA") -> 5% (841)
A37: ELL | B37: =IFERROR(VLOOKUP(TEXT($A$3,"0000"),MEM_ELL!$A$3:$O$501,8,FALSE),0) -> 9844 | C37: =IFERROR((IF(OR(B37<10,B37="",B37="NA"),"NA",((IF(VLOOKUP($A$3,'G4-MELL'!$A$6:$AM$500,3,FALSE)>=B37,"100% ("&VLOOKUP($A$3,'G4-MELL'!$A$6:$AM$500,3,FALSE)&")",(ROUND((VLOOKUP($A$3,'G4-MELL'!$A$6:$AM$500,3,FALSE)/B37*100),0))&"% ("&IF(VLOOKUP($A$3,'G4-MELL'!$A$6:$AM$500,3,FALSE)="",0,VLOOKUP($A$3,'G4-MELL'!$A$6:$AM$500,3,FALSE))&")"))))),"NA") -> 95% (9341) | D37: =IFERROR((IF($C37="NA","NA",VLOOKUP($A$3,'G4-MELL'!$A$6:$AM$500,4,FALSE))),"NA") -> 12.64479178 | E37: =IFERROR((IF($C37="NA","NA",ROUND(VLOOKUP($A$3,'G4-MELL'!$A$6:$AM$500,6,FALSE),0)&"% ("&IF(VLOOKUP($A$3,'G4-MELL'!$A$6:$AM$500,5,FALSE)="",0,VLOOKUP($A$3,'G4-MELL'!$A$6:$AM$500,5,FALSE))&")")),"NA") -> 1% (111) | F37: =IFERROR((IF($C37="NA","NA",VLOOKUP($A$3,'G4-MELL'!$A$6:$AM$500,7,FALSE))),"NA") -> 6.823038219 | G37: =IFERROR((IF($C37="NA","NA",ROUND(VLOOKUP($A$3,'G4-MELL'!$A$6:$AM$500,9,FALSE),0)&"% ("&IF(VLOOKUP($A$3,'G4-MELL'!$A$6:$AM$500,8,FALSE)="",0,VLOOKUP($A$3,'G4-MELL'!$A$6:$AM$500,8,FALSE))&")")),"NA") -> 6% (541) | H37: =IFERROR((IF($C37="NA","NA",VLOOKUP($A$3,'G4-MELL'!$A$6:$AM$500,10,FALSE))),"NA") -> 2.299111444 | I37: =IFERROR((IF($C37="NA","NA",ROUND(VLOOKUP($A$3,'G4-MELL'!$A$6:$AM$500,12,FALSE),0)&"% ("&IF(VLOOKUP($A$3,'G4-MELL'!$A$6:$AM$500,11,FALSE)="",0,VLOOKUP($A$3,'G4-MELL'!$A$6:$AM$500,11,FALSE))&")")),"NA") -> 2% (177) | J37: =IFERROR((IF($C37="NA","NA",VLOOKUP($A$3,'G4-MELL'!$A$6:$AM$500,13,FALSE))),"NA") -> 3.522642115 | K37: =IFERROR((IF($C37="NA","NA",ROUND(VLOOKUP($A$3,'G4-MELL'!$A$6:$AM$500,15,FALSE),0)&"% ("&IF(VLOOKUP($A$3,'G4-MELL'!$A$6:$AM$500,14,FALSE)="",0,VLOOKUP($A$3,'G4-MELL'!$A$6:$AM$500,14,FALSE))&")")),"NA") -> 4% (356)
A38: SWD | B38: =IFERROR(VLOOKUP(TEXT($A$3,"0000"),MEM_SWD!$A$3:$O$501,8,FALSE),0) -> 2122 | C38: =IFERROR((IF(OR(B38<10,B38="",B38="NA"),"NA",((IF(VLOOKUP($A$3,'G4-MSWD'!$A$6:$AM$500,3,FALSE)>=B38,"100% ("&VLOOKUP($A$3,'G4-MSWD'!$A$6:$AM$500,3,FALSE)&")",(ROUND((VLOOKUP($A$3,'G4-MSWD'!$A$6:$AM$500,3,FALSE)/B38*100),0))&"% ("&IF(VLOOKUP($A$3,'G4-MSWD'!$A$6:$AM$500,3,FALSE)="",0,VLOOKUP($A$3,'G4-MSWD'!$A$6:$AM$500,3,FALSE))&")"))))),"NA") -> 92% (1960) | D38: =IFERROR((IF($C38="NA","NA",VLOOKUP($A$3,'G4-MSWD'!$A$6:$AM$500,4,FALSE))),"NA") -> 11.07418367 | E38: =IFERROR((IF($C38="NA","NA",ROUND(VLOOKUP($A$3,'G4-MSWD'!$A$6:$AM$500,6,FALSE),0)&"% ("&IF(VLOOKUP($A$3,'G4-MSWD'!$A$6:$AM$500,5,FALSE)="",0,VLOOKUP($A$3,'G4-MSWD'!$A$6:$AM$500,5,FALSE))&")")),"NA") -> 1% (17) | F38: =IFERROR((IF($C38="NA","NA",VLOOKUP($A$3,'G4-MSWD'!$A$6:$AM$500,7,FALSE))),"NA") -> 5.733571429 | G38: =IFERROR((IF($C38="NA","NA",ROUND(VLOOKUP($A$3,'G4-MSWD'!$A$6:$AM$500,9,FALSE),0)&"% ("&IF(VLOOKUP($A$3,'G4-MSWD'!$A$6:$AM$500,8,FALSE)="",0,VLOOKUP($A$3,'G4-MSWD'!$A$6:$AM$500,8,FALSE))&")")),"NA") -> 3% (58) | H38: =IFERROR((IF($C38="NA","NA",VLOOKUP($A$3,'G4-MSWD'!$A$6:$AM$500,10,FALSE))),"NA") -> 2.179030612 | I38: =IFERROR((IF($C38="NA","NA",ROUND(VLOOKUP($A$3,'G4-MSWD'!$A$6:$AM$500,12,FALSE),0)&"% ("&IF(VLOOKUP($A$3,'G4-MSWD'!$A$6:$AM$500,11,FALSE)="",0,VLOOKUP($A$3,'G4-MSWD'!$A$6:$AM$500,11,FALSE))&")")),"NA") -> 2% (35) | J38: =IFERROR((IF($C38="NA","NA",VLOOKUP($A$3,'G4-MSWD'!$A$6:$AM$500,13,FALSE))),"NA") -> 3.172755102 | K38: =IFERROR((IF($C38="NA","NA",ROUND(VLOOKUP($A$3,'G4-MSWD'!$A$6:$AM$500,15,FALSE),0)&"% ("&IF(VLOOKUP($A$3,'G4-MSWD'!$A$6:$AM$500,14,FALSE)="",0,VLOOKUP($A$3,'G4-MSWD'!$A$6:$AM$500,14,FALSE))&")")),"NA") -> 2% (38)
A39: District Writing Pre-Test, Grade 4 | P39: Writing Grade 4
A40: Level of Proficiency at 4 or above | B40: Total # of Students | C40: % of Students Tested (Max. of the two prompts) | D40: Combined Prompts (Weighted Values) | H40: Expository | J40: Narrative | P40: =H40 -> Expository | Q40: =J40 -> Narrative
D41: Average Score | E41: % at 3.0 | F41: % at or above 4.0 | H41: Average Score | I41: % Proficient | J41: Average Score | K41: % Proficient | P41: Number Tested | Q41: Number Tested
A42: All students | B42: =IFERROR(VLOOKUP(TEXT($A$3,"0000"),Mem_All!$A$2:$O$500,8,FALSE),0) -> 24928 | C42: =IF(OR(B42<10,B42="",B42="NA"),"NA",IF(VLOOKUP($A$3,'G4-WALL'!$A$6:$Z$500,3,FALSE)>B42,"100% ("&VLOOKUP($A$3,'G4-WALL'!$A$6:$Z$500,3,FALSE)&")",ROUND(VLOOKUP($A$3,'G4-WALL'!$A$6:$Z$500,3,FALSE)/B42*100,0)&"%("&VLOOKUP($A$3,'G4-WALL'!$A$6:$Z$500,3,FALSE)&")")) -> 80%(19989) | D42: =IFERROR((IF($C42="NA","NA",VLOOKUP($A$3,'G4-WALL'!$A$6:$Z$500,4,FALSE))),"NA") -> 1.432072598 | E42: =IF($D42="NA","NA",ROUND(VLOOKUP($A$3,'G4-WALL'!$A$6:$Z$500,6,FALSE),0)&"% ("&VLOOKUP($A$3,'G4-WALL'!$A$6:$Z$500,5,FALSE)&")") -> 12% (2348) | F42: =IF($D42="NA","NA",ROUND(VLOOKUP($A$3,'G4-WALL'!$A$6:$Z$500,8,FALSE),0)&"% ("&VLOOKUP($A$3,'G4-WALL'!$A$6:$Z$500,7,FALSE)&")") -> 2% (348) | H42: =IFERROR(IF(VLOOKUP($A$3,'G4-WALL'!$A$6:$Z$500,9,FALSE)=0,"NA",VLOOKUP($A$3,'G4-WALL'!$A$6:$Z$500,10,FALSE)),"NA") -> 1.397988797 | I42: =IFERROR(IF(H42="NA","NA",VLOOKUP($A$3,'G4-WALL'!$A$6:$Z$500,15,FALSE)&"% ("&VLOOKUP($A$3,'G4-WALL'!$A$6:$Z$500,13,FALSE)&")"),"") -> 1% (211) | J42: =IFERROR(IF(VLOOKUP($A$3,'G4-WALL'!$A$6:$Z$500,17,FALSE)=0,"NA",VLOOKUP($A$3,'G4-WALL'!$A$6:$Z$500,18,FALSE)),"NA") -> 1.464035219 | K42: =IFERROR(IF(J42="NA","NA",VLOOKUP($A$3,'G4-WALL'!$A$6:$Z$500,23,FALSE)&"% ("&VLOOKUP($A$3,'G4-WALL'!$A$6:$Z$500,21,FALSE)&")"),"") -> 2% (464) | P42: =IFERROR(IF(VLOOKUP($A$3,'G4-WALL'!$A$6:$Z$500,9,FALSE)="","0",VLOOKUP($A$3,'G4-WALL'!$A$6:$Z$500,9,FALSE)),"Not Test") -> 18745 | Q42: =IFERROR(IF(VLOOKUP($A$3,'G4-WALL'!$A$6:$Z$500,17,FALSE)="","0",VLOOKUP($A$3,'G4-WALL'!$A$6:$Z$500,17,FALSE)),"Not Test") -> 19989
A43: White | B43: =IFERROR(VLOOKUP(TEXT($A$3,"0000"),MEM_W!$A$2:$O$500,8,FALSE),0) -> 1978 | C43: =IF(OR(B43<10,B43="",B43="NA"),"NA",IF(VLOOKUP($A$3,'G4-WW'!$A$6:$Z$500,3,FALSE)>B43,"100% ("&VLOOKUP($A$3,'G4-WW'!$A$6:$Z$500,3,FALSE)&")",ROUND(VLOOKUP($A$3,'G4-WW'!$A$6:$Z$500,3,FALSE)/B43*100,0)&"%("&VLOOKUP($A$3,'G4-WW'!$A$6:$Z$500,3,FALSE)&")")) -> 70%(1391) | D43: =IFERROR((IF($C43="NA","NA",VLOOKUP($A$3,'G4-WW'!$A$6:$Z$500,4,FALSE))),"NA") -> 1.61899964 | E43: =IF($D43="NA","NA",ROUND(VLOOKUP($A$3,'G4-WW'!$A$6:$Z$500,6,FALSE),0)&"% ("&VLOOKUP($A$3,'G4-WW'!$A$6:$Z$500,5,FALSE)&")") -> 15% (213) | F43: =IF($D43="NA","NA",ROUND(VLOOKUP($A$3,'G4-WW'!$A$6:$Z$500,8,FALSE),0)&"% ("&VLOOKUP($A$3,'G4-WW'!$A$6:$Z$500,7,FALSE)&")") -> 4% (52) | H43: =IFERROR(IF(VLOOKUP($A$3,'G4-WW'!$A$6:$Z$500,9,FALSE)=0,"NA",VLOOKUP($A$3,'G4-WW'!$A$6:$Z$500,10,FALSE)),"NA") -> 1.549388929 | I43: =IFERROR(IF(H43="NA","NA",VLOOKUP($A$3,'G4-WW'!$A$6:$Z$500,15,FALSE)&"% ("&VLOOKUP($A$3,'G4-WW'!$A$6:$Z$500,13,FALSE)&")"),"") -> 2% (28) | J43: =IFERROR(IF(VLOOKUP($A$3,'G4-WW'!$A$6:$Z$500,17,FALSE)=0,"NA",VLOOKUP($A$3,'G4-WW'!$A$6:$Z$500,18,FALSE)),"NA") -> 1.688760807 | K43: =IFERROR(IF(J43="NA","NA",VLOOKUP($A$3,'G4-WW'!$A$6:$Z$500,23,FALSE)&"% ("&VLOOKUP($A$3,'G4-WW'!$A$6:$Z$500,21,FALSE)&")"),"") -> 5% (76) | P43: =IFERROR(IF(VLOOKUP($A$3,'G4-WW'!$A$6:$Z$500,9,FALSE)="","0",VLOOKUP($A$3,'G4-WW'!$A$6:$Z$500,9,FALSE)),"Not Test") -> 1391 | Q43: =IFERROR(IF(VLOOKUP($A$3,'G4-WW'!$A$6:$Z$500,17,FALSE)="","0",VLOOKUP($A$3,'G4-WW'!$A$6:$Z$500,17,FALSE)),"Not Test") -> 1388
A44: Black | B44: =IFERROR(VLOOKUP(TEXT($A$3,"0000"),MEM_B!$A$2:$O$500,8,FALSE),0) -> 5166 | C44: =IF(OR(B44<10,B44="",B44="NA"),"NA",IF(VLOOKUP($A$3,'G4-WB'!$A$6:$Z$500,3,FALSE)>B44,"100% ("&VLOOKUP($A$3,'G4-WB'!$A$6:$Z$500,3,FALSE)&")",ROUND(VLOOKUP($A$3,'G4-WB'!$A$6:$Z$500,3,FALSE)/B44*100,0)&"%("&VLOOKUP($A$3,'G4-WB'!$A$6:$Z$500,3,FALSE)&")")) -> 83%(4280) | D44: =IFERROR((IF($C44="NA","NA",VLOOKUP($A$3,'G4-WB'!$A$6:$Z$500,4,FALSE))),"NA") -> 1.335385908 | E44: =IF($D44="NA","NA",ROUND(VLOOKUP($A$3,'G4-WB'!$A$6:$Z$500,6,FALSE),0)&"% ("&VLOOKUP($A$3,'G4-WB'!$A$6:$Z$500,5,FALSE)&")") -> 9% (404) | F44: =IF($D44="NA","NA",ROUND(VLOOKUP($A$3,'G4-WB'!$A$6:$Z$500,8,FALSE),0)&"% ("&VLOOKUP($A$3,'G4-WB'!$A$6:$Z$500,7,FALSE)&")") -> 1% (45) | H44: =IFERROR(IF(VLOOKUP($A$3,'G4-WB'!$A$6:$Z$500,9,FALSE)=0,"NA",VLOOKUP($A$3,'G4-WB'!$A$6:$Z$500,10,FALSE)),"NA") -> 1.312441373 | I44: =IFERROR(IF(H44="NA","NA",VLOOKUP($A$3,'G4-WB'!$A$6:$Z$500,15,FALSE)&"% ("&VLOOKUP($A$3,'G4-WB'!$A$6:$Z$500,13,FALSE)&")"),"") -> 1% (31) | J44: =IFERROR(IF(VLOOKUP($A$3,'G4-WB'!$A$6:$Z$500,17,FALSE)=0,"NA",VLOOKUP($A$3,'G4-WB'!$A$6:$Z$500,18,FALSE)),"NA") -> 1.357102804 | K44: =IFERROR(IF(J44="NA","NA",VLOOKUP($A$3,'G4-WB'!$A$6:$Z$500,23,FALSE)&"% ("&VLOOKUP($A$3,'G4-WB'!$A$6:$Z$500,21,FALSE)&")"),"") -> 1% (57) | P44: =IFERROR(IF(VLOOKUP($A$3,'G4-WB'!$A$6:$Z$500,9,FALSE)="","0",VLOOKUP($A$3,'G4-WB'!$A$6:$Z$500,9,FALSE)),"Not Test") -> 4051 | Q44: =IFERROR(IF(VLOOKUP($A$3,'G4-WB'!$A$6:$Z$500,17,FALSE)="","0",VLOOKUP($A$3,'G4-WB'!$A$6:$Z$500,17,FALSE)),"Not Test") -> 4280
A45: Hispanic | B45: =IFERROR(VLOOKUP(TEXT($A$3,"0000"),MEM_H!$A$2:$O$500,8,FALSE),0) -> 17215 | C45: =IF(OR(B45<10,B45="",B45="NA"),"NA",IF(VLOOKUP($A$3,'G4-WH'!$A$6:$Z$500,3,FALSE)>B45,"100% ("&VLOOKUP($A$3,'G4-WH'!$A$6:$Z$500,3,FALSE)&")",ROUND(VLOOKUP($A$3,'G4-WH'!$A$6:$Z$500,3,FALSE)/B45*100,0)&"%("&VLOOKUP($A$3,'G4-WH'!$A$6:$Z$500,3,FALSE)&")")) -> 80%(13857) | D45: =IFERROR((IF($C45="NA","NA",VLOOKUP($A$3,'G4-WH'!$A$6:$Z$500,4,FALSE))),"NA") -> 1.439201167 | E45: =IF($D45="NA","NA",ROUND(VLOOKUP($A$3,'G4-WH'!$A$6:$Z$500,6,FALSE),0)&"% ("&VLOOKUP($A$3,'G4-WH'!$A$6:$Z$500,5,FALSE)&")") -> 12% (1656) | F45: =IF($D45="NA","NA",ROUND(VLOOKUP($A$3,'G4-WH'!$A$6:$Z$500,8,FALSE),0)&"% ("&VLOOKUP($A$3,'G4-WH'!$A$6:$Z$500,7,FALSE)&")") -> 2% (233) | H45: =IFERROR(IF(VLOOKUP($A$3,'G4-WH'!$A$6:$Z$500,9,FALSE)=0,"NA",VLOOKUP($A$3,'G4-WH'!$A$6:$Z$500,10,FALSE)),"NA") -> 1.408220773 | I45: =IFERROR(IF(H45="NA","NA",VLOOKUP($A$3,'G4-WH'!$A$6:$Z$500,15,FALSE)&"% ("&VLOOKUP($A$3,'G4-WH'!$A$6:$Z$500,13,FALSE)&")"),"") -> 1% (142) | J45: =IFERROR(IF(VLOOKUP($A$3,'G4-WH'!$A$6:$Z$500,17,FALSE)=0,"NA",VLOOKUP($A$3,'G4-WH'!$A$6:$Z$500,18,FALSE)),"NA") -> 1.468001732 | K45: =IFERROR(IF(J45="NA","NA",VLOOKUP($A$3,'G4-WH'!$A$6:$Z$500,23,FALSE)&"% ("&VLOOKUP($A$3,'G4-WH'!$A$6:$Z$500,21,FALSE)&")"),"") -> 2% (308) | P45: =IFERROR(IF(VLOOKUP($A$3,'G4-WH'!$A$6:$Z$500,9,FALSE)="","0",VLOOKUP($A$3,'G4-WH'!$A$6:$Z$500,9,FALSE)),"Not Test") -> 12882 | Q45: =IFERROR(IF(VLOOKUP($A$3,'G4-WH'!$A$6:$Z$500,17,FALSE)="","0",VLOOKUP($A$3,'G4-WH'!$A$6:$Z$500,17,FALSE)),"Not Test") -> 13857
A46: Asian | B46: =IFERROR(VLOOKUP(TEXT($A$3,"0000"),MEM_A!$A$2:$O$500,8,FALSE),0) -> 281 | C46: =IF(OR(B46<10,B46="",B46="NA"),"NA",IF(VLOOKUP($A$3,'G4-WA'!$A$6:$Z$500,3,FALSE)>B46,"100% ("&VLOOKUP($A$3,'G4-WA'!$A$6:$Z$500,3,FALSE)&")",ROUND(VLOOKUP($A$3,'G4-WA'!$A$6:$Z$500,3,FALSE)/B46*100,0)&"%("&VLOOKUP($A$3,'G4-WA'!$A$6:$Z$500,3,FALSE)&")")) -> 79%(222) | D46: =IFERROR((IF($C46="NA","NA",VLOOKUP($A$3,'G4-WA'!$A$6:$Z$500,4,FALSE))),"NA") -> 1.838038278 | E46: =IF($D46="NA","NA",ROUND(VLOOKUP($A$3,'G4-WA'!$A$6:$Z$500,6,FALSE),0)&"% ("&VLOOKUP($A$3,'G4-WA'!$A$6:$Z$500,5,FALSE)&")") -> 21% (47) | F46: =IF($D46="NA","NA",ROUND(VLOOKUP($A$3,'G4-WA'!$A$6:$Z$500,8,FALSE),0)&"% ("&VLOOKUP($A$3,'G4-WA'!$A$6:$Z$500,7,FALSE)&")") -> 6% (13) | H46: =IFERROR(IF(VLOOKUP($A$3,'G4-WA'!$A$6:$Z$500,9,FALSE)=0,"NA",VLOOKUP($A$3,'G4-WA'!$A$6:$Z$500,10,FALSE)),"NA") -> 1.763265306 | I46: =IFERROR(IF(H46="NA","NA",VLOOKUP($A$3,'G4-WA'!$A$6:$Z$500,15,FALSE)&"% ("&VLOOKUP($A$3,'G4-WA'!$A$6:$Z$500,13,FALSE)&")"),"") -> 4% (7) | J46: =IFERROR(IF(VLOOKUP($A$3,'G4-WA'!$A$6:$Z$500,17,FALSE)=0,"NA",VLOOKUP($A$3,'G4-WA'!$A$6:$Z$500,18,FALSE)),"NA") -> 1.904054054 | K46: =IFERROR(IF(J46="NA","NA",VLOOKUP($A$3,'G4-WA'!$A$6:$Z$500,23,FALSE)&"% ("&VLOOKUP($A$3,'G4-WA'!$A$6:$Z$500,21,FALSE)&")"),"") -> 8% (18) | P46: =IFERROR(IF(VLOOKUP($A$3,'G4-WA'!$A$6:$Z$500,9,FALSE)="","0",VLOOKUP($A$3,'G4-WA'!$A$6:$Z$500,9,FALSE)),"Not Test") -> 196 | Q46: =IFERROR(IF(VLOOKUP($A$3,'G4-WA'!$A$6:$Z$500,17,FALSE)="","0",VLOOKUP($A$3,'G4-WA'!$A$6:$Z$500,17,FALSE)),"Not Test") -> 222
A47: Am. Indian | B47: =IFERROR(VLOOKUP(TEXT($A$3,"0000"),MEM_I!$A$2:$O$500,8,FALSE),0) -> 11 | C47: =IF(OR(B47<10,B47="",B47="NA"),"NA",IF(VLOOKUP($A$3,'G4-WI'!$A$6:$Z$500,3,FALSE)>B47,"100% ("&VLOOKUP($A$3,'G4-WI'!$A$6:$Z$500,3,FALSE)&")",ROUND(VLOOKUP($A$3,'G4-WI'!$A$6:$Z$500,3,FALSE)/B47*100,0)&"%("&VLOOKUP($A$3,'G4-WI'!$A$6:$Z$500,3,FALSE)&")")) -> 91%(10) | D47: =IFERROR((IF($C47="NA","NA",VLOOKUP($A$3,'G4-WI'!$A$6:$Z$500,4,FALSE))),"NA") -> 1.789473684 | E47: =IF($D47="NA","NA",ROUND(VLOOKUP($A$3,'G4-WI'!$A$6:$Z$500,6,FALSE),0)&"% ("&VLOOKUP($A$3,'G4-WI'!$A$6:$Z$500,5,FALSE)&")") -> 26% (3) | F47: =IF($D47="NA","NA",ROUND(VLOOKUP($A$3,'G4-WI'!$A$6:$Z$500,8,FALSE),0)&"% ("&VLOOKUP($A$3,'G4-WI'!$A$6:$Z$500,7,FALSE)&")") -> 0% (0) | H47: =IFERROR(IF(VLOOKUP($A$3,'G4-WI'!$A$6:$Z$500,9,FALSE)=0,"NA",VLOOKUP($A$3,'G4-WI'!$A$6:$Z$500,10,FALSE)),"NA") -> 1.666666667 | I47: =IFERROR(IF(H47="NA","NA",VLOOKUP($A$3,'G4-WI'!$A$6:$Z$500,15,FALSE)&"% ("&VLOOKUP($A$3,'G4-WI'!$A$6:$Z$500,13,FALSE)&")"),"") -> 0% (0) | J47: =IFERROR(IF(VLOOKUP($A$3,'G4-WI'!$A$6:$Z$500,17,FALSE)=0,"NA",VLOOKUP($A$3,'G4-WI'!$A$6:$Z$500,18,FALSE)),"NA") -> 1.9 | K47: =IFERROR(IF(J47="NA","NA",VLOOKUP($A$3,'G4-WI'!$A$6:$Z$500,23,FALSE)&"% ("&VLOOKUP($A$3,'G4-WI'!$A$6:$Z$500,21,FALSE)&")"),"") -> 0% (0) | P47: =IFERROR(IF(VLOOKUP($A$3,'G4-WI'!$A$6:$Z$500,9,FALSE)="","0",VLOOKUP($A$3,'G4-WI'!$A$6:$Z$500,9,FALSE)),"Not Test") -> 9 | Q47: =IFERROR(IF(VLOOKUP($A$3,'G4-WI'!$A$6:$Z$500,17,FALSE)="","0",VLOOKUP($A$3,'G4-WI'!$A$6:$Z$500,17,FALSE)),"Not Test") -> 10
A48: ED | B48: =IFERROR(VLOOKUP(TEXT($A$3,"0000"),MEM_ED!$A$2:$O$500,8,FALSE),0) -> 19032 | C48: =IF(OR(B48<10,B48="",B48="NA"),"NA",IF(VLOOKUP($A$3,'G4-WED'!$A$6:$Z$500,3,FALSE)>B48,"100% ("&VLOOKUP($A$3,'G4-WED'!$A$6:$Z$500,3,FALSE)&")",ROUND(VLOOKUP($A$3,'G4-WED'!$A$6:$Z$500,3,FALSE)/B48*100,0)&"%("&VLOOKUP($A$3,'G4-WED'!$A$6:$Z$500,3,FALSE)&")")) -> 84%(15960) | D48: =IFERROR((IF($C48="NA","NA",VLOOKUP($A$3,'G4-WED'!$A$6:$Z$500,4,FALSE))),"NA") -> 1.365003075 | E48: =IF($D48="NA","NA",ROUND(VLOOKUP($A$3,'G4-WED'!$A$6:$Z$500,6,FALSE),0)&"% ("&VLOOKUP($A$3,'G4-WED'!$A$6:$Z$500,5,FALSE)&")") -> 10% (1628) | F48: =IF($D48="NA","NA",ROUND(VLOOKUP($A$3,'G4-WED'!$A$6:$Z$500,8,FALSE),0)&"% ("&VLOOKUP($A$3,'G4-WED'!$A$6:$Z$500,7,FALSE)&")") -> 1% (205) | H48: =IFERROR(IF(VLOOKUP($A$3,'G4-WED'!$A$6:$Z$500,9,FALSE)=0,"NA",VLOOKUP($A$3,'G4-WED'!$A$6:$Z$500,10,FALSE)),"NA") -> 1.340490058 | I48: =IFERROR(IF(H48="NA","NA",VLOOKUP($A$3,'G4-WED'!$A$6:$Z$500,15,FALSE)&"% ("&VLOOKUP($A$3,'G4-WED'!$A$6:$Z$500,13,FALSE)&")"),"") -> 1% (127) | J48: =IFERROR(IF(VLOOKUP($A$3,'G4-WED'!$A$6:$Z$500,17,FALSE)=0,"NA",VLOOKUP($A$3,'G4-WED'!$A$6:$Z$500,18,FALSE)),"NA") -> 1.387944862 | K48: =IFERROR(IF(J48="NA","NA",VLOOKUP($A$3,'G4-WED'!$A$6:$Z$500,23,FALSE)&"% ("&VLOOKUP($A$3,'G4-WED'!$A$6:$Z$500,21,FALSE)&")"),"") -> 2% (270) | P48: =IFERROR(IF(VLOOKUP($A$3,'G4-WED'!$A$6:$Z$500,9,FALSE)="","0",VLOOKUP($A$3,'G4-WED'!$A$6:$Z$500,9,FALSE)),"Not Test") -> 14937 | Q48: =IFERROR(IF(VLOOKUP($A$3,'G4-WED'!$A$6:$Z$500,17,FALSE)="","0",VLOOKUP($A$3,'G4-WED'!$A$6:$Z$500,17,FALSE)),"Not Test") -> 15960
A49: ELL | B49: =IFERROR(VLOOKUP(TEXT($A$3,"0000"),MEM_ELL!$A$2:$O$500,8,FALSE),0) -> 9844 | C49: =IF(OR(B49<10,B49="",B49="NA"),"NA",IF(VLOOKUP($A$3,'G4-WELL'!$A$6:$Z$500,3,FALSE)>B49,"100% ("&VLOOKUP($A$3,'G4-WELL'!$A$6:$Z$500,3,FALSE)&")",ROUND(VLOOKUP($A$3,'G4-WELL'!$A$6:$Z$500,3,FALSE)/B49*100,0)&"%("&VLOOKUP($A$3,'G4-WELL'!$A$6:$Z$500,3,FALSE)&")")) -> 81%(8017) | D49: =IFERROR((IF($C49="NA","NA",VLOOKUP($A$3,'G4-WELL'!$A$6:$Z$500,4,FALSE))),"NA") -> 1.181237627 | E49: =IF($D49="NA","NA",ROUND(VLOOKUP($A$3,'G4-WELL'!$A$6:$Z$500,6,FALSE),0)&"% ("&VLOOKUP($A$3,'G4-WELL'!$A$6:$Z$500,5,FALSE)&")") -> 1% (52) | F49: =IF($D49="NA","NA",ROUND(VLOOKUP($A$3,'G4-WELL'!$A$6:$Z$500,8,FALSE),0)&"% ("&VLOOKUP($A$3,'G4-WELL'!$A$6:$Z$500,7,FALSE)&")") -> 1% (40) | H49: =IFERROR(IF(VLOOKUP($A$3,'G4-WELL'!$A$6:$Z$500,9,FALSE)=0,"NA",VLOOKUP($A$3,'G4-WELL'!$A$6:$Z$500,10,FALSE)),"NA") -> 1.219052604 | I49: =IFERROR(IF(H49="NA","NA",VLOOKUP($A$3,'G4-WELL'!$A$6:$Z$500,15,FALSE)&"% ("&VLOOKUP($A$3,'G4-WELL'!$A$6:$Z$500,13,FALSE)&")"),"") -> 0% (23) | J49: =IFERROR(IF(VLOOKUP($A$3,'G4-WELL'!$A$6:$Z$500,17,FALSE)=0,"NA",VLOOKUP($A$3,'G4-WELL'!$A$6:$Z$500,18,FALSE)),"NA") -> 1.145191468 | K49: =IFERROR(IF(J49="NA","NA",VLOOKUP($A$3,'G4-WELL'!$A$6:$Z$500,23,FALSE)&"% ("&VLOOKUP($A$3,'G4-WELL'!$A$6:$Z$500,21,FALSE)&")"),"") -> 1% (56) | P49: =IFERROR(IF(VLOOKUP($A$3,'G4-WELL'!$A$6:$Z$500,9,FALSE)="","0",VLOOKUP($A$3,'G4-WELL'!$A$6:$Z$500,9,FALSE)),"Not Test") -> 7642 | Q49: =IFERROR(IF(VLOOKUP($A$3,'G4-WELL'!$A$6:$Z$500,17,FALSE)="","0",VLOOKUP($A$3,'G4-WELL'!$A$6:$Z$500,17,FALSE)),"Not Test") -> 8017
A50: SWD | B50: =IFERROR(VLOOKUP(TEXT($A$3,"0000"),MEM_SWD!$A$2:$O$500,8,FALSE),0) -> 2122 | C50: =IF(OR(B50<10,B50="",B50="NA"),"NA",IF(VLOOKUP($A$3,'G4-WSWD'!$A$6:$Z$500,3,FALSE)>B50,"100% ("&VLOOKUP($A$3,'G4-WSWD'!$A$6:$Z$500,3,FALSE)&")",ROUND(VLOOKUP($A$3,'G4-WSWD'!$A$6:$Z$500,3,FALSE)/B50*100,0)&"%("&VLOOKUP($A$3,'G4-WSWD'!$A$6:$Z$500,3,FALSE)&")")) -> 72%(1530) | D50: =IFERROR((IF($C50="NA","NA",VLOOKUP($A$3,'G4-WSWD'!$A$6:$Z$500,4,FALSE))),"NA") -> 0.9323020625 | E50: =IF($D50="NA","NA",ROUND(VLOOKUP($A$3,'G4-WSWD'!$A$6:$Z$500,6,FALSE),0)&"% ("&VLOOKUP($A$3,'G4-WSWD'!$A$6:$Z$500,5,FALSE)&")") -> 3% (51) | F50: =IF($D50="NA","NA",ROUND(VLOOKUP($A$3,'G4-WSWD'!$A$6:$Z$500,8,FALSE),0)&"% ("&VLOOKUP($A$3,'G4-WSWD'!$A$6:$Z$500,7,FALSE)&")") -> 0% (6) | H50: =IFERROR(IF(VLOOKUP($A$3,'G4-WSWD'!$A$6:$Z$500,9,FALSE)=0,"NA",VLOOKUP($A$3,'G4-WSWD'!$A$6:$Z$500,10,FALSE)),"NA") -> 0.9518292683 | I50: =IFERROR(IF(H50="NA","NA",VLOOKUP($A$3,'G4-WSWD'!$A$6:$Z$500,15,FALSE)&"% ("&VLOOKUP($A$3,'G4-WSWD'!$A$6:$Z$500,13,FALSE)&")"),"") -> 0% (4) | J50: =IFERROR(IF(VLOOKUP($A$3,'G4-WSWD'!$A$6:$Z$500,17,FALSE)=0,"NA",VLOOKUP($A$3,'G4-WSWD'!$A$6:$Z$500,18,FALSE)),"NA") -> 0.9134640523 | K50: =IFERROR(IF(J50="NA","NA",VLOOKUP($A$3,'G4-WSWD'!$A$6:$Z$500,23,FALSE)&"% ("&VLOOKUP($A$3,'G4-WSWD'!$A$6:$Z$500,21,FALSE)&")"),"") -> 1% (8) | P50: =IFERROR(IF(VLOOKUP($A$3,'G4-WSWD'!$A$6:$Z$500,9,FALSE)="","0",VLOOKUP($A$3,'G4-WSWD'!$A$6:$Z$500,9,FALSE)),"Not Test") -> 1476 | Q50: =IFERROR(IF(VLOOKUP($A$3,'G4-WSWD'!$A$6:$Z$500,17,FALSE)="","0",VLOOKUP($A$3,'G4-WSWD'!$A$6:$Z$500,17,FALSE)),"Not Test") -> 1530

Sheet Grade 5 Report
A2: Click here to return to the school and sheet selection interface
A3: =VALUE('Select School'!B3) -> 9999
A4: =TEXT(A3,"0000")&"-"&VLOOKUP(A3,SchList!$A$2:$B$504,2,FALSE) -> 9999-District
A5: Reading - Grade 5
A6: Level of Proficiency at 70% or above | B6: Total # of Students | C6: % of Students Tested | D6: ='G3-5 Matrix'!C2&" ["&'G3-5 Matrix'!C7&"]" -> Overall [43] | F6: ='G3-5 Matrix'!D2&" ["&'G3-5 Matrix'!D7&"]" -> Vocabulary [7] | H6: ='G3-5 Matrix'!E2&" ["&'G3-5 Matrix'!E7&"]" -> Reading Application [23] | J6: ='G3-5 Matrix'!F2&" ["&'G3-5 Matrix'!F7&"]" -> Literary Analysis Fiction/Nonfiction [8] | L6: ='G3-5 Matrix'!G2&" ["&'G3-5 Matrix'!G7&"]" -> Informational Text/ Research Process [5]
D7: Average Score | E7: % Proficient | F7: Average Score | G7: % Proficient | H7: Average Score | I7: % Proficient | J7: Average Score | K7: % Proficient | L7: Average Score | M7: % Proficient
A8: All students | B8: =IFERROR(VLOOKUP(TEXT($A$3,"0000"),Mem_All!$A$3:$O$501,9,FALSE),0) -> 25542 | C8: =IFERROR((IF(OR(B8<10,B8="",B8="NA"),"NA",((IF(VLOOKUP($A$3,'G5-RALL'!$A$6:$AM$500,3,FALSE)>=B8,"100% ("&VLOOKUP($A$3,'G5-RALL'!$A$6:$AM$500,3,FALSE)&")",(ROUND((VLOOKUP($A$3,'G5-RALL'!$A$6:$AM$500,3,FALSE)/B8*100),0))&"% ("&IF(VLOOKUP($A$3,'G5-RALL'!$A$6:$AM$500,3,FALSE)="",0,VLOOKUP($A$3,'G5-RALL'!$A$6:$AM$500,3,FALSE))&")"))))),"0% (0)") -> 95% (24193) | D8: =IFERROR((IF($C8="NA","NA",VLOOKUP($A$3,'G5-RALL'!$A$6:$AM$500,4,FALSE))),"NA") -> 26.36409705 | E8: =IFERROR((IF($C8="NA","NA",ROUND(VLOOKUP($A$3,'G5-RALL'!$A$6:$AM$500,6,FALSE),0)&"% ("&IF(VLOOKUP($A$3,'G5-RALL'!$A$6:$AM$500,5,FALSE)="",0,VLOOKUP($A$3,'G5-RALL'!$A$6:$AM$500,5,FALSE))&")")),"NA") -> 42% (10149) | F8: =IFERROR((IF($C8="NA","NA",VLOOKUP($A$3,'G5-RALL'!$A$6:$AM$500,7,FALSE))),"NA") -> 4.543644856 | G8: =IFERROR((IF($C8="NA","NA",ROUND(VLOOKUP($A$3,'G5-RALL'!$A$6:$AM$500,9,FALSE),0)&"% ("&IF(VLOOKUP($A$3,'G5-RALL'!$A$6:$AM$500,8,FALSE)="",0,VLOOKUP($A$3,'G5-RALL'!$A$6:$AM$500,8,FALSE))&")")),"NA") -> 56% (13457) | H8: =IFERROR((IF($C8="NA","NA",VLOOKUP($A$3,'G5-RALL'!$A$6:$AM$500,10,FALSE))),"NA") -> 14.34232216 | I8: =IFERROR((IF($C8="NA","NA",ROUND(VLOOKUP($A$3,'G5-RALL'!$A$6:$AM$500,12,FALSE),0)&"% ("&IF(VLOOKUP($A$3,'G5-RALL'!$A$6:$AM$500,11,FALSE)="",0,VLOOKUP($A$3,'G5-RALL'!$A$6:$AM$500,11,FALSE))&")")),"NA") -> 40% (9580) | J8: =IFERROR((IF($C8="NA","NA",VLOOKUP($A$3,'G5-RALL'!$A$6:$AM$500,13,FALSE))),"NA") -> 4.524626958 | K8: =IFERROR((IF($C8="NA","NA",ROUND(VLOOKUP($A$3,'G5-RALL'!$A$6:$AM$500,15,FALSE),0)&"% ("&IF(VLOOKUP($A$3,'G5-RALL'!$A$6:$AM$500,14,FALSE)="",0,VLOOKUP($A$3,'G5-RALL'!$A$6:$AM$500,14,FALSE))&")")),"NA") -> 35% (8361) | L8: =IFERROR((IF($C8="NA","NA",VLOOKUP($A$3,'G5-RALL'!$A$6:$AM$500,16,FALSE))),"NA") -> 2.961740999 | M8: =IFERROR((IF($C8="NA","NA",ROUND(VLOOKUP($A$3,'G5-RALL'!$A$6:$AM$500,18,FALSE),0)&"% ("&IF(VLOOKUP($A$3,'G5-RALL'!$A$6:$AM$500,17,FALSE)="",0,VLOOKUP($A$3,'G5-RALL'!$A$6:$AM$500,17,FALSE))&")")),"NA") -> 39% (9395)
A9: FCAT Level 1 | B9: =IFERROR(VLOOKUP(TEXT($A$3,"0000"),MEM_RL1!$A$3:$O$501,6,FALSE),0) -> 3933 | C9: =IFERROR((IF(OR(B9<10,B9="",B9="NA"),"NA",((IF(VLOOKUP($A$3,'G5-RL1'!$A$6:$AM$500,3,FALSE)>=B9,"100% ("&VLOOKUP($A$3,'G5-RL1'!$A$6:$AM$500,3,FALSE)&")",(ROUND((VLOOKUP($A$3,'G5-RL1'!$A$6:$AM$500,3,FALSE)/B9*100),0))&"% ("&IF(VLOOKUP($A$3,'G5-RL1'!$A$6:$AM$500,3,FALSE)="",0,VLOOKUP($A$3,'G5-RL1'!$A$6:$AM$500,3,FALSE))&")"))))),"0% (0)") -> 96% (3778) | D9: =IFERROR((IF($C9="NA","NA",VLOOKUP($A$3,'G5-RL1'!$A$6:$AM$500,4,FALSE))),"NA") -> 15.43242456 | E9: =IFERROR((IF($C9="NA","NA",ROUND(VLOOKUP($A$3,'G5-RL1'!$A$6:$AM$500,6,FALSE),0)&"% ("&IF(VLOOKUP($A$3,'G5-RL1'!$A$6:$AM$500,5,FALSE)="",0,VLOOKUP($A$3,'G5-RL1'!$A$6:$AM$500,5,FALSE))&")")),"NA") -> 1% (32) | F9: =IFERROR((IF($C9="NA","NA",VLOOKUP($A$3,'G5-RL1'!$A$6:$AM$500,7,FALSE))),"NA") -> 2.828321863 | G9: =IFERROR((IF($C9="NA","NA",ROUND(VLOOKUP($A$3,'G5-RL1'!$A$6:$AM$500,9,FALSE),0)&"% ("&IF(VLOOKUP($A$3,'G5-RL1'!$A$6:$AM$500,8,FALSE)="",0,VLOOKUP($A$3,'G5-RL1'!$A$6:$AM$500,8,FALSE))&")")),"NA") -> 14% (530) | H9: =IFERROR((IF($C9="NA","NA",VLOOKUP($A$3,'G5-RL1'!$A$6:$AM$500,10,FALSE))),"NA") -> 8.156908417 | I9: =IFERROR((IF($C9="NA","NA",ROUND(VLOOKUP($A$3,'G5-RL1'!$A$6:$AM$500,12,FALSE),0)&"% ("&IF(VLOOKUP($A$3,'G5-RL1'!$A$6:$AM$500,11,FALSE)="",0,VLOOKUP($A$3,'G5-RL1'!$A$6:$AM$500,11,FALSE))&")")),"NA") -> 1% (33) | J9: =IFERROR((IF($C9="NA","NA",VLOOKUP($A$3,'G5-RL1'!$A$6:$AM$500,13,FALSE))),"NA") -> 2.623451562 | K9: =IFERROR((IF($C9="NA","NA",ROUND(VLOOKUP($A$3,'G5-RL1'!$A$6:$AM$500,15,FALSE),0)&"% ("&IF(VLOOKUP($A$3,'G5-RL1'!$A$6:$AM$500,14,FALSE)="",0,VLOOKUP($A$3,'G5-RL1'!$A$6:$AM$500,14,FALSE))&")")),"NA") -> 3% (105) | L9: =IFERROR((IF($C9="NA","NA",VLOOKUP($A$3,'G5-RL1'!$A$6:$AM$500,16,FALSE))),"NA") -> 1.834250926 | M9: =IFERROR((IF($C9="NA","NA",ROUND(VLOOKUP($A$3,'G5-RL1'!$A$6:$AM$500,18,FALSE),0)&"% ("&IF(VLOOKUP($A$3,'G5-RL1'!$A$6:$AM$500,17,FALSE)="",0,VLOOKUP($A$3,'G5-RL1'!$A$6:$AM$500,17,FALSE))&")")),"NA") -> 8% (316)
A10: FCAT Level 2 | B10: =IFERROR(VLOOKUP(TEXT($A$3,"0000"),MEM_RL2!$A$3:$O$501,6,FALSE),0) -> 5982 | C10: =IFERROR((IF(OR(B10<10,B10="",B10="NA"),"NA",((IF(VLOOKUP($A$3,'G5-RL2'!$A$6:$AM$500,3,FALSE)>=B10,"100% ("&VLOOKUP($A$3,'G5-RL2'!$A$6:$AM$500,3,FALSE)&")",(ROUND((VLOOKUP($A$3,'G5-RL2'!$A$6:$AM$500,3,FALSE)/B10*100),0))&"% ("&IF(VLOOKUP($A$3,'G5-RL2'!$A$6:$AM$500,3,FALSE)="",0,VLOOKUP($A$3,'G5-RL2'!$A$6:$AM$500,3,FALSE))&")"))))),"0% (0)") -> 93% (5581) | D10: =IFERROR((IF($C10="NA","NA",VLOOKUP($A$3,'G5-RL2'!$A$6:$AM$500,4,FALSE))),"NA") -> 22.06681598 | E10: =IFERROR((IF($C10="NA","NA",ROUND(VLOOKUP($A$3,'G5-RL2'!$A$6:$AM$500,6,FALSE),0)&"% ("&IF(VLOOKUP($A$3,'G5-RL2'!$A$6:$AM$500,5,FALSE)="",0,VLOOKUP($A$3,'G5-RL2'!$A$6:$AM$500,5,FALSE))&")")),"NA") -> 10% (570) | F10: =IFERROR((IF($C10="NA","NA",VLOOKUP($A$3,'G5-RL2'!$A$6:$AM$500,7,FALSE))),"NA") -> 3.999050349 | G10: =IFERROR((IF($C10="NA","NA",ROUND(VLOOKUP($A$3,'G5-RL2'!$A$6:$AM$500,9,FALSE),0)&"% ("&IF(VLOOKUP($A$3,'G5-RL2'!$A$6:$AM$500,8,FALSE)="",0,VLOOKUP($A$3,'G5-RL2'!$A$6:$AM$500,8,FALSE))&")")),"NA") -> 37% (2057) | H10: =IFERROR((IF($C10="NA","NA",VLOOKUP($A$3,'G5-RL2'!$A$6:$AM$500,10,FALSE))),"NA") -> 11.9263752 | I10: =IFERROR((IF($C10="NA","NA",ROUND(VLOOKUP($A$3,'G5-RL2'!$A$6:$AM$500,12,FALSE),0)&"% ("&IF(VLOOKUP($A$3,'G5-RL2'!$A$6:$AM$500,11,FALSE)="",0,VLOOKUP($A$3,'G5-RL2'!$A$6:$AM$500,11,FALSE))&")")),"NA") -> 10% (565) | J10: =IFERROR((IF($C10="NA","NA",VLOOKUP($A$3,'G5-RL2'!$A$6:$AM$500,13,FALSE))),"NA") -> 3.702920624 | K10: =IFERROR((IF($C10="NA","NA",ROUND(VLOOKUP($A$3,'G5-RL2'!$A$6:$AM$500,15,FALSE),0)&"% ("&IF(VLOOKUP($A$3,'G5-RL2'!$A$6:$AM$500,14,FALSE)="",0,VLOOKUP($A$3,'G5-RL2'!$A$6:$AM$500,14,FALSE))&")")),"NA") -> 13% (699) | L10: =IFERROR((IF($C10="NA","NA",VLOOKUP($A$3,'G5-RL2'!$A$6:$AM$500,16,FALSE))),"NA") -> 2.446801648 | M10: =IFERROR((IF($C10="NA","NA",ROUND(VLOOKUP($A$3,'G5-RL2'!$A$6:$AM$500,18,FALSE),0)&"% ("&IF(VLOOKUP($A$3,'G5-RL2'!$A$6:$AM$500,17,FALSE)="",0,VLOOKUP($A$3,'G5-RL2'!$A$6:$AM$500,17,FALSE))&")")),"NA") -> 21% (1195)
A11: FCAT Level 3 | B11: =IFERROR(VLOOKUP(TEXT($A$3,"0000"),MEM_RL3!$A$3:$O$501,6,FALSE),0) -> 6336 | C11: =IFERROR((IF(OR(B11<10,B11="",B11="NA"),"NA",((IF(VLOOKUP($A$3,'G5-RL3'!$A$6:$AM$500,3,FALSE)>=B11,"100% ("&VLOOKUP($A$3,'G5-RL3'!$A$6:$AM$500,3,FALSE)&")",(ROUND((VLOOKUP($A$3,'G5-RL3'!$A$6:$AM$500,3,FALSE)/B11*100),0))&"% ("&IF(VLOOKUP($A$3,'G5-RL3'!$A$6:$AM$500,3,FALSE)="",0,VLOOKUP($A$3,'G5-RL3'!$A$6:$AM$500,3,FALSE))&")"))))),"0% (0)") -> 96% (6084) | D11: =IFERROR((IF($C11="NA","NA",VLOOKUP($A$3,'G5-RL3'!$A$6:$AM$500,4,FALSE))),"NA") -> 27.86416831 | E11: =IFERROR((IF($C11="NA","NA",ROUND(VLOOKUP($A$3,'G5-RL3'!$A$6:$AM$500,6,FALSE),0)&"% ("&IF(VLOOKUP($A$3,'G5-RL3'!$A$6:$AM$500,5,FALSE)="",0,VLOOKUP($A$3,'G5-RL3'!$A$6:$AM$500,5,FALSE))&")")),"NA") -> 42% (2579) | F11: =IFERROR((IF($C11="NA","NA",VLOOKUP($A$3,'G5-RL3'!$A$6:$AM$500,7,FALSE))),"NA") -> 4.765368179 | G11: =IFERROR((IF($C11="NA","NA",ROUND(VLOOKUP($A$3,'G5-RL3'!$A$6:$AM$500,9,FALSE),0)&"% ("&IF(VLOOKUP($A$3,'G5-RL3'!$A$6:$AM$500,8,FALSE)="",0,VLOOKUP($A$3,'G5-RL3'!$A$6:$AM$500,8,FALSE))&")")),"NA") -> 62% (3747) | H11: =IFERROR((IF($C11="NA","NA",VLOOKUP($A$3,'G5-RL3'!$A$6:$AM$500,10,FALSE))),"NA") -> 15.25060815 | I11: =IFERROR((IF($C11="NA","NA",ROUND(VLOOKUP($A$3,'G5-RL3'!$A$6:$AM$500,12,FALSE),0)&"% ("&IF(VLOOKUP($A$3,'G5-RL3'!$A$6:$AM$500,11,FALSE)="",0,VLOOKUP($A$3,'G5-RL3'!$A$6:$AM$500,11,FALSE))&")")),"NA") -> 39% (2393) | J11: =IFERROR((IF($C11="NA","NA",VLOOKUP($A$3,'G5-RL3'!$A$6:$AM$500,13,FALSE))),"NA") -> 4.773635766 | K11: =IFERROR((IF($C11="NA","NA",ROUND(VLOOKUP($A$3,'G5-RL3'!$A$6:$AM$500,15,FALSE),0)&"% ("&IF(VLOOKUP($A$3,'G5-RL3'!$A$6:$AM$500,14,FALSE)="",0,VLOOKUP($A$3,'G5-RL3'!$A$6:$AM$500,14,FALSE))&")")),"NA") -> 33% (2032) | L11: =IFERROR((IF($C11="NA","NA",VLOOKUP($A$3,'G5-RL3'!$A$6:$AM$500,16,FALSE))),"NA") -> 3.08425378 | M11: =IFERROR((IF($C11="NA","NA",ROUND(VLOOKUP($A$3,'G5-RL3'!$A$6:$AM$500,18,FALSE),0)&"% ("&IF(VLOOKUP($A$3,'G5-RL3'!$A$6:$AM$500,17,FALSE)="",0,VLOOKUP($A$3,'G5-RL3'!$A$6:$AM$500,17,FALSE))&")")),"NA") -> 39% (2380)
A12: FCAT Level 4 | B12: =IFERROR(VLOOKUP(TEXT($A$3,"0000"),MEM_RL4!$A$3:$O$501,6,FALSE),0) -> 5823 | C12: =IFERROR((IF(OR(B12<10,B12="",B12="NA"),"NA",((IF(VLOOKUP($A$3,'G5-RL4'!$A$6:$AM$500,3,FALSE)>=B12,"100% ("&VLOOKUP($A$3,'G5-RL4'!$A$6:$AM$500,3,FALSE)&")",(ROUND((VLOOKUP($A$3,'G5-RL4'!$A$6:$AM$500,3,FALSE)/B12*100),0))&"% ("&IF(VLOOKUP($A$3,'G5-RL4'!$A$6:$AM$500,3,FALSE)="",0,VLOOKUP($A$3,'G5-RL4'!$A$6:$AM$500,3,FALSE))&")"))))),"0% (0)") -> 96% (5600) | D12: =IFERROR((IF($C12="NA","NA",VLOOKUP($A$3,'G5-RL4'!$A$6:$AM$500,4,FALSE))),"NA") -> 32.898625 | E12: =IFERROR((IF($C12="NA","NA",ROUND(VLOOKUP($A$3,'G5-RL4'!$A$6:$AM$500,6,FALSE),0)&"% ("&IF(VLOOKUP($A$3,'G5-RL4'!$A$6:$AM$500,5,FALSE)="",0,VLOOKUP($A$3,'G5-RL4'!$A$6:$AM$500,5,FALSE))&")")),"NA") -> 81% (4518) | F12: =IFERROR((IF($C12="NA","NA",VLOOKUP($A$3,'G5-RL4'!$A$6:$AM$500,7,FALSE))),"NA") -> 5.482696429 | G12: =IFERROR((IF($C12="NA","NA",ROUND(VLOOKUP($A$3,'G5-RL4'!$A$6:$AM$500,9,FALSE),0)&"% ("&IF(VLOOKUP($A$3,'G5-RL4'!$A$6:$AM$500,8,FALSE)="",0,VLOOKUP($A$3,'G5-RL4'!$A$6:$AM$500,8,FALSE))&")")),"NA") -> 83% (4630) | H12: =IFERROR((IF($C12="NA","NA",VLOOKUP($A$3,'G5-RL4'!$A$6:$AM$500,10,FALSE))),"NA") -> 18.00928571 | I12: =IFERROR((IF($C12="NA","NA",ROUND(VLOOKUP($A$3,'G5-RL4'!$A$6:$AM$500,12,FALSE),0)&"% ("&IF(VLOOKUP($A$3,'G5-RL4'!$A$6:$AM$500,11,FALSE)="",0,VLOOKUP($A$3,'G5-RL4'!$A$6:$AM$500,11,FALSE))&")")),"NA") -> 75% (4198) | J12: =IFERROR((IF($C12="NA","NA",VLOOKUP($A$3,'G5-RL4'!$A$6:$AM$500,13,FALSE))),"NA") -> 5.712625 | K12: =IFERROR((IF($C12="NA","NA",ROUND(VLOOKUP($A$3,'G5-RL4'!$A$6:$AM$500,15,FALSE),0)&"% ("&IF(VLOOKUP($A$3,'G5-RL4'!$A$6:$AM$500,14,FALSE)="",0,VLOOKUP($A$3,'G5-RL4'!$A$6:$AM$500,14,FALSE))&")")),"NA") -> 61% (3417) | L12: =IFERROR((IF($C12="NA","NA",VLOOKUP($A$3,'G5-RL4'!$A$6:$AM$500,16,FALSE))),"NA") -> 3.696803571 | M12: =IFERROR((IF($C12="NA","NA",ROUND(VLOOKUP($A$3,'G5-RL4'!$A$6:$AM$500,18,FALSE),0)&"% ("&IF(VLOOKUP($A$3,'G5-RL4'!$A$6:$AM$500,17,FALSE)="",0,VLOOKUP($A$3,'G5-RL4'!$A$6:$AM$500,17,FALSE))&")")),"NA") -> 62% (3455)
A13: FCAT Level 5 | B13: =IFERROR(VLOOKUP(TEXT($A$3,"0000"),MEM_RL5!$A$3:$N$501,5,FALSE),0) -> 2486 | C13: =IFERROR((IF(OR(B13<10,B13="",B13="NA"),"NA",((IF(VLOOKUP($A$3,'G5-RL5'!$A$6:$AM$500,3,FALSE)>=B13,"100% ("&VLOOKUP($A$3,'G5-RL5'!$A$6:$AM$500,3,FALSE)&")",(ROUND((VLOOKUP($A$3,'G5-RL5'!$A$6:$AM$500,3,FALSE)/B13*100),0))&"% ("&IF(VLOOKUP($A$3,'G5-RL5'!$A$6:$AM$500,3,FALSE)="",0,VLOOKUP($A$3,'G5-RL5'!$A$6:$AM$500,3,FALSE))&")"))))),"0% (0)") -> 97% (2399) | D13: =IFERROR((IF($C13="NA","NA",VLOOKUP($A$3,'G5-RL5'!$A$6:$AM$500,4,FALSE))),"NA") -> 36.58566069 | E13: =IFERROR((IF($C13="NA","NA",ROUND(VLOOKUP($A$3,'G5-RL5'!$A$6:$AM$500,6,FALSE),0)&"% ("&IF(VLOOKUP($A$3,'G5-RL5'!$A$6:$AM$500,5,FALSE)="",0,VLOOKUP($A$3,'G5-RL5'!$A$6:$AM$500,5,FALSE))&")")),"NA") -> 96% (2300) | F13: =IFERROR((IF($C13="NA","NA",VLOOKUP($A$3,'G5-RL5'!$A$6:$AM$500,7,FALSE))),"NA") -> 6.137390579 | G13: =IFERROR((IF($C13="NA","NA",ROUND(VLOOKUP($A$3,'G5-RL5'!$A$6:$AM$500,9,FALSE),0)&"% ("&IF(VLOOKUP($A$3,'G5-RL5'!$A$6:$AM$500,8,FALSE)="",0,VLOOKUP($A$3,'G5-RL5'!$A$6:$AM$500,8,FALSE))&")")),"NA") -> 94% (2262) | H13: =IFERROR((IF($C13="NA","NA",VLOOKUP($A$3,'G5-RL5'!$A$6:$AM$500,10,FALSE))),"NA") -> 19.95689871 | I13: =IFERROR((IF($C13="NA","NA",ROUND(VLOOKUP($A$3,'G5-RL5'!$A$6:$AM$500,12,FALSE),0)&"% ("&IF(VLOOKUP($A$3,'G5-RL5'!$A$6:$AM$500,11,FALSE)="",0,VLOOKUP($A$3,'G5-RL5'!$A$6:$AM$500,11,FALSE))&")")),"NA") -> 93% (2240) | J13: =IFERROR((IF($C13="NA","NA",VLOOKUP($A$3,'G5-RL5'!$A$6:$AM$500,13,FALSE))),"NA") -> 6.37148812 | K13: =IFERROR((IF($C13="NA","NA",ROUND(VLOOKUP($A$3,'G5-RL5'!$A$6:$AM$500,15,FALSE),0)&"% ("&IF(VLOOKUP($A$3,'G5-RL5'!$A$6:$AM$500,14,FALSE)="",0,VLOOKUP($A$3,'G5-RL5'!$A$6:$AM$500,14,FALSE))&")")),"NA") -> 81% (1950) | L13: =IFERROR((IF($C13="NA","NA",VLOOKUP($A$3,'G5-RL5'!$A$6:$AM$500,16,FALSE))),"NA") -> 4.131846603 | M13: =IFERROR((IF($C13="NA","NA",ROUND(VLOOKUP($A$3,'G5-RL5'!$A$6:$AM$500,18,FALSE),0)&"% ("&IF(VLOOKUP($A$3,'G5-RL5'!$A$6:$AM$500,17,FALSE)="",0,VLOOKUP($A$3,'G5-RL5'!$A$6:$AM$500,17,FALSE))&")")),"NA") -> 79% (1886)
A14: White | B14: =IFERROR(VLOOKUP(TEXT($A$3,"0000"),MEM_W!$A$3:$O$501,9,FALSE),0) -> 2093 | C14: =IFERROR((IF(OR(B14<10,B14="",B14="NA"),"NA",((IF(VLOOKUP($A$3,'G5-RW'!$A$6:$AM$500,3,FALSE)>=B14,"100% ("&VLOOKUP($A$3,'G5-RW'!$A$6:$AM$500,3,FALSE)&")",(ROUND((VLOOKUP($A$3,'G5-RW'!$A$6:$AM$500,3,FALSE)/B14*100),0))&"% ("&IF(VLOOKUP($A$3,'G5-RW'!$A$6:$AM$500,3,FALSE)="",0,VLOOKUP($A$3,'G5-RW'!$A$6:$AM$500,3,FALSE))&")"))))),"0% (0)") -> 95% (1983) | D14: =IFERROR((IF($C14="NA","NA",VLOOKUP($A$3,'G5-RW'!$A$6:$AM$500,4,FALSE))),"NA") -> 30.10413515 | E14: =IFERROR((IF($C14="NA","NA",ROUND(VLOOKUP($A$3,'G5-RW'!$A$6:$AM$500,6,FALSE),0)&"% ("&IF(VLOOKUP($A$3,'G5-RW'!$A$6:$AM$500,5,FALSE)="",0,VLOOKUP($A$3,'G5-RW'!$A$6:$AM$500,5,FALSE))&")")),"NA") -> 62% (1223) | F14: =IFERROR((IF($C14="NA","NA",VLOOKUP($A$3,'G5-RW'!$A$6:$AM$500,7,FALSE))),"NA") -> 5.132526475 | G14: =IFERROR((IF($C14="NA","NA",ROUND(VLOOKUP($A$3,'G5-RW'!$A$6:$AM$500,9,FALSE),0)&"% ("&IF(VLOOKUP($A$3,'G5-RW'!$A$6:$AM$500,8,FALSE)="",0,VLOOKUP($A$3,'G5-RW'!$A$6:$AM$500,8,FALSE))&")")),"NA") -> 71% (1411) | H14: =IFERROR((IF($C14="NA","NA",VLOOKUP($A$3,'G5-RW'!$A$6:$AM$500,10,FALSE))),"NA") -> 16.36177509 | I14: =IFERROR((IF($C14="NA","NA",ROUND(VLOOKUP($A$3,'G5-RW'!$A$6:$AM$500,12,FALSE),0)&"% ("&IF(VLOOKUP($A$3,'G5-RW'!$A$6:$AM$500,11,FALSE)="",0,VLOOKUP($A$3,'G5-RW'!$A$6:$AM$500,11,FALSE))&")")),"NA") -> 58% (1145) | J14: =IFERROR((IF($C14="NA","NA",VLOOKUP($A$3,'G5-RW'!$A$6:$AM$500,13,FALSE))),"NA") -> 5.258446798 | K14: =IFERROR((IF($C14="NA","NA",ROUND(VLOOKUP($A$3,'G5-RW'!$A$6:$AM$500,15,FALSE),0)&"% ("&IF(VLOOKUP($A$3,'G5-RW'!$A$6:$AM$500,14,FALSE)="",0,VLOOKUP($A$3,'G5-RW'!$A$6:$AM$500,14,FALSE))&")")),"NA") -> 52% (1029) | L14: =IFERROR((IF($C14="NA","NA",VLOOKUP($A$3,'G5-RW'!$A$6:$AM$500,16,FALSE))),"NA") -> 3.373524962 | M14: =IFERROR((IF($C14="NA","NA",ROUND(VLOOKUP($A$3,'G5-RW'!$A$6:$AM$500,18,FALSE),0)&"% ("&IF(VLOOKUP($A$3,'G5-RW'!$A$6:$AM$500,17,FALSE)="",0,VLOOKUP($A$3,'G5-RW'!$A$6:$AM$500,17,FALSE))&")")),"NA") -> 53% (1042)
A15: Black | B15: =IFERROR(VLOOKUP(TEXT($A$3,"0000"),MEM_B!$A$3:$O$501,9,FALSE),0) -> 5536 | C15: =IFERROR((IF(OR(B15<10,B15="",B15="NA"),"NA",((IF(VLOOKUP($A$3,'G5-RB'!$A$6:$AM$500,3,FALSE)>=B15,"100% ("&VLOOKUP($A$3,'G5-RB'!$A$6:$AM$500,3,FALSE)&")",(ROUND((VLOOKUP($A$3,'G5-RB'!$A$6:$AM$500,3,FALSE)/B15*100),0))&"% ("&IF(VLOOKUP($A$3,'G5-RB'!$A$6:$AM$500,3,FALSE)="",0,VLOOKUP($A$3,'G5-RB'!$A$6:$AM$500,3,FALSE))&")"))))),"0% (0)") -> 94% (5180) | D15: =IFERROR((IF($C15="NA","NA",VLOOKUP($A$3,'G5-RB'!$A$6:$AM$500,4,FALSE))),"NA") -> 23.5076834 | E15: =IFERROR((IF($C15="NA","NA",ROUND(VLOOKUP($A$3,'G5-RB'!$A$6:$AM$500,6,FALSE),0)&"% ("&IF(VLOOKUP($A$3,'G5-RB'!$A$6:$AM$500,5,FALSE)="",0,VLOOKUP($A$3,'G5-RB'!$A$6:$AM$500,5,FALSE))&")")),"NA") -> 27% (1395) | F15: =IFERROR((IF($C15="NA","NA",VLOOKUP($A$3,'G5-RB'!$A$6:$AM$500,7,FALSE))),"NA") -> 4.141196911 | G15: =IFERROR((IF($C15="NA","NA",ROUND(VLOOKUP($A$3,'G5-RB'!$A$6:$AM$500,9,FALSE),0)&"% ("&IF(VLOOKUP($A$3,'G5-RB'!$A$6:$AM$500,8,FALSE)="",0,VLOOKUP($A$3,'G5-RB'!$A$6:$AM$500,8,FALSE))&")")),"NA") -> 44% (2273) | H15: =IFERROR((IF($C15="NA","NA",VLOOKUP($A$3,'G5-RB'!$A$6:$AM$500,10,FALSE))),"NA") -> 12.68799228 | I15: =IFERROR((IF($C15="NA","NA",ROUND(VLOOKUP($A$3,'G5-RB'!$A$6:$AM$500,12,FALSE),0)&"% ("&IF(VLOOKUP($A$3,'G5-RB'!$A$6:$AM$500,11,FALSE)="",0,VLOOKUP($A$3,'G5-RB'!$A$6:$AM$500,11,FALSE))&")")),"NA") -> 25% (1298) | J15: =IFERROR((IF($C15="NA","NA",VLOOKUP($A$3,'G5-RB'!$A$6:$AM$500,13,FALSE))),"NA") -> 4.025984556 | K15: =IFERROR((IF($C15="NA","NA",ROUND(VLOOKUP($A$3,'G5-RB'!$A$6:$AM$500,15,FALSE),0)&"% ("&IF(VLOOKUP($A$3,'G5-RB'!$A$6:$AM$500,14,FALSE)="",0,VLOOKUP($A$3,'G5-RB'!$A$6:$AM$500,14,FALSE))&")")),"NA") -> 24% (1223) | L15: =IFERROR((IF($C15="NA","NA",VLOOKUP($A$3,'G5-RB'!$A$6:$AM$500,16,FALSE))),"NA") -> 2.643764479 | M15: =IFERROR((IF($C15="NA","NA",ROUND(VLOOKUP($A$3,'G5-RB'!$A$6:$AM$500,18,FALSE),0)&"% ("&IF(VLOOKUP($A$3,'G5-RB'!$A$6:$AM$500,17,FALSE)="",0,VLOOKUP($A$3,'G5-RB'!$A$6:$AM$500,17,FALSE))&")")),"NA") -> 29% (1495)
A16: Hispanic | B16: =IFERROR(VLOOKUP(TEXT($A$3,"0000"),MEM_H!$A$3:$O$501,9,FALSE),0) -> 17477 | C16: =IFERROR((IF(OR(B16<10,B16="",B16="NA"),"NA",((IF(VLOOKUP($A$3,'G5-RH'!$A$6:$AM$500,3,FALSE)>=B16,"100% ("&VLOOKUP($A$3,'G5-RH'!$A$6:$AM$500,3,FALSE)&")",(ROUND((VLOOKUP($A$3,'G5-RH'!$A$6:$AM$500,3,FALSE)/B16*100),0))&"% ("&IF(VLOOKUP($A$3,'G5-RH'!$A$6:$AM$500,3,FALSE)="",0,VLOOKUP($A$3,'G5-RH'!$A$6:$AM$500,3,FALSE))&")"))))),"0% (0)") -> 95% (16627) | D16: =IFERROR((IF($C16="NA","NA",VLOOKUP($A$3,'G5-RH'!$A$6:$AM$500,4,FALSE))),"NA") -> 26.71406147 | E16: =IFERROR((IF($C16="NA","NA",ROUND(VLOOKUP($A$3,'G5-RH'!$A$6:$AM$500,6,FALSE),0)&"% ("&IF(VLOOKUP($A$3,'G5-RH'!$A$6:$AM$500,5,FALSE)="",0,VLOOKUP($A$3,'G5-RH'!$A$6:$AM$500,5,FALSE))&")")),"NA") -> 44% (7271) | F16: =IFERROR((IF($C16="NA","NA",VLOOKUP($A$3,'G5-RH'!$A$6:$AM$500,7,FALSE))),"NA") -> 4.583454622 | G16: =IFERROR((IF($C16="NA","NA",ROUND(VLOOKUP($A$3,'G5-RH'!$A$6:$AM$500,9,FALSE),0)&"% ("&IF(VLOOKUP($A$3,'G5-RH'!$A$6:$AM$500,8,FALSE)="",0,VLOOKUP($A$3,'G5-RH'!$A$6:$AM$500,8,FALSE))&")")),"NA") -> 57% (9494) | H16: =IFERROR((IF($C16="NA","NA",VLOOKUP($A$3,'G5-RH'!$A$6:$AM$500,10,FALSE))),"NA") -> 14.55865159 | I16: =IFERROR((IF($C16="NA","NA",ROUND(VLOOKUP($A$3,'G5-RH'!$A$6:$AM$500,12,FALSE),0)&"% ("&IF(VLOOKUP($A$3,'G5-RH'!$A$6:$AM$500,11,FALSE)="",0,VLOOKUP($A$3,'G5-RH'!$A$6:$AM$500,11,FALSE))&")")),"NA") -> 41% (6888) | J16: =IFERROR((IF($C16="NA","NA",VLOOKUP($A$3,'G5-RH'!$A$6:$AM$500,13,FALSE))),"NA") -> 4.577873339 | K16: =IFERROR((IF($C16="NA","NA",ROUND(VLOOKUP($A$3,'G5-RH'!$A$6:$AM$500,15,FALSE),0)&"% ("&IF(VLOOKUP($A$3,'G5-RH'!$A$6:$AM$500,14,FALSE)="",0,VLOOKUP($A$3,'G5-RH'!$A$6:$AM$500,14,FALSE))&")")),"NA") -> 35% (5895) | L16: =IFERROR((IF($C16="NA","NA",VLOOKUP($A$3,'G5-RH'!$A$6:$AM$500,16,FALSE))),"NA") -> 3.00171408 | M16: =IFERROR((IF($C16="NA","NA",ROUND(VLOOKUP($A$3,'G5-RH'!$A$6:$AM$500,18,FALSE),0)&"% ("&IF(VLOOKUP($A$3,'G5-RH'!$A$6:$AM$500,17,FALSE)="",0,VLOOKUP($A$3,'G5-RH'!$A$6:$AM$500,17,FALSE))&")")),"NA") -> 40% (6646)
A17: Asian | B17: =IFERROR(VLOOKUP(TEXT($A$3,"0000"),MEM_A!$A$3:$O$501,9,FALSE),0) -> 305 | C17: =IFERROR((IF(OR(B17<10,B17="",B17="NA"),"NA",((IF(VLOOKUP($A$3,'G5-RA'!$A$6:$AM$500,3,FALSE)>=B17,"100% ("&VLOOKUP($A$3,'G5-RA'!$A$6:$AM$500,3,FALSE)&")",(ROUND((VLOOKUP($A$3,'G5-RA'!$A$6:$AM$500,3,FALSE)/B17*100),0))&"% ("&IF(VLOOKUP($A$3,'G5-RA'!$A$6:$AM$500,3,FALSE)="",0,VLOOKUP($A$3,'G5-RA'!$A$6:$AM$500,3,FALSE))&")"))))),"0% (0)") -> 91% (278) | D17: =IFERROR((IF($C17="NA","NA",VLOOKUP($A$3,'G5-RA'!$A$6:$AM$500,4,FALSE))),"NA") -> 31.29460432 | E17: =IFERROR((IF($C17="NA","NA",ROUND(VLOOKUP($A$3,'G5-RA'!$A$6:$AM$500,6,FALSE),0)&"% ("&IF(VLOOKUP($A$3,'G5-RA'!$A$6:$AM$500,5,FALSE)="",0,VLOOKUP($A$3,'G5-RA'!$A$6:$AM$500,5,FALSE))&")")),"NA") -> 67% (186) | F17: =IFERROR((IF($C17="NA","NA",VLOOKUP($A$3,'G5-RA'!$A$6:$AM$500,7,FALSE))),"NA") -> 5.236690647 | G17: =IFERROR((IF($C17="NA","NA",ROUND(VLOOKUP($A$3,'G5-RA'!$A$6:$AM$500,9,FALSE),0)&"% ("&IF(VLOOKUP($A$3,'G5-RA'!$A$6:$AM$500,8,FALSE)="",0,VLOOKUP($A$3,'G5-RA'!$A$6:$AM$500,8,FALSE))&")")),"NA") -> 72% (200) | H17: =IFERROR((IF($C17="NA","NA",VLOOKUP($A$3,'G5-RA'!$A$6:$AM$500,10,FALSE))),"NA") -> 17.24820144 | I17: =IFERROR((IF($C17="NA","NA",ROUND(VLOOKUP($A$3,'G5-RA'!$A$6:$AM$500,12,FALSE),0)&"% ("&IF(VLOOKUP($A$3,'G5-RA'!$A$6:$AM$500,11,FALSE)="",0,VLOOKUP($A$3,'G5-RA'!$A$6:$AM$500,11,FALSE))&")")),"NA") -> 67% (187) | J17: =IFERROR((IF($C17="NA","NA",VLOOKUP($A$3,'G5-RA'!$A$6:$AM$500,13,FALSE))),"NA") -> 5.378776978 | K17: =IFERROR((IF($C17="NA","NA",ROUND(VLOOKUP($A$3,'G5-RA'!$A$6:$AM$500,15,FALSE),0)&"% ("&IF(VLOOKUP($A$3,'G5-RA'!$A$6:$AM$500,14,FALSE)="",0,VLOOKUP($A$3,'G5-RA'!$A$6:$AM$500,14,FALSE))&")")),"NA") -> 55% (152) | L17: =IFERROR((IF($C17="NA","NA",VLOOKUP($A$3,'G5-RA'!$A$6:$AM$500,16,FALSE))),"NA") -> 3.454316547 | M17: =IFERROR((IF($C17="NA","NA",ROUND(VLOOKUP($A$3,'G5-RA'!$A$6:$AM$500,18,FALSE),0)&"% ("&IF(VLOOKUP($A$3,'G5-RA'!$A$6:$AM$500,17,FALSE)="",0,VLOOKUP($A$3,'G5-RA'!$A$6:$AM$500,17,FALSE))&")")),"NA") -> 55% (152)
A18: Am. Indian | B18: =IFERROR(VLOOKUP(TEXT($A$3,"0000"),MEM_I!$A$3:$O$501,9,FALSE),0) -> 20 | C18: =IFERROR((IF(OR(B18<10,B18="",B18="NA"),"NA",((IF(VLOOKUP($A$3,'G5-RI'!$A$6:$AM$500,3,FALSE)>=B18,"100% ("&VLOOKUP($A$3,'G5-RI'!$A$6:$AM$500,3,FALSE)&")",(ROUND((VLOOKUP($A$3,'G5-RI'!$A$6:$AM$500,3,FALSE)/B18*100),0))&"% ("&IF(VLOOKUP($A$3,'G5-RI'!$A$6:$AM$500,3,FALSE)="",0,VLOOKUP($A$3,'G5-RI'!$A$6:$AM$500,3,FALSE))&")"))))),"0% (0)") -> 95% (19) | D18: =IFERROR((IF($C18="NA","NA",VLOOKUP($A$3,'G5-RI'!$A$6:$AM$500,4,FALSE))),"NA") -> 29.10526316 | E18: =IFERROR((IF($C18="NA","NA",ROUND(VLOOKUP($A$3,'G5-RI'!$A$6:$AM$500,6,FALSE),0)&"% ("&IF(VLOOKUP($A$3,'G5-RI'!$A$6:$AM$500,5,FALSE)="",0,VLOOKUP($A$3,'G5-RI'!$A$6:$AM$500,5,FALSE))&")")),"NA") -> 58% (11) | F18: =IFERROR((IF($C18="NA","NA",VLOOKUP($A$3,'G5-RI'!$A$6:$AM$500,7,FALSE))),"NA") -> 4.736842105 | G18: =IFERROR((IF($C18="NA","NA",ROUND(VLOOKUP($A$3,'G5-RI'!$A$6:$AM$500,9,FALSE),0)&"% ("&IF(VLOOKUP($A$3,'G5-RI'!$A$6:$AM$500,8,FALSE)="",0,VLOOKUP($A$3,'G5-RI'!$A$6:$AM$500,8,FALSE))&")")),"NA") -> 68% (13) | H18: =IFERROR((IF($C18="NA","NA",VLOOKUP($A$3,'G5-RI'!$A$6:$AM$500,10,FALSE))),"NA") -> 16 | I18: =IFERROR((IF($C18="NA","NA",ROUND(VLOOKUP($A$3,'G5-RI'!$A$6:$AM$500,12,FALSE),0)&"% ("&IF(VLOOKUP($A$3,'G5-RI'!$A$6:$AM$500,11,FALSE)="",0,VLOOKUP($A$3,'G5-RI'!$A$6:$AM$500,11,FALSE))&")")),"NA") -> 47% (9) | J18: =IFERROR((IF($C18="NA","NA",VLOOKUP($A$3,'G5-RI'!$A$6:$AM$500,13,FALSE))),"NA") -> 5.526315789 | K18: =IFERROR((IF($C18="NA","NA",ROUND(VLOOKUP($A$3,'G5-RI'!$A$6:$AM$500,15,FALSE),0)&"% ("&IF(VLOOKUP($A$3,'G5-RI'!$A$6:$AM$500,14,FALSE)="",0,VLOOKUP($A$3,'G5-RI'!$A$6:$AM$500,14,FALSE))&")")),"NA") -> 53% (10) | L18: =IFERROR((IF($C18="NA","NA",VLOOKUP($A$3,'G5-RI'!$A$6:$AM$500,16,FALSE))),"NA") -> 2.842105263 | M18: =IFERROR((IF($C18="NA","NA",ROUND(VLOOKUP($A$3,'G5-RI'!$A$6:$AM$500,18,FALSE),0)&"% ("&IF(VLOOKUP($A$3,'G5-RI'!$A$6:$AM$500,17,FALSE)="",0,VLOOKUP($A$3,'G5-RI'!$A$6:$AM$500,17,FALSE))&")")),"NA") -> 42% (8)
A19: ED | B19: =IFERROR(VLOOKUP(TEXT($A$3,"0000"),MEM_ED!$A$3:$O$501,9,FALSE),0) -> 19602 | C19: =IFERROR((IF(OR(B19<10,B19="",B19="NA"),"NA",((IF(VLOOKUP($A$3,'G5-RED'!$A$6:$AM$500,3,FALSE)>=B19,"100% ("&VLOOKUP($A$3,'G5-RED'!$A$6:$AM$500,3,FALSE)&")",(ROUND((VLOOKUP($A$3,'G5-RED'!$A$6:$AM$500,3,FALSE)/B19*100),0))&"% ("&IF(VLOOKUP($A$3,'G5-RED'!$A$6:$AM$500,3,FALSE)="",0,VLOOKUP($A$3,'G5-RED'!$A$6:$AM$500,3,FALSE))&")"))))),"0% (0)") -> 96% (18868) | D19: =IFERROR((IF($C19="NA","NA",VLOOKUP($A$3,'G5-RED'!$A$6:$AM$500,4,FALSE))),"NA") -> 25.20868667 | E19: =IFERROR((IF($C19="NA","NA",ROUND(VLOOKUP($A$3,'G5-RED'!$A$6:$AM$500,6,FALSE),0)&"% ("&IF(VLOOKUP($A$3,'G5-RED'!$A$6:$AM$500,5,FALSE)="",0,VLOOKUP($A$3,'G5-RED'!$A$6:$AM$500,5,FALSE))&")")),"NA") -> 36% (6761) | F19: =IFERROR((IF($C19="NA","NA",VLOOKUP($A$3,'G5-RED'!$A$6:$AM$500,7,FALSE))),"NA") -> 4.35757897 | G19: =IFERROR((IF($C19="NA","NA",ROUND(VLOOKUP($A$3,'G5-RED'!$A$6:$AM$500,9,FALSE),0)&"% ("&IF(VLOOKUP($A$3,'G5-RED'!$A$6:$AM$500,8,FALSE)="",0,VLOOKUP($A$3,'G5-RED'!$A$6:$AM$500,8,FALSE))&")")),"NA") -> 51% (9566) | H19: =IFERROR((IF($C19="NA","NA",VLOOKUP($A$3,'G5-RED'!$A$6:$AM$500,10,FALSE))),"NA") -> 13.71824783 | I19: =IFERROR((IF($C19="NA","NA",ROUND(VLOOKUP($A$3,'G5-RED'!$A$6:$AM$500,12,FALSE),0)&"% ("&IF(VLOOKUP($A$3,'G5-RED'!$A$6:$AM$500,11,FALSE)="",0,VLOOKUP($A$3,'G5-RED'!$A$6:$AM$500,11,FALSE))&")")),"NA") -> 34% (6370) | J19: =IFERROR((IF($C19="NA","NA",VLOOKUP($A$3,'G5-RED'!$A$6:$AM$500,13,FALSE))),"NA") -> 4.311013356 | K19: =IFERROR((IF($C19="NA","NA",ROUND(VLOOKUP($A$3,'G5-RED'!$A$6:$AM$500,15,FALSE),0)&"% ("&IF(VLOOKUP($A$3,'G5-RED'!$A$6:$AM$500,14,FALSE)="",0,VLOOKUP($A$3,'G5-RED'!$A$6:$AM$500,14,FALSE))&")")),"NA") -> 30% (5577) | L19: =IFERROR((IF($C19="NA","NA",VLOOKUP($A$3,'G5-RED'!$A$6:$AM$500,16,FALSE))),"NA") -> 2.824713801 | M19: =IFERROR((IF($C19="NA","NA",ROUND(VLOOKUP($A$3,'G5-RED'!$A$6:$AM$500,18,FALSE),0)&"% ("&IF(VLOOKUP($A$3,'G5-RED'!$A$6:$AM$500,17,FALSE)="",0,VLOOKUP($A$3,'G5-RED'!$A$6:$AM$500,17,FALSE))&")")),"NA") -> 34% (6484)
A20: ELL | B20: =IFERROR(VLOOKUP(TEXT($A$3,"0000"),MEM_ELL!$A$3:$O$501,9,FALSE),0) -> 6528 | C20: =IFERROR((IF(OR(B20<10,B20="",B20="NA"),"NA",((IF(VLOOKUP($A$3,'G5-RELL'!$A$6:$AM$500,3,FALSE)>=B20,"100% ("&VLOOKUP($A$3,'G5-RELL'!$A$6:$AM$500,3,FALSE)&")",(ROUND((VLOOKUP($A$3,'G5-RELL'!$A$6:$AM$500,3,FALSE)/B20*100),0))&"% ("&IF(VLOOKUP($A$3,'G5-RELL'!$A$6:$AM$500,3,FALSE)="",0,VLOOKUP($A$3,'G5-RELL'!$A$6:$AM$500,3,FALSE))&")"))))),"0% (0)") -> 95% (6198) | D20: =IFERROR((IF($C20="NA","NA",VLOOKUP($A$3,'G5-RELL'!$A$6:$AM$500,4,FALSE))),"NA") -> 20.7315263 | E20: =IFERROR((IF($C20="NA","NA",ROUND(VLOOKUP($A$3,'G5-RELL'!$A$6:$AM$500,6,FALSE),0)&"% ("&IF(VLOOKUP($A$3,'G5-RELL'!$A$6:$AM$500,5,FALSE)="",0,VLOOKUP($A$3,'G5-RELL'!$A$6:$AM$500,5,FALSE))&")")),"NA") -> 16% (967) | F20: =IFERROR((IF($C20="NA","NA",VLOOKUP($A$3,'G5-RELL'!$A$6:$AM$500,7,FALSE))),"NA") -> 3.60083898 | G20: =IFERROR((IF($C20="NA","NA",ROUND(VLOOKUP($A$3,'G5-RELL'!$A$6:$AM$500,9,FALSE),0)&"% ("&IF(VLOOKUP($A$3,'G5-RELL'!$A$6:$AM$500,8,FALSE)="",0,VLOOKUP($A$3,'G5-RELL'!$A$6:$AM$500,8,FALSE))&")")),"NA") -> 32% (1975) | H20: =IFERROR((IF($C20="NA","NA",VLOOKUP($A$3,'G5-RELL'!$A$6:$AM$500,10,FALSE))),"NA") -> 11.24378832 | I20: =IFERROR((IF($C20="NA","NA",ROUND(VLOOKUP($A$3,'G5-RELL'!$A$6:$AM$500,12,FALSE),0)&"% ("&IF(VLOOKUP($A$3,'G5-RELL'!$A$6:$AM$500,11,FALSE)="",0,VLOOKUP($A$3,'G5-RELL'!$A$6:$AM$500,11,FALSE))&")")),"NA") -> 15% (934) | J20: =IFERROR((IF($C20="NA","NA",VLOOKUP($A$3,'G5-RELL'!$A$6:$AM$500,13,FALSE))),"NA") -> 3.528557599 | K20: =IFERROR((IF($C20="NA","NA",ROUND(VLOOKUP($A$3,'G5-RELL'!$A$6:$AM$500,15,FALSE),0)&"% ("&IF(VLOOKUP($A$3,'G5-RELL'!$A$6:$AM$500,14,FALSE)="",0,VLOOKUP($A$3,'G5-RELL'!$A$6:$AM$500,14,FALSE))&")")),"NA") -> 15% (924) | L20: =IFERROR((IF($C20="NA","NA",VLOOKUP($A$3,'G5-RELL'!$A$6:$AM$500,16,FALSE))),"NA") -> 2.3583414 | M20: =IFERROR((IF($C20="NA","NA",ROUND(VLOOKUP($A$3,'G5-RELL'!$A$6:$AM$500,18,FALSE),0)&"% ("&IF(VLOOKUP($A$3,'G5-RELL'!$A$6:$AM$500,17,FALSE)="",0,VLOOKUP($A$3,'G5-RELL'!$A$6:$AM$500,17,FALSE))&")")),"NA") -> 21% (1307)
A21: SWD | B21: =IFERROR(VLOOKUP(TEXT($A$3,"0000"),MEM_SWD!$A$3:$O$501,9,FALSE),0) -> 2416 | C21: =IFERROR((IF(OR(B21<10,B21="",B21="NA"),"NA",((IF(VLOOKUP($A$3,'G5-RSWD'!$A$6:$AM$500,3,FALSE)>=B21,"100% ("&VLOOKUP($A$3,'G5-RSWD'!$A$6:$AM$500,3,FALSE)&")",(ROUND((VLOOKUP($A$3,'G5-RSWD'!$A$6:$AM$500,3,FALSE)/B21*100),0))&"% ("&IF(VLOOKUP($A$3,'G5-RSWD'!$A$6:$AM$500,3,FALSE)="",0,VLOOKUP($A$3,'G5-RSWD'!$A$6:$AM$500,3,FALSE))&")"))))),"0% (0)") -> 95% (2289) | D21: =IFERROR((IF($C21="NA","NA",VLOOKUP($A$3,'G5-RSWD'!$A$6:$AM$500,4,FALSE))),"NA") -> 18.91363041 | E21: =IFERROR((IF($C21="NA","NA",ROUND(VLOOKUP($A$3,'G5-RSWD'!$A$6:$AM$500,6,FALSE),0)&"% ("&IF(VLOOKUP($A$3,'G5-RSWD'!$A$6:$AM$500,5,FALSE)="",0,VLOOKUP($A$3,'G5-RSWD'!$A$6:$AM$500,5,FALSE))&")")),"NA") -> 11% (259) | F21: =IFERROR((IF($C21="NA","NA",VLOOKUP($A$3,'G5-RSWD'!$A$6:$AM$500,7,FALSE))),"NA") -> 3.404456094 | G21: =IFERROR((IF($C21="NA","NA",ROUND(VLOOKUP($A$3,'G5-RSWD'!$A$6:$AM$500,9,FALSE),0)&"% ("&IF(VLOOKUP($A$3,'G5-RSWD'!$A$6:$AM$500,8,FALSE)="",0,VLOOKUP($A$3,'G5-RSWD'!$A$6:$AM$500,8,FALSE))&")")),"NA") -> 27% (617) | H21: =IFERROR((IF($C21="NA","NA",VLOOKUP($A$3,'G5-RSWD'!$A$6:$AM$500,10,FALSE))),"NA") -> 10.06020096 | I21: =IFERROR((IF($C21="NA","NA",ROUND(VLOOKUP($A$3,'G5-RSWD'!$A$6:$AM$500,12,FALSE),0)&"% ("&IF(VLOOKUP($A$3,'G5-RSWD'!$A$6:$AM$500,11,FALSE)="",0,VLOOKUP($A$3,'G5-RSWD'!$A$6:$AM$500,11,FALSE))&")")),"NA") -> 11% (243) | J21: =IFERROR((IF($C21="NA","NA",VLOOKUP($A$3,'G5-RSWD'!$A$6:$AM$500,13,FALSE))),"NA") -> 3.274224552 | K21: =IFERROR((IF($C21="NA","NA",ROUND(VLOOKUP($A$3,'G5-RSWD'!$A$6:$AM$500,15,FALSE),0)&"% ("&IF(VLOOKUP($A$3,'G5-RSWD'!$A$6:$AM$500,14,FALSE)="",0,VLOOKUP($A$3,'G5-RSWD'!$A$6:$AM$500,14,FALSE))&")")),"NA") -> 12% (277) | L21: =IFERROR((IF($C21="NA","NA",VLOOKUP($A$3,'G5-RSWD'!$A$6:$AM$500,16,FALSE))),"NA") -> 2.18549585 | M21: =IFERROR((IF($C21="NA","NA",ROUND(VLOOKUP($A$3,'G5-RSWD'!$A$6:$AM$500,18,FALSE),0)&"% ("&IF(VLOOKUP($A$3,'G5-RSWD'!$A$6:$AM$500,17,FALSE)="",0,VLOOKUP($A$3,'G5-RSWD'!$A$6:$AM$500,17,FALSE))&")")),"NA") -> 17% (394)
A22: Math - Grade 5
A23: Level of Proficiency at 70% or above | B23: Total # of Students | C23: % of Students Tested | D23: ='G3-5 Matrix'!C16&" ["&'G3-5 Matrix'!C17&"]" -> Overall [39] | F23: ='G3-5 Matrix'!D16&" ["&'G3-5 Matrix'!D17&"]" -> Number: Base Ten & Fractions [16] | H23: ='G3-5 Matrix'!E16&" ["&'G3-5 Matrix'!E17&"]" -> Expressions, Equations, & Statistics [9] | J23: ='G3-5 Matrix'!F16&" ["&'G3-5 Matrix'!F17&"]" -> Geometry and Measurement [14]
D24: Average Score | E24: % Proficient | F24: Average Score | G24: % Proficient | H24: Average Score | I24: % Proficient | J24: Average Score | K24: % Proficient
A25: All students | B25: =IFERROR(VLOOKUP(TEXT($A$3,"0000"),Mem_All!$A$3:$O$501,9,FALSE),0) -> 25542 | C25: =IFERROR((IF(OR(B25<10,B25="",B25="NA"),"NA",((IF(VLOOKUP($A$3,'G5-MALL'!$A$6:$AA$500,3,FALSE)>=B25,"100% ("&VLOOKUP($A$3,'G5-MALL'!$A$6:$AA$500,3,FALSE)&")",(ROUND((VLOOKUP($A$3,'G5-MALL'!$A$6:$AA$500,3,FALSE)/B25*100),0))&"% ("&IF(VLOOKUP($A$3,'G5-MALL'!$A$6:$AA$500,3,FALSE)="",0,VLOOKUP($A$3,'G5-MALL'!$A$6:$AA$500,3,FALSE))&")"))))),"0% (0)") -> 94% (23985) | D25: =IFERROR((IF($C25="NA","NA",VLOOKUP($A$3,'G5-MALL'!$A$6:$AM$500,4,FALSE))),"NA") -> 16.43776944 | E25: =IFERROR((IF($C25="NA","NA",ROUND(VLOOKUP($A$3,'G5-MALL'!$A$6:$AM$500,6,FALSE),0)&"% ("&IF(VLOOKUP($A$3,'G5-MALL'!$A$6:$AM$500,5,FALSE)="",0,VLOOKUP($A$3,'G5-MALL'!$A$6:$AM$500,5,FALSE))&")")),"NA") -> 4% (1067) | F25: =IFERROR((IF($C25="NA","NA",VLOOKUP($A$3,'G5-MALL'!$A$6:$AM$500,7,FALSE))),"NA") -> 7.423176986 | G25: =IFERROR((IF($C25="NA","NA",ROUND(VLOOKUP($A$3,'G5-MALL'!$A$6:$AM$500,9,FALSE),0)&"% ("&IF(VLOOKUP($A$3,'G5-MALL'!$A$6:$AM$500,8,FALSE)="",0,VLOOKUP($A$3,'G5-MALL'!$A$6:$AM$500,8,FALSE))&")")),"NA") -> 13% (3018) | H25: =IFERROR((IF($C25="NA","NA",VLOOKUP($A$3,'G5-MALL'!$A$6:$AM$500,10,FALSE))),"NA") -> 3.660129247 | I25: =IFERROR((IF($C25="NA","NA",ROUND(VLOOKUP($A$3,'G5-MALL'!$A$6:$AM$500,12,FALSE),0)&"% ("&IF(VLOOKUP($A$3,'G5-MALL'!$A$6:$AM$500,11,FALSE)="",0,VLOOKUP($A$3,'G5-MALL'!$A$6:$AM$500,11,FALSE))&")")),"NA") -> 4% (901) | J25: =IFERROR((IF($C25="NA","NA",VLOOKUP($A$3,'G5-MALL'!$A$6:$AM$500,13,FALSE))),"NA") -> 5.353570982 | K25: =IFERROR((IF($C25="NA","NA",ROUND(VLOOKUP($A$3,'G5-MALL'!$A$6:$AM$500,15,FALSE),0)&"% ("&IF(VLOOKUP($A$3,'G5-MALL'!$A$6:$AM$500,14,FALSE)="",0,VLOOKUP($A$3,'G5-MALL'!$A$6:$AM$500,14,FALSE))&")")),"NA") -> 6% (1336)
A26: FCAT Level 1 | B26: =IFERROR(VLOOKUP(TEXT($A$3,"0000"),MEM_ML1!$A$3:$O$501,6,FALSE),0) -> 3924 | C26: =IFERROR((IF(OR(B26<10,B26="",B26="NA"),"NA",((IF(VLOOKUP($A$3,'G5-ML1'!$A$6:$AG$500,3,FALSE)>=B26,"100% ("&VLOOKUP($A$3,'G5-ML1'!$A$6:$AG$500,3,FALSE)&")",(ROUND((VLOOKUP($A$3,'G5-ML1'!$A$6:$AG$500,3,FALSE)/B26*100),0))&"% ("&IF(VLOOKUP($A$3,'G5-ML1'!$A$6:$AG$500,3,FALSE)="",0,VLOOKUP($A$3,'G5-ML1'!$A$6:$AG$500,3,FALSE))&")"))))),"0% (0)") -> 94% (3676) | D26: =IFERROR((IF($C26="NA","NA",VLOOKUP($A$3,'G5-ML1'!$A$6:$AM$500,4,FALSE))),"NA") -> 10.91936888 | E26: =IFERROR((IF($C26="NA","NA",ROUND(VLOOKUP($A$3,'G5-ML1'!$A$6:$AM$500,6,FALSE),0)&"% ("&IF(VLOOKUP($A$3,'G5-ML1'!$A$6:$AM$500,5,FALSE)="",0,VLOOKUP($A$3,'G5-ML1'!$A$6:$AM$500,5,FALSE))&")")),"NA") -> 0% (0) | F26: =IFERROR((IF($C26="NA","NA",VLOOKUP($A$3,'G5-ML1'!$A$6:$AM$500,7,FALSE))),"NA") -> 4.397442873 | G26: =IFERROR((IF($C26="NA","NA",ROUND(VLOOKUP($A$3,'G5-ML1'!$A$6:$AM$500,9,FALSE),0)&"% ("&IF(VLOOKUP($A$3,'G5-ML1'!$A$6:$AM$500,8,FALSE)="",0,VLOOKUP($A$3,'G5-ML1'!$A$6:$AM$500,8,FALSE))&")")),"NA") -> 0% (3) | H26: =IFERROR((IF($C26="NA","NA",VLOOKUP($A$3,'G5-ML1'!$A$6:$AM$500,10,FALSE))),"NA") -> 2.764662677 | I26: =IFERROR((IF($C26="NA","NA",ROUND(VLOOKUP($A$3,'G5-ML1'!$A$6:$AM$500,12,FALSE),0)&"% ("&IF(VLOOKUP($A$3,'G5-ML1'!$A$6:$AM$500,11,FALSE)="",0,VLOOKUP($A$3,'G5-ML1'!$A$6:$AM$500,11,FALSE))&")")),"NA") -> 0% (13) | J26: =IFERROR((IF($C26="NA","NA",VLOOKUP($A$3,'G5-ML1'!$A$6:$AM$500,13,FALSE))),"NA") -> 3.765587595 | K26: =IFERROR((IF($C26="NA","NA",ROUND(VLOOKUP($A$3,'G5-ML1'!$A$6:$AM$500,15,FALSE),0)&"% ("&IF(VLOOKUP($A$3,'G5-ML1'!$A$6:$AM$500,14,FALSE)="",0,VLOOKUP($A$3,'G5-ML1'!$A$6:$AM$500,14,FALSE))&")")),"NA") -> 0% (6)
A27: FCAT Level 2 | B27: =IFERROR(VLOOKUP(TEXT($A$3,"0000"),MEM_ML2!$A$3:$O$501,6,FALSE),0) -> 4661 | C27: =IFERROR((IF(OR(B27<10,B27="",B27="NA"),"NA",((IF(VLOOKUP($A$3,'G5-ML2'!$A$6:$AG$500,3,FALSE)>=B27,"100% ("&VLOOKUP($A$3,'G5-ML2'!$A$6:$AG$500,3,FALSE)&")",(ROUND((VLOOKUP($A$3,'G5-ML2'!$A$6:$AG$500,3,FALSE)/B27*100),0))&"% ("&IF(VLOOKUP($A$3,'G5-ML2'!$A$6:$AG$500,3,FALSE)="",0,VLOOKUP($A$3,'G5-ML2'!$A$6:$AG$500,3,FALSE))&")"))))),"0% (0)") -> 95% (4413) | D27: =IFERROR((IF($C27="NA","NA",VLOOKUP($A$3,'G5-ML2'!$A$6:$AM$500,4,FALSE))),"NA") -> 12.87949241 | E27: =IFERROR((IF($C27="NA","NA",ROUND(VLOOKUP($A$3,'G5-ML2'!$A$6:$AM$500,6,FALSE),0)&"% ("&IF(VLOOKUP($A$3,'G5-ML2'!$A$6:$AM$500,5,FALSE)="",0,VLOOKUP($A$3,'G5-ML2'!$A$6:$AM$500,5,FALSE))&")")),"NA") -> 0% (1) | F27: =IFERROR((IF($C27="NA","NA",VLOOKUP($A$3,'G5-ML2'!$A$6:$AM$500,7,FALSE))),"NA") -> 5.4253569 | G27: =IFERROR((IF($C27="NA","NA",ROUND(VLOOKUP($A$3,'G5-ML2'!$A$6:$AM$500,9,FALSE),0)&"% ("&IF(VLOOKUP($A$3,'G5-ML2'!$A$6:$AM$500,8,FALSE)="",0,VLOOKUP($A$3,'G5-ML2'!$A$6:$AM$500,8,FALSE))&")")),"NA") -> 1% (31) | H27: =IFERROR((IF($C27="NA","NA",VLOOKUP($A$3,'G5-ML2'!$A$6:$AM$500,10,FALSE))),"NA") -> 3.15701337 | I27: =IFERROR((IF($C27="NA","NA",ROUND(VLOOKUP($A$3,'G5-ML2'!$A$6:$AM$500,12,FALSE),0)&"% ("&IF(VLOOKUP($A$3,'G5-ML2'!$A$6:$AM$500,11,FALSE)="",0,VLOOKUP($A$3,'G5-ML2'!$A$6:$AM$500,11,FALSE))&")")),"NA") -> 1% (30) | J27: =IFERROR((IF($C27="NA","NA",VLOOKUP($A$3,'G5-ML2'!$A$6:$AM$500,13,FALSE))),"NA") -> 4.297394063 | K27: =IFERROR((IF($C27="NA","NA",ROUND(VLOOKUP($A$3,'G5-ML2'!$A$6:$AM$500,15,FALSE),0)&"% ("&IF(VLOOKUP($A$3,'G5-ML2'!$A$6:$AM$500,14,FALSE)="",0,VLOOKUP($A$3,'G5-ML2'!$A$6:$AM$500,14,FALSE))&")")),"NA") -> 0% (10)
A28: FCAT Level 3 | B28: =IFERROR(VLOOKUP(TEXT($A$3,"0000"),MEM_ML3!$A$3:$O$501,6,FALSE),0) -> 6858 | C28: =IFERROR((IF(OR(B28<10,B28="",B28="NA"),"NA",((IF(VLOOKUP($A$3,'G5-ML3'!$A$6:$AG$500,3,FALSE)>=B28,"100% ("&VLOOKUP($A$3,'G5-ML3'!$A$6:$AG$500,3,FALSE)&")",(ROUND((VLOOKUP($A$3,'G5-ML3'!$A$6:$AG$500,3,FALSE)/B28*100),0))&"% ("&IF(VLOOKUP($A$3,'G5-ML3'!$A$6:$AG$500,3,FALSE)="",0,VLOOKUP($A$3,'G5-ML3'!$A$6:$AG$500,3,FALSE))&")"))))),"0% (0)") -> 95% (6513) | D28: =IFERROR((IF($C28="NA","NA",VLOOKUP($A$3,'G5-ML3'!$A$6:$AM$500,4,FALSE))),"NA") -> 15.79009673 | E28: =IFERROR((IF($C28="NA","NA",ROUND(VLOOKUP($A$3,'G5-ML3'!$A$6:$AM$500,6,FALSE),0)&"% ("&IF(VLOOKUP($A$3,'G5-ML3'!$A$6:$AM$500,5,FALSE)="",0,VLOOKUP($A$3,'G5-ML3'!$A$6:$AM$500,5,FALSE))&")")),"NA") -> 0% (23) | F28: =IFERROR((IF($C28="NA","NA",VLOOKUP($A$3,'G5-ML3'!$A$6:$AM$500,7,FALSE))),"NA") -> 7.219345924 | G28: =IFERROR((IF($C28="NA","NA",ROUND(VLOOKUP($A$3,'G5-ML3'!$A$6:$AM$500,9,FALSE),0)&"% ("&IF(VLOOKUP($A$3,'G5-ML3'!$A$6:$AM$500,8,FALSE)="",0,VLOOKUP($A$3,'G5-ML3'!$A$6:$AM$500,8,FALSE))&")")),"NA") -> 5% (303) | H28: =IFERROR((IF($C28="NA","NA",VLOOKUP($A$3,'G5-ML3'!$A$6:$AM$500,10,FALSE))),"NA") -> 3.512482727 | I28: =IFERROR((IF($C28="NA","NA",ROUND(VLOOKUP($A$3,'G5-ML3'!$A$6:$AM$500,12,FALSE),0)&"% ("&IF(VLOOKUP($A$3,'G5-ML3'!$A$6:$AM$500,11,FALSE)="",0,VLOOKUP($A$3,'G5-ML3'!$A$6:$AM$500,11,FALSE))&")")),"NA") -> 2% (107) | J28: =IFERROR((IF($C28="NA","NA",VLOOKUP($A$3,'G5-ML3'!$A$6:$AM$500,13,FALSE))),"NA") -> 5.060264087 | K28: =IFERROR((IF($C28="NA","NA",ROUND(VLOOKUP($A$3,'G5-ML3'!$A$6:$AM$500,15,FALSE),0)&"% ("&IF(VLOOKUP($A$3,'G5-ML3'!$A$6:$AM$500,14,FALSE)="",0,VLOOKUP($A$3,'G5-ML3'!$A$6:$AM$500,14,FALSE))&")")),"NA") -> 1% (73)
A29: FCAT Level 4 | B29: =IFERROR(VLOOKUP(TEXT($A$3,"0000"),MEM_ML4!$A$3:$O$501,6,FALSE),0) -> 5615 | C29: =IFERROR((IF(OR(B29<10,B29="",B29="NA"),"NA",((IF(VLOOKUP($A$3,'G5-ML4'!$A$6:$AG$500,3,FALSE)>=B29,"100% ("&VLOOKUP($A$3,'G5-ML4'!$A$6:$AG$500,3,FALSE)&")",(ROUND((VLOOKUP($A$3,'G5-ML4'!$A$6:$AG$500,3,FALSE)/B29*100),0))&"% ("&IF(VLOOKUP($A$3,'G5-ML4'!$A$6:$AG$500,3,FALSE)="",0,VLOOKUP($A$3,'G5-ML4'!$A$6:$AG$500,3,FALSE))&")"))))),"0% (0)") -> 96% (5375) | D29: =IFERROR((IF($C29="NA","NA",VLOOKUP($A$3,'G5-ML4'!$A$6:$AM$500,4,FALSE))),"NA") -> 19.67477209 | E29: =IFERROR((IF($C29="NA","NA",ROUND(VLOOKUP($A$3,'G5-ML4'!$A$6:$AM$500,6,FALSE),0)&"% ("&IF(VLOOKUP($A$3,'G5-ML4'!$A$6:$AM$500,5,FALSE)="",0,VLOOKUP($A$3,'G5-ML4'!$A$6:$AM$500,5,FALSE))&")")),"NA") -> 4% (216) | F29: =IFERROR((IF($C29="NA","NA",VLOOKUP($A$3,'G5-ML4'!$A$6:$AM$500,7,FALSE))),"NA") -> 9.27495814 | G29: =IFERROR((IF($C29="NA","NA",ROUND(VLOOKUP($A$3,'G5-ML4'!$A$6:$AM$500,9,FALSE),0)&"% ("&IF(VLOOKUP($A$3,'G5-ML4'!$A$6:$AM$500,8,FALSE)="",0,VLOOKUP($A$3,'G5-ML4'!$A$6:$AM$500,8,FALSE))&")")),"NA") -> 20% (1050) | H29: =IFERROR((IF($C29="NA","NA",VLOOKUP($A$3,'G5-ML4'!$A$6:$AM$500,10,FALSE))),"NA") -> 4.174065116 | I29: =IFERROR((IF($C29="NA","NA",ROUND(VLOOKUP($A$3,'G5-ML4'!$A$6:$AM$500,12,FALSE),0)&"% ("&IF(VLOOKUP($A$3,'G5-ML4'!$A$6:$AM$500,11,FALSE)="",0,VLOOKUP($A$3,'G5-ML4'!$A$6:$AM$500,11,FALSE))&")")),"NA") -> 5% (274) | J29: =IFERROR((IF($C29="NA","NA",VLOOKUP($A$3,'G5-ML4'!$A$6:$AM$500,13,FALSE))),"NA") -> 6.236725581 | K29: =IFERROR((IF($C29="NA","NA",ROUND(VLOOKUP($A$3,'G5-ML4'!$A$6:$AM$500,15,FALSE),0)&"% ("&IF(VLOOKUP($A$3,'G5-ML4'!$A$6:$AM$500,14,FALSE)="",0,VLOOKUP($A$3,'G5-ML4'!$A$6:$AM$500,14,FALSE))&")")),"NA") -> 6% (340)
A30: FCAT Level 5 | B30: =IFERROR(VLOOKUP(TEXT($A$3,"0000"),MEM_ML5!$A$3:$M$501,6,FALSE),0) -> 3374 | C30: =IFERROR((IF(OR(B30<10,B30="",B30="NA"),"NA",((IF(VLOOKUP($A$3,'G5-ML5'!$A$6:$AG$500,3,FALSE)>=B30,"100% ("&VLOOKUP($A$3,'G5-ML5'!$A$6:$AG$500,3,FALSE)&")",(ROUND((VLOOKUP($A$3,'G5-ML5'!$A$6:$AG$500,3,FALSE)/B30*100),0))&"% ("&IF(VLOOKUP($A$3,'G5-ML5'!$A$6:$AG$500,3,FALSE)="",0,VLOOKUP($A$3,'G5-ML5'!$A$6:$AG$500,3,FALSE))&")"))))),"0% (0)") -> 97% (3265) | D30: =IFERROR((IF($C30="NA","NA",VLOOKUP($A$3,'G5-ML5'!$A$6:$AM$500,4,FALSE))),"NA") -> 24.02701378 | E30: =IFERROR((IF($C30="NA","NA",ROUND(VLOOKUP($A$3,'G5-ML5'!$A$6:$AM$500,6,FALSE),0)&"% ("&IF(VLOOKUP($A$3,'G5-ML5'!$A$6:$AM$500,5,FALSE)="",0,VLOOKUP($A$3,'G5-ML5'!$A$6:$AM$500,5,FALSE))&")")),"NA") -> 25% (806) | F30: =IFERROR((IF($C30="NA","NA",VLOOKUP($A$3,'G5-ML5'!$A$6:$AM$500,7,FALSE))),"NA") -> 11.13917305 | G30: =IFERROR((IF($C30="NA","NA",ROUND(VLOOKUP($A$3,'G5-ML5'!$A$6:$AM$500,9,FALSE),0)&"% ("&IF(VLOOKUP($A$3,'G5-ML5'!$A$6:$AM$500,8,FALSE)="",0,VLOOKUP($A$3,'G5-ML5'!$A$6:$AM$500,8,FALSE))&")")),"NA") -> 48% (1565) | H30: =IFERROR((IF($C30="NA","NA",VLOOKUP($A$3,'G5-ML5'!$A$6:$AM$500,10,FALSE))),"NA") -> 4.956937213 | I30: =IFERROR((IF($C30="NA","NA",ROUND(VLOOKUP($A$3,'G5-ML5'!$A$6:$AM$500,12,FALSE),0)&"% ("&IF(VLOOKUP($A$3,'G5-ML5'!$A$6:$AM$500,11,FALSE)="",0,VLOOKUP($A$3,'G5-ML5'!$A$6:$AM$500,11,FALSE))&")")),"NA") -> 14% (461) | J30: =IFERROR((IF($C30="NA","NA",VLOOKUP($A$3,'G5-ML5'!$A$6:$AM$500,13,FALSE))),"NA") -> 7.928943338 | K30: =IFERROR((IF($C30="NA","NA",ROUND(VLOOKUP($A$3,'G5-ML5'!$A$6:$AM$500,15,FALSE),0)&"% ("&IF(VLOOKUP($A$3,'G5-ML5'!$A$6:$AM$500,14,FALSE)="",0,VLOOKUP($A$3,'G5-ML5'!$A$6:$AM$500,14,FALSE))&")")),"NA") -> 27% (889)
A31: White | B31: =IFERROR(VLOOKUP(TEXT($A$3,"0000"),MEM_W!$A$3:$O$501,9,FALSE),0) -> 2093 | C31: =IFERROR((IF(OR(B31<10,B31="",B31="NA"),"NA",((IF(VLOOKUP($A$3,'G5-MW'!$A$6:$AG$500,3,FALSE)>=B31,"100% ("&VLOOKUP($A$3,'G5-MW'!$A$6:$AG$500,3,FALSE)&")",(ROUND((VLOOKUP($A$3,'G5-MW'!$A$6:$AG$500,3,FALSE)/B31*100),0))&"% ("&IF(VLOOKUP($A$3,'G5-MW'!$A$6:$AG$500,3,FALSE)="",0,VLOOKUP($A$3,'G5-MW'!$A$6:$AG$500,3,FALSE))&")"))))),"0% (0)") -> 95% (1990) | D31: =IFERROR((IF($C31="NA","NA",VLOOKUP($A$3,'G5-MW'!$A$6:$AM$500,4,FALSE))),"NA") -> 19.54964824 | E31: =IFERROR((IF($C31="NA","NA",ROUND(VLOOKUP($A$3,'G5-MW'!$A$6:$AM$500,6,FALSE),0)&"% ("&IF(VLOOKUP($A$3,'G5-MW'!$A$6:$AM$500,5,FALSE)="",0,VLOOKUP($A$3,'G5-MW'!$A$6:$AM$500,5,FALSE))&")")),"NA") -> 12% (237) | F31: =IFERROR((IF($C31="NA","NA",VLOOKUP($A$3,'G5-MW'!$A$6:$AM$500,7,FALSE))),"NA") -> 8.956231156 | G31: =IFERROR((IF($C31="NA","NA",ROUND(VLOOKUP($A$3,'G5-MW'!$A$6:$AM$500,9,FALSE),0)&"% ("&IF(VLOOKUP($A$3,'G5-MW'!$A$6:$AM$500,8,FALSE)="",0,VLOOKUP($A$3,'G5-MW'!$A$6:$AM$500,8,FALSE))&")")),"NA") -> 25% (489) | H31: =IFERROR((IF($C31="NA","NA",VLOOKUP($A$3,'G5-MW'!$A$6:$AM$500,10,FALSE))),"NA") -> 4.227135678 | I31: =IFERROR((IF($C31="NA","NA",ROUND(VLOOKUP($A$3,'G5-MW'!$A$6:$AM$500,12,FALSE),0)&"% ("&IF(VLOOKUP($A$3,'G5-MW'!$A$6:$AM$500,11,FALSE)="",0,VLOOKUP($A$3,'G5-MW'!$A$6:$AM$500,11,FALSE))&")")),"NA") -> 9% (175) | J31: =IFERROR((IF($C31="NA","NA",VLOOKUP($A$3,'G5-MW'!$A$6:$AM$500,13,FALSE))),"NA") -> 6.355577889 | K31: =IFERROR((IF($C31="NA","NA",ROUND(VLOOKUP($A$3,'G5-MW'!$A$6:$AM$500,15,FALSE),0)&"% ("&IF(VLOOKUP($A$3,'G5-MW'!$A$6:$AM$500,14,FALSE)="",0,VLOOKUP($A$3,'G5-MW'!$A$6:$AM$500,14,FALSE))&")")),"NA") -> 13% (265)
A32: Black | B32: =IFERROR(VLOOKUP(TEXT($A$3,"0000"),MEM_B!$A$3:$O$501,9,FALSE),0) -> 5536 | C32: =IFERROR((IF(OR(B32<10,B32="",B32="NA"),"NA",((IF(VLOOKUP($A$3,'G5-MB'!$A$6:$AG$500,3,FALSE)>=B32,"100% ("&VLOOKUP($A$3,'G5-MB'!$A$6:$AG$500,3,FALSE)&")",(ROUND((VLOOKUP($A$3,'G5-MB'!$A$6:$AG$500,3,FALSE)/B32*100),0))&"% ("&IF(VLOOKUP($A$3,'G5-MB'!$A$6:$AG$500,3,FALSE)="",0,VLOOKUP($A$3,'G5-MB'!$A$6:$AG$500,3,FALSE))&")"))))),"0% (0)") -> 91% (5048) | D32: =IFERROR((IF($C32="NA","NA",VLOOKUP($A$3,'G5-MB'!$A$6:$AM$500,4,FALSE))),"NA") -> 14.39110539 | E32: =IFERROR((IF($C32="NA","NA",ROUND(VLOOKUP($A$3,'G5-MB'!$A$6:$AM$500,6,FALSE),0)&"% ("&IF(VLOOKUP($A$3,'G5-MB'!$A$6:$AM$500,5,FALSE)="",0,VLOOKUP($A$3,'G5-MB'!$A$6:$AM$500,5,FALSE))&")")),"NA") -> 1% (69) | F32: =IFERROR((IF($C32="NA","NA",VLOOKUP($A$3,'G5-MB'!$A$6:$AM$500,7,FALSE))),"NA") -> 6.313926307 | G32: =IFERROR((IF($C32="NA","NA",ROUND(VLOOKUP($A$3,'G5-MB'!$A$6:$AM$500,9,FALSE),0)&"% ("&IF(VLOOKUP($A$3,'G5-MB'!$A$6:$AM$500,8,FALSE)="",0,VLOOKUP($A$3,'G5-MB'!$A$6:$AM$500,8,FALSE))&")")),"NA") -> 5% (277) | H32: =IFERROR((IF($C32="NA","NA",VLOOKUP($A$3,'G5-MB'!$A$6:$AM$500,10,FALSE))),"NA") -> 3.298652932 | I32: =IFERROR((IF($C32="NA","NA",ROUND(VLOOKUP($A$3,'G5-MB'!$A$6:$AM$500,12,FALSE),0)&"% ("&IF(VLOOKUP($A$3,'G5-MB'!$A$6:$AM$500,11,FALSE)="",0,VLOOKUP($A$3,'G5-MB'!$A$6:$AM$500,11,FALSE))&")")),"NA") -> 2% (93) | J32: =IFERROR((IF($C32="NA","NA",VLOOKUP($A$3,'G5-MB'!$A$6:$AM$500,13,FALSE))),"NA") -> 4.791164818 | K32: =IFERROR((IF($C32="NA","NA",ROUND(VLOOKUP($A$3,'G5-MB'!$A$6:$AM$500,15,FALSE),0)&"% ("&IF(VLOOKUP($A$3,'G5-MB'!$A$6:$AM$500,14,FALSE)="",0,VLOOKUP($A$3,'G5-MB'!$A$6:$AM$500,14,FALSE))&")")),"NA") -> 2% (124)
A33: Hispanic | B33: =IFERROR(VLOOKUP(TEXT($A$3,"0000"),MEM_H!$A$3:$O$501,9,FALSE),0) -> 17477 | C33: =IFERROR((IF(OR(B33<10,B33="",B33="NA"),"NA",((IF(VLOOKUP($A$3,'G5-MH'!$A$6:$AG$500,3,FALSE)>=B33,"100% ("&VLOOKUP($A$3,'G5-MH'!$A$6:$AG$500,3,FALSE)&")",(ROUND((VLOOKUP($A$3,'G5-MH'!$A$6:$AG$500,3,FALSE)/B33*100),0))&"% ("&IF(VLOOKUP($A$3,'G5-MH'!$A$6:$AG$500,3,FALSE)="",0,VLOOKUP($A$3,'G5-MH'!$A$6:$AG$500,3,FALSE))&")"))))),"0% (0)") -> 95% (16535) | D33: =IFERROR((IF($C33="NA","NA",VLOOKUP($A$3,'G5-MH'!$A$6:$AM$500,4,FALSE))),"NA") -> 16.58537647 | E33: =IFERROR((IF($C33="NA","NA",ROUND(VLOOKUP($A$3,'G5-MH'!$A$6:$AM$500,6,FALSE),0)&"% ("&IF(VLOOKUP($A$3,'G5-MH'!$A$6:$AM$500,5,FALSE)="",0,VLOOKUP($A$3,'G5-MH'!$A$6:$AM$500,5,FALSE))&")")),"NA") -> 4% (679) | F33: =IFERROR((IF($C33="NA","NA",VLOOKUP($A$3,'G5-MH'!$A$6:$AM$500,7,FALSE))),"NA") -> 7.532113698 | G33: =IFERROR((IF($C33="NA","NA",ROUND(VLOOKUP($A$3,'G5-MH'!$A$6:$AM$500,9,FALSE),0)&"% ("&IF(VLOOKUP($A$3,'G5-MH'!$A$6:$AM$500,8,FALSE)="",0,VLOOKUP($A$3,'G5-MH'!$A$6:$AM$500,8,FALSE))&")")),"NA") -> 13% (2124) | H33: =IFERROR((IF($C33="NA","NA",VLOOKUP($A$3,'G5-MH'!$A$6:$AM$500,10,FALSE))),"NA") -> 3.68386453 | I33: =IFERROR((IF($C33="NA","NA",ROUND(VLOOKUP($A$3,'G5-MH'!$A$6:$AM$500,12,FALSE),0)&"% ("&IF(VLOOKUP($A$3,'G5-MH'!$A$6:$AM$500,11,FALSE)="",0,VLOOKUP($A$3,'G5-MH'!$A$6:$AM$500,11,FALSE))&")")),"NA") -> 4% (587) | J33: =IFERROR((IF($C33="NA","NA",VLOOKUP($A$3,'G5-MH'!$A$6:$AM$500,13,FALSE))),"NA") -> 5.369361959 | K33: =IFERROR((IF($C33="NA","NA",ROUND(VLOOKUP($A$3,'G5-MH'!$A$6:$AM$500,15,FALSE),0)&"% ("&IF(VLOOKUP($A$3,'G5-MH'!$A$6:$AM$500,14,FALSE)="",0,VLOOKUP($A$3,'G5-MH'!$A$6:$AM$500,14,FALSE))&")")),"NA") -> 5% (866)
A34: Asian | B34: =IFERROR(VLOOKUP(TEXT($A$3,"0000"),MEM_A!$A$3:$O$501,9,FALSE),0) -> 305 | C34: =IFERROR((IF(OR(B34<10,B34="",B34="NA"),"NA",((IF(VLOOKUP($A$3,'G5-MA'!$A$6:$AG$500,3,FALSE)>=B34,"100% ("&VLOOKUP($A$3,'G5-MA'!$A$6:$AG$500,3,FALSE)&")",(ROUND((VLOOKUP($A$3,'G5-MA'!$A$6:$AG$500,3,FALSE)/B34*100),0))&"% ("&IF(VLOOKUP($A$3,'G5-MA'!$A$6:$AG$500,3,FALSE)="",0,VLOOKUP($A$3,'G5-MA'!$A$6:$AG$500,3,FALSE))&")"))))),"0% (0)") -> 93% (285) | D34: =IFERROR((IF($C34="NA","NA",VLOOKUP($A$3,'G5-MA'!$A$6:$AM$500,4,FALSE))),"NA") -> 21.58807018 | E34: =IFERROR((IF($C34="NA","NA",ROUND(VLOOKUP($A$3,'G5-MA'!$A$6:$AM$500,6,FALSE),0)&"% ("&IF(VLOOKUP($A$3,'G5-MA'!$A$6:$AM$500,5,FALSE)="",0,VLOOKUP($A$3,'G5-MA'!$A$6:$AM$500,5,FALSE))&")")),"NA") -> 26% (73) | F34: =IFERROR((IF($C34="NA","NA",VLOOKUP($A$3,'G5-MA'!$A$6:$AM$500,7,FALSE))),"NA") -> 9.796140351 | G34: =IFERROR((IF($C34="NA","NA",ROUND(VLOOKUP($A$3,'G5-MA'!$A$6:$AM$500,9,FALSE),0)&"% ("&IF(VLOOKUP($A$3,'G5-MA'!$A$6:$AM$500,8,FALSE)="",0,VLOOKUP($A$3,'G5-MA'!$A$6:$AM$500,8,FALSE))&")")),"NA") -> 38% (107) | H34: =IFERROR((IF($C34="NA","NA",VLOOKUP($A$3,'G5-MA'!$A$6:$AM$500,10,FALSE))),"NA") -> 4.575789474 | I34: =IFERROR((IF($C34="NA","NA",ROUND(VLOOKUP($A$3,'G5-MA'!$A$6:$AM$500,12,FALSE),0)&"% ("&IF(VLOOKUP($A$3,'G5-MA'!$A$6:$AM$500,11,FALSE)="",0,VLOOKUP($A$3,'G5-MA'!$A$6:$AM$500,11,FALSE))&")")),"NA") -> 14% (40) | J34: =IFERROR((IF($C34="NA","NA",VLOOKUP($A$3,'G5-MA'!$A$6:$AM$500,13,FALSE))),"NA") -> 7.221754386 | K34: =IFERROR((IF($C34="NA","NA",ROUND(VLOOKUP($A$3,'G5-MA'!$A$6:$AM$500,15,FALSE),0)&"% ("&IF(VLOOKUP($A$3,'G5-MA'!$A$6:$AM$500,14,FALSE)="",0,VLOOKUP($A$3,'G5-MA'!$A$6:$AM$500,14,FALSE))&")")),"NA") -> 25% (70)
A35: Am. Indian | B35: =IFERROR(VLOOKUP(TEXT($A$3,"0000"),MEM_I!$A$3:$O$501,9,FALSE),0) -> 20 | C35: =IFERROR((IF(OR(B35<10,B35="",B35="NA"),"NA",((IF(VLOOKUP($A$3,'G5-MI'!$A$6:$AG$500,3,FALSE)>=B35,"100% ("&VLOOKUP($A$3,'G5-MI'!$A$6:$AG$500,3,FALSE)&")",(ROUND((VLOOKUP($A$3,'G5-MI'!$A$6:$AG$500,3,FALSE)/B35*100),0))&"% ("&IF(VLOOKUP($A$3,'G5-MI'!$A$6:$AG$500,3,FALSE)="",0,VLOOKUP($A$3,'G5-MI'!$A$6:$AG$500,3,FALSE))&")"))))),"0% (0)") -> 95% (19) | D35: =IFERROR((IF($C35="NA","NA",VLOOKUP($A$3,'G5-MI'!$A$6:$AM$500,4,FALSE))),"NA") -> 18.94736842 | E35: =IFERROR((IF($C35="NA","NA",ROUND(VLOOKUP($A$3,'G5-MI'!$A$6:$AM$500,6,FALSE),0)&"% ("&IF(VLOOKUP($A$3,'G5-MI'!$A$6:$AM$500,5,FALSE)="",0,VLOOKUP($A$3,'G5-MI'!$A$6:$AM$500,5,FALSE))&")")),"NA") -> 16% (3) | F35: =IFERROR((IF($C35="NA","NA",VLOOKUP($A$3,'G5-MI'!$A$6:$AM$500,7,FALSE))),"NA") -> 8.473684211 | G35: =IFERROR((IF($C35="NA","NA",ROUND(VLOOKUP($A$3,'G5-MI'!$A$6:$AM$500,9,FALSE),0)&"% ("&IF(VLOOKUP($A$3,'G5-MI'!$A$6:$AM$500,8,FALSE)="",0,VLOOKUP($A$3,'G5-MI'!$A$6:$AM$500,8,FALSE))&")")),"NA") -> 26% (5) | H35: =IFERROR((IF($C35="NA","NA",VLOOKUP($A$3,'G5-MI'!$A$6:$AM$500,10,FALSE))),"NA") -> 4.315789474 | I35: =IFERROR((IF($C35="NA","NA",ROUND(VLOOKUP($A$3,'G5-MI'!$A$6:$AM$500,12,FALSE),0)&"% ("&IF(VLOOKUP($A$3,'G5-MI'!$A$6:$AM$500,11,FALSE)="",0,VLOOKUP($A$3,'G5-MI'!$A$6:$AM$500,11,FALSE))&")")),"NA") -> 16% (3) | J35: =IFERROR((IF($C35="NA","NA",VLOOKUP($A$3,'G5-MI'!$A$6:$AM$500,13,FALSE))),"NA") -> 6.157894737 | K35: =IFERROR((IF($C35="NA","NA",ROUND(VLOOKUP($A$3,'G5-MI'!$A$6:$AM$500,15,FALSE),0)&"% ("&IF(VLOOKUP($A$3,'G5-MI'!$A$6:$AM$500,14,FALSE)="",0,VLOOKUP($A$3,'G5-MI'!$A$6:$AM$500,14,FALSE))&")")),"NA") -> 21% (4)
A36: ED | B36: =IFERROR(VLOOKUP(TEXT($A$3,"0000"),MEM_ED!$A$3:$O$501,9,FALSE),0) -> 19602 | C36: =IFERROR((IF(OR(B36<10,B36="",B36="NA"),"NA",((IF(VLOOKUP($A$3,'G5-MED'!$A$6:$AG$500,3,FALSE)>=B36,"100% ("&VLOOKUP($A$3,'G5-MED'!$A$6:$AG$500,3,FALSE)&")",(ROUND((VLOOKUP($A$3,'G5-MED'!$A$6:$AG$500,3,FALSE)/B36*100),0))&"% ("&IF(VLOOKUP($A$3,'G5-MED'!$A$6:$AG$500,3,FALSE)="",0,VLOOKUP($A$3,'G5-MED'!$A$6:$AG$500,3,FALSE))&")"))))),"0% (0)") -> 95% (18678) | D36: =IFERROR((IF($C36="NA","NA",VLOOKUP($A$3,'G5-MED'!$A$6:$AM$500,4,FALSE))),"NA") -> 15.55860906 | E36: =IFERROR((IF($C36="NA","NA",ROUND(VLOOKUP($A$3,'G5-MED'!$A$6:$AM$500,6,FALSE),0)&"% ("&IF(VLOOKUP($A$3,'G5-MED'!$A$6:$AM$500,5,FALSE)="",0,VLOOKUP($A$3,'G5-MED'!$A$6:$AM$500,5,FALSE))&")")),"NA") -> 3% (505) | F36: =IFERROR((IF($C36="NA","NA",VLOOKUP($A$3,'G5-MED'!$A$6:$AM$500,7,FALSE))),"NA") -> 6.977449406 | G36: =IFERROR((IF($C36="NA","NA",ROUND(VLOOKUP($A$3,'G5-MED'!$A$6:$AM$500,9,FALSE),0)&"% ("&IF(VLOOKUP($A$3,'G5-MED'!$A$6:$AM$500,8,FALSE)="",0,VLOOKUP($A$3,'G5-MED'!$A$6:$AM$500,8,FALSE))&")")),"NA") -> 9% (1763) | H36: =IFERROR((IF($C36="NA","NA",VLOOKUP($A$3,'G5-MED'!$A$6:$AM$500,10,FALSE))),"NA") -> 3.501092194 | I36: =IFERROR((IF($C36="NA","NA",ROUND(VLOOKUP($A$3,'G5-MED'!$A$6:$AM$500,12,FALSE),0)&"% ("&IF(VLOOKUP($A$3,'G5-MED'!$A$6:$AM$500,11,FALSE)="",0,VLOOKUP($A$3,'G5-MED'!$A$6:$AM$500,11,FALSE))&")")),"NA") -> 3% (496) | J36: =IFERROR((IF($C36="NA","NA",VLOOKUP($A$3,'G5-MED'!$A$6:$AM$500,13,FALSE))),"NA") -> 5.075388157 | K36: =IFERROR((IF($C36="NA","NA",ROUND(VLOOKUP($A$3,'G5-MED'!$A$6:$AM$500,15,FALSE),0)&"% ("&IF(VLOOKUP($A$3,'G5-MED'!$A$6:$AM$500,14,FALSE)="",0,VLOOKUP($A$3,'G5-MED'!$A$6:$AM$500,14,FALSE))&")")),"NA") -> 4% (695)
A37: ELL | B37: =IFERROR(VLOOKUP(TEXT($A$3,"0000"),MEM_ELL!$A$3:$O$501,9,FALSE),0) -> 6528 | C37: =IFERROR((IF(OR(B37<10,B37="",B37="NA"),"NA",((IF(VLOOKUP($A$3,'G5-MELL'!$A$6:$AG$500,3,FALSE)>=B37,"100% ("&VLOOKUP($A$3,'G5-MELL'!$A$6:$AG$500,3,FALSE)&")",(ROUND((VLOOKUP($A$3,'G5-MELL'!$A$6:$AG$500,3,FALSE)/B37*100),0))&"% ("&IF(VLOOKUP($A$3,'G5-MELL'!$A$6:$AG$500,3,FALSE)="",0,VLOOKUP($A$3,'G5-MELL'!$A$6:$AG$500,3,FALSE))&")"))))),"0% (0)") -> 95% (6169) | D37: =IFERROR((IF($C37="NA","NA",VLOOKUP($A$3,'G5-MELL'!$A$6:$AM$500,4,FALSE))),"NA") -> 13.27767872 | E37: =IFERROR((IF($C37="NA","NA",ROUND(VLOOKUP($A$3,'G5-MELL'!$A$6:$AM$500,6,FALSE),0)&"% ("&IF(VLOOKUP($A$3,'G5-MELL'!$A$6:$AM$500,5,FALSE)="",0,VLOOKUP($A$3,'G5-MELL'!$A$6:$AM$500,5,FALSE))&")")),"NA") -> 1% (36) | F37: =IFERROR((IF($C37="NA","NA",VLOOKUP($A$3,'G5-MELL'!$A$6:$AM$500,7,FALSE))),"NA") -> 5.830280434 | G37: =IFERROR((IF($C37="NA","NA",ROUND(VLOOKUP($A$3,'G5-MELL'!$A$6:$AM$500,9,FALSE),0)&"% ("&IF(VLOOKUP($A$3,'G5-MELL'!$A$6:$AM$500,8,FALSE)="",0,VLOOKUP($A$3,'G5-MELL'!$A$6:$AM$500,8,FALSE))&")")),"NA") -> 4% (224) | H37: =IFERROR((IF($C37="NA","NA",VLOOKUP($A$3,'G5-MELL'!$A$6:$AM$500,10,FALSE))),"NA") -> 3.077322094 | I37: =IFERROR((IF($C37="NA","NA",ROUND(VLOOKUP($A$3,'G5-MELL'!$A$6:$AM$500,12,FALSE),0)&"% ("&IF(VLOOKUP($A$3,'G5-MELL'!$A$6:$AM$500,11,FALSE)="",0,VLOOKUP($A$3,'G5-MELL'!$A$6:$AM$500,11,FALSE))&")")),"NA") -> 1% (52) | J37: =IFERROR((IF($C37="NA","NA",VLOOKUP($A$3,'G5-MELL'!$A$6:$AM$500,13,FALSE))),"NA") -> 4.370076187 | K37: =IFERROR((IF($C37="NA","NA",ROUND(VLOOKUP($A$3,'G5-MELL'!$A$6:$AM$500,15,FALSE),0)&"% ("&IF(VLOOKUP($A$3,'G5-MELL'!$A$6:$AM$500,14,FALSE)="",0,VLOOKUP($A$3,'G5-MELL'!$A$6:$AM$500,14,FALSE))&")")),"NA") -> 1% (66)
A38: SWD | B38: =IFERROR(VLOOKUP(TEXT($A$3,"0000"),MEM_SWD!$A$3:$O$501,9,FALSE),0) -> 2416 | C38: =IFERROR((IF(OR(B38<10,B38="",B38="NA"),"NA",((IF(VLOOKUP($A$3,'G5-MSWD'!$A$6:$AG$500,3,FALSE)>=B38,"100% ("&VLOOKUP($A$3,'G5-MSWD'!$A$6:$AG$500,3,FALSE)&")",(ROUND((VLOOKUP($A$3,'G5-MSWD'!$A$6:$AG$500,3,FALSE)/B38*100),0))&"% ("&IF(VLOOKUP($A$3,'G5-MSWD'!$A$6:$AG$500,3,FALSE)="",0,VLOOKUP($A$3,'G5-MSWD'!$A$6:$AG$500,3,FALSE))&")"))))),"0% (0)") -> 92% (2229) | D38: =IFERROR((IF($C38="NA","NA",VLOOKUP($A$3,'G5-MSWD'!$A$6:$AM$500,4,FALSE))),"NA") -> 12.77877972 | E38: =IFERROR((IF($C38="NA","NA",ROUND(VLOOKUP($A$3,'G5-MSWD'!$A$6:$AM$500,6,FALSE),0)&"% ("&IF(VLOOKUP($A$3,'G5-MSWD'!$A$6:$AM$500,5,FALSE)="",0,VLOOKUP($A$3,'G5-MSWD'!$A$6:$AM$500,5,FALSE))&")")),"NA") -> 1% (24) | F38: =IFERROR((IF($C38="NA","NA",VLOOKUP($A$3,'G5-MSWD'!$A$6:$AM$500,7,FALSE))),"NA") -> 5.436025123 | G38: =IFERROR((IF($C38="NA","NA",ROUND(VLOOKUP($A$3,'G5-MSWD'!$A$6:$AM$500,9,FALSE),0)&"% ("&IF(VLOOKUP($A$3,'G5-MSWD'!$A$6:$AM$500,8,FALSE)="",0,VLOOKUP($A$3,'G5-MSWD'!$A$6:$AM$500,8,FALSE))&")")),"NA") -> 3% (75) | H38: =IFERROR((IF($C38="NA","NA",VLOOKUP($A$3,'G5-MSWD'!$A$6:$AM$500,10,FALSE))),"NA") -> 3.044818304 | I38: =IFERROR((IF($C38="NA","NA",ROUND(VLOOKUP($A$3,'G5-MSWD'!$A$6:$AM$500,12,FALSE),0)&"% ("&IF(VLOOKUP($A$3,'G5-MSWD'!$A$6:$AM$500,11,FALSE)="",0,VLOOKUP($A$3,'G5-MSWD'!$A$6:$AM$500,11,FALSE))&")")),"NA") -> 1% (22) | J38: =IFERROR((IF($C38="NA","NA",VLOOKUP($A$3,'G5-MSWD'!$A$6:$AM$500,13,FALSE))),"NA") -> 4.296635262 | K38: =IFERROR((IF($C38="NA","NA",ROUND(VLOOKUP($A$3,'G5-MSWD'!$A$6:$AM$500,15,FALSE),0)&"% ("&IF(VLOOKUP($A$3,'G5-MSWD'!$A$6:$AM$500,14,FALSE)="",0,VLOOKUP($A$3,'G5-MSWD'!$A$6:$AM$500,14,FALSE))&")")),"NA") -> 2% (37)
A39: Science - Grade 5
A40: Level of Proficiency at 70% or above | B40: Total # of Students | C40: % of Students Tested | D40: ='G3-5 Matrix'!C19&" ["&'G3-5 Matrix'!C20&"]" -> Overall [66] | F40: ='G3-5 Matrix'!D19&" ["&'G3-5 Matrix'!D20&"]" -> Nature of Science [8] | H40: ='G3-5 Matrix'!E19&" ["&'G3-5 Matrix'!E20&"]" -> Earth & Space Science [19] | J40: ='G3-5 Matrix'!F19&" ["&'G3-5 Matrix'!F20&"]" -> Physical Science [24] | L40: ='G3-5 Matrix'!G19&" ["&'G3-5 Matrix'!G20&"]" -> Life Science [15]
D41: Average Score | E41: % Proficient | F41: Average Score | G41: % Proficient | H41: Average Score | I41: % Proficient | J41: Average Score | K41: % Proficient | L41: Average Score | M41: % Proficient
A42: All students | B42: =IFERROR(VLOOKUP(TEXT($A$3,"0000"),Mem_All!$A$3:$O$501,9,FALSE),0) -> 25542 | C42: =IFERROR((IF(OR(B42<10,B42="",B42="NA"),"NA",((IF(VLOOKUP($A$3,'G5-SALL'!$A$6:$AG$500,3,FALSE)>=B42,"100% ("&VLOOKUP($A$3,'G5-SALL'!$A$6:$AG$500,3,FALSE)&")",(ROUND((VLOOKUP($A$3,'G5-SALL'!$A$6:$AG$500,3,FALSE)/B42*100),0))&"% ("&VLOOKUP($A$3,'G5-SALL'!$A$6:$AG$500,3,FALSE)&")"))))),"NA") -> 94% (24076) | D42: =IFERROR((IF($C42="NA","NA",VLOOKUP($A$3,'G5-SALL'!$A$6:$AG$500,4,FALSE))),"NA") -> 30.60000038 | E42: =IFERROR((IF($C42="NA","NA",ROUND(VLOOKUP($A$3,'G5-SALL'!$A$6:$AG$500,9,FALSE)*100,0)&"% ("&IF(VLOOKUP($A$3,'G5-SALL'!$A$6:$AG$500,7,FALSE)="",0,VLOOKUP($A$3,'G5-SALL'!$A$6:$AG$500,7,FALSE))&")")),"NA") -> 7% (1735) | F42: =IFERROR((IF($C42="NA","NA",VLOOKUP($A$3,'G5-SALL'!$A$6:$AG$500,10,FALSE))),"NA") -> 2.900000095 | G42: =IFERROR((IF($C42="NA","NA",ROUND(VLOOKUP($A$3,'G5-SALL'!$A$6:$AA$500,15,FALSE)*100,0)&"% ("&IF(VLOOKUP($A$3,'G5-SALL'!$A$6:$AA$500,13,FALSE)="",0,VLOOKUP($A$3,'G5-SALL'!$A$6:$AA$500,13,FALSE))&")")),"NA") -> 7% (1773) | H42: =IFERROR((IF($C42="NA","NA",VLOOKUP($A$3,'G5-SALL'!$A$6:$AG$500,16,FALSE))),"NA") -> 8.300000191 | I42: =IFERROR((IF($C42="NA","NA",ROUND(VLOOKUP($A$3,'G5-SALL'!$A$6:$AG$500,21,FALSE)*100,0)&"% ("&IF(VLOOKUP($A$3,'G5-SALL'!$A$6:$AG$500,19,FALSE)="",0,VLOOKUP($A$3,'G5-SALL'!$A$6:$AG$500,19,FALSE))&")")),"NA") -> 5% (1101) | J42: =IFERROR((IF($C42="NA","NA",VLOOKUP($A$3,'G5-SALL'!$A$6:$AG$500,22,FALSE))),"NA") -> 12.60000038 | K42: =IFERROR((IF($C42="NA","NA",ROUND(VLOOKUP($A$3,'G5-SALL'!$A$6:$AG$500,27,FALSE)*100,0)&"% ("&IF(VLOOKUP($A$3,'G5-SALL'!$A$6:$AG$500,25,FALSE)="",0,VLOOKUP($A$3,'G5-SALL'!$A$6:$AG$500,25,FALSE))&")")),"NA") -> 20% (4739) | L42: =IFERROR((IF($C42="NA","NA",VLOOKUP($A$3,'G5-SALL'!$A$6:$AG$500,28,FALSE))),"NA") -> 6.900000095 | M42: =IFERROR((IF($C42="NA","NA",ROUND(VLOOKUP($A$3,'G5-SALL'!$A$6:$AG$500,33,FALSE)*100,0)&"% ("&IF(VLOOKUP($A$3,'G5-SALL'!$A$6:$AG$500,31,FALSE)="",0,VLOOKUP($A$3,'G5-SALL'!$A$6:$AG$500,31,FALSE))&")")),"NA") -> 11% (2606)

Sheet G3-5 Matrix (hidden)
A2: Grade | B2: Reading | C2: Overall | D2: Vocabulary | E2: Reading Application | F2: Literary Analysis Fiction/Nonfiction | G2: Informational Text/ Research Process
A3: 3 | B3: N of Items | C3: =SUM(D3:G3) -> 31 | D3: 6 | E3: 17 | F3: 6 | G3: 2
A4: 3 | B4: 51% Cut | C4: =ROUND(0.505*C3,2) -> 15.66 | D4: =ROUND(0.505*D3,2) -> 3.03 | E4: 8.59 | F4: 3.03 | G4: 1.01
A5: 4 | B5: N of Items | C5: =SUM(D5:G5) -> 43 | D5: 7 | E5: 25 | F5: 6 | G5: 5
A6: 4 | B6: 51% Cut | C6: =ROUND(0.505*C5,2) -> 21.72 | D6: =ROUND(0.505*D5,2) -> 3.54 | E6: 12.63 | F6: 3.03 | G6: 2.53
A7: 5 | B7: N of Items | C7: =SUM(D7:G7) -> 43 | D7: 7 | E7: 23 | F7: 8 | G7: 5
A8: 5 | B8: 51% Cut | C8: =ROUND(0.505*C7,2) -> 21.72 | D8: =ROUND(0.505*D7,2) -> 3.54 | E8: 11.62 | F8: 4.04 | G8: 2.53
A10: 3 | B10: Math | C10: Overall | D10: Number: Operations, Problems, & Statistics | E10: Number: Fractions | F10: Geometry and Measurement
A11: 3 | B11: N of Items | C11: =SUM(D11:F11) -> 34 | D11: 15 | E11: 3 | F11: 16
A12: 3 | B12: 51% Cut | C12: =ROUND(0.505*C11,2) -> 17.17 | D12: =ROUND(0.505*D11,2) -> 7.58 | E12: 1.52 | F12: 8.08
A13: 4 | B13: Math | C13: Overall | D13: Number: Operations & Problems | E13: Number: Base Ten and Fractions | F13: Geometry and Measurement
A14: 4 | B14: N of Items | C14: =SUM(D14:G14) -> 34 | D14: 16 | E14: 8 | F14: 10
A15: 4 | B15: 51% Cut | C15: =ROUND(0.505*C14,2) -> 17.17 | D15: =ROUND(0.505*D14,2) -> 8.08 | E15: 4.04 | F15: 5.05
A16: 5 | B16: Math | C16: Overall | D16: Number: Base Ten & Fractions | E16: Expressions, Equations, & Statistics | F16: Geometry and Measurement
A17: 5 | B17: N of Items | C17: =SUM(D17:F17) -> 39 | D17: 16 | E17: 9 | F17: 14
A18: 5 | B18: 51% Cut | C18: =ROUND(0.505*C17,2) -> 19.7 | D18: =ROUND(0.505*D17,2) -> 8.08 | E18: 4.55 | F18: 7.07
A19: 5 | B19: Science | C19: Overall | D19: Nature of Science | E19: Earth & Space Science | F19: Physical Science | G19: Life Science
A20: 5 | B20: N of Items | C20: =SUM(D20:G20) -> 66 | D20: 8 | E20: 19 | F20: 24 | G20: 15
A21: 5 | B21: 51% Cut | C21: =ROUND(0.505*C20,2) -> 33.33 | D21: =ROUND(0.505*D20,2) -> 4.04 | E21: 9.6 | F21: 12.12 | G21: 7.58

Sheet Mem_All (hidden)
A1: 1 | B1: 2 | C1: 3 | D1: 4 | E1: 5 | F1: 6 | G1: 7 | H1: 8 | I1: 9 | J1: 10 | K1: 11 | L1: 12 | M1: 13 | N1: 14 | O1: 15 | P1: 16 | Q1: 17
A2: SCHOOL_NUMBER | B2: S_SCHL_NAME | C2: Total Of STUDENT_ID | D2: 00 | E2: 01 | F2: 02 | G2: 03 | H2: 04 | I2: 05 | J2: 06 | K2: 07 | L2: 08 | M2: 09 | N2: 10 | O2: 11 | P2: 12 | Q2: PK
A3: 0041 | B3: AIR BASE ELEMENTARY | C3: 778 | D3: 114 | E3: 113 | F3: 107 | G3: 117 | H3: 110 | I3: 115 | J3: 35 | Q3: 67
A4: 0070 | B4: CORAL REEF MONTESSORI ACAD CH | C4: 414 | D4: 71 | E4: 68 | F4: 52 | G4: 53 | H4: 53 | I4: 38 | J4: 28 | K4: 21 | L4: 30
A5: 0071 | B5: EUGENIA B. THOMAS K-8 CENTER | C5: 1602 | D5: 150 | E5: 159 | F5: 199 | G5: 194 | H5: 192 | I5: 199 | J5: 154 | K5: 149 | L5: 162 | Q5: 44
A6: 0072 | B6: SUMMERVILLE CHARTER SCHOOL | C6: 440 | E6: 109 | F6: 94 | G6: 85 | H6: 80 | I6: 72
A7: 0073 | B7: MANDARIN LAKES K-8 CENTER | C7: 1086 | D7: 144 | E7: 109 | F7: 145 | G7: 156 | H7: 125 | I7: 118 | J7: 113 | K7: 114 | L7: 62
A8: 0081 | B8: LENORA B. SMITH ELEMENTARY | C8: 408 | D8: 67 | E8: 57 | F8: 68 | G8: 63 | H8: 63 | I8: 52 | Q8: 38
A9: 0091 | B9: BOB GRAHAM EDUCATION CTR | C9: 1715 | D9: 144 | E9: 130 | F9: 159 | G9: 186 | H9: 195 | I9: 218 | J9: 196 | K9: 218 | L9: 230 | Q9: 39
A10: 0092 | B10: NORMAN S. EDELCUP/SUNNY ISLES | C10: 1850 | D10: 197 | E10: 210 | F10: 210 | G10: 230 | H10: 225 | I10: 215 | J10: 187 | K10: 180 | L10: 193 | Q10: 3
A11: 0100 | B11: MATER ACADEMY | C11: 743 | D11: 125 | E11: 124 | F11: 95 | G11: 147 | H11: 123 | I11: 129
A12: 0101 | B12: ARCOLA LAKE ELEMENTARY | C12: 483 | D12: 89 | E12: 66 | F12: 65 | G12: 76 | H12: 52 | I12: 65 | Q12: 70
A13: 0102 | B13: MIAMI COMMUNITY CHARTER SCHOOL | C13: 519 | D13: 97 | E13: 93 | F13: 89 | G13: 89 | H13: 82 | I13: 69
A14: 0111 | B14: MAYA ANGELOU ELEMENTARY | C14: 706 | D14: 108 | E14: 148 | F14: 108 | G14: 119 | H14: 80 | I14: 88 | Q14: 55
A15: 0121 | B15: AUBURNDALE ELEMENTARY | C15: 845 | D15: 111 | E15: 123 | F15: 142 | G15: 146 | H15: 122 | I15: 140 | Q15: 61
A16: 0122 | B16: DR ROLANDO ESPINOSA K-8 | C16: 1618 | D16: 168 | E16: 148 | F16: 192 | G16: 193 | H16: 172 | I16: 210 | J16: 157 | K16: 178 | L16: 181 | Q16: 19
A17: 0125 | B17: NORMA BUTLER BOSSARD ELEM | C17: 1281 | D17: 187 | E17: 226 | F17: 221 | G17: 187 | H17: 224 | I17: 217 | Q17: 19
A18: 0161 | B18: AVOCADO ELEMENTARY | C18: 565 | D18: 130 | E18: 136 | F18: 136 | G18: 163
A19: 0201 | B19: BANYAN ELEMENTARY | C19: 358 | D19: 59 | E19: 51 | F19: 58 | G19: 60 | H19: 36 | I19: 60 | Q19: 34
A20: 0211 | B20: DR. MANUEL C. BARREIRO ELEM | C20: 808 | D20: 105 | E20: 124 | F20: 135 | G20: 122 | H20: 136 | I20: 167 | Q20: 19
A21: 0231 | B21: AVENTURA WATERWAYS K-8 CENTER | C21: 1845 | D21: 194 | E21: 230 | F21: 242 | G21: 236 | H21: 177 | I21: 207 | J21: 192 | K21: 190 | L21: 177
A22: 0241 | B22: RUTH K BROAD/BAY HARBOR K-8 | C22: 1316 | D22: 131 | E22: 146 | F22: 135 | G22: 162 | H22: 141 | I22: 171 | J22: 131 | K22: 159 | L22: 120 | Q22: 20
A23: 0251 | B23: ETHEL KOGER BECKHAM ELEMENTARY | C23: 794 | D23: 137 | E23: 141 | F23: 119 | G23: 119 | H23: 123 | I23: 116 | Q23: 39
A24: 0261 | B24: BEL-AIRE ELEMENTARY | C24: 416 | D24: 73 | E24: 65 | F24: 70 | G24: 70 | H24: 62 | I24: 55 | Q24: 21
A25: 0271 | B25: BENT TREE ELEMENTARY | C25: 533 | D25: 89 | E25: 105 | F25: 74 | G25: 81 | H25: 74 | I25: 86 | Q25: 24
A26: 0311 | B26: GOULDS ELEMENTARY | C26: 598 | D26: 100 | E26: 114 | F26: 114 | G26: 91 | H26: 76 | I26: 103
A27: 0312 | B27: MATER GARDENS ACADEMY | C27: 566 | D27: 83 | E27: 97 | F27: 97 | G27: 96 | H27: 102 | I27: 91
A28: 0321 | B28: BISCAYNE ELEMENTARY | C28: 635 | D28: 97 | E28: 92 | F28: 91 | G28: 97 | H28: 90 | I28: 107 | Q28: 61
A29: 0331 | B29: CHAPMAN PARTNERSHIP ECC NORTH | C29: 39 | Q29: 39
A30: 0332 | B30: SOMERSET ACADEMY(SILVER PALMS) | C30: 621 | G30: 66 | H30: 70 | I30: 47 | J30: 157 | K30: 144 | L30: 137
A31: 0339 | B31: SOMERSET ACADEMY CHARTER ELEM | C31: 430 | D31: 90 | E31: 67 | F31: 69 | G31: 75 | H31: 78 | I31: 51
A32: 0341 | B32: ARCH CREEK ELEMENTARY SCHOOL | C32: 588 | D32: 94 | E32: 87 | F32: 87 | G32: 119 | H32: 97 | I32: 104
A33: 0342 | B33: PINECREST ACADEMY SOUTH CAMPUS | C33: 728 | D33: 116 | E33: 138 | F33: 140 | G33: 108 | H33: 125 | I33: 101
A34: 0351 | B34: CHAPMAN PARTNERSHIP ECC SOUTH | C34: 51 | Q34: 51
A35: 0361 | B35: BISCAYNE GARDENS ELEMENTARY | C35: 607 | D35: 120 | E35: 99 | F35: 86 | G35: 82 | H35: 75 | I35: 83 | Q35: 62
A36: 0400 | B36: RENAISSANCE ELEMENTARY CHARTER | C36: 915 | D36: 159 | E36: 148 | F36: 151 | G36: 150 | H36: 151 | I36: 156
A37: 0401 | B37: VAN E. BLANTON ELEMENTARY | C37: 541 | D37: 89 | E37: 87 | F37: 79 | G37: 96 | H37: 78 | I37: 74 | Q37: 38
A38: 0410 | B38: ACADEMIR CHARTER SCHOOL WEST | C38: 613 | D38: 90 | E38: 97 | F38: 150 | G38: 109 | H38: 104 | I38: 63
A39: 0441 | B39: BLUE LAKES ELEMENTARY | C39: 481 | D39: 91 | E39: 59 | F39: 56 | G39: 63 | H39: 73 | I39: 74 | Q39: 65
A40: 0451 | B40: BOWMAN ASHE/DOOLIN K-8 ACAD | C40: 1313 | D40: 151 | E40: 128 | F40: 113 | G40: 116 | H40: 122 | I40: 146 | J40: 127 | K40: 164 | L40: 200 | Q40: 46
A41: 0461 | B41: BRENTWOOD ELEMENTARY | C41: 758 | D41: 129 | E41: 125 | F41: 105 | G41: 128 | H41: 111 | I41: 103 | Q41: 57
A42: 0481 | B42: JAMES H. BRIGHT/JW JOHNSON ES | C42: 697 | D42: 71 | E42: 87 | F42: 110 | G42: 121 | H42: 126 | I42: 122 | Q42: 60
A43: 0510 | B43: ARCHIMEDEAN ACADEMY | C43: 575 | D43: 80 | E43: 102 | F43: 123 | G43: 103 | H43: 85 | I43: 82
A44: 0520 | B44: SOMERSET ACADEMY | C44: 564 | D44: 81 | E44: 104 | F44: 104 | G44: 83 | H44: 102 | I44: 90
A45: 0521 | B45: BROADMOOR ELEMENTARY | C45: 432 | D45: 75 | E45: 61 | F45: 65 | G45: 71 | H45: 57 | I45: 60 | Q45: 43
A46: 0561 | B46: W.J. BRYAN ELEMENTARY | C46: 703 | D46: 125 | E46: 99 | F46: 126 | G46: 127 | H46: 92 | I46: 102 | Q46: 32
A47: 0600 | B47: PINECREST PREP ACADEMY | C47: 645 | D47: 100 | E47: 75 | F47: 122 | G47: 114 | H47: 120 | I47: 114
A48: 0641 | B48: BUNCHE PARK ELEMENTARY | C48: 282 | D48: 42 | E48: 48 | F48: 50 | G48: 41 | H48: 30 | I48: 33 | Q48: 38
A49: 0651 | B49: CAMPBELL DRIVE K-8 CENTER | C49: 889 | D49: 110 | E49: 114 | F49: 109 | G49: 113 | H49: 84 | I49: 96 | J49: 81 | K49: 64 | L49: 67 | Q49: 51
A50: 0661 | B50: CARIBBEAN ELEMENTARY | C50: 582 | D50: 118 | E50: 97 | F50: 94 | G50: 90 | H50: 66 | I50: 73 | Q50: 44
A51: 0671 | B51: CALUSA ELEMENTARY | C51: 878 | D51: 125 | E51: 140 | F51: 157 | G51: 128 | H51: 143 | I51: 166 | Q51: 19
A52: 0681 | B52: CAROL CITY ELEMENTARY | C52: 533 | D52: 87 | E52: 88 | F52: 80 | G52: 111 | H52: 63 | I52: 69 | Q52: 35
A53: 0721 | B53: GEORGE WASHINGTON CARVER ELEM | C53: 457 | D53: 63 | E53: 72 | F53: 73 | G53: 77 | H53: 84 | I53: 88
A54: 0761 | B54: FIENBERG/FISHER K-8 CENTER | C54: 806 | D54: 63 | E54: 71 | F54: 81 | G54: 84 | H54: 78 | I54: 81 | J54: 102 | K54: 101 | L54: 88 | Q54: 57
A55: 0771 | B55: WILLIAM A. CHAPMAN ELEMENTARY | C55: 491 | D55: 84 | E55: 74 | F55: 65 | G55: 68 | H55: 66 | I55: 52 | Q55: 82
A56: 0801 | B56: CITRUS GROVE ELEMENTARY | C56: 807 | D56: 119 | E56: 109 | F56: 128 | G56: 135 | H56: 116 | I56: 149 | Q56: 51
A57: 0831 | B57: CLAUDE PEPPER ELEMENTARY | C57: 676 | D57: 100 | E57: 96 | F57: 105 | G57: 102 | H57: 122 | I57: 103 | Q57: 48
A58: 0841 | B58: COCONUT GROVE ELEMENTARY | C58: 432 | D58: 87 | E58: 79 | F58: 68 | G58: 53 | H58: 58 | I58: 62 | Q58: 25
A59: 0861 | B59: COLONIAL DRIVE ELEMENTARY | C59: 279 | D59: 41 | E59: 43 | F59: 35 | G59: 41 | H59: 48 | I59: 35 | Q59: 36
A60: 0881 | B60: COMSTOCK ELEMENTARY | C60: 554 | D60: 92 | E60: 84 | F60: 88 | G60: 102 | H60: 64 | I60: 83 | Q60: 41
A61: 0921 | B61: NEVA KING COOPER EDUCATIONAL | C61: 37 | D61: 3 | E61: 3 | G61: 4 | P61: 23 | Q61: 4
A62: 0950 | B62: AVENTURA CITY OF EXCELLENCE | C62: 996 | D62: 109 | E62: 110 | F62: 108 | G62: 107 | H62: 120 | I62: 118 | J62: 107 | K62: 108 | L62: 109
A63: 0961 | B63: CORAL GABLES PREPARATORY ACAD | C63: 762 | D63: 79 | E63: 78 | F63: 86 | G63: 80 | H63: 93 | I63: 95 | J63: 62 | K63: 75 | L63: 94 | Q63: 20
A64: 1001 | B64: CORAL PARK ELEMENTARY | C64: 1089 | D64: 177 | E64: 165 | F64: 181 | G64: 157 | H64: 169 | I64: 170 | Q64: 70
A65: 1010 | B65: CHARTER SCHOOL AT WATERSTONE | C65: 1001 | E65: 247 | F65: 229 | G65: 194 | H65: 169 | I65: 162
A66: 1014 | B66: HIVE PREPARATORY SCHOOL | C66: 451 | D66: 73 | E66: 51 | F66: 104 | G66: 100 | H66: 63 | I66: 60
A67: 1017 | B67: MATER ACADEMY OF INTL STUDIES | C67: 567 | D67: 123 | E67: 130 | F67: 113 | G67: 85 | H67: 70 | I67: 46
A68: 1020 | B68: YOUTH CO-OP CHARTER SCHOOL | C68: 739 | D68: 126 | E68: 97 | F68: 81 | G68: 73 | H68: 81 | I68: 54 | J68: 67 | K68: 66 | L68: 94
A69: 1041 | B69: CORAL REEF ELEMENTARY | C69: 817 | D69: 115 | E69: 151 | F69: 107 | G69: 141 | H69: 139 | I69: 145 | Q69: 19
A70: 1070 | B70: SOUTH FLORIDA AUTISM CHARTER | C70: 30 | D70: 7 | E70: 5 | F70: 4 | G70: 5 | H70: 1 | J70: 6 | M70: 1 | P70: 1
A71: 1081 | B71: CORAL TERRACE ELEMENTARY | C71: 472 | D71: 68 | E71: 75 | F71: 71 | G71: 87 | H71: 77 | I71: 75 | Q71: 19
A72: 1121 | B72: CORAL WAY K-8 CENTER | C72: 1449 | D72: 130 | E72: 171 | F72: 139 | G72: 165 | H72: 167 | I72: 155 | J72: 174 | K72: 162 | L72: 155 | Q72: 31
A73: 1161 | B73: CRESTVIEW ELEMENTARY | C73: 435 | D73: 81 | E73: 70 | F73: 65 | G73: 59 | H73: 75 | I73: 66 | Q73: 19
A74: 1241 | B74: CUTLER RIDGE ELEMENTARY | C74: 757 | D74: 103 | E74: 126 | F74: 90 | G74: 120 | H74: 145 | I74: 154 | Q74: 19
A75: 1281 | B75: CYPRESS ELEMENTARY | C75: 303 | D75: 38 | E75: 40 | F75: 62 | G75: 40 | H75: 47 | I75: 61 | Q75: 15
A76: 1331 | B76: DEVON AIRE K-8 CENTER | C76: 1515 | D76: 147 | E76: 140 | F76: 171 | G76: 159 | H76: 156 | I76: 170 | J76: 174 | K76: 196 | L76: 183 | Q76: 19
A77: 1361 | B77: FREDERICK DOUGLASS ELEMENTARY | C77: 277 | D77: 36 | E77: 36 | F77: 27 | G77: 36 | H77: 35 | I77: 21 | Q77: 86
A78: 1371 | B78: MARJORY STONEMAN DOUGLAS ELEM | C78: 971 | D78: 117 | E78: 146 | F78: 167 | G78: 155 | H78: 157 | I78: 172 | Q78: 57
A79: 1401 | B79: CHARLES R. DREW K-8 CENTER | C79: 396 | D79: 47 | E79: 47 | F79: 41 | G79: 36 | H79: 34 | I79: 32 | J79: 50 | K79: 40 | Q79: 69
A80: 1441 | B80: PAUL LAURENCE DUNBAR K-8 CTR | C80: 361 | D80: 50 | E80: 46 | F80: 52 | G80: 67 | H80: 34 | I80: 50 | J80: 29 | K80: 21 | Q80: 12
A81: 1481 | B81: JOHN G. DUPUIS ELEMENTARY | C81: 660 | D81: 78 | E81: 100 | F81: 105 | G81: 119 | H81: 96 | I81: 113 | Q81: 49
A82: 1521 | B82: AMELIA EARHART ELEMENTARY | C82: 469 | D82: 66 | E82: 71 | F82: 58 | G82: 82 | H82: 81 | I82: 67 | Q82: 44
A83: 1561 | B83: EARLINGTON HEIGHTS ELEMENTARY | C83: 473 | D83: 85 | E83: 89 | F83: 71 | G83: 93 | H83: 53 | I83: 63 | Q83: 19
A84: 1601 | B84: EDISON PARK K-8 CENTER | C84: 431 | D84: 61 | E84: 57 | F84: 58 | G84: 73 | H84: 54 | I84: 48 | J84: 43 | K84: 20 | Q84: 17
A85: 1641 | B85: EMERSON ELEMENTARY | C85: 373 | D85: 57 | E85: 60 | F85: 64 | G85: 49 | H85: 65 | I85: 58 | Q85: 20
A86: 1681 | B86: LILLIE C. EVANS K-8 CENTER | C86: 511 | D86: 65 | E86: 46 | F86: 48 | G86: 74 | H86: 35 | I86: 51 | J86: 61 | K86: 46 | L86: 31 | Q86: 54
A87: 1691 | B87: CHRISTINA M. EVE ELEMENTARY | C87: 637 | D87: 88 | E87: 99 | F87: 103 | G87: 121 | H87: 92 | I87: 109 | Q87: 25
A88: 1721 | B88: EVERGLADES K-8 CENTER | C88: 1106 | D88: 100 | E88: 95 | F88: 129 | G88: 116 | H88: 100 | I88: 108 | J88: 133 | K88: 139 | L88: 148 | Q88: 38
A89: 1761 | B89: DAVID FAIRCHILD ELEMENTARY | C89: 657 | D89: 113 | E89: 100 | F89: 105 | G89: 110 | H89: 115 | I89: 83 | Q89: 31
A90: 1801 | B90: FAIRLAWN ELEMENTARY | C90: 675 | D90: 115 | E90: 96 | F90: 128 | G90: 103 | H90: 102 | I90: 112 | Q90: 19
A91: 1811 | B91: DANTE B. FASCELL ELEMENTARY | C91: 513 | D91: 76 | E91: 82 | F91: 87 | G91: 82 | H91: 82 | I91: 84 | Q91: 20
A92: 1841 | B92: FLAGAMI ELEMENTARY | C92: 463 | D92: 69 | E92: 69 | F92: 76 | G92: 79 | H92: 65 | I92: 79 | Q92: 26
A93: 1881 | B93: HENRY M. FLAGLER ELEMENTARY | C93: 817 | D93: 125 | E93: 124 | F93: 138 | G93: 124 | H93: 132 | I93: 127 | Q93: 47
A94: 1921 | B94: FLAMINGO ELEMENTARY | C94: 707 | D94: 93 | E94: 109 | F94: 109 | G94: 128 | H94: 127 | I94: 123 | Q94: 18
A95: 2001 | B95: FLORIDA CITY ELEMENTARY | C95: 795 | D95: 135 | E95: 147 | F95: 140 | G95: 147 | H95: 78 | I95: 110 | Q95: 38
A96: 2003 | B96: BRIDGEPREP ACADEMY SOUTH | C96: 348 | D96: 58 | E96: 57 | F96: 39 | G96: 75 | H96: 46 | I96: 40 | J96: 33
A97: 2004 | B97: ISAAC ACADEMY K-8 | C97: 24 | G97: 24
A98: 2006 | B98: RICHARD ALLEN LEADERSHIP ACAD | C98: 51 | D98: 5 | E98: 8 | F98: 8 | G98: 9 | H98: 11 | I98: 10
A99: 2007 | B99: SOMERSET ACADEMY ELEMENTARY | C99: 472 | D99: 51 | E99: 78 | F99: 77 | G99: 74 | H99: 95 | I99: 97
A100: 2012 | B100: SOMERSET ARTS ACADEMY | C100: 310 | D100: 39 | E100: 55 | F100: 59 | G100: 33 | H100: 54 | I100: 70
A101: 2013 | B101: BRIDGEPREP ACAD GREATER MIAMI | C101: 301 | D101: 65 | E101: 73 | F101: 75 | G101: 39 | H101: 25 | I101: 24
A102: 2021 | B102: GLORIA FLOYD ELEMENTARY | C102: 608 | D102: 107 | E102: 107 | F102: 102 | G102: 87 | H102: 80 | I102: 87 | Q102: 38
A103: 2041 | B103: BENJAMIN FRANKLIN K-8 CENTER | C103: 580 | D103: 59 | E103: 64 | F103: 70 | G103: 73 | H103: 59 | I103: 65 | J103: 56 | K103: 63 | L103: 52 | Q103: 19
A104: 2060 | B104: GIBSON CHARTER SCHOOL | C104: 252 | D104: 40 | E104: 25 | F104: 23 | G104: 37 | H104: 15 | I104: 24 | J104: 33 | K104: 33 | L104: 22
A105: 2081 | B105: FULFORD ELEMENTARY | C105: 555 | D105: 98 | E105: 98 | F105: 85 | G105: 82 | H105: 75 | I105: 98 | Q105: 19
A106: 2111 | B106: HIALEAH GARDENS ELEMENTARY | C106: 834 | D106: 114 | E106: 146 | F106: 129 | G106: 126 | H106: 134 | I106: 148 | Q106: 37
A107: 2151 | B107: JACK D. GORDON ELEMENTARY | C107: 1093 | D107: 191 | E107: 180 | F107: 153 | G107: 179 | H107: 180 | I107: 189 | Q107: 21
A108: 2161 | B108: GOLDEN GLADES ELEMENTARY | C108: 270 | D108: 36 | E108: 45 | F108: 32 | G108: 48 | H108: 33 | I108: 42 | Q108: 34
A109: 2181 | B109: JOELLA C. GOOD ELEMENTARY | C109: 955 | D109: 152 | E109: 159 | F109: 141 | G109: 153 | H109: 166 | I109: 162 | Q109: 22
A110: 2191 | B110: SPANISH LAKE ELEMENTARY | C110: 1691 | D110: 262 | E110: 272 | F110: 271 | G110: 274 | H110: 316 | I110: 289 | Q110: 7
A111: 2241 | B111: GRATIGNY ELEMENTARY | C111: 650 | D111: 79 | E111: 74 | F111: 81 | G111: 89 | H111: 89 | I111: 77 | J111: 84 | Q111: 77
A112: 2261 | B112: GREENGLADE ELEMENTARY | C112: 494 | D112: 76 | E112: 74 | F112: 61 | G112: 70 | H112: 85 | I112: 89 | Q112: 39
A113: 2281 | B113: GREYNOLDS PARK ELEMENTARY | C113: 770 | D113: 135 | E113: 117 | F113: 117 | G113: 106 | H113: 110 | I113: 105 | Q113: 80
A114: 2321 | B114: GULFSTREAM ELEMENTARY | C114: 593 | D114: 100 | E114: 99 | F114: 90 | G114: 86 | H114: 71 | I114: 61 | Q114: 86
A115: 2331 | B115: CHARLES R. HADLEY ELEMENTARY | C115: 1033 | D115: 184 | E115: 167 | F115: 171 | G115: 163 | H115: 137 | I115: 170 | Q115: 41
A116: 2341 | B116: JOE HALL ELEMENTARY | C116: 560 | D116: 76 | E116: 89 | F116: 80 | G116: 98 | H116: 103 | I116: 95 | Q116: 19
A117: 2351 | B117: ENEIDA MASSAS HARTNER ELEM | C117: 565 | D117: 110 | E117: 100 | F117: 95 | G117: 82 | H117: 85 | I117: 74 | Q117: 19
A118: 2361 | B118: HIALEAH ELEMENTARY | C118: 666 | D118: 92 | E118: 89 | F118: 106 | G118: 128 | H118: 109 | I118: 115 | Q118: 27
A119: 2371 | B119: WEST HIALEAH GARDENS ELEM | C119: 1205 | D119: 165 | E119: 202 | F119: 187 | G119: 218 | H119: 202 | I119: 217 | Q119: 14
A120: 2401 | B120: HIBISCUS ELEMENTARY | C120: 515 | D120: 94 | E120: 77 | F120: 74 | G120: 86 | H120: 83 | I120: 59 | Q120: 42
A121: 2441 | B121: VIRGINIA A BOONE/HIGHLAND OAKS | C121: 745 | D121: 100 | E121: 102 | F121: 141 | G121: 120 | H121: 134 | I121: 124 | Q121: 24
A122: 2501 | B122: HOLMES ELEMENTARY | C122: 559 | D122: 95 | E122: 106 | F122: 99 | G122: 111 | H122: 71 | I122: 60 | Q122: 17
A123: 2511 | B123: ZORA NEALE HURSTON ELEMENTARY | C123: 762 | D123: 102 | E123: 105 | F123: 117 | G123: 107 | H123: 129 | I123: 128 | Q123: 74
A124: 2521 | B124: OLIVER HOOVER ELEMENTARY | C124: 791 | D124: 109 | E124: 116 | F124: 116 | G124: 126 | H124: 138 | I124: 137 | Q124: 49
A125: 2531 | B125: THENA C. CROWDER EARLY CHLDHD | C125: 54 | Q125: 54
A126: 2541 | B126: HOWARD DRIVE ELEMENTARY | C126: 622 | D126: 87 | E126: 80 | F126: 89 | G126: 104 | H126: 97 | I126: 127 | Q126: 38
A127: 2581 | B127: MADIE IVES ELEMENTARY | C127: 716 | D127: 101 | E127: 114 | F127: 130 | G127: 118 | H127: 106 | I127: 123 | Q127: 24
A128: 2641 | B128: KENDALE ELEMENTARY | C128: 479 | D128: 72 | E128: 68 | F128: 76 | G128: 77 | H128: 82 | I128: 70 | Q128: 34
A129: 2651 | B129: KENDALE LAKES ELEMENTARY | C129: 734 | D129: 108 | E129: 128 | F129: 105 | G129: 108 | H129: 116 | I129: 111 | Q129: 58
A130: 2661 | B130: KENSINGTON PARK ELEMENTARY | C130: 1114 | D130: 188 | E130: 179 | F130: 148 | G130: 194 | H130: 168 | I130: 191 | Q130: 46
A131: 2701 | B131: KENWOOD K-8 CENTER | C131: 1064 | D131: 107 | E131: 117 | F131: 92 | G131: 110 | H131: 121 | I131: 116 | J131: 111 | K131: 144 | L131: 121 | Q131: 25
A132: 2741 | B132: KEY BISCAYNE K-8 CENTER | C132: 1418 | D132: 141 | E132: 169 | F132: 176 | G132: 156 | H132: 192 | I132: 171 | J132: 148 | K132: 162 | L132: 85 | Q132: 18
A133: 2781 | B133: KINLOCH PARK ELEMENTARY | C133: 763 | D133: 108 | E133: 131 | F133: 115 | G133: 118 | H133: 129 | I133: 143 | Q133: 19
A134: 2801 | B134: LAKE STEVENS ELEMENTARY | C134: 290 | D134: 39 | E134: 48 | F134: 40 | G134: 39 | H134: 37 | I134: 58 | Q134: 29
A135: 2821 | B135: LAKEVIEW ELEMENTARY | C135: 432 | D135: 92 | E135: 60 | F135: 68 | G135: 67 | H135: 52 | I135: 68 | Q135: 25
A136: 2881 | B136: LEEWOOD K-8 CENTER | C136: 811 | D136: 71 | E136: 97 | F136: 77 | G136: 88 | H136: 110 | I136: 114 | J136: 74 | K136: 75 | L136: 69 | Q136: 36
A137: 2891 | B137: WILLIAM LEHMAN ELEMENTARY | C137: 673 | D137: 114 | E137: 108 | F137: 99 | G137: 100 | H137: 110 | I137: 112 | Q137: 30
A138: 2901 | B138: LEISURE CITY K-8 CENTER | C138: 1019 | D138: 100 | E138: 101 | F138: 105 | G138: 103 | H138: 83 | I138: 121 | J138: 113 | K138: 103 | L138: 100 | Q138: 90
A139: 2911 | B139: LINDA LENTIN K-8 CENTER | C139: 996 | D139: 109 | E139: 100 | F139: 78 | G139: 107 | H139: 98 | I139: 99 | J139: 147 | K139: 122 | L139: 99 | Q139: 37
A140: 2941 | B140: LAURA C. SAUNDERS ELEMENTARY | C140: 712 | D140: 117 | E140: 121 | F140: 122 | G140: 117 | H140: 106 | I140: 109 | Q140: 20
A141: 2981 | B141: LIBERTY CITY ELEMENTARY | C141: 407 | D141: 53 | E141: 69 | F141: 44 | G141: 58 | H141: 48 | I141: 52 | Q141: 83
A142: 3021 | B142: JESSE J MCCRARY JR ELEMENTARY | C142: 641 | D142: 113 | E142: 128 | F142: 85 | G142: 104 | H142: 77 | I142: 95 | Q142: 39
A143: 3024 | B143: FLORIDA INTERNATIONAL EL ACAD | C143: 452 | D143: 78 | E143: 77 | F143: 76 | G143: 95 | H143: 63 | I143: 63
A144: 3025 | B144: ADVANTAGE ACADEMY SANTA FE | C144: 303 | D144: 60 | E144: 60 | F144: 79 | G144: 53 | H144: 18 | I144: 33
A145: 3026 | B145: ADVANTAGE ACAD AT SUMMERVILLE | C145: 106 | D145: 106
A146: 3027 | B146: ADVANTAGE ACAD AT WATERSTONE | C146: 142 | D146: 142
A147: 3029 | B147: DORAL ACADEMY OF TECHNOLOGY | C147: 190 | J147: 57 | K147: 71 | L147: 62
A148: 3030 | B148: DORAL ACADEMY | C148: 1130 | D148: 233 | E148: 228 | F148: 196 | G148: 171 | H148: 151 | I148: 151
A149: 3032 | B149: PALM GLADES PREPATORY ACADEMY | C149: 412 | J149: 119 | K149: 170 | L149: 123
A150: 3033 | B150: SOMERSET OAKS ACADEMY | C150: 68 | D150: 23 | E150: 30 | F150: 15
A151: 3034 | B151: BRIDGEPREP ACAD VILLAGE GREEN | C151: 193 | D151: 39 | E151: 58 | F151: 51 | G151: 18 | H151: 16 | I151: 11
A152: 3035 | B152: RAMZ ACADEMY ELEM MIAMI CAMPUS | C152: 185 | D152: 34 | E152: 42 | F152: 38 | G152: 25 | H152: 27 | I152: 19
A153: 3041 | B153: LORAH PARK ELEMENTARY | C153: 428 | D153: 72 | E153: 85 | F153: 65 | G153: 77 | H153: 60 | I153: 52 | Q153: 17
A154: 3051 | B154: TOUSSAINT L'OUVERTURE ELEM | C154: 455 | D154: 69 | E154: 66 | F154: 79 | G154: 84 | H154: 68 | I154: 68 | Q154: 21
A155: 3061 | B155: LUDLAM ELEMENTARY | C155: 410 | D155: 87 | E155: 64 | F155: 70 | G155: 65 | H155: 58 | I155: 53 | Q155: 13
A156: 3100 | B156: MATER ACADEMY EAST CHARTER | C156: 636 | D156: 137 | E156: 152 | F156: 114 | G156: 99 | H156: 72 | I156: 62
A157: 3101 | B157: FRANK C. MARTIN K-8 CENTER | C157: 1133 | D157: 94 | E157: 109 | F157: 121 | G157: 119 | H157: 151 | I157: 127 | J157: 143 | K157: 122 | L157: 128 | Q157: 19
A158: 3111 | B158: WESLEY MATTHEWS ELEMENTARY | C158: 539 | D158: 86 | E158: 98 | F158: 75 | G158: 78 | H158: 84 | I158: 80 | Q158: 38
A159: 3141 | B159: MEADOWLANE ELEMENTARY | C159: 990 | D159: 123 | E159: 145 | F159: 163 | G159: 182 | H159: 173 | I159: 185 | Q159: 19
A160: 3181 | B160: MELROSE ELEMENTARY | C160: 666 | D160: 69 | E160: 68 | F160: 77 | G160: 98 | H160: 85 | I160: 99 | Q160: 170
A161: 3191 | B161: ADA MERRITT K-8 CENTER | C161: 699 | D161: 70 | E161: 72 | F161: 74 | G161: 79 | H161: 79 | I161: 60 | J161: 85 | K161: 91 | L161: 89
A162: 3241 | B162: MIAMI GARDENS ELEMENTARY | C162: 266 | D162: 38 | E162: 45 | F162: 41 | G162: 40 | H162: 26 | I162: 46 | Q162: 30
A163: 3261 | B163: MIAMI HEIGHTS ELEMENTARY | C163: 1167 | D163: 194 | E163: 186 | F163: 169 | G163: 173 | H163: 174 | I163: 171 | Q163: 100
A164: 3281 | B164: MIAMI LAKES K-8 CENTER | C164: 1393 | D164: 157 | E164: 127 | F164: 156 | G164: 149 | H164: 137 | I164: 181 | J164: 150 | K164: 165 | L164: 152 | Q164: 19
A165: 3301 | B165: MIAMI PARK ELEMENTARY | C165: 386 | D165: 44 | E165: 60 | F165: 67 | G165: 59 | H165: 54 | I165: 52 | Q165: 50
A166: 3341 | B166: MIAMI SHORES ELEMENTARY | C166: 799 | D166: 124 | E166: 124 | F166: 164 | G166: 120 | H166: 124 | I166: 126 | Q166: 17
A167: 3381 | B167: MIAMI SPRINGS ELEMENTARY | C167: 519 | D167: 73 | E167: 75 | F167: 80 | G167: 80 | H167: 88 | I167: 97 | Q167: 26
A168: 3421 | B168: M.A. MILAM K-8 CENTER | C168: 952 | D168: 77 | E168: 86 | F168: 90 | G168: 86 | H168: 96 | I168: 101 | J168: 109 | K168: 128 | L168: 159 | Q168: 20
A169: 3431 | B169: PHYLLIS RUTH MILLER ELEMENTARY | C169: 685 | D169: 113 | E169: 112 | F169: 86 | G169: 104 | H169: 114 | I169: 97 | Q169: 59
A170: 3501 | B170: MORNINGSIDE K-8 ACADEMY | C170: 489 | D170: 70 | E170: 58 | F170: 59 | G170: 72 | H170: 49 | I170: 80 | J170: 47 | K170: 24 | Q170: 30
A171: 3541 | B171: ROBERT RUSSA MOTON ELEMENTARY | C171: 374 | D171: 70 | E171: 67 | F171: 66 | G171: 52 | H171: 33 | I171: 47 | Q171: 39
A172: 3581 | B172: MYRTLE GROVE K-8 CENTER | C172: 515 | D172: 74 | E172: 64 | F172: 63 | G172: 60 | H172: 40 | I172: 57 | J172: 59 | K172: 41 | Q172: 57
A173: 3600 | B173: DOWNTOWN MIAMI CHARTER SCHOOL | C173: 648 | D173: 104 | E173: 97 | F173: 100 | G173: 96 | H173: 81 | I173: 98 | J173: 72
A174: 3610 | B174: KEYS GATE CHARTER SCHOOL | C174: 2197 | D174: 202 | E174: 226 | F174: 219 | G174: 259 | H174: 257 | I174: 204 | J174: 277 | K174: 258 | L174: 295
A175: 3621 | B175: COCONUT PALM K-8 ACADEMY | C175: 1285 | D175: 160 | E175: 139 | F175: 168 | G175: 165 | H175: 144 | I175: 146 | J175: 136 | K175: 121 | L175: 106
A176: 3661 | B176: NATURAL BRIDGE ELEMENTARY | C176: 628 | D176: 108 | E176: 90 | F176: 85 | G176: 101 | H176: 83 | I176: 85 | Q176: 76
A177: 3701 | B177: NORLAND ELEMENTARY | C177: 630 | D177: 106 | E177: 105 | F177: 95 | G177: 98 | H177: 78 | I177: 108 | Q177: 40
A178: 3741 | B178: NORTH BEACH ELEMENTARY | C178: 1035 | D178: 175 | E178: 162 | F178: 174 | G178: 163 | H178: 176 | I178: 146 | Q178: 39
A179: 3781 | B179: BARBARA HAWKINS ELEMENTARY | C179: 352 | D179: 53 | E179: 50 | F179: 64 | G179: 52 | H179: 62 | I179: 51 | Q179: 20
A180: 3821 | B180: NORTH COUNTY K-8 CENTER | C180: 456 | D180: 61 | E180: 53 | F180: 51 | G180: 57 | H180: 56 | I180: 49 | J180: 38 | K180: 36 | L180: 35 | Q180: 20
A181: 3861 | B181: NORTH GLADE ELEMENTARY | C181: 361 | D181: 53 | E181: 59 | F181: 51 | G181: 67 | H181: 53 | I181: 49 | Q181: 29
A182: 3901 | B182: NORTH HIALEAH ELEMENTARY | C182: 572 | D182: 69 | E182: 85 | F182: 96 | G182: 122 | H182: 78 | I182: 104 | Q182: 18
A183: 3941 | B183: NORTH MIAMI ELEMENTARY | C183: 582 | D183: 91 | E183: 82 | F183: 82 | G183: 95 | H183: 66 | I183: 90 | Q183: 76
A184: 3981 | B184: NORTH TWIN LAKES ELEMENTARY | C184: 581 | D184: 80 | E184: 82 | F184: 91 | G184: 85 | H184: 85 | I184: 107 | Q184: 51
A185: 4000 | B185: MIAMI CHILDREN'S MUSEUM | C185: 310 | D185: 61 | E185: 60 | F185: 52 | G185: 51 | H185: 52 | I185: 34
A186: 4001 | B186: NORWOOD ELEMENTARY | C186: 489 | D186: 78 | E186: 74 | F186: 88 | G186: 92 | H186: 63 | I186: 63 | Q186: 31
A187: 4012 | B187: SOMERSET ACAD AT SILVER PALMS | C187: 653 | D187: 147 | E187: 140 | F187: 135 | G187: 70 | H187: 69 | I187: 92
A188: 4021 | B188: OAK GROVE ELEMENTARY | C188: 627 | D188: 86 | E188: 91 | F188: 96 | G188: 96 | H188: 84 | I188: 97 | J188: 42 | Q188: 35
A189: 4031 | B189: GATEWAY ENVIRONMENTAL K-8 | C189: 1733 | D189: 215 | E189: 238 | F189: 230 | G189: 197 | H189: 203 | I189: 188 | J189: 153 | K189: 150 | L189: 125 | Q189: 34
A190: 4061 | B190: OJUS ELEMENTARY | C190: 941 | D190: 159 | E190: 166 | F190: 157 | G190: 147 | H190: 144 | I190: 168
A191: 4070 | B191: EARLY BEGINNINGS ACADEMY-CIVIC | C191: 123 | D191: 24 | E191: 20 | F191: 8 | Q191: 71
A192: 4071 | B192: AGENORIA S. PASCHAL/OLINDA EL | C192: 384 | D192: 68 | E192: 62 | F192: 43 | G192: 78 | H192: 47 | I192: 53 | Q192: 33
A193: 4081 | B193: PRIMARY LEARNING CENTER | C193: 311 | D193: 64 | E193: 67 | F193: 51 | G193: 36 | H193: 22 | Q193: 71
A194: 4091 | B194: OLYMPIA HEIGHTS ELEMENTARY | C194: 513 | D194: 85 | E194: 76 | F194: 88 | G194: 90 | H194: 68 | I194: 87 | Q194: 19
A195: 4121 | B195: DR. ROBERT B. INGRAM EL | C195: 415 | D195: 67 | E195: 83 | F195: 59 | G195: 71 | H195: 56 | I195: 61 | Q195: 18
A196: 4171 | B196: ORCHARD VILLA ELEMENTARY | C196: 431 | D196: 68 | E196: 78 | F196: 75 | G196: 75 | H196: 45 | I196: 55 | Q196: 35
A197: 4221 | B197: PALMETTO ELEMENTARY | C197: 613 | D197: 90 | E197: 79 | F197: 106 | G197: 83 | H197: 115 | I197: 96 | Q197: 44
A198: 4241 | B198: PALM LAKES ELEMENTARY | C198: 777 | D198: 91 | E198: 104 | F198: 134 | G198: 133 | H198: 139 | I198: 136 | Q198: 40
A199: 4261 | B199: PALM SPRINGS ELEMENTARY | C199: 731 | D199: 92 | E199: 97 | F199: 126 | G199: 131 | H199: 119 | I199: 126 | Q199: 40
A200: 4281 | B200: PALM SPRINGS NORTH ELEMENTARY | C200: 1040 | D200: 148 | E200: 186 | F200: 146 | G200: 178 | H200: 169 | I200: 188 | Q200: 25
... 277 more rows

Sheet MEM_RL1 (hidden)
A1: 1 | B1: 2 | C1: 3 | D1: 4 | E1: 5 | F1: 6 | G1: 7 | H1: 8 | I1: 9 | J1: 10 | K1: 11
A2: S_SCHOOL_NUM | B2: S_SCHL_NAME | C2: Total Of STUDENT_ID | D2: 03 | E2: 04 | F2: 05 | G2: 06 | H2: 07 | I2: 08 | J2: 09 | K2: 10
A3: 0041 | B3: AIR BASE ELEMENTARY | C3: 4 | D3: 1 | E3: 2 | F3: 1
A4: 0070 | B4: CORAL REEF MONTESSORI ACAD CH | C4: 3 | E4: 1 | F4: 1 | I4: 1
A5: 0071 | B5: EUGENIA B. THOMAS K-8 CENTER | C5: 80 | D5: 8 | E5: 22 | F5: 12 | G5: 11 | H5: 13 | I5: 14
A6: 0072 | B6: SUMMERVILLE CHARTER SCHOOL | C6: 26 | D6: 3 | E6: 10 | F6: 13
A7: 0073 | B7: MANDARIN LAKES K-8 CENTER | C7: 183 | D7: 25 | E7: 26 | F7: 40 | G7: 34 | H7: 37 | I7: 21
A8: 0081 | B8: LENORA B. SMITH ELEMENTARY | C8: 44 | D8: 7 | E8: 15 | F8: 22
A9: 0091 | B9: BOB GRAHAM EDUCATION CTR | C9: 116 | D9: 6 | E9: 17 | F9: 20 | G9: 20 | H9: 25 | I9: 28
A10: 0092 | B10: NORMAN S. EDELCUP/SUNNY ISLES | C10: 78 | D10: 5 | E10: 14 | F10: 21 | G10: 11 | H10: 8 | I10: 19
A11: 0100 | B11: MATER ACADEMY | C11: 15 | E11: 7 | F11: 8
A12: 0101 | B12: ARCOLA LAKE ELEMENTARY | C12: 47 | D12: 14 | E12: 14 | F12: 19
A13: 0102 | B13: MIAMI COMMUNITY CHARTER SCHOOL | C13: 38 | D13: 3 | E13: 23 | F13: 12
A14: 0111 | B14: MAYA ANGELOU ELEMENTARY | C14: 71 | D14: 20 | E14: 27 | F14: 24
A15: 0121 | B15: AUBURNDALE ELEMENTARY | C15: 63 | D15: 11 | E15: 23 | F15: 29
A16: 0122 | B16: DR ROLANDO ESPINOSA K-8 | C16: 130 | D16: 13 | E16: 23 | F16: 21 | G16: 22 | H16: 28 | I16: 23
A17: 0125 | B17: NORMA BUTLER BOSSARD ELEM | C17: 58 | D17: 10 | E17: 23 | F17: 25
A18: 0161 | B18: AVOCADO ELEMENTARY | C18: 17 | D18: 17
A19: 0201 | B19: BANYAN ELEMENTARY | C19: 4 | E19: 3 | F19: 1
A20: 0211 | B20: DR. MANUEL C. BARREIRO ELEM | C20: 33 | D20: 1 | E20: 9 | F20: 23
A21: 0231 | B21: AVENTURA WATERWAYS K-8 CENTER | C21: 109 | D21: 10 | E21: 15 | F21: 26 | G21: 22 | H21: 26 | I21: 10
A22: 0241 | B22: RUTH K BROAD/BAY HARBOR K-8 | C22: 57 | D22: 3 | E22: 9 | F22: 10 | G22: 17 | H22: 12 | I22: 6
A23: 0251 | B23: ETHEL KOGER BECKHAM ELEMENTARY | C23: 18 | D23: 4 | E23: 10 | F23: 4
A24: 0261 | B24: BEL-AIRE ELEMENTARY | C24: 36 | D24: 12 | E24: 12 | F24: 12
A25: 0271 | B25: BENT TREE ELEMENTARY | C25: 22 | D25: 3 | E25: 12 | F25: 7
A26: 0311 | B26: GOULDS ELEMENTARY | C26: 32 | D26: 8 | E26: 10 | F26: 14
A27: 0312 | B27: MATER GARDENS ACADEMY | C27: 11 | D27: 1 | E27: 9 | F27: 1
A28: 0321 | B28: BISCAYNE ELEMENTARY | C28: 63 | D28: 18 | E28: 20 | F28: 25
A29: 0332 | B29: SOMERSET ACADEMY(SILVER PALMS) | C29: 37 | D29: 1 | E29: 6 | F29: 2 | G29: 15 | H29: 5 | I29: 8
A30: 0339 | B30: SOMERSET ACADEMY CHARTER ELEM | C30: 14 | D30: 4 | E30: 7 | F30: 3
A31: 0341 | B31: ARCH CREEK ELEMENTARY SCHOOL | C31: 46 | D31: 14 | E31: 10 | F31: 22
A32: 0342 | B32: PINECREST ACADEMY SOUTH CAMPUS | C32: 6 | D32: 1 | E32: 3 | F32: 2
A33: 0361 | B33: BISCAYNE GARDENS ELEMENTARY | C33: 47 | D33: 12 | E33: 14 | F33: 21
A34: 0400 | B34: RENAISSANCE ELEMENTARY CHARTER | C34: 16 | E34: 8 | F34: 8
A35: 0401 | B35: VAN E. BLANTON ELEMENTARY | C35: 44 | D35: 18 | E35: 10 | F35: 16
A36: 0410 | B36: ACADEMIR CHARTER SCHOOL WEST | C36: 14 | D36: 1 | E36: 8 | F36: 5
A37: 0441 | B37: BLUE LAKES ELEMENTARY | C37: 18 | D37: 3 | E37: 5 | F37: 10
A38: 0451 | B38: BOWMAN ASHE/DOOLIN K-8 ACAD | C38: 148 | D38: 5 | E38: 18 | F38: 16 | G38: 19 | H38: 39 | I38: 51
A39: 0461 | B39: BRENTWOOD ELEMENTARY | C39: 61 | D39: 13 | E39: 27 | F39: 21
A40: 0481 | B40: JAMES H. BRIGHT/JW JOHNSON ES | C40: 54 | D40: 6 | E40: 26 | F40: 22
A41: 0520 | B41: SOMERSET ACADEMY | C41: 5 | F41: 5
A42: 0521 | B42: BROADMOOR ELEMENTARY | C42: 51 | D42: 11 | E42: 17 | F42: 23
A43: 0561 | B43: W.J. BRYAN ELEMENTARY | C43: 62 | D43: 24 | E43: 13 | F43: 25
A44: 0600 | B44: PINECREST PREP ACADEMY | C44: 11 | D44: 2 | E44: 5 | F44: 4
A45: 0641 | B45: BUNCHE PARK ELEMENTARY | C45: 30 | D45: 5 | E45: 8 | F45: 17
A46: 0651 | B46: CAMPBELL DRIVE K-8 CENTER | C46: 121 | D46: 16 | E46: 22 | F46: 24 | G46: 17 | H46: 20 | I46: 22
A47: 0661 | B47: CARIBBEAN ELEMENTARY | C47: 58 | D47: 19 | E47: 20 | F47: 19
A48: 0671 | B48: CALUSA ELEMENTARY | C48: 22 | D48: 2 | E48: 12 | F48: 8
A49: 0681 | B49: CAROL CITY ELEMENTARY | C49: 50 | D49: 13 | E49: 15 | F49: 22
A50: 0721 | B50: GEORGE WASHINGTON CARVER ELEM | C50: 28 | D50: 3 | E50: 9 | F50: 16
A51: 0761 | B51: FIENBERG/FISHER K-8 CENTER | C51: 95 | D51: 4 | E51: 26 | F51: 11 | G51: 20 | H51: 19 | I51: 15
A52: 0771 | B52: WILLIAM A. CHAPMAN ELEMENTARY | C52: 28 | D52: 4 | E52: 13 | F52: 11
A53: 0801 | B53: CITRUS GROVE ELEMENTARY | C53: 88 | D53: 8 | E53: 33 | F53: 47
A54: 0831 | B54: CLAUDE PEPPER ELEMENTARY | C54: 27 | D54: 5 | E54: 15 | F54: 7
A55: 0841 | B55: COCONUT GROVE ELEMENTARY | C55: 17 | E55: 9 | F55: 8
A56: 0861 | B56: COLONIAL DRIVE ELEMENTARY | C56: 22 | D56: 2 | E56: 14 | F56: 6
A57: 0881 | B57: COMSTOCK ELEMENTARY | C57: 57 | D57: 19 | E57: 18 | F57: 20
A58: 0950 | B58: AVENTURA CITY OF EXCELLENCE | C58: 10 | D58: 1 | E58: 2 | F58: 3 | G58: 2 | I58: 2
A59: 0961 | B59: CORAL GABLES PREPARATORY ACAD | C59: 22 | D59: 1 | E59: 4 | F59: 3 | G59: 5 | H59: 5 | I59: 4
A60: 1001 | B60: CORAL PARK ELEMENTARY | C60: 34 | D60: 4 | E60: 18 | F60: 12
A61: 1010 | B61: CHARTER SCHOOL AT WATERSTONE | C61: 28 | D61: 4 | E61: 7 | F61: 17
A62: 1014 | B62: HIVE PREPARATORY SCHOOL | C62: 23 | D62: 7 | E62: 7 | F62: 9
A63: 1017 | B63: MATER ACADEMY OF INTL STUDIES | C63: 28 | D63: 7 | E63: 11 | F63: 10
A64: 1020 | B64: YOUTH CO-OP CHARTER SCHOOL | C64: 44 | D64: 3 | E64: 5 | F64: 5 | G64: 6 | H64: 10 | I64: 15
A65: 1041 | B65: CORAL REEF ELEMENTARY | C65: 14 | D65: 1 | E65: 3 | F65: 10
A66: 1081 | B66: CORAL TERRACE ELEMENTARY | C66: 39 | D66: 4 | E66: 18 | F66: 17
A67: 1121 | B67: CORAL WAY K-8 CENTER | C67: 140 | D67: 7 | E67: 26 | F67: 23 | G67: 30 | H67: 23 | I67: 31
A68: 1161 | B68: CRESTVIEW ELEMENTARY | C68: 26 | D68: 9 | E68: 10 | F68: 7
A69: 1241 | B69: CUTLER RIDGE ELEMENTARY | C69: 55 | D69: 6 | E69: 20 | F69: 29
A70: 1281 | B70: CYPRESS ELEMENTARY | C70: 16 | D70: 3 | E70: 9 | F70: 4
A71: 1331 | B71: DEVON AIRE K-8 CENTER | C71: 55 | D71: 1 | E71: 11 | F71: 5 | G71: 8 | H71: 18 | I71: 12
A72: 1361 | B72: FREDERICK DOUGLASS ELEMENTARY | C72: 21 | D72: 8 | E72: 7 | F72: 6
A73: 1371 | B73: MARJORY STONEMAN DOUGLAS ELEM | C73: 55 | D73: 10 | E73: 21 | F73: 24
A74: 1401 | B74: CHARLES R. DREW K-8 CENTER | C74: 63 | D74: 4 | E74: 15 | F74: 13 | G74: 17 | H74: 14
A75: 1441 | B75: PAUL LAURENCE DUNBAR K-8 CTR | C75: 61 | D75: 15 | E75: 15 | F75: 15 | G75: 8 | H75: 8
A76: 1481 | B76: JOHN G. DUPUIS ELEMENTARY | C76: 37 | D76: 3 | E76: 14 | F76: 20
A77: 1521 | B77: AMELIA EARHART ELEMENTARY | C77: 36 | D77: 3 | E77: 22 | F77: 11
A78: 1561 | B78: EARLINGTON HEIGHTS ELEMENTARY | C78: 49 | D78: 12 | E78: 11 | F78: 26
A79: 1601 | B79: EDISON PARK K-8 CENTER | C79: 81 | D79: 12 | E79: 15 | F79: 22 | G79: 23 | H79: 9
A80: 1641 | B80: EMERSON ELEMENTARY | C80: 20 | D80: 3 | E80: 11 | F80: 6
A81: 1681 | B81: LILLIE C. EVANS K-8 CENTER | C81: 66 | D81: 12 | E81: 12 | F81: 17 | G81: 11 | H81: 10 | I81: 4
A82: 1691 | B82: CHRISTINA M. EVE ELEMENTARY | C82: 12 | D82: 1 | E82: 6 | F82: 5
A83: 1721 | B83: EVERGLADES K-8 CENTER | C83: 60 | D83: 4 | E83: 6 | F83: 7 | G83: 8 | H83: 10 | I83: 25
A84: 1761 | B84: DAVID FAIRCHILD ELEMENTARY | C84: 13 | D84: 3 | E84: 3 | F84: 7
A85: 1801 | B85: FAIRLAWN ELEMENTARY | C85: 38 | D85: 4 | E85: 23 | F85: 11
A86: 1811 | B86: DANTE B. FASCELL ELEMENTARY | C86: 18 | D86: 1 | E86: 6 | F86: 11
A87: 1841 | B87: FLAGAMI ELEMENTARY | C87: 24 | D87: 2 | E87: 10 | F87: 12
A88: 1881 | B88: HENRY M. FLAGLER ELEMENTARY | C88: 56 | D88: 6 | E88: 26 | F88: 24
A89: 1921 | B89: FLAMINGO ELEMENTARY | C89: 57 | D89: 12 | E89: 26 | F89: 19
A90: 2001 | B90: FLORIDA CITY ELEMENTARY | C90: 55 | D90: 20 | E90: 12 | F90: 23
A91: 2003 | B91: BRIDGEPREP ACADEMY SOUTH | C91: 10 | E91: 2 | F91: 5 | G91: 3
A92: 2006 | B92: RICHARD ALLEN LEADERSHIP ACAD | C92: 8 | D92: 2 | E92: 2 | F92: 4
A93: 2007 | B93: SOMERSET ACADEMY ELEMENTARY | C93: 2 | D93: 1 | E93: 1
A94: 2012 | B94: SOMERSET ARTS ACADEMY | C94: 13 | D94: 2 | E94: 2 | F94: 9
A95: 2013 | B95: BRIDGEPREP ACAD GREATER MIAMI | C95: 10 | D95: 1 | E95: 4 | F95: 5
A96: 2021 | B96: GLORIA FLOYD ELEMENTARY | C96: 23 | D96: 6 | E96: 9 | F96: 8
A97: 2041 | B97: BENJAMIN FRANKLIN K-8 CENTER | C97: 104 | D97: 11 | E97: 16 | F97: 16 | G97: 16 | H97: 28 | I97: 17
A98: 2060 | B98: GIBSON CHARTER SCHOOL | C98: 42 | D98: 6 | E98: 5 | F98: 8 | G98: 11 | H98: 8 | I98: 4
A99: 2081 | B99: FULFORD ELEMENTARY | C99: 58 | D99: 9 | E99: 18 | F99: 31
A100: 2111 | B100: HIALEAH GARDENS ELEMENTARY | C100: 38 | D100: 3 | E100: 15 | F100: 20
A101: 2151 | B101: JACK D. GORDON ELEMENTARY | C101: 35 | D101: 2 | E101: 16 | F101: 17
A102: 2161 | B102: GOLDEN GLADES ELEMENTARY | C102: 38 | D102: 12 | E102: 10 | F102: 16
A103: 2181 | B103: JOELLA C. GOOD ELEMENTARY | C103: 61 | D103: 3 | E103: 31 | F103: 27
A104: 2191 | B104: SPANISH LAKE ELEMENTARY | C104: 83 | D104: 11 | E104: 43 | F104: 29
A105: 2241 | B105: GRATIGNY ELEMENTARY | C105: 96 | D105: 16 | E105: 27 | F105: 25 | G105: 28
A106: 2261 | B106: GREENGLADE ELEMENTARY | C106: 30 | D106: 1 | E106: 18 | F106: 11
A107: 2281 | B107: GREYNOLDS PARK ELEMENTARY | C107: 62 | D107: 17 | E107: 26 | F107: 19
A108: 2321 | B108: GULFSTREAM ELEMENTARY | C108: 20 | D108: 2 | E108: 12 | F108: 6
A109: 2331 | B109: CHARLES R. HADLEY ELEMENTARY | C109: 33 | D109: 4 | E109: 17 | F109: 12
A110: 2341 | B110: JOE HALL ELEMENTARY | C110: 27 | D110: 2 | E110: 15 | F110: 10
A111: 2351 | B111: ENEIDA MASSAS HARTNER ELEM | C111: 36 | D111: 9 | E111: 17 | F111: 10
A112: 2361 | B112: HIALEAH ELEMENTARY | C112: 53 | D112: 8 | E112: 22 | F112: 23
A113: 2371 | B113: WEST HIALEAH GARDENS ELEM | C113: 59 | D113: 7 | E113: 26 | F113: 26
A114: 2401 | B114: HIBISCUS ELEMENTARY | C114: 37 | D114: 7 | E114: 13 | F114: 17
A115: 2441 | B115: VIRGINIA A BOONE/HIGHLAND OAKS | C115: 35 | D115: 8 | E115: 14 | F115: 13
A116: 2501 | B116: HOLMES ELEMENTARY | C116: 63 | D116: 21 | E116: 18 | F116: 24
A117: 2511 | B117: ZORA NEALE HURSTON ELEMENTARY | C117: 49 | D117: 4 | E117: 20 | F117: 25
A118: 2521 | B118: OLIVER HOOVER ELEMENTARY | C118: 32 | D118: 3 | E118: 12 | F118: 17
A119: 2541 | B119: HOWARD DRIVE ELEMENTARY | C119: 30 | D119: 2 | E119: 13 | F119: 15
A120: 2581 | B120: MADIE IVES ELEMENTARY | C120: 39 | D120: 11 | E120: 8 | F120: 20
A121: 2641 | B121: KENDALE ELEMENTARY | C121: 9 | D121: 2 | E121: 4 | F121: 3
A122: 2651 | B122: KENDALE LAKES ELEMENTARY | C122: 30 | D122: 5 | E122: 11 | F122: 14
A123: 2661 | B123: KENSINGTON PARK ELEMENTARY | C123: 110 | D123: 18 | E123: 50 | F123: 42
A124: 2701 | B124: KENWOOD K-8 CENTER | C124: 67 | D124: 7 | E124: 15 | F124: 10 | G124: 10 | H124: 18 | I124: 7
A125: 2741 | B125: KEY BISCAYNE K-8 CENTER | C125: 26 | E125: 8 | F125: 6 | G125: 4 | H125: 1 | I125: 7
A126: 2781 | B126: KINLOCH PARK ELEMENTARY | C126: 58 | D126: 1 | E126: 26 | F126: 31
A127: 2801 | B127: LAKE STEVENS ELEMENTARY | C127: 30 | D127: 2 | E127: 12 | F127: 16
A128: 2821 | B128: LAKEVIEW ELEMENTARY | C128: 41 | D128: 15 | E128: 9 | F128: 17
A129: 2881 | B129: LEEWOOD K-8 CENTER | C129: 24 | E129: 3 | F129: 9 | G129: 3 | H129: 7 | I129: 2
A130: 2891 | B130: WILLIAM LEHMAN ELEMENTARY | C130: 25 | D130: 5 | E130: 11 | F130: 9
A131: 2901 | B131: LEISURE CITY K-8 CENTER | C131: 142 | D131: 5 | E131: 18 | F131: 29 | G131: 30 | H131: 32 | I131: 28
A132: 2911 | B132: LINDA LENTIN K-8 CENTER | C132: 153 | D132: 13 | E132: 20 | F132: 17 | G132: 50 | H132: 32 | I132: 21
A133: 2941 | B133: LAURA C. SAUNDERS ELEMENTARY | C133: 66 | D133: 15 | E133: 25 | F133: 26
A134: 2981 | B134: LIBERTY CITY ELEMENTARY | C134: 47 | D134: 13 | E134: 16 | F134: 18
A135: 3021 | B135: JESSE J MCCRARY JR ELEMENTARY | C135: 84 | D135: 26 | E135: 20 | F135: 38
A136: 3024 | B136: FLORIDA INTERNATIONAL EL ACAD | C136: 42 | D136: 10 | E136: 12 | F136: 20
A137: 3025 | B137: ADVANTAGE ACADEMY SANTA FE | C137: 8 | D137: 2 | E137: 4 | F137: 2
A138: 3029 | B138: DORAL ACADEMY OF TECHNOLOGY | C138: 2 | H138: 2
A139: 3030 | B139: DORAL ACADEMY | C139: 17 | D139: 1 | E139: 10 | F139: 6
A140: 3032 | B140: PALM GLADES PREPATORY ACADEMY | C140: 91 | G140: 19 | H140: 42 | I140: 30
A141: 3034 | B141: BRIDGEPREP ACAD VILLAGE GREEN | C141: 3 | D141: 1 | F141: 2
A142: 3035 | B142: RAMZ ACADEMY ELEM MIAMI CAMPUS | C142: 18 | D142: 2 | E142: 10 | F142: 6
A143: 3041 | B143: LORAH PARK ELEMENTARY | C143: 37 | D143: 10 | E143: 9 | F143: 18
A144: 3051 | B144: TOUSSAINT L'OUVERTURE ELEM | C144: 61 | D144: 23 | E144: 19 | F144: 19
A145: 3061 | B145: LUDLAM ELEMENTARY | C145: 18 | D145: 6 | E145: 9 | F145: 3
A146: 3100 | B146: MATER ACADEMY EAST CHARTER | C146: 1 | F146: 1
A147: 3101 | B147: FRANK C. MARTIN K-8 CENTER | C147: 5 | E147: 3 | G147: 1 | H147: 1
A148: 3111 | B148: WESLEY MATTHEWS ELEMENTARY | C148: 19 | D148: 2 | E148: 12 | F148: 5
A149: 3141 | B149: MEADOWLANE ELEMENTARY | C149: 72 | D149: 5 | E149: 30 | F149: 37
A150: 3181 | B150: MELROSE ELEMENTARY | C150: 48 | D150: 7 | E150: 13 | F150: 28
A151: 3191 | B151: ADA MERRITT K-8 CENTER | C151: 5 | F151: 3 | G151: 1 | H151: 1
A152: 3241 | B152: MIAMI GARDENS ELEMENTARY | C152: 20 | D152: 5 | E152: 4 | F152: 11
A153: 3261 | B153: MIAMI HEIGHTS ELEMENTARY | C153: 69 | D153: 17 | E153: 27 | F153: 25
A154: 3281 | B154: MIAMI LAKES K-8 CENTER | C154: 104 | D154: 12 | E154: 20 | F154: 20 | G154: 14 | H154: 17 | I154: 21
A155: 3301 | B155: MIAMI PARK ELEMENTARY | C155: 48 | D155: 9 | E155: 18 | F155: 21
A156: 3341 | B156: MIAMI SHORES ELEMENTARY | C156: 30 | D156: 7 | E156: 12 | F156: 11
A157: 3381 | B157: MIAMI SPRINGS ELEMENTARY | C157: 25 | D157: 2 | E157: 14 | F157: 9
A158: 3421 | B158: M.A. MILAM K-8 CENTER | C158: 122 | D158: 10 | E158: 17 | F158: 21 | G158: 19 | H158: 22 | I158: 33
A159: 3431 | B159: PHYLLIS RUTH MILLER ELEMENTARY | C159: 54 | D159: 13 | E159: 17 | F159: 24
A160: 3501 | B160: MORNINGSIDE K-8 ACADEMY | C160: 43 | D160: 5 | E160: 5 | F160: 17 | G160: 10 | H160: 6
A161: 3541 | B161: ROBERT RUSSA MOTON ELEMENTARY | C161: 19 | D161: 3 | E161: 6 | F161: 10
A162: 3581 | B162: MYRTLE GROVE K-8 CENTER | C162: 56 | D162: 10 | E162: 6 | F162: 19 | G162: 14 | H162: 7
A163: 3600 | B163: DOWNTOWN MIAMI CHARTER SCHOOL | C163: 37 | D163: 9 | E163: 6 | F163: 9 | G163: 13
A164: 3610 | B164: KEYS GATE CHARTER SCHOOL | C164: 217 | D164: 12 | E164: 27 | F164: 28 | G164: 50 | H164: 49 | I164: 51
A165: 3621 | B165: COCONUT PALM K-8 ACADEMY | C165: 175 | D165: 13 | E165: 29 | F165: 44 | G165: 40 | H165: 32 | I165: 17
A166: 3661 | B166: NATURAL BRIDGE ELEMENTARY | C166: 47 | D166: 6 | E166: 14 | F166: 27
A167: 3701 | B167: NORLAND ELEMENTARY | C167: 44 | D167: 5 | E167: 16 | F167: 23
A168: 3741 | B168: NORTH BEACH ELEMENTARY | C168: 20 | D168: 3 | E168: 13 | F168: 4
A169: 3781 | B169: BARBARA HAWKINS ELEMENTARY | C169: 33 | D169: 9 | E169: 14 | F169: 10
A170: 3821 | B170: NORTH COUNTY K-8 CENTER | C170: 56 | D170: 4 | E170: 14 | F170: 8 | G170: 13 | H170: 9 | I170: 8
A171: 3861 | B171: NORTH GLADE ELEMENTARY | C171: 47 | D171: 15 | E171: 15 | F171: 17
A172: 3901 | B172: NORTH HIALEAH ELEMENTARY | C172: 54 | D172: 12 | E172: 13 | F172: 29
A173: 3941 | B173: NORTH MIAMI ELEMENTARY | C173: 51 | D173: 9 | E173: 13 | F173: 29
A174: 3981 | B174: NORTH TWIN LAKES ELEMENTARY | C174: 38 | D174: 6 | E174: 19 | F174: 13
A175: 4000 | B175: MIAMI CHILDREN'S MUSEUM | C175: 5 | E175: 4 | F175: 1
A176: 4001 | B176: NORWOOD ELEMENTARY | C176: 22 | D176: 6 | E176: 6 | F176: 10
A177: 4012 | B177: SOMERSET ACAD AT SILVER PALMS | C177: 10 | D177: 1 | E177: 4 | F177: 5
A178: 4021 | B178: OAK GROVE ELEMENTARY | C178: 59 | D178: 10 | E178: 16 | F178: 23 | G178: 10
A179: 4031 | B179: GATEWAY ENVIRONMENTAL K-8 | C179: 192 | D179: 25 | E179: 56 | F179: 40 | G179: 29 | H179: 27 | I179: 15
A180: 4061 | B180: OJUS ELEMENTARY | C180: 32 | D180: 9 | E180: 12 | F180: 11
A181: 4071 | B181: AGENORIA S. PASCHAL/OLINDA EL | C181: 40 | D181: 10 | E181: 14 | F181: 16
A182: 4081 | B182: PRIMARY LEARNING CENTER | C182: 1 | D182: 1
A183: 4091 | B183: OLYMPIA HEIGHTS ELEMENTARY | C183: 27 | D183: 5 | E183: 11 | F183: 11
A184: 4121 | B184: DR. ROBERT B. INGRAM EL | C184: 41 | D184: 13 | E184: 12 | F184: 16
A185: 4171 | B185: ORCHARD VILLA ELEMENTARY | C185: 48 | D185: 22 | E185: 4 | F185: 22
A186: 4221 | B186: PALMETTO ELEMENTARY | C186: 10 | D186: 2 | E186: 5 | F186: 3
A187: 4241 | B187: PALM LAKES ELEMENTARY | C187: 57 | D187: 13 | E187: 24 | F187: 20
A188: 4261 | B188: PALM SPRINGS ELEMENTARY | C188: 71 | D188: 15 | E188: 32 | F188: 24
A189: 4281 | B189: PALM SPRINGS NORTH ELEMENTARY | C189: 37 | D189: 2 | E189: 16 | F189: 19
A190: 4301 | B190: PARKVIEW ELEMENTARY | C190: 25 | D190: 5 | E190: 10 | F190: 10
A191: 4341 | B191: PARKWAY ELEMENTARY | C191: 21 | D191: 3 | E191: 7 | F191: 11
A192: 4381 | B192: DR HENRY E PERRINE ACADEMY | C192: 33 | D192: 5 | E192: 11 | F192: 17
A193: 4391 | B193: IRVING & BEATRICE PESKOE K-8 | C193: 92 | D193: 4 | E193: 23 | F193: 17 | G193: 14 | H193: 22 | I193: 12
A194: 4401 | B194: KELSEY L. PHARR ELEMENTARY | C194: 37 | D194: 9 | E194: 16 | F194: 12
A195: 4421 | B195: PINECREST ELEMENTARY | C195: 17 | E195: 11 | F195: 6
A196: 4441 | B196: PINE LAKE ELEMENTARY | C196: 37 | D196: 9 | E196: 13 | F196: 15
A197: 4461 | B197: PINE VILLA ELEMENTARY | C197: 37 | D197: 9 | E197: 17 | F197: 11
A198: 4491 | B198: HENRY E.S. REEVES ELEMENTARY | C198: 100 | D198: 42 | E198: 30 | F198: 28
A199: 4501 | B199: POINCIANA PARK ELEMENTARY | C199: 57 | D199: 17 | E199: 18 | F199: 22
A200: 4511 | B200: DR GILBERT L. PORTER ELEM | C200: 22 | D200: 2 | E200: 10 | F200: 10
... 245 more rows

Sheet MEM_RL2 (hidden)
A1: 1 | B1: 2 | C1: 3 | D1: 4 | E1: 5 | F1: 6 | G1: 7 | H1: 8 | I1: 9 | J1: 10 | K1: 11
A2: S_SCHOOL_NUM | B2: S_SCHL_NAME | C2: Total Of STUDENT_ID | D2: 03 | E2: 04 | F2: 05 | G2: 06 | H2: 07 | I2: 08 | J2: 09 | K2: 10
A3: 0041 | B3: AIR BASE ELEMENTARY | C3: 33 | E3: 17 | F3: 16
A4: 0070 | B4: CORAL REEF MONTESSORI ACAD CH | C4: 47 | E4: 11 | F4: 10 | G4: 9 | H4: 8 | I4: 9
A5: 0071 | B5: EUGENIA B. THOMAS K-8 CENTER | C5: 170 | E5: 44 | F5: 26 | G5: 31 | H5: 31 | I5: 38
A6: 0072 | B6: SUMMERVILLE CHARTER SCHOOL | C6: 54 | E6: 25 | F6: 29
A7: 0073 | B7: MANDARIN LAKES K-8 CENTER | C7: 180 | E7: 57 | F7: 47 | G7: 31 | H7: 19 | I7: 26
A8: 0081 | B8: LENORA B. SMITH ELEMENTARY | C8: 41 | E8: 25 | F8: 16
A9: 0091 | B9: BOB GRAHAM EDUCATION CTR | C9: 231 | E9: 43 | F9: 43 | G9: 60 | H9: 43 | I9: 42
A10: 0092 | B10: NORMAN S. EDELCUP/SUNNY ISLES | C10: 145 | E10: 37 | F10: 32 | G10: 23 | H10: 30 | I10: 23
A11: 0100 | B11: MATER ACADEMY | C11: 70 | E11: 29 | F11: 41
A12: 0101 | B12: ARCOLA LAKE ELEMENTARY | C12: 51 | E12: 17 | F12: 34
A13: 0102 | B13: MIAMI COMMUNITY CHARTER SCHOOL | C13: 52 | E13: 22 | F13: 30
A14: 0111 | B14: MAYA ANGELOU ELEMENTARY | C14: 61 | E14: 32 | F14: 29
A15: 0121 | B15: AUBURNDALE ELEMENTARY | C15: 65 | E15: 40 | F15: 25
A16: 0122 | B16: DR ROLANDO ESPINOSA K-8 | C16: 177 | E16: 29 | F16: 32 | G16: 31 | H16: 38 | I16: 47
A17: 0125 | B17: NORMA BUTLER BOSSARD ELEM | C17: 92 | E17: 51 | F17: 41
A18: 0201 | B18: BANYAN ELEMENTARY | C18: 22 | E18: 10 | F18: 12
A19: 0211 | B19: DR. MANUEL C. BARREIRO ELEM | C19: 77 | E19: 36 | F19: 41
A20: 0231 | B20: AVENTURA WATERWAYS K-8 CENTER | C20: 199 | E20: 26 | F20: 40 | G20: 42 | H20: 46 | I20: 45
A21: 0241 | B21: RUTH K BROAD/BAY HARBOR K-8 | C21: 106 | E21: 22 | F21: 25 | G21: 18 | H21: 24 | I21: 17
A22: 0251 | B22: ETHEL KOGER BECKHAM ELEMENTARY | C22: 31 | E22: 12 | F22: 19
A23: 0261 | B23: BEL-AIRE ELEMENTARY | C23: 52 | E23: 28 | F23: 24
A24: 0271 | B24: BENT TREE ELEMENTARY | C24: 48 | E24: 25 | F24: 23
A25: 0311 | B25: GOULDS ELEMENTARY | C25: 66 | E25: 33 | F25: 33
A26: 0312 | B26: MATER GARDENS ACADEMY | C26: 41 | E26: 25 | F26: 16
A27: 0321 | B27: BISCAYNE ELEMENTARY | C27: 66 | E27: 32 | F27: 34
A28: 0332 | B28: SOMERSET ACADEMY(SILVER PALMS) | C28: 147 | E28: 17 | F28: 24 | G28: 31 | H28: 42 | I28: 33
A29: 0339 | B29: SOMERSET ACADEMY CHARTER ELEM | C29: 22 | E29: 12 | F29: 10
A30: 0341 | B30: ARCH CREEK ELEMENTARY SCHOOL | C30: 67 | E30: 28 | F30: 39
A31: 0342 | B31: PINECREST ACADEMY SOUTH CAMPUS | C31: 53 | E31: 34 | F31: 19
A32: 0361 | B32: BISCAYNE GARDENS ELEMENTARY | C32: 59 | E32: 31 | F32: 28
A33: 0400 | B33: RENAISSANCE ELEMENTARY CHARTER | C33: 41 | E33: 22 | F33: 19
A34: 0401 | B34: VAN E. BLANTON ELEMENTARY | C34: 49 | E34: 28 | F34: 21
A35: 0410 | B35: ACADEMIR CHARTER SCHOOL WEST | C35: 35 | E35: 23 | F35: 12
A36: 0441 | B36: BLUE LAKES ELEMENTARY | C36: 23 | E36: 12 | F36: 11
A37: 0451 | B37: BOWMAN ASHE/DOOLIN K-8 ACAD | C37: 206 | E37: 36 | F37: 40 | G37: 23 | H37: 54 | I37: 53
A38: 0461 | B38: BRENTWOOD ELEMENTARY | C38: 92 | E38: 46 | F38: 46
A39: 0481 | B39: JAMES H. BRIGHT/JW JOHNSON ES | C39: 63 | E39: 30 | F39: 33
A40: 0510 | B40: ARCHIMEDEAN ACADEMY | C40: 12 | E40: 7 | F40: 5
A41: 0520 | B41: SOMERSET ACADEMY | C41: 24 | E41: 16 | F41: 8
A42: 0521 | B42: BROADMOOR ELEMENTARY | C42: 43 | E42: 20 | F42: 23
A43: 0561 | B43: W.J. BRYAN ELEMENTARY | C43: 80 | E43: 44 | F43: 36
A44: 0600 | B44: PINECREST PREP ACADEMY | C44: 36 | E44: 19 | F44: 17
A45: 0641 | B45: BUNCHE PARK ELEMENTARY | C45: 19 | E45: 12 | F45: 7
A46: 0651 | B46: CAMPBELL DRIVE K-8 CENTER | C46: 109 | E46: 35 | F46: 35 | G46: 22 | H46: 17
A47: 0661 | B47: CARIBBEAN ELEMENTARY | C47: 67 | E47: 35 | F47: 32
A48: 0671 | B48: CALUSA ELEMENTARY | C48: 41 | E48: 23 | F48: 18
A49: 0681 | B49: CAROL CITY ELEMENTARY | C49: 75 | E49: 42 | F49: 33
A50: 0721 | B50: GEORGE WASHINGTON CARVER ELEM | C50: 41 | E50: 27 | F50: 14
A51: 0761 | B51: FIENBERG/FISHER K-8 CENTER | C51: 134 | E51: 25 | F51: 27 | G51: 30 | H51: 26 | I51: 26
A52: 0771 | B52: WILLIAM A. CHAPMAN ELEMENTARY | C52: 41 | E52: 25 | F52: 16
A53: 0801 | B53: CITRUS GROVE ELEMENTARY | C53: 92 | E53: 53 | F53: 39
A54: 0831 | B54: CLAUDE PEPPER ELEMENTARY | C54: 51 | E54: 31 | F54: 20
A55: 0841 | B55: COCONUT GROVE ELEMENTARY | C55: 28 | E55: 17 | F55: 11
A56: 0861 | B56: COLONIAL DRIVE ELEMENTARY | C56: 27 | E56: 13 | F56: 14
A57: 0881 | B57: COMSTOCK ELEMENTARY | C57: 47 | E57: 25 | F57: 22
A58: 0950 | B58: AVENTURA CITY OF EXCELLENCE | C58: 59 | E58: 17 | F58: 9 | G58: 9 | H58: 12 | I58: 12
A59: 0961 | B59: CORAL GABLES PREPARATORY ACAD | C59: 50 | E59: 8 | F59: 7 | G59: 12 | H59: 17 | I59: 6
A60: 1001 | B60: CORAL PARK ELEMENTARY | C60: 39 | E60: 9 | F60: 30
A61: 1010 | B61: CHARTER SCHOOL AT WATERSTONE | C61: 94 | E61: 51 | F61: 43
A62: 1014 | B62: ADVANCED LEARNING CHARTER SCH | C62: 47 | E62: 25 | F62: 22
A63: 1017 | B63: MATER ACADEMY OF INTL STUDIES | C63: 31 | E63: 14 | F63: 17
A64: 1020 | B64: YOUTH CO-OP CHARTER SCHOOL | C64: 78 | E64: 12 | F64: 9 | G64: 13 | H64: 23 | I64: 21
A65: 1041 | B65: CORAL REEF ELEMENTARY | C65: 54 | E65: 35 | F65: 19
A66: 1081 | B66: CORAL TERRACE ELEMENTARY | C66: 36 | E66: 17 | F66: 19
A67: 1121 | B67: CORAL WAY K-8 CENTER | C67: 185 | E67: 36 | F67: 39 | G67: 37 | H67: 31 | I67: 42
A68: 1161 | B68: CRESTVIEW ELEMENTARY | C68: 51 | E68: 20 | F68: 31
A69: 1241 | B69: CUTLER RIDGE ELEMENTARY | C69: 55 | E69: 37 | F69: 18
A70: 1281 | B70: CYPRESS ELEMENTARY | C70: 30 | E70: 16 | F70: 14
A71: 1331 | B71: DEVON AIRE K-8 CENTER | C71: 163 | E71: 42 | F71: 25 | G71: 33 | H71: 35 | I71: 28
A72: 1361 | B72: FREDERICK DOUGLASS ELEMENTARY | C72: 21 | E72: 13 | F72: 8
A73: 1371 | B73: MARJORY STONEMAN DOUGLAS ELEM | C73: 90 | E73: 38 | F73: 52
A74: 1401 | B74: CHARLES R. DREW ELEMENTARY | C74: 37 | E74: 7 | F74: 13 | G74: 17
A75: 1441 | B75: PAUL LAURENCE DUNBAR ELEM | C75: 49 | E75: 24 | F75: 12 | G75: 13
A76: 1481 | B76: JOHN G. DUPUIS ELEMENTARY | C76: 65 | E76: 23 | F76: 42
A77: 1521 | B77: AMELIA EARHART ELEMENTARY | C77: 40 | E77: 17 | F77: 23
A78: 1561 | B78: EARLINGTON HEIGHTS ELEMENTARY | C78: 39 | E78: 22 | F78: 17
A79: 1601 | B79: EDISON PARK ELEMENTARY | C79: 44 | E79: 18 | F79: 17 | G79: 9
A80: 1641 | B80: EMERSON ELEMENTARY | C80: 24 | E80: 14 | F80: 10
A81: 1681 | B81: LILLIE C. EVANS K-8 CENTER | C81: 82 | E81: 25 | F81: 14 | G81: 19 | H81: 16 | I81: 8
A82: 1691 | B82: CHRISTINA M. EVE ELEMENTARY | C82: 25 | E82: 11 | F82: 14
A83: 1721 | B83: EVERGLADES K-8 CENTER | C83: 131 | E83: 29 | F83: 24 | G83: 24 | H83: 28 | I83: 26
A84: 1761 | B84: DAVID FAIRCHILD ELEMENTARY | C84: 25 | E84: 16 | F84: 9
A85: 1801 | B85: FAIRLAWN ELEMENTARY | C85: 58 | E85: 30 | F85: 28
A86: 1811 | B86: DANTE B. FASCELL ELEMENTARY | C86: 22 | E86: 12 | F86: 10
A87: 1841 | B87: FLAGAMI ELEMENTARY | C87: 39 | E87: 18 | F87: 21
A88: 1881 | B88: HENRY M. FLAGLER ELEMENTARY | C88: 50 | E88: 25 | F88: 25
A89: 1921 | B89: FLAMINGO ELEMENTARY | C89: 68 | E89: 27 | F89: 41
A90: 2001 | B90: FLORIDA CITY ELEMENTARY | C90: 78 | D90: 1 | E90: 43 | F90: 34
A91: 2003 | B91: BRIDGEPOINT ACADEMY | C91: 17 | E91: 9 | F91: 8
A92: 2006 | B92: RICHARD ALLEN LEADERSHIP ACAD | C92: 11 | E92: 5 | F92: 6
A93: 2007 | B93: SOMERSET ACADEMY ELEMENTARY | C93: 18 | E93: 10 | F93: 8
A94: 2012 | B94: SOMERSET ARTS ACADEMY | C94: 19 | E94: 15 | F94: 4
A95: 2013 | B95: BRIDGEPOINT ACAD GREATER MIAMI | C95: 9 | E95: 5 | F95: 4
A96: 2021 | B96: GLORIA FLOYD ELEMENTARY | C96: 37 | E96: 22 | F96: 15
A97: 2041 | B97: BENJAMIN FRANKLIN K-8 CENTER | C97: 95 | E97: 29 | F97: 24 | G97: 25 | H97: 17
A98: 2060 | B98: GIBSON CHARTER SCHOOL | C98: 59 | E98: 6 | F98: 11 | G98: 18 | H98: 15 | I98: 9
A99: 2081 | B99: FULFORD ELEMENTARY | C99: 45 | E99: 25 | F99: 20
A100: 2111 | B100: HIALEAH GARDENS ELEMENTARY | C100: 63 | E100: 26 | F100: 37
A101: 2151 | B101: JACK D. GORDON ELEMENTARY | C101: 78 | E101: 40 | F101: 38
A102: 2161 | B102: GOLDEN GLADES ELEMENTARY | C102: 25 | E102: 9 | F102: 16
A103: 2181 | B103: JOELLA C. GOOD ELEMENTARY | C103: 80 | E103: 49 | F103: 31
A104: 2191 | B104: SPANISH LAKE ELEMENTARY | C104: 134 | E104: 58 | F104: 76
A105: 2241 | B105: GRATIGNY ELEMENTARY | C105: 73 | E105: 25 | F105: 23 | G105: 25
A106: 2261 | B106: GREENGLADE ELEMENTARY | C106: 45 | E106: 30 | F106: 15
A107: 2281 | B107: GREYNOLDS PARK ELEMENTARY | C107: 67 | E107: 36 | F107: 31
A108: 2321 | B108: GULFSTREAM ELEMENTARY | C108: 40 | E108: 23 | F108: 17
A109: 2331 | B109: CHARLES R. HADLEY ELEMENTARY | C109: 77 | E109: 44 | F109: 33
A110: 2341 | B110: JOE HALL ELEMENTARY | C110: 42 | E110: 25 | F110: 17
A111: 2351 | B111: ENEIDA MASSAS HARTNER ELEM | C111: 65 | E111: 33 | F111: 32
A112: 2361 | B112: HIALEAH ELEMENTARY | C112: 71 | E112: 40 | F112: 31
A113: 2371 | B113: WEST HIALEAH GARDENS ELEM | C113: 100 | E113: 65 | F113: 35
A114: 2401 | B114: HIBISCUS ELEMENTARY | C114: 60 | D114: 1 | E114: 27 | F114: 32
A115: 2441 | B115: VIRGINIA A BOONE/HIGHLAND OAKS | C115: 26 | E115: 17 | F115: 9
A116: 2501 | B116: HOLMES ELEMENTARY | C116: 55 | E116: 27 | F116: 28
A117: 2511 | B117: ZORA NEALE HURSTON ELEMENTARY | C117: 52 | E117: 28 | F117: 24
A118: 2521 | B118: OLIVER HOOVER ELEMENTARY | C118: 58 | E118: 26 | F118: 32
A119: 2541 | B119: HOWARD DRIVE ELEMENTARY | C119: 40 | E119: 24 | F119: 16
A120: 2581 | B120: MADIE IVES ELEMENTARY | C120: 64 | E120: 34 | F120: 30
A121: 2641 | B121: KENDALE ELEMENTARY | C121: 24 | E121: 12 | F121: 12
A122: 2651 | B122: KENDALE LAKES ELEMENTARY | C122: 36 | E122: 22 | F122: 14
A123: 2661 | B123: KENSINGTON PARK ELEMENTARY | C123: 117 | E123: 63 | F123: 54
A124: 2701 | B124: KENWOOD K-8 CENTER | C124: 103 | D124: 1 | E124: 20 | F124: 22 | G124: 18 | H124: 19 | I124: 23
A125: 2741 | B125: KEY BISCAYNE K-8 CENTER | C125: 77 | E125: 17 | F125: 14 | G125: 17 | H125: 19 | I125: 10
A126: 2781 | B126: KINLOCH PARK ELEMENTARY | C126: 82 | E126: 45 | F126: 37
A127: 2801 | B127: LAKE STEVENS ELEMENTARY | C127: 31 | E127: 18 | F127: 13
A128: 2821 | B128: LAKEVIEW ELEMENTARY | C128: 49 | E128: 21 | F128: 28
A129: 2881 | B129: LEEWOOD K-8 CENTER | C129: 60 | D129: 2 | E129: 14 | F129: 12 | G129: 14 | H129: 13 | I129: 5
A130: 2891 | B130: WILLIAM LEHMAN ELEMENTARY | C130: 37 | E130: 20 | F130: 17
A131: 2901 | B131: LEISURE CITY K-8 CENTER | C131: 222 | E131: 48 | F131: 53 | G131: 36 | H131: 39 | I131: 46
A132: 2911 | B132: LINDA LENTIN K-8 CENTER | C132: 170 | E132: 28 | F132: 36 | G132: 39 | H132: 25 | I132: 42
A133: 2941 | B133: LAURA C. SAUNDERS ELEMENTARY | C133: 75 | E133: 39 | F133: 36
A134: 2981 | B134: LIBERTY CITY ELEMENTARY | C134: 32 | E134: 16 | F134: 16
A135: 3021 | B135: JESSE J MCCRARY JR ELEMENTARY | C135: 54 | E135: 29 | F135: 25
A136: 3024 | B136: FLORIDA INTERNATIONAL EL ACAD | C136: 48 | E136: 27 | F136: 21
A137: 3025 | B137: ADVANTAGE ACADEMY SANTA FE | C137: 12 | E137: 10 | F137: 2
A138: 3029 | B138: DORAL ACADEMY OF TECHNOLOGY | C138: 4 | G138: 2 | H138: 1 | I138: 1
A139: 3030 | B139: DORAL ACADEMY | C139: 45 | E139: 29 | F139: 16
A140: 3032 | B140: PALM GLADES PREPATORY ACADEMY | C140: 127 | G140: 58 | H140: 36 | I140: 33
A141: 3034 | B141: BRIDGEPOINT ACAD VILLAGE GREEN | C141: 8 | E141: 4 | F141: 4
A142: 3035 | B142: RAMZ ACADEMY ELEM MIAMI CAMPUS | C142: 3 | E142: 3
A143: 3041 | B143: LORAH PARK ELEMENTARY | C143: 47 | E143: 24 | F143: 23
A144: 3051 | B144: TOUSSAINT L'OUVERTURE ELEM | C144: 56 | E144: 25 | F144: 31
A145: 3061 | B145: LUDLAM ELEMENTARY | C145: 17 | E145: 9 | F145: 8
A146: 3100 | B146: MATER ACADEMY EAST CHARTER | C146: 26 | E146: 22 | F146: 4
A147: 3101 | B147: FRANK C. MARTIN K-8 CENTER | C147: 78 | E147: 21 | F147: 18 | G147: 16 | H147: 12 | I147: 11
A148: 3111 | B148: WESLEY MATTHEWS ELEMENTARY | C148: 20 | E148: 9 | F148: 11
A149: 3141 | B149: MEADOWLANE ELEMENTARY | C149: 123 | E149: 54 | F149: 69
A150: 3181 | B150: MELROSE ELEMENTARY | C150: 65 | E150: 39 | F150: 26
A151: 3191 | B151: ADA MERRITT K-8 CENTER | C151: 48 | E151: 7 | F151: 9 | G151: 14 | H151: 12 | I151: 6
A152: 3241 | B152: MIAMI GARDENS ELEMENTARY | C152: 25 | E152: 17 | F152: 8
A153: 3261 | B153: MIAMI HEIGHTS ELEMENTARY | C153: 97 | E153: 56 | F153: 41
A154: 3281 | B154: MIAMI LAKES K-8 CENTER | C154: 173 | E154: 30 | F154: 37 | G154: 34 | H154: 30 | I154: 42
A155: 3301 | B155: MIAMI PARK ELEMENTARY | C155: 45 | E155: 25 | F155: 20
A156: 3341 | B156: MIAMI SHORES ELEMENTARY | C156: 69 | E156: 29 | F156: 40
A157: 3381 | B157: MIAMI SPRINGS ELEMENTARY | C157: 50 | E157: 27 | F157: 23
A158: 3421 | B158: M.A. MILAM K-8 CENTER | C158: 183 | E158: 31 | F158: 32 | G158: 34 | H158: 47 | I158: 39
A159: 3431 | B159: PHYLLIS RUTH MILLER ELEMENTARY | C159: 60 | E159: 30 | F159: 30
A160: 3501 | B160: MORNINGSIDE ELEMENTARY | C160: 65 | E160: 31 | F160: 16 | G160: 18
A161: 3541 | B161: ROBERT RUSSA MOTON ELEMENTARY | C161: 39 | D161: 1 | E161: 20 | F161: 18
A162: 3581 | B162: MYRTLE GROVE ELEMENTARY | C162: 50 | E162: 16 | F162: 16 | G162: 18
A163: 3600 | B163: DOWNTOWN MIAMI CHARTER SCHOOL | C163: 89 | E163: 38 | F163: 22 | G163: 29
A164: 3610 | B164: KEYS GATE CHARTER SCHOOL | C164: 314 | E164: 47 | F164: 44 | G164: 70 | H164: 86 | I164: 67
A165: 3621 | B165: COCONUT PALM K-8 ACADEMY | C165: 200 | E165: 55 | F165: 55 | G165: 40 | H165: 28 | I165: 22
A166: 3661 | B166: NATURAL BRIDGE ELEMENTARY | C166: 35 | E166: 24 | F166: 11
A167: 3701 | B167: NORLAND ELEMENTARY | C167: 72 | E167: 40 | F167: 32
A168: 3741 | B168: NORTH BEACH ELEMENTARY | C168: 46 | E168: 28 | F168: 18
A169: 3781 | B169: BARBARA HAWKINS ELEMENTARY | C169: 30 | E169: 17 | F169: 13
A170: 3821 | B170: NORTH COUNTY K-8 CENTER | C170: 55 | E170: 15 | F170: 9 | G170: 16 | H170: 15
A171: 3861 | B171: NORTH GLADE ELEMENTARY | C171: 18 | E171: 10 | F171: 8
A172: 3901 | B172: NORTH HIALEAH ELEMENTARY | C172: 61 | E172: 35 | F172: 26
A173: 3941 | B173: NORTH MIAMI ELEMENTARY | C173: 60 | E173: 34 | F173: 26
A174: 3981 | B174: NORTH TWIN LAKES ELEMENTARY | C174: 59 | E174: 31 | F174: 28
A175: 4000 | B175: MIAMI CHILDREN'S MUSEUM | C175: 17 | E175: 8 | F175: 9
A176: 4001 | B176: NORWOOD ELEMENTARY | C176: 32 | E176: 15 | F176: 17
A177: 4012 | B177: SOMERSET ACAD AT SILVER PALMS | C177: 39 | E177: 26 | F177: 13
A178: 4021 | B178: OAK GROVE ELEMENTARY | C178: 79 | E178: 27 | F178: 31 | G178: 21
A179: 4031 | B179: GATEWAY ENVIRONMENTAL K-8 | C179: 197 | E179: 60 | F179: 51 | G179: 53 | H179: 33
A180: 4061 | B180: OJUS ELEMENTARY | C180: 67 | E180: 34 | F180: 33
A181: 4071 | B181: OLINDA ELEMENTARY | C181: 37 | E181: 20 | F181: 17
A182: 4091 | B182: OLYMPIA HEIGHTS ELEMENTARY | C182: 45 | E182: 26 | F182: 19
A183: 4121 | B183: DR. ROBERT B. INGRAM EL | C183: 38 | E183: 17 | F183: 21
A184: 4171 | B184: ORCHARD VILLA ELEMENTARY | C184: 41 | E184: 24 | F184: 17
A185: 4221 | B185: PALMETTO ELEMENTARY | C185: 24 | E185: 12 | F185: 12
A186: 4241 | B186: PALM LAKES ELEMENTARY | C186: 70 | E186: 29 | F186: 41
A187: 4261 | B187: PALM SPRINGS ELEMENTARY | C187: 70 | E187: 38 | F187: 32
A188: 4281 | B188: PALM SPRINGS NORTH ELEMENTARY | C188: 85 | E188: 47 | F188: 38
A189: 4301 | B189: PARKVIEW ELEMENTARY | C189: 28 | E189: 19 | F189: 9
A190: 4341 | B190: PARKWAY ELEMENTARY | C190: 37 | E190: 22 | F190: 15
A191: 4381 | B191: DR HENRY E PERRINE ACADEMY | C191: 65 | E191: 30 | F191: 35
A192: 4391 | B192: IRVING & BEATRICE PESKOE K-8 | C192: 94 | E192: 27 | F192: 34 | G192: 19 | H192: 14
A193: 4401 | B193: KELSEY L. PHARR ELEMENTARY | C193: 38 | E193: 21 | F193: 17
A194: 4421 | B194: PINECREST ELEMENTARY | C194: 37 | E194: 16 | F194: 21
A195: 4441 | B195: PINE LAKE ELEMENTARY | C195: 42 | E195: 23 | F195: 19
A196: 4461 | B196: PINE VILLA ELEMENTARY | C196: 22 | E196: 14 | F196: 8
A197: 4491 | B197: HENRY E.S. REEVES ELEMENTARY | C197: 78 | E197: 42 | F197: 36
A198: 4501 | B198: POINCIANA PARK ELEMENTARY | C198: 27 | E198: 13 | F198: 14
A199: 4511 | B199: DR GILBERT L. PORTER ELEM | C199: 49 | E199: 20 | F199: 29
A200: 4541 | B200: RAINBOW PARK ELEMENTARY | C200: 33 | E200: 13 | F200: 20
... 249 more rows

Sheet MEM_RL3 (hidden)
A1: 1 | B1: 2 | C1: 3 | D1: 4 | E1: 5 | F1: 6 | G1: 7 | H1: 8 | I1: 9 | J1: 10 | K1: 11
A2: S_SCHOOL_NUM | B2: S_SCHL_NAME | C2: Total Of STUDENT_ID | D2: 3 | E2: 04 | F2: 05 | G2: 06 | H2: 07 | I2: 08 | J2: 09 | K2: 10
A3: 0041 | B3: AIR BASE ELEMENTARY | C3: 84 | E3: 35 | F3: 38 | G3: 11
A4: 0070 | B4: CORAL REEF MONTESSORI ACAD CH | C4: 52 | E4: 14 | F4: 8 | G4: 12 | H4: 10 | I4: 8
A5: 0071 | B5: EUGENIA B. THOMAS K-8 CENTER | C5: 219 | E5: 37 | F5: 47 | G5: 42 | H5: 48 | I5: 45
A6: 0072 | B6: SUMMERVILLE CHARTER SCHOOL | C6: 41 | E6: 20 | F6: 21
A7: 0073 | B7: MANDARIN LAKES K-8 CENTER | C7: 113 | E7: 32 | F7: 24 | G7: 26 | H7: 22 | I7: 9
A8: 0081 | B8: LENORA B. SMITH ELEMENTARY | C8: 16 | E8: 10 | F8: 6
A9: 0091 | B9: BOB GRAHAM EDUCATION CTR | C9: 298 | E9: 54 | F9: 65 | G9: 54 | H9: 68 | I9: 57
A10: 0092 | B10: NORMAN S. EDELCUP/SUNNY ISLES | C10: 244 | E10: 51 | F10: 60 | G10: 46 | H10: 48 | I10: 39
A11: 0100 | B11: MATER ACADEMY | C11: 73 | E11: 35 | F11: 38
A12: 0101 | B12: ARCOLA LAKE ELEMENTARY | C12: 22 | E12: 10 | F12: 12
A13: 0102 | B13: MIAMI COMMUNITY CHARTER SCHOOL | C13: 31 | E13: 17 | F13: 14
A14: 0111 | B14: MAYA ANGELOU ELEMENTARY | C14: 30 | E14: 16 | F14: 14
A15: 0121 | B15: AUBURNDALE ELEMENTARY | C15: 77 | E15: 39 | F15: 38
A16: 0122 | B16: DR ROLANDO ESPINOSA K-8 | C16: 235 | E16: 33 | F16: 51 | G16: 51 | H16: 45 | I16: 55
A17: 0125 | B17: NORMA BUTLER BOSSARD ELEM | C17: 96 | E17: 46 | F17: 50
A18: 0201 | B18: BANYAN ELEMENTARY | C18: 29 | E18: 11 | F18: 18
A19: 0211 | B19: DR. MANUEL C. BARREIRO ELEM | C19: 76 | E19: 31 | F19: 45
A20: 0231 | B20: AVENTURA WATERWAYS K-8 CENTER | C20: 250 | E20: 42 | F20: 45 | G20: 54 | H20: 57 | I20: 52
A21: 0241 | B21: RUTH K BROAD/BAY HARBOR K-8 | C21: 206 | E21: 39 | F21: 48 | G21: 33 | H21: 55 | I21: 31
A22: 0251 | B22: ETHEL KOGER BECKHAM ELEMENTARY | C22: 57 | E22: 32 | F22: 25
A23: 0261 | B23: BEL-AIRE ELEMENTARY | C23: 25 | E23: 13 | F23: 12
A24: 0271 | B24: BENT TREE ELEMENTARY | C24: 38 | E24: 16 | F24: 22
A25: 0311 | B25: GOULDS ELEMENTARY | C25: 45 | E25: 20 | F25: 25
A26: 0312 | B26: MATER GARDENS ACADEMY | C26: 64 | E26: 32 | F26: 32
A27: 0321 | B27: BISCAYNE ELEMENTARY | C27: 51 | E27: 15 | F27: 36
A28: 0332 | B28: SOMERSET ACADEMY(SILVER PALMS) | C28: 192 | E28: 22 | F28: 13 | G28: 60 | H28: 57 | I28: 40
A29: 0339 | B29: SOMERSET ACADEMY CHARTER ELEM | C29: 37 | E29: 20 | F29: 17
A30: 0341 | B30: ARCH CREEK ELEMENTARY SCHOOL | C30: 55 | E30: 27 | F30: 28
A31: 0342 | B31: PINECREST ACADEMY SOUTH CAMPUS | C31: 60 | E31: 24 | F31: 36
A32: 0361 | B32: BISCAYNE GARDENS ELEMENTARY | C32: 31 | E32: 10 | F32: 21
A33: 0400 | B33: RENAISSANCE ELEMENTARY CHARTER | C33: 75 | E33: 38 | F33: 37
A34: 0401 | B34: VAN E. BLANTON ELEMENTARY | C34: 43 | E34: 24 | F34: 19
A35: 0410 | B35: ACADEMIR CHARTER SCHOOL WEST | C35: 62 | E35: 41 | F35: 21
A36: 0441 | B36: BLUE LAKES ELEMENTARY | C36: 46 | E36: 23 | F36: 23
A37: 0451 | B37: BOWMAN ASHE/DOOLIN K-8 ACAD | C37: 203 | E37: 31 | F37: 36 | G37: 38 | H37: 48 | I37: 50
A38: 0461 | B38: BRENTWOOD ELEMENTARY | C38: 56 | E38: 23 | F38: 33
A39: 0481 | B39: JAMES H. BRIGHT/JW JOHNSON ES | C39: 56 | E39: 23 | F39: 33
A40: 0510 | B40: ARCHIMEDEAN ACADEMY | C40: 47 | E40: 25 | F40: 22
A41: 0520 | B41: SOMERSET ACADEMY | C41: 49 | E41: 25 | F41: 24
A42: 0521 | B42: BROADMOOR ELEMENTARY | C42: 24 | E42: 11 | F42: 13
A43: 0561 | B43: W.J. BRYAN ELEMENTARY | C43: 35 | E43: 23 | F43: 12
A44: 0600 | B44: PINECREST PREP ACADEMY | C44: 54 | E44: 29 | F44: 25
A45: 0641 | B45: BUNCHE PARK ELEMENTARY | C45: 9 | E45: 5 | F45: 4
A46: 0651 | B46: CAMPBELL DRIVE K-8 CENTER | C46: 103 | E46: 17 | F46: 21 | G46: 29 | H46: 18 | I46: 18
A47: 0661 | B47: CARIBBEAN ELEMENTARY | C47: 21 | E47: 7 | F47: 14
A48: 0671 | B48: CALUSA ELEMENTARY | C48: 64 | E48: 25 | F48: 39
A49: 0681 | B49: CAROL CITY ELEMENTARY | C49: 28 | E49: 10 | F49: 18
A50: 0721 | B50: GEORGE WASHINGTON CARVER ELEM | C50: 34 | E50: 13 | F50: 21
A51: 0761 | B51: FIENBERG/FISHER K-8 CENTER | C51: 120 | E51: 11 | F51: 23 | G51: 20 | H51: 38 | I51: 28
A52: 0771 | B52: WILLIAM A. CHAPMAN ELEMENTARY | C52: 29 | E52: 20 | F52: 9
A53: 0801 | B53: CITRUS GROVE ELEMENTARY | C53: 63 | E53: 30 | F53: 33
A54: 0831 | B54: CLAUDE PEPPER ELEMENTARY | C54: 63 | E54: 37 | F54: 26
A55: 0841 | B55: COCONUT GROVE ELEMENTARY | C55: 31 | E55: 13 | F55: 18
A56: 0861 | B56: COLONIAL DRIVE ELEMENTARY | C56: 18 | E56: 10 | F56: 8
A57: 0881 | B57: COMSTOCK ELEMENTARY | C57: 32 | E57: 9 | F57: 23
A58: 0950 | B58: AVENTURA CITY OF EXCELLENCE | C58: 149 | E58: 29 | F58: 32 | G58: 29 | H58: 29 | I58: 30
A59: 0961 | B59: CORAL GABLES PREPARATORY ACAD | C59: 111 | E59: 18 | F59: 21 | G59: 20 | H59: 24 | I59: 28
A60: 1001 | B60: CORAL PARK ELEMENTARY | C60: 61 | E60: 34 | F60: 27
A61: 1010 | B61: CHARTER SCHOOL AT WATERSTONE | C61: 109 | E61: 59 | F61: 50
A62: 1014 | B62: HIVE PREPARATORY SCHOOL | C62: 34 | E62: 17 | F62: 17
A63: 1017 | B63: MATER ACADEMY OF INTL STUDIES | C63: 35 | E63: 27 | F63: 8
A64: 1020 | B64: YOUTH CO-OP CHARTER SCHOOL | C64: 105 | E64: 14 | F64: 18 | G64: 28 | H64: 17 | I64: 28
A65: 1041 | B65: CORAL REEF ELEMENTARY | C65: 67 | E65: 31 | F65: 36
A66: 1081 | B66: CORAL TERRACE ELEMENTARY | C66: 28 | E66: 16 | F66: 12
A67: 1121 | B67: CORAL WAY K-8 CENTER | C67: 209 | E67: 37 | F67: 36 | G67: 50 | H67: 48 | I67: 38
A68: 1161 | B68: CRESTVIEW ELEMENTARY | C68: 29 | E68: 15 | F68: 14
A69: 1241 | B69: CUTLER RIDGE ELEMENTARY | C69: 74 | E69: 35 | F69: 39
A70: 1281 | B70: CYPRESS ELEMENTARY | C70: 26 | E70: 12 | F70: 14
A71: 1331 | B71: DEVON AIRE K-8 CENTER | C71: 247 | E71: 41 | F71: 41 | G71: 56 | H71: 54 | I71: 55
A72: 1361 | B72: FREDERICK DOUGLASS ELEMENTARY | C72: 7 | E72: 4 | F72: 3
A73: 1371 | B73: MARJORY STONEMAN DOUGLAS ELEM | C73: 68 | E73: 30 | F73: 38
A74: 1401 | B74: CHARLES R. DREW K-8 CENTER | C74: 38 | E74: 9 | F74: 13 | G74: 9 | H74: 7
A75: 1441 | B75: PAUL LAURENCE DUNBAR K-8 CTR | C75: 30 | E75: 5 | F75: 11 | G75: 9 | H75: 5
A76: 1481 | B76: JOHN G. DUPUIS ELEMENTARY | C76: 58 | E76: 27 | F76: 31
A77: 1521 | B77: AMELIA EARHART ELEMENTARY | C77: 31 | E77: 16 | F77: 15
A78: 1561 | B78: EARLINGTON HEIGHTS ELEMENTARY | C78: 24 | E78: 14 | F78: 10
A79: 1601 | B79: EDISON PARK K-8 CENTER | C79: 28 | E79: 8 | F79: 7 | G79: 9 | H79: 4
A80: 1641 | B80: EMERSON ELEMENTARY | C80: 39 | E80: 18 | F80: 21
A81: 1681 | B81: LILLIE C. EVANS K-8 CENTER | C81: 66 | E81: 2 | F81: 13 | G81: 21 | H81: 20 | I81: 10
A82: 1691 | B82: CHRISTINA M. EVE ELEMENTARY | C82: 47 | E82: 22 | F82: 25
A83: 1721 | B83: EVERGLADES K-8 CENTER | C83: 178 | E83: 27 | F83: 27 | G83: 48 | H83: 37 | I83: 39
A84: 1761 | B84: DAVID FAIRCHILD ELEMENTARY | C84: 40 | E84: 22 | F84: 18
A85: 1801 | B85: FAIRLAWN ELEMENTARY | C85: 50 | E85: 17 | F85: 33
A86: 1811 | B86: DANTE B. FASCELL ELEMENTARY | C86: 40 | E86: 16 | F86: 24
A87: 1841 | B87: FLAGAMI ELEMENTARY | C87: 41 | E87: 19 | F87: 22
A88: 1881 | B88: HENRY M. FLAGLER ELEMENTARY | C88: 65 | E88: 28 | F88: 37
A89: 1921 | B89: FLAMINGO ELEMENTARY | C89: 64 | E89: 30 | F89: 34
A90: 2001 | B90: FLORIDA CITY ELEMENTARY | C90: 57 | E90: 26 | F90: 31
A91: 2003 | B91: BRIDGEPREP ACADEMY SOUTH | C91: 32 | E91: 12 | F91: 9 | G91: 11
A92: 2006 | B92: RICHARD ALLEN LEADERSHIP ACAD | C92: 3 | E92: 2 | F92: 1
A93: 2007 | B93: SOMERSET ACADEMY ELEMENTARY | C93: 58 | E93: 32 | F93: 26
A94: 2012 | B94: SOMERSET ARTS ACADEMY | C94: 34 | E94: 17 | F94: 17
A95: 2013 | B95: BRIDGEPREP ACAD GREATER MIAMI | C95: 11 | E95: 4 | F95: 7
A96: 2021 | B96: GLORIA FLOYD ELEMENTARY | C96: 39 | E96: 16 | F96: 23
A97: 2041 | B97: BENJAMIN FRANKLIN K-8 CENTER | C97: 55 | E97: 10 | F97: 15 | G97: 8 | H97: 8 | I97: 14
A98: 2060 | B98: GIBSON CHARTER SCHOOL | C98: 25 | E98: 2 | F98: 2 | G98: 8 | H98: 8 | I98: 5
A99: 2081 | B99: FULFORD ELEMENTARY | C99: 28 | E99: 14 | F99: 14
A100: 2111 | B100: HIALEAH GARDENS ELEMENTARY | C100: 79 | E100: 35 | F100: 44
A101: 2151 | B101: JACK D. GORDON ELEMENTARY | C101: 93 | E101: 43 | F101: 50
A102: 2161 | B102: GOLDEN GLADES ELEMENTARY | C102: 13 | E102: 6 | F102: 7
A103: 2181 | B103: JOELLA C. GOOD ELEMENTARY | C103: 85 | E103: 41 | F103: 44
A104: 2191 | B104: SPANISH LAKE ELEMENTARY | C104: 130 | E104: 62 | F104: 68
A105: 2241 | B105: GRATIGNY ELEMENTARY | C105: 47 | E105: 18 | F105: 12 | G105: 17
A106: 2261 | B106: GREENGLADE ELEMENTARY | C106: 44 | E106: 19 | F106: 25
A107: 2281 | B107: GREYNOLDS PARK ELEMENTARY | C107: 49 | E107: 30 | F107: 19
A108: 2321 | B108: GULFSTREAM ELEMENTARY | C108: 40 | E108: 16 | F108: 24
A109: 2331 | B109: CHARLES R. HADLEY ELEMENTARY | C109: 86 | E109: 29 | F109: 57
A110: 2341 | B110: JOE HALL ELEMENTARY | C110: 52 | E110: 27 | F110: 25
A111: 2351 | B111: ENEIDA MASSAS HARTNER ELEM | C111: 41 | E111: 17 | F111: 24
A112: 2361 | B112: HIALEAH ELEMENTARY | C112: 52 | E112: 21 | F112: 31
A113: 2371 | B113: WEST HIALEAH GARDENS ELEM | C113: 121 | E113: 57 | F113: 64
A114: 2401 | B114: HIBISCUS ELEMENTARY | C114: 37 | E114: 19 | F114: 18
A115: 2441 | B115: VIRGINIA A BOONE/HIGHLAND OAKS | C115: 51 | E115: 30 | F115: 21
A116: 2501 | B116: HOLMES ELEMENTARY | C116: 17 | E116: 10 | F116: 7
A117: 2511 | B117: ZORA NEALE HURSTON ELEMENTARY | C117: 59 | E117: 25 | F117: 34
A118: 2521 | B118: OLIVER HOOVER ELEMENTARY | C118: 53 | E118: 31 | F118: 22
A119: 2541 | B119: HOWARD DRIVE ELEMENTARY | C119: 51 | E119: 22 | F119: 29
A120: 2581 | B120: MADIE IVES ELEMENTARY | C120: 73 | E120: 33 | F120: 40
A121: 2641 | B121: KENDALE ELEMENTARY | C121: 34 | E121: 15 | F121: 19
A122: 2651 | B122: KENDALE LAKES ELEMENTARY | C122: 54 | E122: 30 | F122: 24
A123: 2661 | B123: KENSINGTON PARK ELEMENTARY | C123: 73 | E123: 32 | F123: 41
A124: 2701 | B124: KENWOOD K-8 CENTER | C124: 186 | E124: 25 | F124: 32 | G124: 32 | H124: 54 | I124: 43
A125: 2741 | B125: KEY BISCAYNE K-8 CENTER | C125: 192 | E125: 46 | F125: 43 | G125: 40 | H125: 42 | I125: 21
A126: 2781 | B126: KINLOCH PARK ELEMENTARY | C126: 62 | E126: 28 | F126: 34
A127: 2801 | B127: LAKE STEVENS ELEMENTARY | C127: 22 | E127: 8 | F127: 14
A128: 2821 | B128: LAKEVIEW ELEMENTARY | C128: 34 | E128: 15 | F128: 19
A129: 2881 | B129: LEEWOOD K-8 CENTER | C129: 118 | E129: 28 | F129: 24 | G129: 21 | H129: 23 | I129: 22
A130: 2891 | B130: WILLIAM LEHMAN ELEMENTARY | C130: 58 | E130: 35 | F130: 23
A131: 2901 | B131: LEISURE CITY K-8 CENTER | C131: 132 | E131: 22 | F131: 34 | G131: 17 | H131: 33 | I131: 26
A132: 2911 | B132: LINDA LENTIN K-8 CENTER | C132: 136 | E132: 24 | F132: 25 | G132: 30 | H132: 29 | I132: 28
A133: 2941 | B133: LAURA C. SAUNDERS ELEMENTARY | C133: 44 | E133: 17 | F133: 27
A134: 2981 | B134: LIBERTY CITY ELEMENTARY | C134: 20 | E134: 8 | F134: 12
A135: 3021 | B135: JESSE J MCCRARY JR ELEMENTARY | C135: 25 | E135: 10 | F135: 15
A136: 3024 | B136: FLORIDA INTERNATIONAL EL ACAD | C136: 23 | E136: 12 | F136: 11
A137: 3025 | B137: ADVANTAGE ACADEMY SANTA FE | C137: 11 | E137: 4 | F137: 7
A138: 3029 | B138: DORAL ACADEMY OF TECHNOLOGY | C138: 35 | G138: 15 | H138: 15 | I138: 5
A139: 3030 | B139: DORAL ACADEMY | C139: 83 | E139: 51 | F139: 32
A140: 3032 | B140: PALM GLADES PREPATORY ACADEMY | C140: 106 | G140: 32 | H140: 41 | I140: 33
A141: 3034 | B141: BRIDGEPREP ACAD VILLAGE GREEN | C141: 5 | E141: 3 | F141: 2
A142: 3035 | B142: RAMZ ACADEMY ELEM MIAMI CAMPUS | C142: 5 | E142: 1 | F142: 4
A143: 3041 | B143: LORAH PARK ELEMENTARY | C143: 27 | E143: 21 | F143: 6
A144: 3051 | B144: TOUSSAINT L'OUVERTURE ELEM | C144: 26 | E144: 15 | F144: 11
A145: 3061 | B145: LUDLAM ELEMENTARY | C145: 19 | E145: 4 | F145: 15
A146: 3100 | B146: MATER ACADEMY EAST CHARTER | C146: 46 | E146: 23 | F146: 23
A147: 3101 | B147: FRANK C. MARTIN K-8 CENTER | C147: 197 | E147: 33 | F147: 40 | G147: 45 | H147: 35 | I147: 44
A148: 3111 | B148: WESLEY MATTHEWS ELEMENTARY | C148: 44 | E148: 22 | F148: 22
A149: 3141 | B149: MEADOWLANE ELEMENTARY | C149: 82 | E149: 43 | F149: 39
A150: 3181 | B150: MELROSE ELEMENTARY | C150: 54 | E150: 26 | F150: 28
A151: 3191 | B151: ADA MERRITT K-8 CENTER | C151: 107 | E151: 15 | F151: 19 | G151: 27 | H151: 24 | I151: 22
A152: 3241 | B152: MIAMI GARDENS ELEMENTARY | C152: 17 | E152: 6 | F152: 11
A153: 3261 | B153: MIAMI HEIGHTS ELEMENTARY | C153: 95 | E153: 50 | F153: 45
A154: 3281 | B154: MIAMI LAKES K-8 CENTER | C154: 194 | E154: 29 | F154: 35 | G154: 42 | H154: 50 | I154: 38
A155: 3301 | B155: MIAMI PARK ELEMENTARY | C155: 16 | E155: 9 | F155: 7
A156: 3341 | B156: MIAMI SHORES ELEMENTARY | C156: 64 | E156: 34 | F156: 30
A157: 3381 | B157: MIAMI SPRINGS ELEMENTARY | C157: 55 | E157: 22 | F157: 33
A158: 3421 | B158: M.A. MILAM K-8 CENTER | C158: 167 | E158: 22 | F158: 25 | G158: 32 | H158: 38 | I158: 50
A159: 3431 | B159: PHYLLIS RUTH MILLER ELEMENTARY | C159: 51 | E159: 34 | F159: 17
A160: 3501 | B160: MORNINGSIDE K-8 ACADEMY | C160: 54 | E160: 16 | F160: 20 | G160: 15 | H160: 3
A161: 3541 | B161: ROBERT RUSSA MOTON ELEMENTARY | C161: 19 | E161: 4 | F161: 15
A162: 3581 | B162: MYRTLE GROVE K-8 CENTER | C162: 50 | E162: 9 | F162: 11 | G162: 16 | H162: 14
A163: 3600 | B163: DOWNTOWN MIAMI CHARTER SCHOOL | C163: 69 | E163: 24 | F163: 29 | G163: 16
A164: 3610 | B164: KEYS GATE CHARTER SCHOOL | C164: 345 | E164: 53 | F164: 48 | G164: 74 | H164: 78 | I164: 92
A165: 3621 | B165: COCONUT PALM K-8 ACADEMY | C165: 147 | E165: 34 | F165: 27 | G165: 21 | H165: 30 | I165: 35
A166: 3661 | B166: NATURAL BRIDGE ELEMENTARY | C166: 34 | E166: 15 | F166: 19
A167: 3701 | B167: NORLAND ELEMENTARY | C167: 49 | E167: 24 | F167: 25
A168: 3741 | B168: NORTH BEACH ELEMENTARY | C168: 59 | E168: 30 | F168: 29
A169: 3781 | B169: BARBARA HAWKINS ELEMENTARY | C169: 24 | E169: 13 | F169: 11
A170: 3821 | B170: NORTH COUNTY K-8 CENTER | C170: 43 | E170: 16 | F170: 13 | G170: 4 | H170: 6 | I170: 4
A171: 3861 | B171: NORTH GLADE ELEMENTARY | C171: 20 | E171: 11 | F171: 9
A172: 3901 | B172: NORTH HIALEAH ELEMENTARY | C172: 42 | E172: 19 | F172: 23
A173: 3941 | B173: NORTH MIAMI ELEMENTARY | C173: 40 | E173: 20 | F173: 20
A174: 3981 | B174: NORTH TWIN LAKES ELEMENTARY | C174: 54 | E174: 22 | F174: 32
A175: 4000 | B175: MIAMI CHILDREN'S MUSEUM | C175: 25 | E175: 14 | F175: 11
A176: 4001 | B176: NORWOOD ELEMENTARY | C176: 37 | E176: 15 | F176: 22
A177: 4012 | B177: SOMERSET ACAD AT SILVER PALMS | C177: 48 | E177: 20 | F177: 28
A178: 4021 | B178: OAK GROVE ELEMENTARY | C178: 50 | E178: 14 | F178: 21 | G178: 15
A179: 4031 | B179: GATEWAY ENVIRONMENTAL K-8 | C179: 184 | E179: 35 | F179: 33 | G179: 37 | H179: 43 | I179: 36
A180: 4061 | B180: OJUS ELEMENTARY | C180: 78 | E180: 40 | F180: 38
A181: 4071 | B181: AGENORIA S. PASCHAL/OLINDA EL | C181: 22 | E181: 8 | F181: 14
A182: 4081 | B182: PRIMARY LEARNING CENTER | C182: 6 | E182: 6
A183: 4091 | B183: OLYMPIA HEIGHTS ELEMENTARY | C183: 47 | E183: 19 | F183: 28
A184: 4121 | B184: DR. ROBERT B. INGRAM EL | C184: 28 | E184: 15 | F184: 13
A185: 4171 | B185: ORCHARD VILLA ELEMENTARY | C185: 29 | E185: 15 | F185: 14
A186: 4221 | B186: PALMETTO ELEMENTARY | C186: 31 | E186: 19 | F186: 12
A187: 4241 | B187: PALM LAKES ELEMENTARY | C187: 75 | E187: 41 | F187: 34
A188: 4261 | B188: PALM SPRINGS ELEMENTARY | C188: 70 | E188: 26 | F188: 44
A189: 4281 | B189: PALM SPRINGS NORTH ELEMENTARY | C189: 93 | E189: 43 | F189: 50
A190: 4301 | B190: PARKVIEW ELEMENTARY | C190: 25 | E190: 14 | F190: 11
A191: 4341 | B191: PARKWAY ELEMENTARY | C191: 19 | E191: 9 | F191: 10
A192: 4381 | B192: DR HENRY E PERRINE ACADEMY | C192: 81 | E192: 41 | F192: 40
A193: 4391 | B193: IRVING & BEATRICE PESKOE K-8 | C193: 84 | E193: 11 | F193: 20 | G193: 27 | H193: 15 | I193: 11
A194: 4401 | B194: KELSEY L. PHARR ELEMENTARY | C194: 18 | E194: 9 | F194: 9
A195: 4421 | B195: PINECREST ELEMENTARY | C195: 60 | E195: 31 | F195: 29
A196: 4441 | B196: PINE LAKE ELEMENTARY | C196: 21 | E196: 8 | F196: 13
A197: 4461 | B197: PINE VILLA ELEMENTARY | C197: 11 | E197: 4 | F197: 7
A198: 4491 | B198: HENRY E.S. REEVES ELEMENTARY | C198: 65 | E198: 24 | F198: 41
A199: 4501 | B199: POINCIANA PARK ELEMENTARY | C199: 11 | E199: 4 | F199: 7
A200: 4511 | B200: DR GILBERT L. PORTER ELEM | C200: 81 | E200: 34 | F200: 47
... 254 more rows

Sheet MEM_RL4 (hidden)
A1: 1 | B1: 2 | C1: 3 | D1: 4 | E1: 5 | F1: 6 | G1: 7 | H1: 8 | I1: 9 | J1: 10 | K1: 11
A2: S_SCHOOL_NUM | B2: S_SCHL_NAME | C2: Total Of STUDENT_ID | D2: 03 | E2: 04 | F2: 05 | G2: 06 | H2: 07 | I2: 08 | J2: 09 | K2: 10
A3: 0041 | B3: AIR BASE ELEMENTARY | C3: 79 | E3: 36 | F3: 38 | G3: 5
A4: 0070 | B4: CORAL REEF MONTESSORI ACAD CH | C4: 44 | E4: 15 | F4: 5 | G4: 8 | H4: 6 | I4: 10
A5: 0071 | B5: EUGENIA B. THOMAS K-8 CENTER | C5: 212 | E5: 51 | F5: 54 | G5: 33 | H5: 33 | I5: 41
A6: 0072 | B6: SUMMERVILLE CHARTER SCHOOL | C6: 23 | E6: 15 | F6: 8
A7: 0073 | B7: MANDARIN LAKES K-8 CENTER | C7: 44 | E7: 12 | F7: 7 | G7: 7 | H7: 12 | I7: 6
A8: 0081 | B8: LENORA B. SMITH ELEMENTARY | C8: 17 | E8: 10 | F8: 7
A9: 0091 | B9: BOB GRAHAM EDUCATION CTR | C9: 262 | E9: 54 | F9: 63 | G9: 50 | H9: 47 | I9: 48
A10: 0092 | B10: NORMAN S. EDELCUP/SUNNY ISLES | C10: 271 | E10: 63 | F10: 64 | G10: 42 | H10: 51 | I10: 51
A11: 0100 | B11: MATER ACADEMY | C11: 62 | E11: 23 | F11: 39
A12: 0101 | B12: ARCOLA LAKE ELEMENTARY | C12: 10 | E12: 3 | F12: 7
A13: 0102 | B13: MIAMI COMMUNITY CHARTER SCHOOL | C13: 25 | E13: 10 | F13: 15
A14: 0111 | B14: MAYA ANGELOU ELEMENTARY | C14: 17 | E14: 6 | F14: 11
A15: 0121 | B15: AUBURNDALE ELEMENTARY | C15: 46 | E15: 20 | F15: 26
A16: 0122 | B16: DR ROLANDO ESPINOSA K-8 | C16: 200 | E16: 44 | F16: 54 | G16: 30 | H16: 32 | I16: 40
A17: 0125 | B17: NORMA BUTLER BOSSARD ELEM | C17: 132 | E17: 72 | F17: 60
A18: 0201 | B18: BANYAN ELEMENTARY | C18: 34 | E18: 12 | F18: 22
A19: 0211 | B19: DR. MANUEL C. BARREIRO ELEM | C19: 87 | E19: 41 | F19: 46
A20: 0231 | B20: AVENTURA WATERWAYS K-8 CENTER | C20: 234 | E20: 46 | F20: 59 | G20: 43 | H20: 42 | I20: 44
A21: 0241 | B21: RUTH K BROAD/BAY HARBOR K-8 | C21: 200 | E21: 42 | F21: 54 | G21: 30 | H21: 43 | I21: 31
A22: 0251 | B22: ETHEL KOGER BECKHAM ELEMENTARY | C22: 84 | E22: 35 | F22: 49
A23: 0261 | B23: BEL-AIRE ELEMENTARY | C23: 11 | E23: 4 | F23: 7
A24: 0271 | B24: BENT TREE ELEMENTARY | C24: 42 | E24: 16 | F24: 26
A25: 0311 | B25: GOULDS ELEMENTARY | C25: 25 | E25: 10 | F25: 15
A26: 0312 | B26: MATER GARDENS ACADEMY | C26: 57 | E26: 28 | F26: 29
A27: 0321 | B27: BISCAYNE ELEMENTARY | C27: 23 | E27: 14 | F27: 9
A28: 0332 | B28: SOMERSET ACADEMY(SILVER PALMS) | C28: 130 | E28: 12 | F28: 13 | G28: 36 | H28: 38 | I28: 31
A29: 0339 | B29: SOMERSET ACADEMY CHARTER ELEM | C29: 34 | E29: 22 | F29: 12
A30: 0341 | B30: ARCH CREEK ELEMENTARY SCHOOL | C30: 30 | E30: 17 | F30: 13
A31: 0342 | B31: PINECREST ACADEMY SOUTH CAMPUS | C31: 76 | E31: 51 | F31: 25
A32: 0361 | B32: BISCAYNE GARDENS ELEMENTARY | C32: 21 | E32: 11 | F32: 10
A33: 0400 | B33: RENAISSANCE ELEMENTARY CHARTER | C33: 114 | E33: 58 | F33: 56
A34: 0401 | B34: VAN E. BLANTON ELEMENTARY | C34: 20 | E34: 11 | F34: 9
A35: 0410 | B35: ACADEMIR CHARTER SCHOOL WEST | C35: 37 | E35: 26 | F35: 11
A36: 0441 | B36: BLUE LAKES ELEMENTARY | C36: 42 | E36: 22 | F36: 20
A37: 0451 | B37: BOWMAN ASHE/DOOLIN K-8 ACAD | C37: 165 | E37: 29 | F37: 40 | G37: 27 | H37: 27 | I37: 42
A38: 0461 | B38: BRENTWOOD ELEMENTARY | C38: 20 | E38: 13 | F38: 7
A39: 0481 | B39: JAMES H. BRIGHT/JW JOHNSON ES | C39: 35 | E39: 11 | F39: 24
A40: 0510 | B40: ARCHIMEDEAN ACADEMY | C40: 49 | E40: 25 | F40: 24
A41: 0520 | B41: SOMERSET ACADEMY | C41: 76 | E41: 39 | F41: 37
A42: 0521 | B42: BROADMOOR ELEMENTARY | C42: 3 | E42: 3
A43: 0561 | B43: W.J. BRYAN ELEMENTARY | C43: 31 | E43: 10 | F43: 21
A44: 0600 | B44: PINECREST PREP ACADEMY | C44: 78 | E44: 35 | F44: 43
A45: 0641 | B45: BUNCHE PARK ELEMENTARY | C45: 8 | E45: 4 | F45: 4
A46: 0651 | B46: CAMPBELL DRIVE K-8 CENTER | C46: 44 | E46: 6 | F46: 13 | G46: 8 | H46: 9 | I46: 8
A47: 0661 | B47: CARIBBEAN ELEMENTARY | C47: 12 | E47: 8 | F47: 4
A48: 0671 | B48: CALUSA ELEMENTARY | C48: 115 | E48: 49 | F48: 66
A49: 0681 | B49: CAROL CITY ELEMENTARY | C49: 9 | E49: 6 | F49: 3
A50: 0721 | B50: GEORGE WASHINGTON CARVER ELEM | C50: 39 | E50: 21 | F50: 18
A51: 0761 | B51: FIENBERG/FISHER K-8 CENTER | C51: 64 | E51: 10 | F51: 19 | G51: 12 | H51: 10 | I51: 13
A52: 0771 | B52: WILLIAM A. CHAPMAN ELEMENTARY | C52: 13 | E52: 5 | F52: 8
A53: 0801 | B53: CITRUS GROVE ELEMENTARY | C53: 35 | E53: 13 | F53: 22
A54: 0831 | B54: CLAUDE PEPPER ELEMENTARY | C54: 65 | E54: 29 | F54: 36
A55: 0841 | B55: COCONUT GROVE ELEMENTARY | C55: 28 | E55: 11 | F55: 17
A56: 0861 | B56: COLONIAL DRIVE ELEMENTARY | C56: 13 | E56: 8 | F56: 5
A57: 0881 | B57: COMSTOCK ELEMENTARY | C57: 17 | E57: 7 | F57: 10
A58: 0950 | B58: AVENTURA CITY OF EXCELLENCE | C58: 200 | E58: 39 | F58: 48 | G58: 44 | H58: 42 | I58: 27
A59: 0961 | B59: CORAL GABLES PREPARATORY ACAD | C59: 132 | E59: 38 | F59: 30 | G59: 15 | H59: 23 | I59: 26
A60: 1001 | B60: CORAL PARK ELEMENTARY | C60: 128 | E60: 57 | F60: 71
A61: 1010 | B61: CHARTER SCHOOL AT WATERSTONE | C61: 69 | E61: 38 | F61: 31
A62: 1014 | B62: HIVE PREPARATORY SCHOOL | C62: 28 | E62: 13 | F62: 15
A63: 1017 | B63: MATER ACADEMY OF INTL STUDIES | C63: 18 | E63: 9 | F63: 9
A64: 1020 | B64: YOUTH CO-OP CHARTER SCHOOL | C64: 65 | E64: 17 | F64: 7 | G64: 13 | H64: 11 | I64: 17
A65: 1041 | B65: CORAL REEF ELEMENTARY | C65: 90 | E65: 42 | F65: 48
A66: 1081 | B66: CORAL TERRACE ELEMENTARY | C66: 29 | E66: 14 | F66: 15
A67: 1121 | B67: CORAL WAY K-8 CENTER | C67: 156 | E67: 33 | F67: 35 | G67: 25 | H67: 28 | I67: 35
A68: 1161 | B68: CRESTVIEW ELEMENTARY | C68: 26 | E68: 10 | F68: 16
A69: 1241 | B69: CUTLER RIDGE ELEMENTARY | C69: 64 | E69: 32 | F69: 32
A70: 1281 | B70: CYPRESS ELEMENTARY | C70: 33 | E70: 9 | F70: 24
A71: 1331 | B71: DEVON AIRE K-8 CENTER | C71: 246 | E71: 40 | F71: 59 | G71: 54 | H71: 47 | I71: 46
A72: 1361 | B72: FREDERICK DOUGLASS ELEMENTARY | C72: 1 | E72: 1
A73: 1371 | B73: MARJORY STONEMAN DOUGLAS ELEM | C73: 74 | E73: 31 | F73: 43
A74: 1401 | B74: CHARLES R. DREW K-8 CENTER | C74: 7 | E74: 1 | F74: 1 | G74: 2 | H74: 3
A75: 1441 | B75: PAUL LAURENCE DUNBAR K-8 CTR | C75: 11 | E75: 3 | F75: 7 | H75: 1
A76: 1481 | B76: JOHN G. DUPUIS ELEMENTARY | C76: 50 | E76: 22 | F76: 28
A77: 1521 | B77: AMELIA EARHART ELEMENTARY | C77: 36 | E77: 19 | F77: 17
A78: 1561 | B78: EARLINGTON HEIGHTS ELEMENTARY | C78: 13 | E78: 9 | F78: 4
A79: 1601 | B79: EDISON PARK K-8 CENTER | C79: 12 | E79: 6 | F79: 1 | G79: 3 | H79: 2
A80: 1641 | B80: EMERSON ELEMENTARY | C80: 35 | E80: 22 | F80: 13
A81: 1681 | B81: LILLIE C. EVANS K-8 CENTER | C81: 13 | E81: 3 | G81: 8 | I81: 2
A82: 1691 | B82: CHRISTINA M. EVE ELEMENTARY | C82: 61 | E82: 29 | F82: 32
A83: 1721 | B83: EVERGLADES K-8 CENTER | C83: 163 | E83: 25 | F83: 35 | G83: 26 | H83: 41 | I83: 36
A84: 1761 | B84: DAVID FAIRCHILD ELEMENTARY | C84: 53 | E84: 38 | F84: 15
A85: 1801 | B85: FAIRLAWN ELEMENTARY | C85: 53 | E85: 23 | F85: 30
A86: 1811 | B86: DANTE B. FASCELL ELEMENTARY | C86: 48 | E86: 27 | F86: 21
A87: 1841 | B87: FLAGAMI ELEMENTARY | C87: 30 | E87: 16 | F87: 14
A88: 1881 | B88: HENRY M. FLAGLER ELEMENTARY | C88: 43 | E88: 18 | F88: 25
A89: 1921 | B89: FLAMINGO ELEMENTARY | C89: 47 | E89: 19 | F89: 28
A90: 2001 | B90: FLORIDA CITY ELEMENTARY | C90: 16 | E90: 5 | F90: 11
A91: 2003 | B91: BRIDGEPREP ACADEMY SOUTH | C91: 29 | E91: 13 | F91: 12 | G91: 4
A92: 2006 | B92: RICHARD ALLEN LEADERSHIP ACAD | C92: 4 | E92: 2 | F92: 2
A93: 2007 | B93: SOMERSET ACADEMY ELEMENTARY | C93: 59 | E93: 32 | F93: 27
A94: 2012 | B94: SOMERSET ARTS ACADEMY | C94: 30 | E94: 19 | F94: 11
A95: 2013 | B95: BRIDGEPREP ACAD GREATER MIAMI | C95: 11 | E95: 7 | F95: 4
A96: 2021 | B96: GLORIA FLOYD ELEMENTARY | C96: 35 | E96: 15 | F96: 20
A97: 2041 | B97: BENJAMIN FRANKLIN K-8 CENTER | C97: 20 | E97: 6 | F97: 4 | G97: 5 | H97: 2 | I97: 3
A98: 2060 | B98: GIBSON CHARTER SCHOOL | C98: 14 | E98: 1 | F98: 4 | G98: 1 | H98: 3 | I98: 5
A99: 2081 | B99: FULFORD ELEMENTARY | C99: 33 | E99: 15 | F99: 18
A100: 2111 | B100: HIALEAH GARDENS ELEMENTARY | C100: 68 | E100: 30 | F100: 38
A101: 2151 | B101: JACK D. GORDON ELEMENTARY | C101: 107 | E101: 46 | F101: 61
A102: 2161 | B102: GOLDEN GLADES ELEMENTARY | C102: 6 | E102: 4 | F102: 2
A103: 2181 | B103: JOELLA C. GOOD ELEMENTARY | C103: 62 | E103: 25 | F103: 37
A104: 2191 | B104: SPANISH LAKE ELEMENTARY | C104: 159 | E104: 73 | F104: 86
A105: 2241 | B105: GRATIGNY ELEMENTARY | C105: 29 | E105: 10 | F105: 7 | G105: 12
A106: 2261 | B106: GREENGLADE ELEMENTARY | C106: 47 | E106: 21 | F106: 26
A107: 2281 | B107: GREYNOLDS PARK ELEMENTARY | C107: 39 | E107: 16 | F107: 23
A108: 2321 | B108: GULFSTREAM ELEMENTARY | C108: 30 | E108: 15 | F108: 15
A109: 2331 | B109: CHARLES R. HADLEY ELEMENTARY | C109: 70 | E109: 26 | F109: 44
A110: 2341 | B110: JOE HALL ELEMENTARY | C110: 46 | E110: 23 | F110: 23
A111: 2351 | B111: ENEIDA MASSAS HARTNER ELEM | C111: 24 | E111: 17 | F111: 7
A112: 2361 | B112: HIALEAH ELEMENTARY | C112: 41 | E112: 18 | F112: 23
A113: 2371 | B113: WEST HIALEAH GARDENS ELEM | C113: 97 | E113: 42 | F113: 55
A114: 2401 | B114: HIBISCUS ELEMENTARY | C114: 13 | E114: 12 | F114: 1
A115: 2441 | B115: VIRGINIA A BOONE/HIGHLAND OAKS | C115: 84 | E115: 39 | F115: 45
A116: 2501 | B116: HOLMES ELEMENTARY | C116: 5 | E116: 4 | F116: 1
A117: 2511 | B117: ZORA NEALE HURSTON ELEMENTARY | C117: 49 | E117: 29 | F117: 20
A118: 2521 | B118: OLIVER HOOVER ELEMENTARY | C118: 82 | E118: 39 | F118: 43
A119: 2541 | B119: HOWARD DRIVE ELEMENTARY | C119: 79 | E119: 34 | F119: 45
A120: 2581 | B120: MADIE IVES ELEMENTARY | C120: 51 | E120: 27 | F120: 24
A121: 2641 | B121: KENDALE ELEMENTARY | C121: 47 | E121: 26 | F121: 21
A122: 2651 | B122: KENDALE LAKES ELEMENTARY | C122: 58 | E122: 31 | F122: 27
A123: 2661 | B123: KENSINGTON PARK ELEMENTARY | C123: 46 | E123: 16 | F123: 30
A124: 2701 | B124: KENWOOD K-8 CENTER | C124: 144 | E124: 33 | F124: 21 | G124: 31 | H124: 32 | I124: 27
A125: 2741 | B125: KEY BISCAYNE K-8 CENTER | C125: 217 | E125: 58 | F125: 47 | G125: 44 | H125: 46 | I125: 22
A126: 2781 | B126: KINLOCH PARK ELEMENTARY | C126: 66 | E126: 36 | F126: 30
A127: 2801 | B127: LAKE STEVENS ELEMENTARY | C127: 15 | E127: 6 | F127: 9
A128: 2821 | B128: LAKEVIEW ELEMENTARY | C128: 14 | E128: 6 | F128: 8
A129: 2881 | B129: LEEWOOD K-8 CENTER | C129: 145 | E129: 36 | F129: 38 | G129: 23 | H129: 20 | I129: 28
A130: 2891 | B130: WILLIAM LEHMAN ELEMENTARY | C130: 60 | E130: 26 | F130: 34
A131: 2901 | B131: LEISURE CITY K-8 CENTER | C131: 52 | E131: 6 | F131: 9 | G131: 12 | H131: 12 | I131: 13
A132: 2911 | B132: LINDA LENTIN K-8 CENTER | C132: 84 | E132: 18 | F132: 16 | G132: 16 | H132: 13 | I132: 21
A133: 2941 | B133: LAURA C. SAUNDERS ELEMENTARY | C133: 17 | E133: 11 | F133: 6
A134: 2981 | B134: LIBERTY CITY ELEMENTARY | C134: 6 | E134: 2 | F134: 4
A135: 3021 | B135: JESSE J MCCRARY JR ELEMENTARY | C135: 13 | E135: 6 | F135: 7
A136: 3024 | B136: FLORIDA INTERNATIONAL EL ACAD | C136: 12 | E136: 7 | F136: 5
A137: 3025 | B137: ADVANTAGE ACADEMY SANTA FE | C137: 14 | E137: 3 | F137: 11
A138: 3029 | B138: DORAL ACADEMY OF TECHNOLOGY | C138: 70 | G138: 19 | H138: 24 | I138: 27
A139: 3030 | B139: DORAL ACADEMY | C139: 94 | E139: 40 | F139: 54
A140: 3032 | B140: PALM GLADES PREPATORY ACADEMY | C140: 45 | G140: 15 | H140: 14 | I140: 16
A141: 3034 | B141: BRIDGEPREP ACAD VILLAGE GREEN | C141: 8 | E141: 5 | F141: 3
A142: 3035 | B142: RAMZ ACADEMY ELEM MIAMI CAMPUS | C142: 5 | E142: 2 | F142: 3
A143: 3041 | B143: LORAH PARK ELEMENTARY | C143: 13 | E143: 5 | F143: 8
A144: 3051 | B144: TOUSSAINT L'OUVERTURE ELEM | C144: 10 | E144: 2 | F144: 8
A145: 3061 | B145: LUDLAM ELEMENTARY | C145: 36 | E145: 16 | F145: 20
A146: 3100 | B146: MATER ACADEMY EAST CHARTER | C146: 39 | E146: 20 | F146: 19
A147: 3101 | B147: FRANK C. MARTIN K-8 CENTER | C147: 232 | E147: 60 | F147: 41 | G147: 56 | H147: 41 | I147: 34
A148: 3111 | B148: WESLEY MATTHEWS ELEMENTARY | C148: 44 | E148: 15 | F148: 29
A149: 3141 | B149: MEADOWLANE ELEMENTARY | C149: 82 | E149: 31 | F149: 51
A150: 3181 | B150: MELROSE ELEMENTARY | C150: 25 | E150: 12 | F150: 13
A151: 3191 | B151: ADA MERRITT K-8 CENTER | C151: 137 | E151: 29 | F151: 17 | G151: 34 | H151: 23 | I151: 34
A152: 3241 | B152: MIAMI GARDENS ELEMENTARY | C152: 12 | E152: 6 | F152: 6
A153: 3261 | B153: MIAMI HEIGHTS ELEMENTARY | C153: 77 | E153: 40 | F153: 37
A154: 3281 | B154: MIAMI LAKES K-8 CENTER | C154: 224 | E154: 41 | F154: 56 | G154: 44 | H154: 44 | I154: 39
A155: 3301 | B155: MIAMI PARK ELEMENTARY | C155: 9 | E155: 5 | F155: 4
A156: 3341 | B156: MIAMI SHORES ELEMENTARY | C156: 59 | E156: 27 | F156: 32
A157: 3381 | B157: MIAMI SPRINGS ELEMENTARY | C157: 45 | E157: 22 | F157: 23
A158: 3421 | B158: M.A. MILAM K-8 CENTER | C158: 100 | E158: 8 | F158: 20 | G158: 22 | H158: 29 | I158: 21
A159: 3431 | B159: PHYLLIS RUTH MILLER ELEMENTARY | C159: 45 | E159: 21 | F159: 24
A160: 3501 | B160: MORNINGSIDE K-8 ACADEMY | C160: 31 | E160: 11 | F160: 15 | G160: 5
A161: 3541 | B161: ROBERT RUSSA MOTON ELEMENTARY | C161: 8 | E161: 2 | F161: 6
A162: 3581 | B162: MYRTLE GROVE K-8 CENTER | C162: 25 | E162: 5 | F162: 5 | G162: 9 | H162: 6
A163: 3600 | B163: DOWNTOWN MIAMI CHARTER SCHOOL | C163: 36 | E163: 15 | F163: 14 | G163: 7
A164: 3610 | B164: KEYS GATE CHARTER SCHOOL | C164: 246 | E164: 64 | F164: 45 | G164: 54 | H164: 43 | I164: 40
A165: 3621 | B165: COCONUT PALM K-8 ACADEMY | C165: 91 | E165: 22 | F165: 17 | G165: 11 | H165: 21 | I165: 20
A166: 3661 | B166: NATURAL BRIDGE ELEMENTARY | C166: 32 | E166: 19 | F166: 13
A167: 3701 | B167: NORLAND ELEMENTARY | C167: 25 | E167: 12 | F167: 13
A168: 3741 | B168: NORTH BEACH ELEMENTARY | C168: 115 | E168: 64 | F168: 51
A169: 3781 | B169: BARBARA HAWKINS ELEMENTARY | C169: 10 | E169: 6 | F169: 4
A170: 3821 | B170: NORTH COUNTY K-8 CENTER | C170: 26 | E170: 10 | F170: 5 | G170: 3 | H170: 2 | I170: 6
A171: 3861 | B171: NORTH GLADE ELEMENTARY | C171: 8 | E171: 5 | F171: 3
A172: 3901 | B172: NORTH HIALEAH ELEMENTARY | C172: 35 | E172: 16 | F172: 19
A173: 3941 | B173: NORTH MIAMI ELEMENTARY | C173: 16 | E173: 8 | F173: 8
A174: 3981 | B174: NORTH TWIN LAKES ELEMENTARY | C174: 49 | E174: 18 | F174: 31
A175: 4000 | B175: MIAMI CHILDREN'S MUSEUM | C175: 25 | E175: 15 | F175: 10
A176: 4001 | B176: NORWOOD ELEMENTARY | C176: 27 | E176: 16 | F176: 11
A177: 4012 | B177: SOMERSET ACAD AT SILVER PALMS | C177: 44 | E177: 19 | F177: 25
A178: 4021 | B178: OAK GROVE ELEMENTARY | C178: 36 | E178: 15 | F178: 17 | G178: 4
A179: 4031 | B179: GATEWAY ENVIRONMENTAL K-8 | C179: 130 | E179: 30 | F179: 36 | G179: 25 | H179: 21 | I179: 18
A180: 4061 | B180: OJUS ELEMENTARY | C180: 84 | E180: 39 | F180: 45
A181: 4071 | B181: AGENORIA S. PASCHAL/OLINDA EL | C181: 11 | E181: 5 | F181: 6
A182: 4081 | B182: PRIMARY LEARNING CENTER | C182: 7 | E182: 7
A183: 4091 | B183: OLYMPIA HEIGHTS ELEMENTARY | C183: 32 | E183: 13 | F183: 19
A184: 4121 | B184: DR. ROBERT B. INGRAM EL | C184: 4 | E184: 1 | F184: 3
A185: 4171 | B185: ORCHARD VILLA ELEMENTARY | C185: 8 | E185: 6 | F185: 2
A186: 4221 | B186: PALMETTO ELEMENTARY | C186: 63 | E186: 34 | F186: 29
A187: 4241 | B187: PALM LAKES ELEMENTARY | C187: 55 | E187: 26 | F187: 29
A188: 4261 | B188: PALM SPRINGS ELEMENTARY | C188: 31 | E188: 14 | F188: 17
A189: 4281 | B189: PALM SPRINGS NORTH ELEMENTARY | C189: 98 | E189: 47 | F189: 51
A190: 4301 | B190: PARKVIEW ELEMENTARY | C190: 24 | E190: 10 | F190: 14
A191: 4341 | B191: PARKWAY ELEMENTARY | C191: 17 | E191: 5 | F191: 12
A192: 4381 | B192: DR HENRY E PERRINE ACADEMY | C192: 82 | E192: 36 | F192: 46
A193: 4391 | B193: IRVING & BEATRICE PESKOE K-8 | C193: 40 | E193: 7 | F193: 19 | G193: 6 | H193: 6 | I193: 2
A194: 4401 | B194: KELSEY L. PHARR ELEMENTARY | C194: 9 | E194: 3 | F194: 6
A195: 4421 | B195: PINECREST ELEMENTARY | C195: 120 | E195: 61 | F195: 59
A196: 4441 | B196: PINE LAKE ELEMENTARY | C196: 20 | E196: 9 | F196: 11
A197: 4461 | B197: PINE VILLA ELEMENTARY | C197: 4 | E197: 2 | F197: 2
A198: 4491 | B198: HENRY E.S. REEVES ELEMENTARY | C198: 33 | E198: 20 | F198: 13
A199: 4501 | B199: POINCIANA PARK ELEMENTARY | C199: 4 | E199: 3 | F199: 1
A200: 4511 | B200: DR GILBERT L. PORTER ELEM | C200: 68 | E200: 37 | F200: 31
... 251 more rows

Sheet MEM_RL5 (hidden)
A1: 1 | B1: 2 | C1: 3 | D1: 4 | E1: 5 | F1: 6 | G1: 7 | H1: 8 | I1: 9 | J1: 10
A2: S_SCHOOL_NUM | B2: S_SCHL_NAME | C2: Total Of STUDENT_ID | D2: 04 | E2: 05 | F2: 06 | G2: 07 | H2: 08 | I2: 09 | J2: 10
A3: 0041 | B3: AIR BASE ELEMENTARY | C3: 48 | D3: 18 | E3: 26 | F3: 4
A4: 0070 | B4: CORAL REEF MONTESSORI ACAD CH | C4: 23 | D4: 8 | E4: 10 | F4: 1 | G4: 1 | H4: 3
A5: 0071 | B5: EUGENIA B. THOMAS K-8 CENTER | C5: 111 | D5: 22 | E5: 29 | F5: 21 | G5: 20 | H5: 19
A6: 0072 | B6: SUMMERVILLE CHARTER SCHOOL | C6: 8 | D6: 4 | E6: 4
A7: 0073 | B7: MANDARIN LAKES K-8 CENTER | C7: 4 | D7: 2 | E7: 2
A8: 0081 | B8: LENORA B. SMITH ELEMENTARY | C8: 2 | D8: 1 | E8: 1
A9: 0091 | B9: BOB GRAHAM EDUCATION CTR | C9: 149 | D9: 23 | E9: 31 | F9: 16 | G9: 31 | H9: 48
A10: 0092 | B10: NORMAN S. EDELCUP/SUNNY ISLES | C10: 138 | D10: 35 | E10: 25 | F10: 17 | G10: 23 | H10: 38
A11: 0100 | B11: MATER ACADEMY | C11: 30 | D11: 13 | E11: 17
A12: 0101 | B12: ARCOLA LAKE ELEMENTARY | C12: 2 | D12: 1 | E12: 1
A13: 0102 | B13: MIAMI COMMUNITY CHARTER SCHOOL | C13: 4 | D13: 2 | E13: 2
A14: 0111 | B14: MAYA ANGELOU ELEMENTARY | C14: 3 | E14: 3
A15: 0121 | B15: AUBURNDALE ELEMENTARY | C15: 15 | D15: 10 | E15: 5
A16: 0122 | B16: DR ROLANDO ESPINOSA K-8 | C16: 105 | D16: 13 | E16: 31 | F16: 14 | G16: 24 | H16: 23
A17: 0125 | B17: NORMA BUTLER BOSSARD ELEM | C17: 61 | D17: 35 | E17: 26
A18: 0201 | B18: BANYAN ELEMENTARY | C18: 12 | D18: 5 | E18: 7
A19: 0211 | B19: DR. MANUEL C. BARREIRO ELEM | C19: 43 | D19: 27 | E19: 16
A20: 0231 | B20: AVENTURA WATERWAYS K-8 CENTER | C20: 89 | D20: 16 | E20: 28 | F20: 10 | G20: 20 | H20: 15
A21: 0241 | B21: RUTH K BROAD/BAY HARBOR K-8 | C21: 95 | D21: 15 | E21: 28 | F21: 14 | G21: 21 | H21: 17
A22: 0251 | B22: ETHEL KOGER BECKHAM ELEMENTARY | C22: 51 | D22: 22 | E22: 29
A23: 0261 | B23: BEL-AIRE ELEMENTARY | C23: 2 | D23: 2
A24: 0271 | B24: BENT TREE ELEMENTARY | C24: 16 | D24: 7 | E24: 9
A25: 0311 | B25: GOULDS ELEMENTARY | C25: 3 | D25: 1 | E25: 2
A26: 0312 | B26: MATER GARDENS ACADEMY | C26: 26 | D26: 13 | E26: 13
A27: 0321 | B27: BISCAYNE ELEMENTARY | C27: 8 | D27: 5 | E27: 3
A28: 0332 | B28: SOMERSET ACADEMY(SILVER PALMS) | C28: 49 | D28: 4 | E28: 3 | F28: 11 | G28: 14 | H28: 17
A29: 0339 | B29: SOMERSET ACADEMY CHARTER ELEM | C29: 7 | D29: 3 | E29: 4
A30: 0341 | B30: ARCH CREEK ELEMENTARY SCHOOL | C30: 12 | D30: 6 | E30: 6
A31: 0342 | B31: PINECREST ACADEMY SOUTH CAMPUS | C31: 34 | D31: 17 | E31: 17
A32: 0361 | B32: BISCAYNE GARDENS ELEMENTARY | C32: 3 | D32: 3
A33: 0400 | B33: RENAISSANCE ELEMENTARY CHARTER | C33: 60 | D33: 25 | E33: 35
A34: 0401 | B34: VAN E. BLANTON ELEMENTARY | C34: 8 | D34: 4 | E34: 4
A35: 0410 | B35: ACADEMIR CHARTER SCHOOL WEST | C35: 16 | D35: 5 | E35: 11
A36: 0441 | B36: BLUE LAKES ELEMENTARY | C36: 17 | D36: 10 | E36: 7
A37: 0451 | B37: BOWMAN ASHE/DOOLIN K-8 ACAD | C37: 60 | D37: 15 | E37: 20 | F37: 8 | G37: 6 | H37: 11
A38: 0461 | B38: BRENTWOOD ELEMENTARY | C38: 6 | D38: 3 | E38: 3
A39: 0481 | B39: JAMES H. BRIGHT/JW JOHNSON ES | C39: 10 | D39: 5 | E39: 5
A40: 0510 | B40: ARCHIMEDEAN ACADEMY | C40: 50 | D40: 25 | E40: 25
A41: 0520 | B41: SOMERSET ACADEMY | C41: 23 | D41: 14 | E41: 9
A42: 0521 | B42: BROADMOOR ELEMENTARY | C42: 4 | D42: 2 | E42: 2
A43: 0561 | B43: W.J. BRYAN ELEMENTARY | C43: 6 | D43: 2 | E43: 4
A44: 0600 | B44: PINECREST PREP ACADEMY | C44: 48 | D44: 29 | E44: 19
A45: 0651 | B45: CAMPBELL DRIVE K-8 CENTER | C45: 7 | D45: 4 | E45: 1 | G45: 2
A46: 0661 | B46: CARIBBEAN ELEMENTARY | C46: 3 | D46: 2 | E46: 1
A47: 0671 | B47: CALUSA ELEMENTARY | C47: 59 | D47: 26 | E47: 33
A48: 0681 | B48: CAROL CITY ELEMENTARY | C48: 3 | D48: 3
A49: 0721 | B49: GEORGE WASHINGTON CARVER ELEM | C49: 20 | D49: 15 | E49: 5
A50: 0761 | B50: FIENBERG/FISHER K-8 CENTER | C50: 26 | D50: 7 | E50: 1 | F50: 3 | G50: 5 | H50: 10
A51: 0771 | B51: WILLIAM A. CHAPMAN ELEMENTARY | C51: 5 | D51: 4 | E51: 1
A52: 0801 | B52: CITRUS GROVE ELEMENTARY | C52: 7 | D52: 2 | E52: 5
A53: 0831 | B53: CLAUDE PEPPER ELEMENTARY | C53: 20 | D53: 10 | E53: 10
A54: 0841 | B54: COCONUT GROVE ELEMENTARY | C54: 12 | D54: 7 | E54: 5
A55: 0861 | B55: COLONIAL DRIVE ELEMENTARY | C55: 2 | D55: 1 | E55: 1
A56: 0881 | B56: COMSTOCK ELEMENTARY | C56: 2 | D56: 1 | E56: 1
A57: 0950 | B57: AVENTURA CITY OF EXCELLENCE | C57: 120 | D57: 21 | E57: 22 | F57: 20 | G57: 24 | H57: 33
A58: 0961 | B58: CORAL GABLES PREPARATORY ACAD | C58: 96 | D58: 24 | E58: 30 | F58: 8 | G58: 14 | H58: 20
A59: 1001 | B59: CORAL PARK ELEMENTARY | C59: 75 | D59: 37 | E59: 38
A60: 1010 | B60: CHARTER SCHOOL AT WATERSTONE | C60: 27 | D60: 16 | E60: 11
A61: 1014 | B61: HIVE PREPARATORY SCHOOL | C61: 11 | D61: 6 | E61: 5
A62: 1017 | B62: MATER ACADEMY OF INTL STUDIES | C62: 8 | D62: 6 | E62: 2
A63: 1020 | B63: YOUTH CO-OP CHARTER SCHOOL | C63: 40 | D63: 7 | E63: 7 | F63: 4 | G63: 9 | H63: 13
A64: 1041 | B64: CORAL REEF ELEMENTARY | C64: 67 | D64: 37 | E64: 30
A65: 1081 | B65: CORAL TERRACE ELEMENTARY | C65: 10 | D65: 2 | E65: 8
A66: 1121 | B66: CORAL WAY K-8 CENTER | C66: 79 | D66: 24 | E66: 10 | F66: 10 | G66: 17 | H66: 18
A67: 1161 | B67: CRESTVIEW ELEMENTARY | C67: 9 | D67: 5 | E67: 4
A68: 1241 | B68: CUTLER RIDGE ELEMENTARY | C68: 28 | D68: 13 | E68: 15
A69: 1281 | B69: CYPRESS ELEMENTARY | C69: 12 | D69: 6 | E69: 6
A70: 1331 | B70: DEVON AIRE K-8 CENTER | C70: 133 | D70: 25 | E70: 25 | F70: 26 | G70: 27 | H70: 30
A71: 1371 | B71: MARJORY STONEMAN DOUGLAS ELEM | C71: 34 | D71: 18 | E71: 16
A72: 1401 | B72: CHARLES R. DREW K-8 CENTER | C72: 2 | F72: 1 | G72: 1
A73: 1441 | B73: PAUL LAURENCE DUNBAR K-8 CTR | C73: 1 | F73: 1
A74: 1481 | B74: JOHN G. DUPUIS ELEMENTARY | C74: 20 | D74: 13 | E74: 7
A75: 1521 | B75: AMELIA EARHART ELEMENTARY | C75: 9 | D75: 4 | E75: 5
A76: 1601 | B76: EDISON PARK K-8 CENTER | C76: 4 | D76: 1 | E76: 2 | G76: 1
A77: 1641 | B77: EMERSON ELEMENTARY | C77: 8 | D77: 4 | E77: 4
A78: 1681 | B78: LILLIE C. EVANS K-8 CENTER | C78: 6 | D78: 2 | F78: 3 | G78: 1
A79: 1691 | B79: CHRISTINA M. EVE ELEMENTARY | C79: 43 | D79: 11 | E79: 32
A80: 1721 | B80: EVERGLADES K-8 CENTER | C80: 78 | D80: 16 | E80: 9 | F80: 13 | G80: 17 | H80: 23
A81: 1761 | B81: DAVID FAIRCHILD ELEMENTARY | C81: 57 | D81: 30 | E81: 27
A82: 1801 | B82: FAIRLAWN ELEMENTARY | C82: 7 | D82: 5 | E82: 2
A83: 1811 | B83: DANTE B. FASCELL ELEMENTARY | C83: 15 | D83: 6 | E83: 9
A84: 1841 | B84: FLAGAMI ELEMENTARY | C84: 6 | D84: 2 | E84: 4
A85: 1881 | B85: HENRY M. FLAGLER ELEMENTARY | C85: 21 | D85: 10 | E85: 11
A86: 1921 | B86: FLAMINGO ELEMENTARY | C86: 17 | D86: 8 | E86: 9
A87: 2001 | B87: FLORIDA CITY ELEMENTARY | C87: 9 | D87: 5 | E87: 4
A88: 2003 | B88: BRIDGEPREP ACADEMY SOUTH | C88: 22 | D88: 11 | E88: 7 | F88: 4
A89: 2006 | B89: RICHARD ALLEN LEADERSHIP ACAD | C89: 2 | D89: 1 | E89: 1
A90: 2007 | B90: SOMERSET ACADEMY ELEMENTARY | C90: 42 | D90: 13 | E90: 29
A91: 2012 | B91: SOMERSET ARTS ACADEMY | C91: 16 | D91: 7 | E91: 9
A92: 2013 | B92: BRIDGEPREP ACAD GREATER MIAMI | C92: 1 | E92: 1
A93: 2021 | B93: GLORIA FLOYD ELEMENTARY | C93: 15 | D93: 5 | E93: 10
A94: 2041 | B94: BENJAMIN FRANKLIN K-8 CENTER | C94: 14 | D94: 6 | E94: 3 | F94: 2 | G94: 1 | H94: 2
A95: 2060 | B95: GIBSON CHARTER SCHOOL | C95: 1 | D95: 1
A96: 2081 | B96: FULFORD ELEMENTARY | C96: 7 | D96: 2 | E96: 5
A97: 2111 | B97: HIALEAH GARDENS ELEMENTARY | C97: 25 | D97: 12 | E97: 13
A98: 2151 | B98: JACK D. GORDON ELEMENTARY | C98: 48 | D98: 26 | E98: 22
A99: 2161 | B99: GOLDEN GLADES ELEMENTARY | C99: 6 | D99: 3 | E99: 3
A100: 2181 | B100: JOELLA C. GOOD ELEMENTARY | C100: 37 | D100: 17 | E100: 20
A101: 2191 | B101: SPANISH LAKE ELEMENTARY | C101: 56 | D101: 26 | E101: 30
A102: 2241 | B102: GRATIGNY ELEMENTARY | C102: 5 | D102: 4 | F102: 1
A103: 2261 | B103: GREENGLADE ELEMENTARY | C103: 15 | D103: 7 | E103: 8
A104: 2281 | B104: GREYNOLDS PARK ELEMENTARY | C104: 9 | D104: 4 | E104: 5
A105: 2321 | B105: GULFSTREAM ELEMENTARY | C105: 5 | D105: 2 | E105: 3
A106: 2331 | B106: CHARLES R. HADLEY ELEMENTARY | C106: 38 | D106: 17 | E106: 21
A107: 2341 | B107: JOE HALL ELEMENTARY | C107: 21 | D107: 13 | E107: 8
A108: 2351 | B108: ENEIDA MASSAS HARTNER ELEM | C108: 6 | D108: 2 | E108: 4
A109: 2361 | B109: HIALEAH ELEMENTARY | C109: 11 | D109: 6 | E109: 5
A110: 2371 | B110: WEST HIALEAH GARDENS ELEM | C110: 24 | D110: 12 | E110: 12
A111: 2401 | B111: HIBISCUS ELEMENTARY | C111: 6 | D111: 1 | E111: 5
A112: 2441 | B112: VIRGINIA A BOONE/HIGHLAND OAKS | C112: 48 | D112: 24 | E112: 24
A113: 2511 | B113: ZORA NEALE HURSTON ELEMENTARY | C113: 28 | D113: 18 | E113: 10
A114: 2521 | B114: OLIVER HOOVER ELEMENTARY | C114: 40 | D114: 17 | E114: 23
A115: 2541 | B115: HOWARD DRIVE ELEMENTARY | C115: 21 | D115: 4 | E115: 17
A116: 2581 | B116: MADIE IVES ELEMENTARY | C116: 17 | D116: 6 | E116: 11
A117: 2641 | B117: KENDALE ELEMENTARY | C117: 36 | D117: 19 | E117: 17
A118: 2651 | B118: KENDALE LAKES ELEMENTARY | C118: 30 | D118: 11 | E118: 19
A119: 2661 | B119: KENSINGTON PARK ELEMENTARY | C119: 18 | D119: 7 | E119: 11
A120: 2701 | B120: KENWOOD K-8 CENTER | C120: 83 | D120: 22 | E120: 20 | F120: 7 | G120: 14 | H120: 20
A121: 2741 | B121: KEY BISCAYNE K-8 CENTER | C121: 133 | D121: 34 | E121: 37 | F121: 26 | G121: 28 | H121: 8
A122: 2781 | B122: KINLOCH PARK ELEMENTARY | C122: 12 | D122: 5 | E122: 7
A123: 2801 | B123: LAKE STEVENS ELEMENTARY | C123: 1 | D123: 1
A124: 2821 | B124: LAKEVIEW ELEMENTARY | C124: 6 | D124: 6
A125: 2881 | B125: LEEWOOD K-8 CENTER | C125: 75 | D125: 26 | E125: 19 | F125: 5 | G125: 18 | H125: 7
A126: 2891 | B126: WILLIAM LEHMAN ELEMENTARY | C126: 46 | D126: 21 | E126: 25
A127: 2901 | B127: LEISURE CITY K-8 CENTER | C127: 17 | D127: 6 | E127: 2 | F127: 6 | G127: 2 | H127: 1
A128: 2911 | B128: LINDA LENTIN K-8 CENTER | C128: 23 | D128: 3 | E128: 6 | F128: 7 | G128: 4 | H128: 3
A129: 2941 | B129: LAURA C. SAUNDERS ELEMENTARY | C129: 1 | E129: 1
A130: 3021 | B130: JESSE J MCCRARY JR ELEMENTARY | C130: 1 | D130: 1
A131: 3024 | B131: FLORIDA INTERNATIONAL EL ACAD | C131: 1 | D131: 1
A132: 3025 | B132: ADVANTAGE ACADEMY SANTA FE | C132: 6 | D132: 2 | E132: 4
A133: 3029 | B133: DORAL ACADEMY OF TECHNOLOGY | C133: 76 | F133: 20 | G133: 28 | H133: 28
A134: 3030 | B134: DORAL ACADEMY | C134: 57 | D134: 31 | E134: 26
A135: 3032 | B135: PALM GLADES PREPATORY ACADEMY | C135: 24 | F135: 7 | G135: 9 | H135: 8
A136: 3034 | B136: BRIDGEPREP ACAD VILLAGE GREEN | C136: 2 | D136: 1 | E136: 1
A137: 3041 | B137: LORAH PARK ELEMENTARY | C137: 2 | D137: 1 | E137: 1
A138: 3051 | B138: TOUSSAINT L'OUVERTURE ELEM | C138: 3 | E138: 3
A139: 3061 | B139: LUDLAM ELEMENTARY | C139: 25 | D139: 16 | E139: 9
A140: 3100 | B140: MATER ACADEMY EAST CHARTER | C140: 21 | D140: 12 | E140: 9
A141: 3101 | B141: FRANK C. MARTIN K-8 CENTER | C141: 153 | D141: 34 | E141: 23 | F141: 22 | G141: 33 | H141: 41
A142: 3111 | B142: WESLEY MATTHEWS ELEMENTARY | C142: 20 | D142: 10 | E142: 10
A143: 3141 | B143: MEADOWLANE ELEMENTARY | C143: 32 | D143: 16 | E143: 16
A144: 3181 | B144: MELROSE ELEMENTARY | C144: 5 | D144: 2 | E144: 3
A145: 3191 | B145: ADA MERRITT K-8 CENTER | C145: 109 | D145: 24 | E145: 12 | F145: 13 | G145: 35 | H145: 25
A146: 3241 | B146: MIAMI GARDENS ELEMENTARY | C146: 5 | D146: 4 | E146: 1
A147: 3261 | B147: MIAMI HEIGHTS ELEMENTARY | C147: 18 | D147: 9 | E147: 9
A148: 3281 | B148: MIAMI LAKES K-8 CENTER | C148: 87 | D148: 15 | E148: 22 | F148: 11 | G148: 19 | H148: 20
A149: 3301 | B149: MIAMI PARK ELEMENTARY | C149: 1 | D149: 1
A150: 3341 | B150: MIAMI SHORES ELEMENTARY | C150: 27 | D150: 15 | E150: 12
A151: 3381 | B151: MIAMI SPRINGS ELEMENTARY | C151: 17 | D151: 7 | E151: 10
A152: 3421 | B152: M.A. MILAM K-8 CENTER | C152: 28 | D152: 2 | E152: 4 | F152: 5 | G152: 6 | H152: 11
A153: 3431 | B153: PHYLLIS RUTH MILLER ELEMENTARY | C153: 17 | D153: 10 | E153: 7
A154: 3501 | B154: MORNINGSIDE K-8 ACADEMY | C154: 6 | D154: 2 | E154: 4
A155: 3541 | B155: ROBERT RUSSA MOTON ELEMENTARY | C155: 2 | D155: 2
A156: 3581 | B156: MYRTLE GROVE K-8 CENTER | C156: 10 | D156: 2 | E156: 2 | F156: 2 | G156: 4
A157: 3600 | B157: DOWNTOWN MIAMI CHARTER SCHOOL | C157: 12 | D157: 2 | E157: 6 | F157: 4
A158: 3610 | B158: KEYS GATE CHARTER SCHOOL | C158: 85 | D158: 21 | E158: 15 | F158: 12 | G158: 13 | H158: 24
A159: 3621 | B159: COCONUT PALM K-8 ACADEMY | C159: 25 | D159: 7 | E159: 2 | F159: 3 | G159: 6 | H159: 7
A160: 3661 | B160: NATURAL BRIDGE ELEMENTARY | C160: 7 | D160: 5 | E160: 2
A161: 3701 | B161: NORLAND ELEMENTARY | C161: 6 | E161: 6
A162: 3741 | B162: NORTH BEACH ELEMENTARY | C162: 70 | D162: 37 | E162: 33
A163: 3781 | B163: BARBARA HAWKINS ELEMENTARY | C163: 2 | E163: 2
A164: 3821 | B164: NORTH COUNTY K-8 CENTER | C164: 5 | D164: 1 | E164: 1 | G164: 2 | H164: 1
A165: 3861 | B165: NORTH GLADE ELEMENTARY | C165: 3 | D165: 2 | E165: 1
A166: 3901 | B166: NORTH HIALEAH ELEMENTARY | C166: 8 | D166: 4 | E166: 4
A167: 3941 | B167: NORTH MIAMI ELEMENTARY | C167: 2 | D167: 1 | E167: 1
A168: 3981 | B168: NORTH TWIN LAKES ELEMENTARY | C168: 10 | D168: 5 | E168: 5
A169: 4000 | B169: MIAMI CHILDREN'S MUSEUM | C169: 10 | D169: 7 | E169: 3
A170: 4001 | B170: NORWOOD ELEMENTARY | C170: 11 | D170: 6 | E170: 5
A171: 4012 | B171: SOMERSET ACAD AT SILVER PALMS | C171: 12 | D171: 3 | E171: 9
A172: 4021 | B172: OAK GROVE ELEMENTARY | C172: 10 | D172: 5 | E172: 4 | F172: 1
A173: 4031 | B173: GATEWAY ENVIRONMENTAL K-8 | C173: 32 | D173: 9 | E173: 10 | F173: 4 | H173: 9
A174: 4061 | B174: OJUS ELEMENTARY | C174: 35 | D174: 16 | E174: 19
A175: 4071 | B175: AGENORIA S. PASCHAL/OLINDA EL | C175: 2 | D175: 1 | E175: 1
A176: 4081 | B176: PRIMARY LEARNING CENTER | C176: 6 | D176: 6
A177: 4091 | B177: OLYMPIA HEIGHTS ELEMENTARY | C177: 8 | D177: 3 | E177: 5
A178: 4121 | B178: DR. ROBERT B. INGRAM EL | C178: 1 | D178: 1
A179: 4171 | B179: ORCHARD VILLA ELEMENTARY | C179: 3 | D179: 2 | E179: 1
A180: 4221 | B180: PALMETTO ELEMENTARY | C180: 67 | D180: 40 | E180: 27
A181: 4241 | B181: PALM LAKES ELEMENTARY | C181: 18 | D181: 9 | E181: 9
A182: 4261 | B182: PALM SPRINGS ELEMENTARY | C182: 11 | D182: 6 | E182: 5
A183: 4281 | B183: PALM SPRINGS NORTH ELEMENTARY | C183: 39 | D183: 20 | E183: 19
A184: 4301 | B184: PARKVIEW ELEMENTARY | C184: 10 | D184: 2 | E184: 8
A185: 4341 | B185: PARKWAY ELEMENTARY | C185: 4 | D185: 3 | E185: 1
A186: 4381 | B186: DR HENRY E PERRINE ACADEMY | C186: 44 | D186: 21 | E186: 23
A187: 4391 | B187: IRVING & BEATRICE PESKOE K-8 | C187: 9 | E187: 4 | G187: 2 | H187: 3
A188: 4401 | B188: KELSEY L. PHARR ELEMENTARY | C188: 1 | E188: 1
A189: 4421 | B189: PINECREST ELEMENTARY | C189: 92 | D189: 48 | E189: 44
A190: 4441 | B190: PINE LAKE ELEMENTARY | C190: 5 | D190: 4 | E190: 1
A191: 4491 | B191: HENRY E.S. REEVES ELEMENTARY | C191: 6 | D191: 3 | E191: 3
A192: 4511 | B192: DR GILBERT L. PORTER ELEM | C192: 34 | D192: 22 | E192: 12
A193: 4541 | B193: RAINBOW PARK ELEMENTARY | C193: 5 | D193: 2 | E193: 3
A194: 4581 | B194: REDLAND ELEMENTARY | C194: 13 | D194: 6 | E194: 7
A195: 4651 | B195: ETHEL F BECKFORD/RICHMOND ELEM | C195: 1 | E195: 1
A196: 4681 | B196: RIVERSIDE ELEMENTARY | C196: 14 | D196: 5 | E196: 9
A197: 4691 | B197: JANE ROBERTS K-8 CENTER | C197: 60 | D197: 7 | E197: 9 | F197: 13 | G197: 13 | H197: 18
A198: 4721 | B198: ROCKWAY ELEMENTARY | C198: 17 | D198: 7 | E198: 10
A199: 4741 | B199: ROYAL GREEN ELEMENTARY | C199: 15 | D199: 9 | E199: 6
A200: 4761 | B200: ROYAL PALM ELEMENTARY | C200: 21 | D200: 8 | E200: 13
... 226 more rows

Sheet MEM_ML1 (hidden)
A1: 1 | B1: 2 | C1: 3 | D1: 4 | E1: 5 | F1: 6 | G1: 7 | H1: 8 | I1: 9
A2: S_SCHOOL_NUM | B2: S_SCHL_NAME | C2: Total Of STUDENT_ID | D2: 03 | E2: 04 | F2: 05 | G2: 06 | H2: 07 | I2: 08
A3: 0041 | B3: AIR BASE ELEMENTARY | C3: 10 | E3: 6 | F3: 3 | G3: 1
A4: 0070 | B4: CORAL REEF MONTESSORI ACAD CH | C4: 20 | E4: 6 | F4: 4 | G4: 5 | H4: 3 | I4: 2
A5: 0071 | B5: EUGENIA B. THOMAS K-8 CENTER | C5: 98 | D5: 7 | E5: 18 | F5: 13 | G5: 18 | H5: 23 | I5: 19
A6: 0072 | B6: SUMMERVILLE CHARTER SCHOOL | C6: 21 | D6: 2 | E6: 4 | F6: 15
A7: 0073 | B7: MANDARIN LAKES K-8 CENTER | C7: 185 | D7: 18 | E7: 18 | F7: 30 | G7: 42 | H7: 50 | I7: 27
A8: 0081 | B8: LENORA B. SMITH ELEMENTARY | C8: 21 | D8: 4 | E8: 10 | F8: 7
A9: 0091 | B9: BOB GRAHAM EDUCATION CTR | C9: 140 | D9: 6 | E9: 23 | F9: 23 | G9: 36 | H9: 31 | I9: 21
A10: 0092 | B10: NORMAN S. EDELCUP/SUNNY ISLES | C10: 60 | D10: 1 | E10: 6 | F10: 21 | G10: 14 | H10: 7 | I10: 11
A11: 0100 | B11: MATER ACADEMY | C11: 12 | E11: 5 | F11: 7
A12: 0101 | B12: ARCOLA LAKE ELEMENTARY | C12: 35 | D12: 11 | E12: 9 | F12: 15
A13: 0102 | B13: MIAMI COMMUNITY CHARTER SCHOOL | C13: 35 | D13: 2 | E13: 20 | F13: 13
A14: 0111 | B14: MAYA ANGELOU ELEMENTARY | C14: 46 | D14: 9 | E14: 23 | F14: 14
A15: 0121 | B15: AUBURNDALE ELEMENTARY | C15: 49 | D15: 10 | E15: 18 | F15: 21
A16: 0122 | B16: DR ROLANDO ESPINOSA K-8 | C16: 124 | D16: 8 | E16: 19 | F16: 20 | G16: 18 | H16: 29 | I16: 30
A17: 0125 | B17: NORMA BUTLER BOSSARD ELEM | C17: 35 | D17: 8 | E17: 12 | F17: 15
A18: 0161 | B18: AVOCADO ELEMENTARY | C18: 14 | D18: 14
A19: 0201 | B19: BANYAN ELEMENTARY | C19: 9 | E19: 2 | F19: 7
A20: 0211 | B20: DR. MANUEL C. BARREIRO ELEM | C20: 34 | D20: 1 | E20: 10 | F20: 23
A21: 0231 | B21: AVENTURA WATERWAYS K-8 CENTER | C21: 120 | D21: 8 | E21: 13 | F21: 19 | G21: 34 | H21: 23 | I21: 23
A22: 0241 | B22: RUTH K BROAD/BAY HARBOR K-8 | C22: 51 | D22: 1 | E22: 7 | F22: 10 | G22: 11 | H22: 19 | I22: 3
A23: 0251 | B23: ETHEL KOGER BECKHAM ELEMENTARY | C23: 8 | D23: 2 | E23: 6
A24: 0261 | B24: BEL-AIRE ELEMENTARY | C24: 26 | D24: 6 | E24: 8 | F24: 12
A25: 0271 | B25: BENT TREE ELEMENTARY | C25: 21 | D25: 2 | E25: 11 | F25: 8
A26: 0311 | B26: GOULDS ELEMENTARY | C26: 33 | D26: 5 | E26: 8 | F26: 20
A27: 0312 | B27: MATER GARDENS ACADEMY | C27: 7 | D27: 1 | E27: 6
A28: 0321 | B28: BISCAYNE ELEMENTARY | C28: 52 | D28: 14 | E28: 21 | F28: 17
A29: 0332 | B29: SOMERSET ACADEMY(SILVER PALMS) | C29: 68 | E29: 5 | F29: 3 | G29: 37 | H29: 11 | I29: 12
A30: 0339 | B30: SOMERSET ACADEMY CHARTER ELEM | C30: 27 | D30: 3 | E30: 12 | F30: 12
A31: 0341 | B31: ARCH CREEK ELEMENTARY SCHOOL | C31: 49 | D31: 13 | E31: 12 | F31: 24
A32: 0342 | B32: PINECREST ACADEMY SOUTH CAMPUS | C32: 13 | D32: 2 | E32: 6 | F32: 5
A33: 0361 | B33: BISCAYNE GARDENS ELEMENTARY | C33: 40 | D33: 10 | E33: 9 | F33: 21
A34: 0400 | B34: RENAISSANCE ELEMENTARY CHARTER | C34: 5 | E34: 1 | F34: 4
A35: 0401 | B35: VAN E. BLANTON ELEMENTARY | C35: 42 | D35: 12 | E35: 18 | F35: 12
A36: 0410 | B36: ACADEMIR CHARTER SCHOOL WEST | C36: 12 | E36: 5 | F36: 7
A37: 0441 | B37: BLUE LAKES ELEMENTARY | C37: 25 | D37: 3 | E37: 10 | F37: 12
A38: 0451 | B38: BOWMAN ASHE/DOOLIN K-8 ACAD | C38: 173 | D38: 3 | E38: 14 | F38: 12 | G38: 26 | H38: 60 | I38: 58
A39: 0461 | B39: BRENTWOOD ELEMENTARY | C39: 62 | D39: 8 | E39: 34 | F39: 20
A40: 0481 | B40: JAMES H. BRIGHT/JW JOHNSON ES | C40: 44 | D40: 4 | E40: 11 | F40: 29
A41: 0510 | B41: ARCHIMEDEAN ACADEMY | C41: 2 | F41: 2
A42: 0520 | B42: SOMERSET ACADEMY | C42: 3 | E42: 1 | F42: 2
A43: 0521 | B43: BROADMOOR ELEMENTARY | C43: 42 | D43: 9 | E43: 14 | F43: 19
A44: 0561 | B44: W.J. BRYAN ELEMENTARY | C44: 48 | D44: 19 | E44: 12 | F44: 17
A45: 0600 | B45: PINECREST PREP ACADEMY | C45: 15 | D45: 2 | E45: 10 | F45: 3
A46: 0641 | B46: BUNCHE PARK ELEMENTARY | C46: 17 | D46: 5 | E46: 5 | F46: 7
A47: 0651 | B47: CAMPBELL DRIVE K-8 CENTER | C47: 113 | D47: 10 | E47: 18 | F47: 23 | G47: 25 | H47: 18 | I47: 19
A48: 0661 | B48: CARIBBEAN ELEMENTARY | C48: 65 | D48: 15 | E48: 17 | F48: 33
A49: 0671 | B49: CALUSA ELEMENTARY | C49: 11 | E49: 5 | F49: 6
A50: 0681 | B50: CAROL CITY ELEMENTARY | C50: 22 | D50: 8 | E50: 6 | F50: 8
A51: 0721 | B51: GEORGE WASHINGTON CARVER ELEM | C51: 26 | D51: 3 | E51: 6 | F51: 17
A52: 0761 | B52: FIENBERG/FISHER K-8 CENTER | C52: 103 | D52: 4 | E52: 22 | F52: 17 | G52: 36 | H52: 13 | I52: 11
A53: 0771 | B53: WILLIAM A. CHAPMAN ELEMENTARY | C53: 25 | D53: 1 | E53: 11 | F53: 13
A54: 0801 | B54: CITRUS GROVE ELEMENTARY | C54: 90 | D54: 8 | E54: 24 | F54: 58
A55: 0831 | B55: CLAUDE PEPPER ELEMENTARY | C55: 26 | D55: 5 | E55: 9 | F55: 12
A56: 0841 | B56: COCONUT GROVE ELEMENTARY | C56: 9 | E56: 6 | F56: 3
A57: 0861 | B57: COLONIAL DRIVE ELEMENTARY | C57: 15 | E57: 8 | F57: 7
A58: 0881 | B58: COMSTOCK ELEMENTARY | C58: 51 | D58: 12 | E58: 14 | F58: 25
A59: 0950 | B59: AVENTURA CITY OF EXCELLENCE | C59: 14 | E59: 4 | F59: 3 | G59: 3 | I59: 4
A60: 0961 | B60: CORAL GABLES PREPARATORY ACAD | C60: 39 | E60: 2 | F60: 9 | G60: 11 | H60: 5 | I60: 12
A61: 1001 | B61: CORAL PARK ELEMENTARY | C61: 23 | D61: 4 | E61: 9 | F61: 10
A62: 1010 | B62: CHARTER SCHOOL AT WATERSTONE | C62: 39 | D62: 4 | E62: 14 | F62: 21
A63: 1014 | B63: HIVE PREPARATORY SCHOOL | C63: 7 | D63: 3 | E63: 3 | F63: 1
A64: 1017 | B64: MATER ACADEMY OF INTL STUDIES | C64: 12 | D64: 4 | E64: 3 | F64: 5
A65: 1020 | B65: YOUTH CO-OP CHARTER SCHOOL | C65: 31 | D65: 2 | E65: 3 | F65: 4 | G65: 6 | H65: 7 | I65: 9
A66: 1041 | B66: CORAL REEF ELEMENTARY | C66: 18 | D66: 2 | E66: 5 | F66: 11
A67: 1081 | B67: CORAL TERRACE ELEMENTARY | C67: 27 | D67: 2 | E67: 10 | F67: 15
A68: 1121 | B68: CORAL WAY K-8 CENTER | C68: 140 | D68: 6 | E68: 19 | F68: 23 | G68: 40 | H68: 21 | I68: 31
A69: 1161 | B69: CRESTVIEW ELEMENTARY | C69: 34 | D69: 8 | E69: 13 | F69: 13
A70: 1241 | B70: CUTLER RIDGE ELEMENTARY | C70: 49 | D70: 5 | E70: 23 | F70: 21
A71: 1281 | B71: CYPRESS ELEMENTARY | C71: 7 | E71: 5 | F71: 2
A72: 1331 | B72: DEVON AIRE K-8 CENTER | C72: 59 | D72: 1 | E72: 12 | F72: 6 | G72: 17 | H72: 12 | I72: 11
A73: 1361 | B73: FREDERICK DOUGLASS ELEMENTARY | C73: 29 | D73: 8 | E73: 10 | F73: 11
A74: 1371 | B74: MARJORY STONEMAN DOUGLAS ELEM | C74: 51 | D74: 9 | E74: 21 | F74: 21
A75: 1401 | B75: CHARLES R. DREW K-8 CENTER | C75: 55 | D75: 3 | E75: 12 | F75: 8 | G75: 17 | H75: 15
A76: 1441 | B76: PAUL LAURENCE DUNBAR K-8 CTR | C76: 41 | D76: 11 | E76: 2 | F76: 14 | G76: 6 | H76: 8
A77: 1481 | B77: JOHN G. DUPUIS ELEMENTARY | C77: 29 | D77: 3 | E77: 5 | F77: 21
A78: 1521 | B78: AMELIA EARHART ELEMENTARY | C78: 20 | D78: 2 | E78: 10 | F78: 8
A79: 1561 | B79: EARLINGTON HEIGHTS ELEMENTARY | C79: 33 | D79: 9 | E79: 4 | F79: 20
A80: 1601 | B80: EDISON PARK K-8 CENTER | C80: 74 | D80: 12 | E80: 13 | F80: 17 | G80: 24 | H80: 8
A81: 1641 | B81: EMERSON ELEMENTARY | C81: 17 | D81: 3 | E81: 5 | F81: 9
A82: 1681 | B82: LILLIE C. EVANS K-8 CENTER | C82: 72 | D82: 9 | E82: 18 | F82: 16 | G82: 18 | H82: 8 | I82: 3
A83: 1691 | B83: CHRISTINA M. EVE ELEMENTARY | C83: 11 | D83: 1 | E83: 3 | F83: 7
A84: 1721 | B84: EVERGLADES K-8 CENTER | C84: 97 | D84: 3 | E84: 10 | F84: 5 | G84: 15 | H84: 21 | I84: 43
A85: 1761 | B85: DAVID FAIRCHILD ELEMENTARY | C85: 22 | D85: 3 | E85: 5 | F85: 14
A86: 1801 | B86: FAIRLAWN ELEMENTARY | C86: 42 | D86: 3 | E86: 20 | F86: 19
A87: 1811 | B87: DANTE B. FASCELL ELEMENTARY | C87: 23 | D87: 2 | E87: 6 | F87: 15
A88: 1841 | B88: FLAGAMI ELEMENTARY | C88: 18 | D88: 2 | E88: 11 | F88: 5
A89: 1881 | B89: HENRY M. FLAGLER ELEMENTARY | C89: 46 | D89: 2 | E89: 21 | F89: 23
A90: 1921 | B90: FLAMINGO ELEMENTARY | C90: 66 | D90: 11 | E90: 25 | F90: 30
A91: 2001 | B91: FLORIDA CITY ELEMENTARY | C91: 26 | D91: 10 | E91: 7 | F91: 9
A92: 2003 | B92: BRIDGEPREP ACADEMY SOUTH | C92: 4 | G92: 4
A93: 2006 | B93: RICHARD ALLEN LEADERSHIP ACAD | C93: 5 | D93: 2 | E93: 3
A94: 2007 | B94: SOMERSET ACADEMY ELEMENTARY | C94: 3 | E94: 3
A95: 2012 | B95: SOMERSET ARTS ACADEMY | C95: 8 | D95: 1 | F95: 7
A96: 2013 | B96: BRIDGEPREP ACAD GREATER MIAMI | C96: 11 | D96: 1 | E96: 1 | F96: 9
A97: 2021 | B97: GLORIA FLOYD ELEMENTARY | C97: 21 | D97: 1 | E97: 13 | F97: 7
A98: 2041 | B98: BENJAMIN FRANKLIN K-8 CENTER | C98: 86 | D98: 5 | E98: 11 | F98: 15 | G98: 16 | H98: 28 | I98: 11
A99: 2060 | B99: GIBSON CHARTER SCHOOL | C99: 35 | D99: 4 | E99: 2 | F99: 2 | G99: 10 | H99: 12 | I99: 5
A100: 2081 | B100: FULFORD ELEMENTARY | C100: 36 | D100: 5 | E100: 13 | F100: 18
A101: 2111 | B101: HIALEAH GARDENS ELEMENTARY | C101: 22 | D101: 1 | E101: 5 | F101: 16
A102: 2151 | B102: JACK D. GORDON ELEMENTARY | C102: 35 | E102: 18 | F102: 17
A103: 2161 | B103: GOLDEN GLADES ELEMENTARY | C103: 35 | D103: 12 | E103: 9 | F103: 14
A104: 2181 | B104: JOELLA C. GOOD ELEMENTARY | C104: 37 | D104: 3 | E104: 13 | F104: 21
A105: 2191 | B105: SPANISH LAKE ELEMENTARY | C105: 48 | D105: 6 | E105: 20 | F105: 22
A106: 2241 | B106: GRATIGNY ELEMENTARY | C106: 91 | D106: 14 | E106: 13 | F106: 25 | G106: 39
A107: 2261 | B107: GREENGLADE ELEMENTARY | C107: 30 | D107: 1 | E107: 19 | F107: 10
A108: 2281 | B108: GREYNOLDS PARK ELEMENTARY | C108: 51 | D108: 11 | E108: 17 | F108: 23
A109: 2321 | B109: GULFSTREAM ELEMENTARY | C109: 18 | D109: 1 | E109: 10 | F109: 7
A110: 2331 | B110: CHARLES R. HADLEY ELEMENTARY | C110: 31 | D110: 2 | E110: 8 | F110: 21
A111: 2341 | B111: JOE HALL ELEMENTARY | C111: 26 | D111: 1 | E111: 18 | F111: 7
A112: 2351 | B112: ENEIDA MASSAS HARTNER ELEM | C112: 42 | D112: 7 | E112: 22 | F112: 13
A113: 2361 | B113: HIALEAH ELEMENTARY | C113: 51 | D113: 5 | E113: 22 | F113: 24
A114: 2371 | B114: WEST HIALEAH GARDENS ELEM | C114: 41 | D114: 3 | E114: 11 | F114: 27
A115: 2401 | B115: HIBISCUS ELEMENTARY | C115: 21 | D115: 4 | E115: 8 | F115: 9
A116: 2441 | B116: VIRGINIA A BOONE/HIGHLAND OAKS | C116: 35 | D116: 6 | E116: 9 | F116: 20
A117: 2501 | B117: HOLMES ELEMENTARY | C117: 42 | D117: 12 | E117: 13 | F117: 17
A118: 2511 | B118: ZORA NEALE HURSTON ELEMENTARY | C118: 44 | D118: 1 | E118: 13 | F118: 30
A119: 2521 | B119: OLIVER HOOVER ELEMENTARY | C119: 29 | D119: 2 | E119: 14 | F119: 13
A120: 2541 | B120: HOWARD DRIVE ELEMENTARY | C120: 49 | D120: 1 | E120: 21 | F120: 27
A121: 2581 | B121: MADIE IVES ELEMENTARY | C121: 45 | D121: 8 | E121: 12 | F121: 25
A122: 2641 | B122: KENDALE ELEMENTARY | C122: 8 | D122: 1 | E122: 5 | F122: 2
A123: 2651 | B123: KENDALE LAKES ELEMENTARY | C123: 32 | D123: 2 | E123: 13 | F123: 17
A124: 2661 | B124: KENSINGTON PARK ELEMENTARY | C124: 127 | D124: 14 | E124: 46 | F124: 67
A125: 2701 | B125: KENWOOD K-8 CENTER | C125: 76 | D125: 4 | E125: 14 | F125: 15 | G125: 16 | H125: 20 | I125: 7
A126: 2741 | B126: KEY BISCAYNE K-8 CENTER | C126: 29 | E126: 4 | F126: 7 | G126: 6 | H126: 10 | I126: 2
A127: 2781 | B127: KINLOCH PARK ELEMENTARY | C127: 50 | D127: 1 | E127: 13 | F127: 36
A128: 2801 | B128: LAKE STEVENS ELEMENTARY | C128: 24 | D128: 2 | E128: 6 | F128: 16
A129: 2821 | B129: LAKEVIEW ELEMENTARY | C129: 34 | D129: 9 | E129: 13 | F129: 12
A130: 2881 | B130: LEEWOOD K-8 CENTER | C130: 32 | E130: 4 | F130: 10 | G130: 8 | H130: 6 | I130: 4
A131: 2891 | B131: WILLIAM LEHMAN ELEMENTARY | C131: 23 | D131: 1 | E131: 10 | F131: 12
A132: 2901 | B132: LEISURE CITY K-8 CENTER | C132: 160 | D132: 3 | E132: 21 | F132: 29 | G132: 42 | H132: 33 | I132: 32
A133: 2911 | B133: LINDA LENTIN K-8 CENTER | C133: 155 | D133: 8 | E133: 22 | F133: 20 | G133: 51 | H133: 36 | I133: 18
A134: 2941 | B134: LAURA C. SAUNDERS ELEMENTARY | C134: 47 | D134: 6 | E134: 13 | F134: 28
A135: 2981 | B135: LIBERTY CITY ELEMENTARY | C135: 45 | D135: 9 | E135: 15 | F135: 21
A136: 3021 | B136: JESSE J MCCRARY JR ELEMENTARY | C136: 52 | D136: 11 | E136: 14 | F136: 27
A137: 3024 | B137: FLORIDA INTERNATIONAL EL ACAD | C137: 34 | D137: 6 | E137: 7 | F137: 21
A138: 3025 | B138: ADVANTAGE ACADEMY SANTA FE | C138: 4 | D138: 2 | E138: 1 | F138: 1
A139: 3030 | B139: DORAL ACADEMY | C139: 21 | E139: 7 | F139: 14
A140: 3032 | B140: PALM GLADES PREPATORY ACADEMY | C140: 125 | G140: 19 | H140: 66 | I140: 40
A141: 3034 | B141: BRIDGEPREP ACAD VILLAGE GREEN | C141: 5 | D141: 1 | F141: 4
A142: 3035 | B142: RAMZ ACADEMY ELEM MIAMI CAMPUS | C142: 15 | E142: 7 | F142: 8
A143: 3041 | B143: LORAH PARK ELEMENTARY | C143: 31 | D143: 7 | E143: 9 | F143: 15
A144: 3051 | B144: TOUSSAINT L'OUVERTURE ELEM | C144: 65 | D144: 21 | E144: 20 | F144: 24
A145: 3061 | B145: LUDLAM ELEMENTARY | C145: 17 | D145: 2 | E145: 13 | F145: 2
A146: 3100 | B146: MATER ACADEMY EAST CHARTER | C146: 3 | F146: 3
A147: 3101 | B147: FRANK C. MARTIN K-8 CENTER | C147: 13 | E147: 2 | F147: 4 | G147: 1 | H147: 3 | I147: 3
A148: 3111 | B148: WESLEY MATTHEWS ELEMENTARY | C148: 14 | D148: 1 | E148: 9 | F148: 4
A149: 3141 | B149: MEADOWLANE ELEMENTARY | C149: 49 | D149: 4 | E149: 15 | F149: 30
A150: 3181 | B150: MELROSE ELEMENTARY | C150: 37 | D150: 4 | E150: 4 | F150: 29
A151: 3191 | B151: ADA MERRITT K-8 CENTER | C151: 7 | F151: 5 | G151: 1 | H151: 1
A152: 3241 | B152: MIAMI GARDENS ELEMENTARY | C152: 18 | D152: 3 | E152: 4 | F152: 11
A153: 3261 | B153: MIAMI HEIGHTS ELEMENTARY | C153: 73 | D153: 9 | E153: 23 | F153: 41
A154: 3281 | B154: MIAMI LAKES K-8 CENTER | C154: 116 | D154: 7 | E154: 19 | F154: 35 | G154: 13 | H154: 25 | I154: 17
A155: 3301 | B155: MIAMI PARK ELEMENTARY | C155: 39 | D155: 6 | E155: 16 | F155: 17
A156: 3341 | B156: MIAMI SHORES ELEMENTARY | C156: 29 | D156: 3 | E156: 14 | F156: 12
A157: 3381 | B157: MIAMI SPRINGS ELEMENTARY | C157: 32 | D157: 1 | E157: 11 | F157: 20
A158: 3421 | B158: M.A. MILAM K-8 CENTER | C158: 147 | D158: 8 | E158: 16 | F158: 38 | G158: 23 | H158: 35 | I158: 27
A159: 3431 | B159: PHYLLIS RUTH MILLER ELEMENTARY | C159: 66 | D159: 12 | E159: 22 | F159: 32
A160: 3501 | B160: MORNINGSIDE K-8 ACADEMY | C160: 49 | D160: 2 | E160: 4 | F160: 15 | G160: 18 | H160: 10
A161: 3541 | B161: ROBERT RUSSA MOTON ELEMENTARY | C161: 19 | D161: 3 | E161: 8 | F161: 8
A162: 3581 | B162: MYRTLE GROVE K-8 CENTER | C162: 62 | D162: 8 | E162: 8 | F162: 14 | G162: 18 | H162: 14
A163: 3600 | B163: DOWNTOWN MIAMI CHARTER SCHOOL | C163: 23 | D163: 7 | E163: 6 | F163: 4 | G163: 6
A164: 3610 | B164: KEYS GATE CHARTER SCHOOL | C164: 262 | D164: 6 | E164: 24 | F164: 28 | G164: 70 | H164: 82 | I164: 52
A165: 3621 | B165: COCONUT PALM K-8 ACADEMY | C165: 143 | D165: 5 | E165: 17 | F165: 24 | G165: 42 | H165: 34 | I165: 21
A166: 3661 | B166: NATURAL BRIDGE ELEMENTARY | C166: 40 | D166: 3 | E166: 14 | F166: 23
A167: 3701 | B167: NORLAND ELEMENTARY | C167: 35 | D167: 3 | E167: 17 | F167: 15
A168: 3741 | B168: NORTH BEACH ELEMENTARY | C168: 19 | D168: 2 | E168: 10 | F168: 7
A169: 3781 | B169: BARBARA HAWKINS ELEMENTARY | C169: 26 | D169: 7 | E169: 8 | F169: 11
A170: 3821 | B170: NORTH COUNTY K-8 CENTER | C170: 57 | D170: 3 | E170: 7 | F170: 11 | G170: 13 | H170: 12 | I170: 11
A171: 3861 | B171: NORTH GLADE ELEMENTARY | C171: 36 | D171: 11 | E171: 7 | F171: 18
A172: 3901 | B172: NORTH HIALEAH ELEMENTARY | C172: 51 | D172: 11 | E172: 10 | F172: 30
A173: 3941 | B173: NORTH MIAMI ELEMENTARY | C173: 43 | D173: 7 | E173: 6 | F173: 30
A174: 3981 | B174: NORTH TWIN LAKES ELEMENTARY | C174: 25 | D174: 4 | E174: 10 | F174: 11
A175: 4000 | B175: MIAMI CHILDREN'S MUSEUM | C175: 4 | E175: 2 | F175: 2
A176: 4001 | B176: NORWOOD ELEMENTARY | C176: 14 | E176: 5 | F176: 9
A177: 4012 | B177: SOMERSET ACAD AT SILVER PALMS | C177: 20 | D177: 1 | E177: 2 | F177: 17
A178: 4021 | B178: OAK GROVE ELEMENTARY | C178: 55 | D178: 9 | E178: 7 | F178: 20 | G178: 19
A179: 4031 | B179: GATEWAY ENVIRONMENTAL K-8 | C179: 205 | D179: 20 | E179: 40 | F179: 52 | G179: 40 | H179: 33 | I179: 20
A180: 4061 | B180: OJUS ELEMENTARY | C180: 37 | D180: 5 | E180: 12 | F180: 20
A181: 4071 | B181: AGENORIA S. PASCHAL/OLINDA EL | C181: 29 | D181: 7 | E181: 9 | F181: 13
A182: 4081 | B182: PRIMARY LEARNING CENTER | C182: 1 | E182: 1
A183: 4091 | B183: OLYMPIA HEIGHTS ELEMENTARY | C183: 19 | D183: 1 | E183: 9 | F183: 9
A184: 4121 | B184: DR. ROBERT B. INGRAM EL | C184: 41 | D184: 10 | E184: 18 | F184: 13
A185: 4171 | B185: ORCHARD VILLA ELEMENTARY | C185: 37 | D185: 16 | E185: 5 | F185: 16
A186: 4221 | B186: PALMETTO ELEMENTARY | C186: 11 | D186: 2 | E186: 3 | F186: 6
A187: 4241 | B187: PALM LAKES ELEMENTARY | C187: 38 | D187: 5 | E187: 14 | F187: 19
A188: 4261 | B188: PALM SPRINGS ELEMENTARY | C188: 66 | D188: 9 | E188: 28 | F188: 29
A189: 4281 | B189: PALM SPRINGS NORTH ELEMENTARY | C189: 34 | D189: 2 | E189: 10 | F189: 22
A190: 4301 | B190: PARKVIEW ELEMENTARY | C190: 22 | D190: 1 | E190: 10 | F190: 11
A191: 4341 | B191: PARKWAY ELEMENTARY | C191: 21 | D191: 3 | E191: 7 | F191: 11
A192: 4381 | B192: DR HENRY E PERRINE ACADEMY | C192: 45 | D192: 5 | E192: 15 | F192: 25
A193: 4391 | B193: IRVING & BEATRICE PESKOE K-8 | C193: 97 | D193: 3 | E193: 19 | F193: 16 | G193: 21 | H193: 24 | I193: 14
A194: 4401 | B194: KELSEY L. PHARR ELEMENTARY | C194: 23 | D194: 6 | E194: 7 | F194: 10
A195: 4421 | B195: PINECREST ELEMENTARY | C195: 16 | E195: 8 | F195: 8
A196: 4441 | B196: PINE LAKE ELEMENTARY | C196: 40 | D196: 6 | E196: 13 | F196: 21
A197: 4461 | B197: PINE VILLA ELEMENTARY | C197: 19 | D197: 6 | E197: 2 | F197: 11
A198: 4491 | B198: HENRY E.S. REEVES ELEMENTARY | C198: 62 | D198: 27 | E198: 17 | F198: 18
A199: 4501 | B199: POINCIANA PARK ELEMENTARY | C199: 13 | D199: 8 | E199: 1 | F199: 4
A200: 4511 | B200: DR GILBERT L. PORTER ELEM | C200: 23 | D200: 2 | E200: 9 | F200: 12
... 171 more rows

Sheet MEM_ML2 (hidden)
A1: 1 | B1: 2 | C1: 3 | D1: 4 | E1: 5 | F1: 6 | G1: 7 | H1: 8 | I1: 9
A2: S_SCHOOL_NUM | B2: S_SCHL_NAME | C2: Total Of STUDENT_ID | D2: 03 | E2: 04 | F2: 05 | G2: 06 | H2: 07 | I2: 08
A3: 0041 | B3: AIR BASE ELEMENTARY | C3: 49 | E3: 24 | F3: 15 | G3: 10
A4: 0070 | B4: CORAL REEF MONTESSORI ACAD CH | C4: 54 | E4: 21 | F4: 11 | G4: 12 | H4: 3 | I4: 7
A5: 0071 | B5: EUGENIA B. THOMAS K-8 CENTER | C5: 172 | D5: 1 | E5: 50 | F5: 23 | G5: 33 | H5: 38 | I5: 27
A6: 0072 | B6: SUMMERVILLE CHARTER SCHOOL | C6: 40 | E6: 23 | F6: 17
A7: 0073 | B7: MANDARIN LAKES K-8 CENTER | C7: 129 | D7: 3 | E7: 19 | F7: 26 | G7: 35 | H7: 34 | I7: 12
A8: 0081 | B8: LENORA B. SMITH ELEMENTARY | C8: 38 | D8: 3 | E8: 15 | F8: 20
A9: 0091 | B9: BOB GRAHAM EDUCATION CTR | C9: 215 | E9: 43 | F9: 27 | G9: 55 | H9: 50 | I9: 40
A10: 0092 | B10: NORMAN S. EDELCUP/SUNNY ISLES | C10: 139 | D10: 4 | E10: 32 | F10: 25 | G10: 29 | H10: 23 | I10: 26
A11: 0100 | B11: MATER ACADEMY | C11: 32 | E11: 19 | F11: 13
A12: 0101 | B12: ARCOLA LAKE ELEMENTARY | C12: 37 | D12: 2 | E12: 14 | F12: 21
A13: 0102 | B13: MIAMI COMMUNITY CHARTER SCHOOL | C13: 42 | D13: 1 | E13: 23 | F13: 18
A14: 0111 | B14: MAYA ANGELOU ELEMENTARY | C14: 39 | D14: 8 | E14: 15 | F14: 16
A15: 0121 | B15: AUBURNDALE ELEMENTARY | C15: 46 | D15: 1 | E15: 18 | F15: 27
A16: 0122 | B16: DR ROLANDO ESPINOSA K-8 | C16: 169 | D16: 5 | E16: 28 | F16: 37 | G16: 33 | H16: 34 | I16: 32
A17: 0125 | B17: NORMA BUTLER BOSSARD ELEM | C17: 67 | D17: 2 | E17: 28 | F17: 37
A18: 0161 | B18: AVOCADO ELEMENTARY | C18: 2 | D18: 2
A19: 0201 | B19: BANYAN ELEMENTARY | C19: 12 | E19: 8 | F19: 4
A20: 0211 | B20: DR. MANUEL C. BARREIRO ELEM | C20: 54 | E20: 23 | F20: 31
A21: 0231 | B21: AVENTURA WATERWAYS K-8 CENTER | C21: 158 | D21: 2 | E21: 25 | F21: 29 | G21: 43 | H21: 36 | I21: 23
A22: 0241 | B22: RUTH K BROAD/BAY HARBOR K-8 | C22: 100 | D22: 2 | E22: 14 | F22: 11 | G22: 27 | H22: 28 | I22: 18
A23: 0251 | B23: ETHEL KOGER BECKHAM ELEMENTARY | C23: 22 | D23: 2 | E23: 13 | F23: 7
A24: 0261 | B24: BEL-AIRE ELEMENTARY | C24: 25 | D24: 3 | E24: 11 | F24: 11
A25: 0271 | B25: BENT TREE ELEMENTARY | C25: 42 | D25: 1 | E25: 29 | F25: 12
A26: 0311 | B26: GOULDS ELEMENTARY | C26: 57 | D26: 2 | E26: 24 | F26: 31
A27: 0312 | B27: MATER GARDENS ACADEMY | C27: 27 | E27: 17 | F27: 10
A28: 0321 | B28: BISCAYNE ELEMENTARY | C28: 54 | D28: 2 | E28: 19 | F28: 33
A29: 0332 | B29: SOMERSET ACADEMY(SILVER PALMS) | C29: 109 | D29: 1 | E29: 12 | F29: 7 | G29: 40 | H29: 26 | I29: 23
A30: 0339 | B30: SOMERSET ACADEMY CHARTER ELEM | C30: 24 | E30: 17 | F30: 7
A31: 0341 | B31: ARCH CREEK ELEMENTARY SCHOOL | C31: 39 | D31: 1 | E31: 15 | F31: 23
A32: 0342 | B32: PINECREST ACADEMY SOUTH CAMPUS | C32: 39 | E32: 22 | F32: 17
A33: 0361 | B33: BISCAYNE GARDENS ELEMENTARY | C33: 45 | D33: 1 | E33: 22 | F33: 22
A34: 0400 | B34: RENAISSANCE ELEMENTARY CHARTER | C34: 42 | E34: 18 | F34: 24
A35: 0401 | B35: VAN E. BLANTON ELEMENTARY | C35: 29 | D35: 4 | E35: 11 | F35: 14
A36: 0410 | B36: ACADEMIR CHARTER SCHOOL WEST | C36: 26 | D36: 1 | E36: 12 | F36: 13
A37: 0441 | B37: BLUE LAKES ELEMENTARY | C37: 43 | E37: 20 | F37: 23
A38: 0451 | B38: BOWMAN ASHE/DOOLIN K-8 ACAD | C38: 159 | D38: 1 | E38: 19 | F38: 21 | G38: 25 | H38: 38 | I38: 55
A39: 0461 | B39: BRENTWOOD ELEMENTARY | C39: 58 | D39: 5 | E39: 32 | F39: 21
A40: 0481 | B40: JAMES H. BRIGHT/JW JOHNSON ES | C40: 48 | D40: 2 | E40: 26 | F40: 20
A41: 0510 | B41: ARCHIMEDEAN ACADEMY | C41: 9 | E41: 3 | F41: 6
A42: 0520 | B42: SOMERSET ACADEMY | C42: 17 | E42: 7 | F42: 10
A43: 0521 | B43: BROADMOOR ELEMENTARY | C43: 37 | D43: 2 | E43: 23 | F43: 12
A44: 0561 | B44: W.J. BRYAN ELEMENTARY | C44: 49 | D44: 5 | E44: 24 | F44: 20
A45: 0600 | B45: PINECREST PREP ACADEMY | C45: 30 | E45: 18 | F45: 12
A46: 0641 | B46: BUNCHE PARK ELEMENTARY | C46: 11 | E46: 4 | F46: 7
A47: 0651 | B47: CAMPBELL DRIVE K-8 CENTER | C47: 118 | D47: 6 | E47: 28 | F47: 25 | G47: 24 | H47: 19 | I47: 16
A48: 0661 | B48: CARIBBEAN ELEMENTARY | C48: 43 | D48: 3 | E48: 20 | F48: 20
A49: 0671 | B49: CALUSA ELEMENTARY | C49: 34 | E49: 10 | F49: 24
A50: 0681 | B50: CAROL CITY ELEMENTARY | C50: 32 | D50: 3 | E50: 17 | F50: 12
A51: 0721 | B51: GEORGE WASHINGTON CARVER ELEM | C51: 46 | E51: 22 | F51: 24
A52: 0761 | B52: FIENBERG/FISHER K-8 CENTER | C52: 102 | E52: 20 | F52: 19 | G52: 25 | H52: 21 | I52: 17
A53: 0771 | B53: WILLIAM A. CHAPMAN ELEMENTARY | C53: 25 | D53: 1 | E53: 18 | F53: 6
A54: 0801 | B54: CITRUS GROVE ELEMENTARY | C54: 57 | E54: 20 | F54: 37
A55: 0831 | B55: CLAUDE PEPPER ELEMENTARY | C55: 33 | E55: 15 | F55: 18
A56: 0841 | B56: COCONUT GROVE ELEMENTARY | C56: 10 | E56: 6 | F56: 4
A57: 0861 | B57: COLONIAL DRIVE ELEMENTARY | C57: 17 | D57: 2 | E57: 12 | F57: 3
A58: 0881 | B58: COMSTOCK ELEMENTARY | C58: 46 | D58: 4 | E58: 23 | F58: 19
A59: 0950 | B59: AVENTURA CITY OF EXCELLENCE | C59: 45 | D59: 1 | E59: 10 | F59: 10 | G59: 10 | H59: 3 | I59: 11
A60: 0961 | B60: CORAL GABLES PREPARATORY ACAD | C60: 66 | D60: 1 | E60: 9 | F60: 9 | G60: 14 | H60: 21 | I60: 12
A61: 1001 | B61: CORAL PARK ELEMENTARY | C61: 23 | E61: 16 | F61: 7
A62: 1010 | B62: CHARTER SCHOOL AT WATERSTONE | C62: 78 | E62: 30 | F62: 48
A63: 1014 | B63: HIVE PREPARATORY SCHOOL | C63: 29 | D63: 2 | E63: 10 | F63: 17
A64: 1017 | B64: MATER ACADEMY OF INTL STUDIES | C64: 18 | D64: 1 | E64: 10 | F64: 7
A65: 1020 | B65: YOUTH CO-OP CHARTER SCHOOL | C65: 76 | D65: 1 | E65: 9 | F65: 5 | G65: 15 | H65: 15 | I65: 31
A66: 1041 | B66: CORAL REEF ELEMENTARY | C66: 35 | E66: 19 | F66: 16
A67: 1081 | B67: CORAL TERRACE ELEMENTARY | C67: 37 | D67: 2 | E67: 24 | F67: 11
A68: 1121 | B68: CORAL WAY K-8 CENTER | C68: 197 | E68: 44 | F68: 35 | G68: 45 | H68: 38 | I68: 35
A69: 1161 | B69: CRESTVIEW ELEMENTARY | C69: 35 | E69: 26 | F69: 9
A70: 1241 | B70: CUTLER RIDGE ELEMENTARY | C70: 62 | D70: 1 | E70: 28 | F70: 33
A71: 1281 | B71: CYPRESS ELEMENTARY | C71: 22 | D71: 1 | E71: 7 | F71: 14
A72: 1331 | B72: DEVON AIRE K-8 CENTER | C72: 156 | D72: 1 | E72: 31 | F72: 30 | G72: 26 | H72: 43 | I72: 25
A73: 1361 | B73: FREDERICK DOUGLASS ELEMENTARY | C73: 12 | E73: 6 | F73: 6
A74: 1371 | B74: MARJORY STONEMAN DOUGLAS ELEM | C74: 63 | D74: 1 | E74: 35 | F74: 27
A75: 1401 | B75: CHARLES R. DREW K-8 CENTER | C75: 37 | D75: 1 | E75: 8 | F75: 5 | G75: 10 | H75: 13
A76: 1441 | B76: PAUL LAURENCE DUNBAR K-8 CTR | C76: 50 | D76: 3 | E76: 13 | F76: 16 | G76: 11 | H76: 7
A77: 1481 | B77: JOHN G. DUPUIS ELEMENTARY | C77: 54 | D77: 1 | E77: 25 | F77: 28
A78: 1521 | B78: AMELIA EARHART ELEMENTARY | C78: 32 | D78: 1 | E78: 22 | F78: 9
A79: 1561 | B79: EARLINGTON HEIGHTS ELEMENTARY | C79: 34 | D79: 3 | E79: 20 | F79: 11
A80: 1601 | B80: EDISON PARK K-8 CENTER | C80: 40 | E80: 13 | F80: 15 | G80: 8 | H80: 4
A81: 1641 | B81: EMERSON ELEMENTARY | C81: 21 | E81: 8 | F81: 13
A82: 1681 | B82: LILLIE C. EVANS K-8 CENTER | C82: 56 | D82: 3 | E82: 8 | F82: 11 | G82: 16 | H82: 8 | I82: 10
A83: 1691 | B83: CHRISTINA M. EVE ELEMENTARY | C83: 26 | E83: 12 | F83: 14
A84: 1721 | B84: EVERGLADES K-8 CENTER | C84: 135 | D84: 1 | E84: 20 | F84: 21 | G84: 27 | H84: 26 | I84: 40
A85: 1761 | B85: DAVID FAIRCHILD ELEMENTARY | C85: 37 | E85: 26 | F85: 11
A86: 1801 | B86: FAIRLAWN ELEMENTARY | C86: 41 | D86: 1 | E86: 17 | F86: 23
A87: 1811 | B87: DANTE B. FASCELL ELEMENTARY | C87: 36 | E87: 19 | F87: 17
A88: 1841 | B88: FLAGAMI ELEMENTARY | C88: 31 | E88: 13 | F88: 18
A89: 1881 | B89: HENRY M. FLAGLER ELEMENTARY | C89: 54 | D89: 3 | E89: 33 | F89: 18
A90: 1921 | B90: FLAMINGO ELEMENTARY | C90: 62 | D90: 1 | E90: 29 | F90: 32
A91: 2001 | B91: FLORIDA CITY ELEMENTARY | C91: 41 | D91: 4 | E91: 13 | F91: 24
A92: 2003 | B92: BRIDGEPREP ACADEMY SOUTH | C92: 9 | F92: 2 | G92: 7
A93: 2006 | B93: RICHARD ALLEN LEADERSHIP ACAD | C93: 5 | E93: 2 | F93: 3
A94: 2007 | B94: SOMERSET ACADEMY ELEMENTARY | C94: 21 | E94: 15 | F94: 6
A95: 2012 | B95: SOMERSET ARTS ACADEMY | C95: 21 | D95: 1 | E95: 4 | F95: 16
A96: 2013 | B96: BRIDGEPREP ACAD GREATER MIAMI | C96: 11 | E96: 5 | F96: 6
A97: 2021 | B97: GLORIA FLOYD ELEMENTARY | C97: 34 | D97: 3 | E97: 17 | F97: 14
A98: 2041 | B98: BENJAMIN FRANKLIN K-8 CENTER | C98: 86 | D98: 4 | E98: 11 | F98: 15 | G98: 22 | H98: 15 | I98: 19
A99: 2060 | B99: GIBSON CHARTER SCHOOL | C99: 46 | D99: 1 | E99: 5 | F99: 12 | G99: 9 | H99: 13 | I99: 6
A100: 2081 | B100: FULFORD ELEMENTARY | C100: 40 | D100: 4 | E100: 14 | F100: 22
A101: 2111 | B101: HIALEAH GARDENS ELEMENTARY | C101: 47 | D101: 2 | E101: 18 | F101: 27
A102: 2151 | B102: JACK D. GORDON ELEMENTARY | C102: 61 | E102: 33 | F102: 28
A103: 2161 | B103: GOLDEN GLADES ELEMENTARY | C103: 23 | E103: 12 | F103: 11
A104: 2181 | B104: JOELLA C. GOOD ELEMENTARY | C104: 75 | E104: 46 | F104: 29
A105: 2191 | B105: SPANISH LAKE ELEMENTARY | C105: 88 | D105: 4 | E105: 58 | F105: 26
A106: 2241 | B106: GRATIGNY ELEMENTARY | C106: 61 | D106: 1 | E106: 25 | F106: 18 | G106: 17
A107: 2261 | B107: GREENGLADE ELEMENTARY | C107: 27 | E107: 15 | F107: 12
A108: 2281 | B108: GREYNOLDS PARK ELEMENTARY | C108: 50 | D108: 5 | E108: 28 | F108: 17
A109: 2321 | B109: GULFSTREAM ELEMENTARY | C109: 37 | D109: 1 | E109: 20 | F109: 16
A110: 2331 | B110: CHARLES R. HADLEY ELEMENTARY | C110: 48 | D110: 1 | E110: 25 | F110: 22
A111: 2341 | B111: JOE HALL ELEMENTARY | C111: 35 | D111: 1 | E111: 20 | F111: 14
A112: 2351 | B112: ENEIDA MASSAS HARTNER ELEM | C112: 39 | D112: 2 | E112: 20 | F112: 17
A113: 2361 | B113: HIALEAH ELEMENTARY | C113: 48 | D113: 2 | E113: 24 | F113: 22
A114: 2371 | B114: WEST HIALEAH GARDENS ELEM | C114: 69 | D114: 3 | E114: 27 | F114: 39
A115: 2401 | B115: HIBISCUS ELEMENTARY | C115: 43 | D115: 3 | E115: 30 | F115: 10
A116: 2441 | B116: VIRGINIA A BOONE/HIGHLAND OAKS | C116: 40 | D116: 2 | E116: 16 | F116: 22
A117: 2501 | B117: HOLMES ELEMENTARY | C117: 35 | D117: 4 | E117: 15 | F117: 16
A118: 2511 | B118: ZORA NEALE HURSTON ELEMENTARY | C118: 46 | D118: 3 | E118: 23 | F118: 20
A119: 2521 | B119: OLIVER HOOVER ELEMENTARY | C119: 43 | E119: 20 | F119: 23
A120: 2541 | B120: HOWARD DRIVE ELEMENTARY | C120: 36 | E120: 15 | F120: 21
A121: 2581 | B121: MADIE IVES ELEMENTARY | C121: 54 | D121: 3 | E121: 24 | F121: 27
A122: 2641 | B122: KENDALE ELEMENTARY | C122: 21 | D122: 1 | E122: 12 | F122: 8
A123: 2651 | B123: KENDALE LAKES ELEMENTARY | C123: 33 | D123: 2 | E123: 18 | F123: 13
A124: 2661 | B124: KENSINGTON PARK ELEMENTARY | C124: 79 | D124: 2 | E124: 38 | F124: 39
A125: 2701 | B125: KENWOOD K-8 CENTER | C125: 129 | D125: 3 | E125: 31 | F125: 20 | G125: 26 | H125: 25 | I125: 24
A126: 2741 | B126: KEY BISCAYNE K-8 CENTER | C126: 76 | E126: 22 | F126: 9 | G126: 10 | H126: 23 | I126: 12
A127: 2781 | B127: KINLOCH PARK ELEMENTARY | C127: 61 | E127: 26 | F127: 35
A128: 2801 | B128: LAKE STEVENS ELEMENTARY | C128: 16 | E128: 6 | F128: 10
A129: 2821 | B129: LAKEVIEW ELEMENTARY | C129: 29 | D129: 3 | E129: 12 | F129: 14
A130: 2881 | B130: LEEWOOD K-8 CENTER | C130: 64 | E130: 5 | F130: 13 | G130: 10 | H130: 16 | I130: 20
A131: 2891 | B131: WILLIAM LEHMAN ELEMENTARY | C131: 44 | D131: 4 | E131: 26 | F131: 14
